Workbook

Sheet ・ (hidden)
F1: 合計： | I1: =SUBTOTAL(9,I3:I650) -> 1173940
A2: 1 | B2: 販売店コード | C2: 販売店 | D2: 扱い店 | E2: 扱い紙 | F2: 種別 | G2: 種別NO | H2: 識別コード | I2: フル部数 | J2: 北区 | K2: 東区 | L2: 中央区 | M2: 江南区 | N2: 西区 | O2: 南区 | P2: 西蒲区 | Q2: 秋葉区 | R2: 区合計 | S2: 現新潟市 | T2: 旧新潟市 | U2: 旧黒埼町 | V2: 旧味方村 | W2: 旧潟東村 | X2: 旧西川町 | Y2: 旧月潟村 | Z2: 旧巻町 | AA2: 旧中之口村 | AB2: 旧岩室村 | AC2: 旧白根市 | AD2: 旧小須戸町 | AE2: 旧新津市 | AF2: 旧亀田町 | AG2: 旧横越町 | AH2: 旧豊栄市 | AI2: 旧燕市 | AJ2: 旧吉田町 | AK2: 旧分水町 | AL2: 弥彦村 | AM2: 旧新発田市 | AN2: 旧豊浦町 | AO2: 旧紫雲寺町 | AP2: 旧加治川村 | AQ2: 聖籠町 | AR2: 旧中条町 | AS2: 旧黒川村 | AT2: 旧村上市 | AU2: 旧荒川町 | AV2: 旧神林村 | AW2: 旧朝日村 | AX2: 旧山北町 | AY2: 関川村 | AZ2: 粟島浦村 | BA2: 旧水原町 | BB2: 旧笹神村 | BC2: 旧安田町 | BD2: 旧京ヶ瀬村 | BE2: 旧津川町 | BF2: 旧鹿瀬町 | BG2: 旧三川村 | BH2: 旧上川村 | BI2: 旧五泉市 | BJ2: 旧村松町 | BK2: 田上町 | BL2: 加茂市 | BM2: 旧三条市 | BN2: 旧栄町 | BO2: 旧下田村 | BP2: 旧市町村
A3: 2 | B3: 10101 | C3: 万代 | D3: MN | E3: 新アマ日 | F3: 朝刊 | G3: =IFERROR(VLOOKUP(F3,[1]データ!$A$2:$B$16,2,FALSE),"") -> 1 | H3: 101011 | I3: 3190 | L3: =I3 -> 3190 | R3: =SUM(J3:Q3) -> 3190 | S3: =SUM(T3:AH3) -> 3190 | T3: =I3 -> 3190 | BP3: =SUM(T3:BO3) -> 3190
A4: 3 | B4: 10101 | C4: 万代 | F4: くるみる | G4: =IFERROR(VLOOKUP(F4,[1]データ!$A$2:$B$16,2,FALSE),"") -> 3 | H4: 101013 | I4: 400 | L4: =I4 -> 400 | R4: 400 | BP4: =SUM(U4:BO4) -> 0
A5: 4 | B5: 10101 | C5: 万代 | F5: otona+ | G5: =IFERROR(VLOOKUP(F5,[1]データ!$A$2:$B$16,2,FALSE),"") -> 4 | H5: 101014 | I5: 550 | L5: =I5 -> 550 | R5: 550 | BP5: 0
A6: 5 | B6: 10101 | C6: 万代 | F6: assh | G6: =IFERROR(VLOOKUP(F6,[1]データ!$A$2:$B$16,2,FALSE),"") -> 5 | H6: 101015 | I6: 2500 | L6: 2500 | R6: 2500 | BP6: 0
A7: 6 | B7: 10101 | C7: 万代 | F7: assh・朝 | G7: =IFERROR(VLOOKUP(F7,[1]データ!$A$2:$B$16,2,FALSE),"") -> 51 | H7: 1010151 | I7: =I3 -> 3190 | R7: 0 | BP7: 0
A8: 7 | B8: 10101 | C8: 万代 | F8: 市報・区報 | G8: =IFERROR(VLOOKUP(F8,[1]データ!$A$2:$B$16,2,FALSE),"") -> 2 | H8: 101012 | I8: =R8 -> 3190 | L8: =L3 -> 3190 | R8: 3190 | BP8: 0
A9: 8 | B9: 10102 | C9: 駅南 | D9: MN | E9: 新アマ日 | F9: 朝刊 | G9: =IFERROR(VLOOKUP(F9,[1]データ!$A$2:$B$16,2,FALSE),"") -> 1 | H9: 101021 | I9: 4400 | K9: 690 | L9: 3960 | R9: 4650 | S9: =SUM(T9:AH9) -> 4400 | T9: =I9 -> 4400 | BP9: 0
A10: 9 | B10: 10102 | C10: 駅南 | F10: くるみる | G10: =IFERROR(VLOOKUP(F10,[1]データ!$A$2:$B$16,2,FALSE),"") -> 3 | H10: 101023 | I10: 630 | K10: 160 | L10: 520 | R10: 680 | BP10: 0
A11: 10 | B11: 10102 | C11: 駅南 | F11: otona+ | G11: =IFERROR(VLOOKUP(F11,[1]データ!$A$2:$B$16,2,FALSE),"") -> 4 | H11: 101024 | I11: 660 | K11: 110 | L11: 660 | R11: 770 | BP11: 0
A12: 11 | B12: 10102 | C12: 駅南 | F12: assh | G12: =IFERROR(VLOOKUP(F12,[1]データ!$A$2:$B$16,2,FALSE),"") -> 5 | H12: 101025 | I12: 7500 | K12: 1170 | L12: 6610 | R12: 7780 | BP12: 0
A13: 12 | B13: 10102 | C13: 駅南 | F13: assh・朝 | G13: =IFERROR(VLOOKUP(F13,[1]データ!$A$2:$B$16,2,FALSE),"") -> 51 | H13: 1010251 | I13: =I9 -> 4400 | R13: 0 | BP13: 0
A14: 13 | B14: 10102 | C14: 駅南 | F14: 市報・区報 | G14: =IFERROR(VLOOKUP(F14,[1]データ!$A$2:$B$16,2,FALSE),"") -> 2 | H14: 101022 | I14: =R14 -> 4650 | K14: =K9 -> 690 | L14: =L9 -> 3960 | R14: 4650 | BP14: 0
A15: 14 | B15: 10103 | C15: 木戸 | D15: MN | E15: 新アマ日 | F15: 朝刊 | G15: =IFERROR(VLOOKUP(F15,[1]データ!$A$2:$B$16,2,FALSE),"") -> 1 | H15: 101031 | I15: 4680 | K15: 4680 | L15: 430 | R15: 5110 | S15: 4680 | T15: =I15 -> 4680 | BP15: 0
A16: 15 | B16: 10103 | C16: 木戸 | F16: くるみる | G16: =IFERROR(VLOOKUP(F16,[1]データ!$A$2:$B$16,2,FALSE),"") -> 3 | H16: 101033 | I16: 750 | K16: 750 | L16: 100 | R16: 850 | BP16: 0
A17: 16 | B17: 10103 | C17: 木戸 | F17: otona+ | G17: =IFERROR(VLOOKUP(F17,[1]データ!$A$2:$B$16,2,FALSE),"") -> 4 | H17: 101034 | I17: 650 | K17: 650 | L17: 260 | R17: 910 | BP17: 0
A18: 17 | B18: 10103 | C18: 木戸 | F18: assh | G18: =IFERROR(VLOOKUP(F18,[1]データ!$A$2:$B$16,2,FALSE),"") -> 5 | H18: 101035 | I18: 6150 | K18: 6150 | L18: 570 | R18: 6720 | BP18: 0
A19: 18 | B19: 10103 | C19: 木戸 | F19: assh・朝 | G19: =IFERROR(VLOOKUP(F19,[1]データ!$A$2:$B$16,2,FALSE),"") -> 51 | H19: 1010351 | I19: =I15 -> 4680 | R19: 0 | BP19: 0
A20: 19 | B20: 10103 | C20: 木戸 | F20: 市報・区報 | G20: =IFERROR(VLOOKUP(F20,[1]データ!$A$2:$B$16,2,FALSE),"") -> 2 | H20: 101032 | I20: =R20 -> 5110 | K20: =K15 -> 4680 | L20: =L15 -> 430 | R20: 5110 | BP20: 0
A21: 20 | B21: 10105 | C21: 石山東 | D21: MN | E21: 新アマ日 | F21: 朝刊 | G21: =IFERROR(VLOOKUP(F21,[1]データ!$A$2:$B$16,2,FALSE),"") -> 1 | H21: 101051 | I21: 5600 | K21: =I21 -> 5600 | R21: 5600 | S21: 5600 | T21: =I21 -> 5600 | BP21: 0
A22: 21 | B22: 10105 | C22: 石山東 | F22: くるみる | G22: =IFERROR(VLOOKUP(F22,[1]データ!$A$2:$B$16,2,FALSE),"") -> 3 | H22: 101053 | I22: 1150 | K22: =I22 -> 1150 | R22: 1150 | BP22: 0
A23: 22 | B23: 10105 | C23: 石山東 | F23: otona+ | G23: =IFERROR(VLOOKUP(F23,[1]データ!$A$2:$B$16,2,FALSE),"") -> 4 | H23: 101054 | I23: 640 | K23: 640 | R23: 640 | BP23: 0
A24: 23 | B24: 10105 | C24: 石山東 | F24: assh | G24: =IFERROR(VLOOKUP(F24,[1]データ!$A$2:$B$16,2,FALSE),"") -> 5 | H24: 101055 | I24: 5300 | K24: 5300 | R24: 5300 | BP24: 0
A25: 24 | B25: 10105 | C25: 石山東 | F25: assh・朝 | G25: =IFERROR(VLOOKUP(F25,[1]データ!$A$2:$B$16,2,FALSE),"") -> 51 | H25: 1010551 | I25: =I21 -> 5600 | R25: 0 | BP25: 0
A26: 25 | B26: 10105 | C26: 石山東 | F26: 市報・区報 | G26: =IFERROR(VLOOKUP(F26,[1]データ!$A$2:$B$16,2,FALSE),"") -> 2 | H26: 101052 | I26: =R26 -> 5600 | K26: =K21 -> 5600 | R26: 5600 | BP26: 0
A27: 26 | B27: 10107 | C27: 山ノ下 | D27: MN | E27: 新アマ日 | F27: 朝刊 | G27: =IFERROR(VLOOKUP(F27,[1]データ!$A$2:$B$16,2,FALSE),"") -> 1 | H27: 101071 | I27: 3790 | K27: 2670 | L27: 1120 | R27: 3790 | S27: 3790 | T27: =I27 -> 3790 | BP27: 0
A28: 27 | B28: 10107 | C28: 山ノ下 | F28: くるみる | G28: =IFERROR(VLOOKUP(F28,[1]データ!$A$2:$B$16,2,FALSE),"") -> 3 | H28: 101073 | I28: 600 | K28: 390 | L28: 210 | R28: 600 | BP28: 0
A29: 28 | B29: 10107 | C29: 山ノ下 | F29: otona+ | G29: =IFERROR(VLOOKUP(F29,[1]データ!$A$2:$B$16,2,FALSE),"") -> 4 | H29: 101074 | I29: 620 | K29: 390 | L29: 230 | R29: 620 | BP29: 0
A30: 29 | B30: 10107 | C30: 山ノ下 | F30: assh | G30: =IFERROR(VLOOKUP(F30,[1]データ!$A$2:$B$16,2,FALSE),"") -> 5 | H30: 101075 | I30: 3750 | K30: 2550 | L30: 1200 | R30: 3750 | BP30: 0
A31: 30 | B31: 10107 | C31: 山ノ下 | F31: assh・朝 | G31: =IFERROR(VLOOKUP(F31,[1]データ!$A$2:$B$16,2,FALSE),"") -> 51 | H31: 1010751 | I31: =I27 -> 3790 | R31: 0 | BP31: 0
A32: 31 | B32: 10107 | C32: 山ノ下 | F32: 市報・区報 | G32: =IFERROR(VLOOKUP(F32,[1]データ!$A$2:$B$16,2,FALSE),"") -> 2 | H32: 101072 | I32: =R32 -> 3790 | K32: =K27 -> 2670 | L32: =L27 -> 1120 | R32: 3790 | BP32: 0
A33: 32 | B33: 10108 | C33: 物見山 | D33: MN | E33: 新アマ日 | F33: 朝刊 | G33: =IFERROR(VLOOKUP(F33,[1]データ!$A$2:$B$16,2,FALSE),"") -> 1 | H33: 101081 | I33: 3510 | K33: =I33 -> 3510 | R33: 3510 | S33: 3510 | T33: =I33 -> 3510 | BP33: 0
A34: 33 | B34: 10108 | C34: 物見山 | F34: くるみる | G34: =IFERROR(VLOOKUP(F34,[1]データ!$A$2:$B$16,2,FALSE),"") -> 3 | H34: 101083 | I34: 580 | K34: =I34 -> 580 | R34: 580 | BP34: 0
A35: 34 | B35: 10108 | C35: 物見山 | F35: otona+ | G35: =IFERROR(VLOOKUP(F35,[1]データ!$A$2:$B$16,2,FALSE),"") -> 4 | H35: 101084 | I35: 360 | K35: 360 | R35: 360 | BP35: 0
A36: 35 | B36: 10108 | C36: 物見山 | F36: assh | G36: =IFERROR(VLOOKUP(F36,[1]データ!$A$2:$B$16,2,FALSE),"") -> 5 | H36: 101085 | I36: 3600 | K36: 3600 | R36: 3600 | BP36: 0
A37: 36 | B37: 10108 | C37: 物見山 | F37: assh・朝 | G37: =IFERROR(VLOOKUP(F37,[1]データ!$A$2:$B$16,2,FALSE),"") -> 51 | H37: 1010851 | I37: =I33 -> 3510 | R37: 0 | BP37: 0
A38: 37 | B38: 10108 | C38: 物見山 | F38: 市報・区報 | G38: =IFERROR(VLOOKUP(F38,[1]データ!$A$2:$B$16,2,FALSE),"") -> 2 | H38: 101082 | I38: =R38 -> 3510 | K38: =K33 -> 3510 | R38: 3510 | BP38: 0
A39: 38 | B39: 10109 | C39: とやの | E39: 新アマ日 | F39: 朝刊 | G39: =IFERROR(VLOOKUP(F39,[1]データ!$A$2:$B$16,2,FALSE),"") -> 1 | H39: 101091 | I39: 5030 | L39: =I39 -> 5030 | R39: 5030 | S39: 5030 | T39: =I39 -> 5030 | BP39: 0
A40: 39 | B40: 10109 | C40: とやの | F40: くるみる | G40: =IFERROR(VLOOKUP(F40,[1]データ!$A$2:$B$16,2,FALSE),"") -> 3 | H40: 101093 | I40: 600 | L40: =I40 -> 600 | R40: 600 | BP40: 0
A41: 40 | B41: 10109 | C41: とやの | F41: otona+ | G41: =IFERROR(VLOOKUP(F41,[1]データ!$A$2:$B$16,2,FALSE),"") -> 4 | H41: 101094 | I41: 650 | L41: 650 | R41: 650 | BP41: 0
A42: 41 | B42: 10109 | C42: とやの | F42: assh | G42: =IFERROR(VLOOKUP(F42,[1]データ!$A$2:$B$16,2,FALSE),"") -> 5 | H42: 101095 | I42: 5800 | L42: 5800 | R42: 5800 | BP42: 0
A43: 42 | B43: 10109 | C43: とやの | F43: assh・朝 | G43: =IFERROR(VLOOKUP(F43,[1]データ!$A$2:$B$16,2,FALSE),"") -> 51 | H43: 1010951 | I43: 5030 | R43: 0 | BP43: 0
A44: 43 | B44: 10109 | C44: とやの | F44: 市報・区報 | G44: =IFERROR(VLOOKUP(F44,[1]データ!$A$2:$B$16,2,FALSE),"") -> 2 | H44: 101092 | I44: =R44 -> 5030 | L44: =L39 -> 5030 | R44: 5030 | BP44: 0
A45: 44 | B45: 10110 | C45: 上所 | F45: 朝刊 | G45: =IFERROR(VLOOKUP(F45,[1]データ!$A$2:$B$16,2,FALSE),"") -> 1 | H45: 101101 | R45: 0 | S45: 0 | BP45: 0
A46: 45 | B46: 10111 | C46: 県庁前 | E46: 新アマ日 | F46: 朝刊 | G46: =IFERROR(VLOOKUP(F46,[1]データ!$A$2:$B$16,2,FALSE),"") -> 1 | H46: 101111 | I46: 4200 | L46: =I46 -> 4200 | R46: 4200 | S46: 4200 | T46: =I46 -> 4200 | BP46: 0
A47: 46 | B47: 10111 | C47: 県庁前 | F47: くるみる | G47: =IFERROR(VLOOKUP(F47,[1]データ!$A$2:$B$16,2,FALSE),"") -> 3 | H47: 101113 | I47: 80 | L47: =I47 -> 80 | R47: 80 | BP47: 0
A48: 47 | B48: 10111 | C48: 県庁前 | F48: otona+ | G48: =IFERROR(VLOOKUP(F48,[1]データ!$A$2:$B$16,2,FALSE),"") -> 4 | H48: 101114 | I48: 500 | L48: =I48 -> 500 | R48: 500 | BP48: 0
A49: 48 | B49: 10111 | C49: 県庁前 | F49: assh | G49: =IFERROR(VLOOKUP(F49,[1]データ!$A$2:$B$16,2,FALSE),"") -> 5 | H49: 101115 | I49: 4400 | L49: 4400 | R49: 4400 | BP49: 0
A50: 49 | B50: 10111 | C50: 県庁前 | F50: assh・朝 | G50: =IFERROR(VLOOKUP(F50,[1]データ!$A$2:$B$16,2,FALSE),"") -> 51 | H50: 1011151 | I50: 4200 | R50: 0 | BP50: 0
A51: 50 | B51: 10111 | C51: 県庁前 | F51: 市報・区報 | G51: =IFERROR(VLOOKUP(F51,[1]データ!$A$2:$B$16,2,FALSE),"") -> 2 | H51: 101112 | I51: =R51 -> 4600 | L51: 4600 | R51: 4600 | BP51: 0
A52: 51 | B52: 10112 | C52: 女池 | F52: 朝刊 | G52: =IFERROR(VLOOKUP(F52,[1]データ!$A$2:$B$16,2,FALSE),"") -> 1 | H52: 101121 | R52: 0 | S52: 0 | BP52: 0
A53: 52 | B53: 10113 | C53: 愛宕 | E53: 新アマ日 | F53: 朝刊 | G53: =IFERROR(VLOOKUP(F53,[1]データ!$A$2:$B$16,2,FALSE),"") -> 1 | H53: 101131 | I53: 4900 | L53: 3770 | M53: 1130 | R53: 4900 | S53: 4900 | T53: =I53 -> 4900 | BP53: 0
A54: 53 | B54: 10113 | C54: 愛宕 | F54: くるみる | G54: =IFERROR(VLOOKUP(F54,[1]データ!$A$2:$B$16,2,FALSE),"") -> 3 | H54: 101133 | I54: 400 | L54: 310 | M54: 90 | R54: 400 | BP54: 0
A55: 54 | B55: 10113 | C55: 愛宕 | F55: otona+ | G55: =IFERROR(VLOOKUP(F55,[1]データ!$A$2:$B$16,2,FALSE),"") -> 4 | H55: 101134 | I55: 600 | L55: 470 | M55: 130 | R55: 600 | BP55: 0
A56: 55 | B56: 10113 | C56: 愛宕 | F56: assh | G56: =IFERROR(VLOOKUP(F56,[1]データ!$A$2:$B$16,2,FALSE),"") -> 5 | H56: 101135 | I56: 4040 | L56: 3100 | M56: 940 | R56: 4040 | BP56: 0
A57: 56 | B57: 10113 | C57: 愛宕 | F57: assh・朝 | G57: =IFERROR(VLOOKUP(F57,[1]データ!$A$2:$B$16,2,FALSE),"") -> 51 | H57: 1011351 | I57: 4900 | R57: 0 | BP57: 0
A58: 57 | B58: 10113 | C58: 愛宕 | F58: 市報・区報 | G58: =IFERROR(VLOOKUP(F58,[1]データ!$A$2:$B$16,2,FALSE),"") -> 2 | H58: 101132 | I58: =R58 -> 4900 | L58: =L53 -> 3770 | M58: =M53 -> 1130 | R58: 4900 | BP58: 0
A59: 58 | B59: 10114 | C59: 河渡 | E59: 新アマ日 | F59: 朝刊 | G59: =IFERROR(VLOOKUP(F59,[1]データ!$A$2:$B$16,2,FALSE),"") -> 1 | H59: 101141 | I59: 4600 | K59: =I59 -> 4600 | R59: 4600 | S59: 4600 | T59: =I59 -> 4600 | BP59: 0
A60: 59 | B60: 10114 | C60: 河渡 | F60: くるみる | G60: =IFERROR(VLOOKUP(F60,[1]データ!$A$2:$B$16,2,FALSE),"") -> 3 | H60: 101143 | I60: 200 | K60: =I60 -> 200 | R60: 200 | BP60: 0
A61: 60 | B61: 10114 | C61: 河渡 | F61: otona+ | G61: =IFERROR(VLOOKUP(F61,[1]データ!$A$2:$B$16,2,FALSE),"") -> 4 | H61: 101144 | I61: 450 | K61: 450 | R61: 450 | BP61: 0
A62: 61 | B62: 10114 | C62: 河渡 | F62: assh | G62: =IFERROR(VLOOKUP(F62,[1]データ!$A$2:$B$16,2,FALSE),"") -> 5 | H62: 101145 | I62: 4500 | K62: 4500 | R62: 4500 | BP62: 0
A63: 62 | B63: 10114 | C63: 河渡 | F63: assh・朝 | G63: =IFERROR(VLOOKUP(F63,[1]データ!$A$2:$B$16,2,FALSE),"") -> 51 | H63: 1011451 | I63: 4600 | R63: 0 | BP63: 0
A64: 63 | B64: 10114 | C64: 河渡 | F64: 市報・区報 | G64: =IFERROR(VLOOKUP(F64,[1]データ!$A$2:$B$16,2,FALSE),"") -> 2 | H64: 101142 | I64: =R64 -> 4600 | K64: =K59 -> 4600 | R64: 4600 | BP64: 0
A65: 64 | B65: 10115 | C65: 牡丹山 | E65: 新アマ日 | F65: 朝刊 | G65: =IFERROR(VLOOKUP(F65,[1]データ!$A$2:$B$16,2,FALSE),"") -> 1 | H65: 101151 | I65: 1830 | K65: =I65 -> 1830 | R65: 1830 | S65: 1830 | T65: =I65 -> 1830 | BP65: 0
A66: 65 | B66: 10115 | C66: 牡丹山 | F66: くるみる | G66: =IFERROR(VLOOKUP(F66,[1]データ!$A$2:$B$16,2,FALSE),"") -> 3 | H66: 101153 | I66: 200 | K66: =I66 -> 200 | R66: 200 | BP66: 0
A67: 66 | B67: 10115 | C67: 牡丹山 | F67: otona+ | G67: =IFERROR(VLOOKUP(F67,[1]データ!$A$2:$B$16,2,FALSE),"") -> 4 | H67: 101154 | I67: 170 | K67: 170 | R67: 170 | BP67: 0
A68: 67 | B68: 10115 | C68: 牡丹山 | F68: assh | G68: =IFERROR(VLOOKUP(F68,[1]データ!$A$2:$B$16,2,FALSE),"") -> 5 | H68: 101155 | I68: 1250 | K68: =I68 -> 1250 | R68: 1250 | BP68: =SUM(U68:BO68) -> 0
A69: 68 | B69: 10115 | C69: 牡丹山 | F69: assh・朝 | G69: =IFERROR(VLOOKUP(F69,[1]データ!$A$2:$B$16,2,FALSE),"") -> 51 | H69: 1011551 | I69: 1830 | R69: 0 | BP69: 0
A70: 69 | B70: 10115 | C70: 牡丹山 | F70: 市報・区報 | G70: =IFERROR(VLOOKUP(F70,[1]データ!$A$2:$B$16,2,FALSE),"") -> 2 | H70: 101152 | I70: =R70 -> 1830 | K70: =K65 -> 1830 | R70: 1830 | BP70: 0
A71: 70 | B71: 10116 | C71: 大形 | E71: 新アマ日 | F71: 朝刊 | G71: =IFERROR(VLOOKUP(F71,[1]データ!$A$2:$B$16,2,FALSE),"") -> 1 | H71: 101161 | I71: 3280 | K71: 3080 | M71: 430 | R71: 3510 | S71: =SUM(T71:AH71) -> 3280 | T71: =I71 -> 3280 | BP71: 0
A72: 71 | B72: 10116 | C72: 大形 | F72: くるみる | G72: =IFERROR(VLOOKUP(F72,[1]データ!$A$2:$B$16,2,FALSE),"") -> 3 | H72: 101163 | I72: 300 | K72: 280 | M72: 20 | R72: 300 | BP72: 0
A73: 72 | B73: 10116 | C73: 大形 | F73: otona+ | G73: =IFERROR(VLOOKUP(F73,[1]データ!$A$2:$B$16,2,FALSE),"") -> 4 | H73: 101164 | I73: 320 | K73: 270 | M73: 50 | R73: 320 | BP73: 0
A74: 73 | B74: 10116 | C74: 大形 | F74: assh | G74: =IFERROR(VLOOKUP(F74,[1]データ!$A$2:$B$16,2,FALSE),"") -> 5 | H74: 101165 | I74: 2900 | K74: 2820 | M74: 270 | R74: 3090 | BP74: 0
A75: 74 | B75: 10116 | C75: 大形 | F75: assh・朝 | G75: =IFERROR(VLOOKUP(F75,[1]データ!$A$2:$B$16,2,FALSE),"") -> 51 | H75: 1011651 | I75: 3280 | R75: 0 | BP75: 0
A76: 75 | B76: 10116 | C76: 大形 | F76: 市報・区報 | G76: =IFERROR(VLOOKUP(F76,[1]データ!$A$2:$B$16,2,FALSE),"") -> 2 | H76: 101162 | I76: =R76 -> 3510 | K76: =K71 -> 3080 | M76: =M71 -> 430 | R76: 3510 | BP76: 0
A77: 76 | B77: 10117 | C77: 松浜 | D77: サポート | E77: 新アマ日 | F77: 朝刊 | G77: =IFERROR(VLOOKUP(F77,[1]データ!$A$2:$B$16,2,FALSE),"") -> 1 | H77: 101171 | I77: 6510 | J77: =I77 -> 6510 | R77: 6510 | S77: 6510 | T77: 4510 | AH77: 2000 | BP77: 2000
A78: 77 | B78: 10117 | C78: 松浜 | F78: くるみる | G78: =IFERROR(VLOOKUP(F78,[1]データ!$A$2:$B$16,2,FALSE),"") -> 3 | H78: 101173 | I78: 500 | J78: =I78 -> 500 | R78: 500 | BP78: 0
A79: 78 | B79: 10117 | C79: 松浜 | F79: otona+ | G79: =IFERROR(VLOOKUP(F79,[1]データ!$A$2:$B$16,2,FALSE),"") -> 4 | H79: 101174 | I79: 400 | J79: 400 | R79: =SUM(J79:Q79) -> 400 | BP79: 0
A80: 79 | B80: 10117 | C80: 松浜 | F80: assh | G80: =IFERROR(VLOOKUP(F80,[1]データ!$A$2:$B$16,2,FALSE),"") -> 5 | H80: 101175 | I80: 5490 | J80: 5490 | R80: 5490 | BP80: 0
A81: 80 | B81: 10117 | C81: 松浜 | F81: assh・朝 | G81: =IFERROR(VLOOKUP(F81,[1]データ!$A$2:$B$16,2,FALSE),"") -> 51 | H81: 1011751 | I81: 6510 | R81: 0 | BP81: 0
A82: 81 | B82: 10117 | C82: 松浜 | F82: 市報・区報 | G82: =IFERROR(VLOOKUP(F82,[1]データ!$A$2:$B$16,2,FALSE),"") -> 2 | H82: 101172 | I82: =R82 -> 6510 | J82: =J77 -> 6510 | R82: 6510 | BP82: 0
A83: 82 | B83: 10118 | C83: 新潟南 | E83: 合 | F83: 朝刊 | G83: =IFERROR(VLOOKUP(F83,[1]データ!$A$2:$B$16,2,FALSE),"") -> 1 | H83: 101181 | I83: 2730 | M83: 2480 | Q83: 260 | R83: 2740 | S83: 2740 | T83: 1880 | AE83: 260 | AF83: 50 | AG83: 550 | BP83: 860
A84: 83 | B84: 10118 | C84: 新潟南 | F84: くるみる | G84: =IFERROR(VLOOKUP(F84,[1]データ!$A$2:$B$16,2,FALSE),"") -> 3 | H84: 101183 | I84: 40 | M84: 30 | Q84: 10 | R84: 40 | BP84: 0
A85: 84 | B85: 10118 | C85: 新潟南 | F85: otona+ | G85: =IFERROR(VLOOKUP(F85,[1]データ!$A$2:$B$16,2,FALSE),"") -> 4 | H85: 101184 | I85: 140 | M85: 130 | Q85: 10 | R85: 140 | BP85: 0
A86: 85 | B86: 10118 | C86: 新潟南 | F86: assh | G86: =IFERROR(VLOOKUP(F86,[1]データ!$A$2:$B$16,2,FALSE),"") -> 5 | H86: 101185 | I86: 1620 | M86: 1560 | Q86: 60 | R86: 1620 | BP86: 0
A87: 86 | B87: 10118 | C87: 新潟南 | F87: assh・朝 | G87: =IFERROR(VLOOKUP(F87,[1]データ!$A$2:$B$16,2,FALSE),"") -> 51 | H87: 1011851 | I87: 2730 | R87: 0 | BP87: 0
A88: 87 | B88: 10118 | C88: 新潟南 | F88: 市報・区報 | G88: =IFERROR(VLOOKUP(F88,[1]データ!$A$2:$B$16,2,FALSE),"") -> 2 | H88: 101182 | I88: =R88 -> 2740 | M88: =M83 -> 2480 | Q88: =Q83 -> 260 | R88: 2740 | BP88: 0
A89: 88 | B89: 10119 | C89: 姥ケ山 | E89: 新アマ日 | F89: 朝刊 | G89: =IFERROR(VLOOKUP(F89,[1]データ!$A$2:$B$16,2,FALSE),"") -> 1 | H89: 101191 | I89: 2600 | L89: 2540 | M89: 60 | R89: 2600 | S89: 2600 | T89: =I89 -> 2600 | BP89: 0
A90: 89 | B90: 10119 | C90: 姥ケ山 | F90: くるみる | G90: =IFERROR(VLOOKUP(F90,[1]データ!$A$2:$B$16,2,FALSE),"") -> 3 | H90: 101193 | I90: 400 | L90: 350 | M90: 50 | R90: 400 | BP90: 0
A91: 90 | B91: 10119 | C91: 姥ケ山 | F91: otona+ | G91: =IFERROR(VLOOKUP(F91,[1]データ!$A$2:$B$16,2,FALSE),"") -> 4 | H91: 101194 | I91: 280 | L91: 260 | M91: 20 | R91: 280 | BP91: 0
A92: 91 | B92: 10119 | C92: 姥ケ山 | F92: assh | G92: =IFERROR(VLOOKUP(F92,[1]データ!$A$2:$B$16,2,FALSE),"") -> 5 | H92: 101195 | I92: 2250 | L92: 2210 | M92: 40 | R92: 2250 | BP92: 0
A93: 92 | B93: 10119 | C93: 姥ケ山 | F93: assh・朝 | G93: =IFERROR(VLOOKUP(F93,[1]データ!$A$2:$B$16,2,FALSE),"") -> 51 | H93: 1011951 | I93: 2600 | R93: 0 | BP93: 0
A94: 93 | B94: 10119 | C94: 姥ケ山 | F94: 市報・区報 | G94: =IFERROR(VLOOKUP(F94,[1]データ!$A$2:$B$16,2,FALSE),"") -> 2 | H94: 101192 | I94: =R94 -> 2600 | L94: =L89 -> 2540 | M94: =M89 -> 60 | R94: 2600 | BP94: 0
A95: 94 | B95: 10120 | C95: 山二ツ | E95: 新アマ日 | F95: 朝刊 | G95: =IFERROR(VLOOKUP(F95,[1]データ!$A$2:$B$16,2,FALSE),"") -> 1 | H95: 101201 | I95: 2700 | L95: 1050 | M95: 1650 | R95: 2700 | S95: 2700 | T95: 2200 | AF95: 500 | BP95: 500
A96: 95 | B96: 10120 | C96: 山二ツ | F96: くるみる | G96: =IFERROR(VLOOKUP(F96,[1]データ!$A$2:$B$16,2,FALSE),"") -> 3 | H96: 101203 | I96: 70 | L96: 30 | M96: 40 | R96: 70 | BP96: 0
A97: 96 | B97: 10120 | C97: 山二ツ | F97: otona+ | G97: =IFERROR(VLOOKUP(F97,[1]データ!$A$2:$B$16,2,FALSE),"") -> 4 | H97: 101204 | I97: 250 | L97: 140 | M97: 110 | R97: 250 | BP97: 0
A98: 97 | B98: 10120 | C98: 山二ツ | F98: assh | G98: =IFERROR(VLOOKUP(F98,[1]データ!$A$2:$B$16,2,FALSE),"") -> 5 | H98: 101205 | I98: 800 | L98: 450 | M98: 350 | R98: 800 | BP98: 0
A99: 98 | B99: 10120 | C99: 山二ツ | F99: assh・朝 | G99: =IFERROR(VLOOKUP(F99,[1]データ!$A$2:$B$16,2,FALSE),"") -> 51 | H99: 1012051 | I99: 2700 | R99: 0 | BP99: 0
A100: 99 | B100: 10120 | C100: 山二ツ | F100: 市報・区報 | G100: =IFERROR(VLOOKUP(F100,[1]データ!$A$2:$B$16,2,FALSE),"") -> 2 | H100: 101202 | I100: =R100 -> 2700 | L100: =L95 -> 1050 | M100: =M95 -> 1650 | R100: 2700 | BP100: 0
A101: 100 | B101: 10122 | C101: 亀田西 | E101: 新アマ日 | F101: 朝刊 | G101: =IFERROR(VLOOKUP(F101,[1]データ!$A$2:$B$16,2,FALSE),"") -> 1 | H101: 101221 | I101: 2630 | M101: =I101 -> 2630 | R101: 2630 | S101: =SUM(T101:AH101) -> 2630 | T101: 90 | AF101: 2540 | BP101: 2540
A102: 101 | B102: 10122 | C102: 亀田西 | F102: くるみる | G102: =IFERROR(VLOOKUP(F102,[1]データ!$A$2:$B$16,2,FALSE),"") -> 3 | H102: 101223 | I102: 200 | M102: =I102 -> 200 | R102: 200 | BP102: 0
A103: 102 | B103: 10122 | C103: 亀田西 | F103: otona+ | G103: =IFERROR(VLOOKUP(F103,[1]データ!$A$2:$B$16,2,FALSE),"") -> 4 | H103: 101224 | I103: 200 | M103: 200 | R103: 200 | BP103: 0
A104: 103 | B104: 10122 | C104: 亀田西 | F104: assh | G104: =IFERROR(VLOOKUP(F104,[1]データ!$A$2:$B$16,2,FALSE),"") -> 5 | H104: 101225 | I104: 1600 | M104: 1600 | R104: 1600 | BP104: 0
A105: 104 | B105: 10122 | C105: 亀田西 | F105: assh・朝 | G105: =IFERROR(VLOOKUP(F105,[1]データ!$A$2:$B$16,2,FALSE),"") -> 51 | H105: 1012251 | I105: 2630 | R105: 0 | BP105: 0
A106: 105 | B106: 10122 | C106: 亀田西 | F106: 市報・区報 | G106: =IFERROR(VLOOKUP(F106,[1]データ!$A$2:$B$16,2,FALSE),"") -> 2 | H106: 101222 | I106: =R106 -> 2630 | M106: =M101 -> 2630 | R106: 2630 | BP106: 0
A107: 106 | B107: 10123 | C107: 亀田 | D107: MN | E107: 新アマ日 | F107: 朝刊 | G107: =IFERROR(VLOOKUP(F107,[1]データ!$A$2:$B$16,2,FALSE),"") -> 1 | H107: 101231 | I107: 3680 | M107: =I107 -> 3680 | R107: 3680 | S107: =SUM(T107:AH107) -> 4710 | T107: 1030 | AF107: 3680 | BP107: 3680
A108: 107 | B108: 10123 | C108: 亀田 | F108: くるみる | G108: =IFERROR(VLOOKUP(F108,[1]データ!$A$2:$B$16,2,FALSE),"") -> 3 | H108: 101233 | I108: 550 | M108: =I108 -> 550 | R108: 550 | BP108: 0
A109: 108 | B109: 10123 | C109: 亀田 | F109: otona+ | G109: =IFERROR(VLOOKUP(F109,[1]データ!$A$2:$B$16,2,FALSE),"") -> 4 | H109: 101234 | I109: 280 | M109: 280 | R109: 280 | BP109: 0
A110: 109 | B110: 10123 | C110: 亀田 | F110: assh | G110: =IFERROR(VLOOKUP(F110,[1]データ!$A$2:$B$16,2,FALSE),"") -> 5 | H110: 101235 | I110: 3600 | M110: 3600 | R110: 3600 | BP110: 0
A111: 110 | B111: 10123 | C111: 亀田 | F111: assh・朝 | G111: =IFERROR(VLOOKUP(F111,[1]データ!$A$2:$B$16,2,FALSE),"") -> 51 | H111: 1012351 | I111: =I107 -> 3680 | R111: 0 | BP111: 0
A112: 111 | B112: 10123 | C112: 亀田 | F112: 市報・区報 | G112: =IFERROR(VLOOKUP(F112,[1]データ!$A$2:$B$16,2,FALSE),"") -> 2 | H112: 101232 | I112: =R112 -> 3680 | M112: =M107 -> 3680 | R112: 3680 | BP112: 0
A113: 112 | B113: 10176 | C113: 横越 | E113: 新アマ日 | F113: 朝刊 | G113: =IFERROR(VLOOKUP(F113,[1]データ!$A$2:$B$16,2,FALSE),"") -> 1 | H113: 101761 | I113: 2190 | M113: =I113 -> 2190 | R113: 2190 | S113: =SUM(T113:AH113) -> 2360 | AF113: 580 | AG113: 1780 | BP113: 2360
A114: 113 | B114: 10176 | C114: 横越 | F114: くるみる | G114: =IFERROR(VLOOKUP(F114,[1]データ!$A$2:$B$16,2,FALSE),"") -> 3 | H114: 101763 | I114: 50 | M114: =I114 -> 50 | R114: 50 | BP114: 0
A115: 114 | B115: 10176 | C115: 横越 | F115: otona+ | G115: =IFERROR(VLOOKUP(F115,[1]データ!$A$2:$B$16,2,FALSE),"") -> 4 | H115: 101764 | I115: 110 | M115: 110 | R115: 110 | BP115: 0
A116: 115 | B116: 10176 | C116: 横越 | F116: assh | G116: =IFERROR(VLOOKUP(F116,[1]データ!$A$2:$B$16,2,FALSE),"") -> 5 | H116: 101765 | I116: 1200 | M116: 1200 | R116: 1200 | BP116: 0
A117: 116 | B117: 10176 | C117: 横越 | F117: assh・朝 | G117: =IFERROR(VLOOKUP(F117,[1]データ!$A$2:$B$16,2,FALSE),"") -> 51 | H117: 1017651 | I117: 2190 | R117: 0 | BP117: 0
A118: 117 | B118: 10176 | C118: 横越 | F118: 市報・区報 | G118: =IFERROR(VLOOKUP(F118,[1]データ!$A$2:$B$16,2,FALSE),"") -> 2 | H118: 101762 | I118: =R118 -> 2190 | M118: =M113 -> 2190 | R118: 2190 | BP118: 0
A119: 118 | B119: 10177 | C119: 有明 | D119: MN | E119: 新アマ日 | F119: 朝刊 | G119: =IFERROR(VLOOKUP(F119,[1]データ!$A$2:$B$16,2,FALSE),"") -> 1 | H119: 101771 | I119: 5490 | L119: =I119 -> 5490 | R119: 5490 | S119: 5490 | T119: =I119 -> 5490 | BP119: 0
A120: 119 | B120: 10177 | C120: 有明 | F120: くるみる | G120: =IFERROR(VLOOKUP(F120,[1]データ!$A$2:$B$16,2,FALSE),"") -> 3 | H120: 101773 | I120: 710 | L120: =I120 -> 710 | R120: 710 | BP120: 0
A121: 120 | B121: 10177 | C121: 有明 | F121: otona+ | G121: =IFERROR(VLOOKUP(F121,[1]データ!$A$2:$B$16,2,FALSE),"") -> 4 | H121: 101774 | I121: 1050 | L121: 1050 | R121: 1050 | BP121: 0
A122: 121 | B122: 10177 | C122: 有明 | F122: assh | G122: =IFERROR(VLOOKUP(F122,[1]データ!$A$2:$B$16,2,FALSE),"") -> 5 | H122: 101775 | I122: 5150 | L122: 5150 | R122: 5150 | BP122: 0
A123: 122 | B123: 10177 | C123: 有明 | F123: assh・朝 | G123: =IFERROR(VLOOKUP(F123,[1]データ!$A$2:$B$16,2,FALSE),"") -> 51 | H123: 1017751 | I123: =I119 -> 5490 | R123: 0 | BP123: 0
A124: 123 | B124: 10177 | C124: 有明 | F124: 市報・区報 | G124: =IFERROR(VLOOKUP(F124,[1]データ!$A$2:$B$16,2,FALSE),"") -> 2 | H124: 101772 | I124: =R124 -> 5490 | L124: =L119 -> 5490 | R124: 5490 | BP124: 0
A125: 124 | B125: 10127 | C125: 小針 | D125: MN | E125: 新アマ日 | F125: 朝刊 | G125: =IFERROR(VLOOKUP(F125,[1]データ!$A$2:$B$16,2,FALSE),"") -> 1 | H125: 101271 | I125: 6970 | N125: =I125 -> 6970 | R125: 6970 | S125: 6970 | T125: =I125 -> 6970 | BP125: 0
A126: 125 | B126: 10127 | C126: 小針 | F126: くるみる | G126: =IFERROR(VLOOKUP(F126,[1]データ!$A$2:$B$16,2,FALSE),"") -> 3 | H126: 101273 | I126: 840 | N126: =I126 -> 840 | R126: 840 | BP126: 0
A127: 126 | B127: 10127 | C127: 小針 | F127: otona+ | G127: =IFERROR(VLOOKUP(F127,[1]データ!$A$2:$B$16,2,FALSE),"") -> 4 | H127: 101274 | I127: 1100 | N127: 1100 | R127: 1100 | BP127: 0
A128: 127 | B128: 10127 | C128: 小針 | F128: assh | G128: =IFERROR(VLOOKUP(F128,[1]データ!$A$2:$B$16,2,FALSE),"") -> 5 | H128: 101275 | I128: 6900 | N128: 6900 | R128: 6900 | BP128: 0
A129: 128 | B129: 10127 | C129: 小針 | F129: assh・朝 | G129: =IFERROR(VLOOKUP(F129,[1]データ!$A$2:$B$16,2,FALSE),"") -> 51 | H129: 1012751 | I129: =I125 -> 6970 | R129: 0 | BP129: 0
A130: 129 | B130: 10127 | C130: 小針 | F130: 市報・区報 | G130: =IFERROR(VLOOKUP(F130,[1]データ!$A$2:$B$16,2,FALSE),"") -> 2 | H130: 101272 | I130: =R130 -> 6970 | N130: =N125 -> 6970 | R130: 6970 | BP130: 0
A131: 130 | B131: 10128 | C131: 中通 | E131: 新アマ日 | F131: 朝刊 | G131: =IFERROR(VLOOKUP(F131,[1]データ!$A$2:$B$16,2,FALSE),"") -> 1 | H131: 101281 | I131: 2600 | L131: =I131 -> 2600 | R131: 2600 | S131: 2600 | T131: =I131 -> 2600 | BP131: 0
A132: 131 | B132: 10128 | C132: 中通 | F132: くるみる | G132: =IFERROR(VLOOKUP(F132,[1]データ!$A$2:$B$16,2,FALSE),"") -> 3 | H132: 101283 | I132: 20 | L132: =I132 -> 20 | R132: 20 | BP132: =SUM(U132:BO132) -> 0
A133: 132 | B133: 10128 | C133: 中通 | F133: otona+ | G133: =IFERROR(VLOOKUP(F133,[1]データ!$A$2:$B$16,2,FALSE),"") -> 4 | H133: 101284 | I133: 500 | L133: 500 | R133: 500 | BP133: 0
A134: 133 | B134: 10128 | C134: 中通 | F134: assh | G134: =IFERROR(VLOOKUP(F134,[1]データ!$A$2:$B$16,2,FALSE),"") -> 5 | H134: 101285 | I134: 2800 | L134: 2800 | R134: 2800 | BP134: 0
A135: 134 | B135: 10128 | C135: 中通 | F135: assh・朝 | G135: =IFERROR(VLOOKUP(F135,[1]データ!$A$2:$B$16,2,FALSE),"") -> 51 | H135: 1012851 | I135: 2600 | R135: 0 | BP135: 0
A136: 135 | B136: 10128 | C136: 中通 | F136: 市報・区報 | G136: =IFERROR(VLOOKUP(F136,[1]データ!$A$2:$B$16,2,FALSE),"") -> 2 | H136: 101282 | I136: =R136 -> 2600 | L136: =L131 -> 2600 | R136: 2600 | BP136: 0
A137: 136 | B137: 10130 | C137: 本町 | E137: 新アマ日 | F137: 朝刊 | G137: =IFERROR(VLOOKUP(F137,[1]データ!$A$2:$B$16,2,FALSE),"") -> 1 | H137: 101301 | I137: 2800 | L137: =I137 -> 2800 | R137: 2800 | S137: =SUM(T137:AH137) -> 2800 | T137: =I137 -> 2800 | BP137: 0
A138: 137 | B138: 10130 | C138: 本町 | F138: くるみる | G138: =IFERROR(VLOOKUP(F138,[1]データ!$A$2:$B$16,2,FALSE),"") -> 3 | H138: 101303 | I138: 300 | L138: =I138 -> 300 | R138: 300 | BP138: 0
A139: 138 | B139: 10130 | C139: 本町 | F139: otona+ | G139: =IFERROR(VLOOKUP(F139,[1]データ!$A$2:$B$16,2,FALSE),"") -> 4 | H139: 101304 | I139: 480 | L139: 480 | R139: 480 | BP139: 0
A140: 139 | B140: 10130 | C140: 本町 | F140: assh | G140: =IFERROR(VLOOKUP(F140,[1]データ!$A$2:$B$16,2,FALSE),"") -> 5 | H140: 101305 | I140: 1500 | L140: 1500 | R140: 1500 | BP140: 0
A141: 140 | B141: 10130 | C141: 本町 | F141: assh・朝 | G141: =IFERROR(VLOOKUP(F141,[1]データ!$A$2:$B$16,2,FALSE),"") -> 51 | H141: 1013051 | I141: 2800 | R141: 0 | BP141: 0
A142: 141 | B142: 10130 | C142: 本町 | F142: 市報・区報 | G142: =IFERROR(VLOOKUP(F142,[1]データ!$A$2:$B$16,2,FALSE),"") -> 2 | H142: 101302 | I142: =R142 -> 2800 | L142: =L137 -> 2800 | R142: 2800 | BP142: 0
A143: 142 | B143: 10131 | C143: 中央 | E143: 新アマ日 | F143: 朝刊 | G143: =IFERROR(VLOOKUP(F143,[1]データ!$A$2:$B$16,2,FALSE),"") -> 1 | H143: 101311 | I143: 3040 | L143: =I143 -> 3040 | R143: =SUM(J143:Q143) -> 3040 | S143: 3040 | T143: =I143 -> 3040 | BP143: 0
A144: 143 | B144: 10131 | C144: 中央 | F144: くるみる | G144: =IFERROR(VLOOKUP(F144,[1]データ!$A$2:$B$16,2,FALSE),"") -> 3 | H144: 101313 | I144: 50 | L144: =I144 -> 50 | R144: 50 | BP144: 0
A145: 144 | B145: 10131 | C145: 中央 | F145: otona+ | G145: =IFERROR(VLOOKUP(F145,[1]データ!$A$2:$B$16,2,FALSE),"") -> 4 | H145: 101314 | I145: 480 | L145: 480 | R145: 480 | BP145: 0
A146: 145 | B146: 10131 | C146: 中央 | F146: assh | G146: =IFERROR(VLOOKUP(F146,[1]データ!$A$2:$B$16,2,FALSE),"") -> 5 | H146: 101315 | I146: 2050 | L146: 2050 | R146: 2050 | BP146: 0
A147: 146 | B147: 10131 | C147: 中央 | F147: assh・朝 | G147: =IFERROR(VLOOKUP(F147,[1]データ!$A$2:$B$16,2,FALSE),"") -> 51 | H147: 1013151 | I147: 3100 | R147: 0 | BP147: 0
A148: 147 | B148: 10131 | C148: 中央 | F148: 市報・区報 | G148: =IFERROR(VLOOKUP(F148,[1]データ!$A$2:$B$16,2,FALSE),"") -> 2 | H148: 101312 | I148: =R148 -> 3040 | L148: =L143 -> 3040 | R148: 3040 | BP148: 0
A149: 148 | B149: 10133 | C149: 真砂 | E149: 新アマ日 | F149: 朝刊 | G149: =IFERROR(VLOOKUP(F149,[1]データ!$A$2:$B$16,2,FALSE),"") -> 1 | H149: 101331 | I149: 2100 | N149: =I149 -> 2100 | R149: 2100 | S149: 2100 | T149: =I149 -> 2100 | BP149: 0
A150: 149 | B150: 10133 | C150: 真砂 | F150: くるみる | G150: =IFERROR(VLOOKUP(F150,[1]データ!$A$2:$B$16,2,FALSE),"") -> 3 | H150: 101333 | I150: 200 | N150: =I150 -> 200 | R150: 200 | BP150: 0
A151: 150 | B151: 10133 | C151: 真砂 | F151: otona+ | G151: =IFERROR(VLOOKUP(F151,[1]データ!$A$2:$B$16,2,FALSE),"") -> 4 | H151: 101334 | I151: 460 | N151: 460 | R151: 460 | BP151: 0
A152: 151 | B152: 10133 | C152: 真砂 | F152: assh | G152: =IFERROR(VLOOKUP(F152,[1]データ!$A$2:$B$16,2,FALSE),"") -> 5 | H152: 101335 | I152: 1650 | N152: 1650 | R152: 1650 | BP152: 0
A153: 152 | B153: 10133 | C153: 真砂 | F153: assh・朝 | G153: =IFERROR(VLOOKUP(F153,[1]データ!$A$2:$B$16,2,FALSE),"") -> 51 | H153: 1013351 | I153: 2100 | R153: 0 | BP153: 0
A154: 153 | B154: 10133 | C154: 真砂 | F154: 市報・区報 | G154: =IFERROR(VLOOKUP(F154,[1]データ!$A$2:$B$16,2,FALSE),"") -> 2 | H154: 101332 | I154: =R154 -> 2100 | N154: =N149 -> 2100 | R154: 2100 | BP154: 0
A155: 154 | B155: 10134 | C155: 寺尾 | E155: 新アマ日 | F155: 朝刊 | G155: =IFERROR(VLOOKUP(F155,[1]データ!$A$2:$B$16,2,FALSE),"") -> 1 | H155: 101341 | I155: 6000 | N155: =I155 -> 6000 | R155: 6000 | S155: 6000 | T155: =I155 -> 6000 | BP155: 0
A156: 155 | B156: 10134 | C156: 寺尾 | F156: くるみる | G156: =IFERROR(VLOOKUP(F156,[1]データ!$A$2:$B$16,2,FALSE),"") -> 3 | H156: 101343 | I156: 210 | N156: =I156 -> 210 | R156: 210 | BP156: 0
A157: 156 | B157: 10134 | C157: 寺尾 | F157: otona+ | G157: =IFERROR(VLOOKUP(F157,[1]データ!$A$2:$B$16,2,FALSE),"") -> 4 | H157: 101344 | I157: 830 | N157: 830 | R157: 830 | BP157: 0
A158: 157 | B158: 10134 | C158: 寺尾 | F158: assh | G158: =IFERROR(VLOOKUP(F158,[1]データ!$A$2:$B$16,2,FALSE),"") -> 5 | H158: 101345 | I158: 3000 | N158: 3000 | R158: 3000 | BP158: 0
A159: 158 | B159: 10134 | C159: 寺尾 | F159: assh・朝 | G159: =IFERROR(VLOOKUP(F159,[1]データ!$A$2:$B$16,2,FALSE),"") -> 51 | H159: 1013451 | I159: 6000 | R159: 0 | BP159: 0
A160: 159 | B160: 10134 | C160: 寺尾 | F160: 市報・区報 | G160: =IFERROR(VLOOKUP(F160,[1]データ!$A$2:$B$16,2,FALSE),"") -> 2 | H160: 101342 | I160: =R160 -> 6000 | N160: =N155 -> 6000 | R160: 6000 | BP160: 0
A161: 160 | B161: 10135 | C161: 新大前 | D161: MN | E161: 新アマ日 | F161: 朝刊 | G161: =IFERROR(VLOOKUP(F161,[1]データ!$A$2:$B$16,2,FALSE),"") -> 1 | H161: 101351 | I161: 2810 | N161: =I161 -> 2810 | R161: 2810 | S161: 2810 | T161: =I161 -> 2810 | BP161: 0
A162: 161 | B162: 10135 | C162: 新大前 | F162: くるみる | G162: =IFERROR(VLOOKUP(F162,[1]データ!$A$2:$B$16,2,FALSE),"") -> 3 | H162: 101353 | I162: 430 | N162: =I162 -> 430 | R162: 430 | BP162: 0
A163: 162 | B163: 10135 | C163: 新大前 | F163: otona+ | G163: =IFERROR(VLOOKUP(F163,[1]データ!$A$2:$B$16,2,FALSE),"") -> 4 | H163: 101354 | I163: 400 | N163: 400 | R163: 400 | BP163: 0
A164: 163 | B164: 10135 | C164: 新大前 | F164: assh | G164: =IFERROR(VLOOKUP(F164,[1]データ!$A$2:$B$16,2,FALSE),"") -> 5 | H164: 101355 | I164: 3700 | N164: 3700 | R164: 3700 | BP164: 0
A165: 164 | B165: 10135 | C165: 新大前 | F165: assh・朝 | G165: =IFERROR(VLOOKUP(F165,[1]データ!$A$2:$B$16,2,FALSE),"") -> 51 | H165: 1013551 | I165: =I161 -> 2810 | R165: 0 | BP165: 0
A166: 165 | B166: 10135 | C166: 新大前 | F166: 市報・区報 | G166: =IFERROR(VLOOKUP(F166,[1]データ!$A$2:$B$16,2,FALSE),"") -> 2 | H166: 101352 | I166: =R166 -> 2810 | N166: =N161 -> 2810 | R166: 2810 | BP166: 0
A167: 166 | B167: 10136 | C167: 内野 | E167: 新アマ日 | F167: 朝刊 | G167: =IFERROR(VLOOKUP(F167,[1]データ!$A$2:$B$16,2,FALSE),"") -> 1 | H167: 101361 | I167: 3600 | N167: =I167 -> 3600 | R167: 3600 | S167: 3600 | T167: =I167 -> 3600 | BP167: 0
A168: 167 | B168: 10136 | C168: 内野 | F168: くるみる | G168: =IFERROR(VLOOKUP(F168,[1]データ!$A$2:$B$16,2,FALSE),"") -> 3 | H168: 101363 | I168: 500 | N168: =I168 -> 500 | R168: 500 | BP168: 0
A169: 168 | B169: 10136 | C169: 内野 | F169: otona+ | G169: =IFERROR(VLOOKUP(F169,[1]データ!$A$2:$B$16,2,FALSE),"") -> 4 | H169: 101364 | I169: 340 | N169: 340 | R169: 340 | BP169: 0
A170: 169 | B170: 10136 | C170: 内野 | F170: assh | G170: =IFERROR(VLOOKUP(F170,[1]データ!$A$2:$B$16,2,FALSE),"") -> 5 | H170: 101365 | I170: 2200 | N170: 2200 | R170: 2200 | BP170: 0
A171: 170 | B171: 10136 | C171: 内野 | F171: assh・朝 | G171: =IFERROR(VLOOKUP(F171,[1]データ!$A$2:$B$16,2,FALSE),"") -> 51 | H171: 1013651 | I171: 3600 | R171: 0 | BP171: 0
A172: 171 | B172: 10136 | C172: 内野 | F172: 市報・区報 | G172: =IFERROR(VLOOKUP(F172,[1]データ!$A$2:$B$16,2,FALSE),"") -> 2 | H172: 101362 | I172: =R172 -> 3600 | N172: =N167 -> 3600 | R172: 3600 | BP172: 0
A173: 172 | B173: 10137 | C173: 西内野 | D173: サポート | E173: 新アマ日 | F173: 朝刊 | G173: =IFERROR(VLOOKUP(F173,[1]データ!$A$2:$B$16,2,FALSE),"") -> 1 | H173: 101371 | I173: 3020 | N173: =I173 -> 3020 | R173: 3020 | S173: 3020 | T173: 2950 | Z173: 70 | BP173: 70
A174: 173 | B174: 10137 | C174: 西内野 | F174: くるみる | G174: =IFERROR(VLOOKUP(F174,[1]データ!$A$2:$B$16,2,FALSE),"") -> 3 | H174: 101373 | I174: 200 | N174: =I174 -> 200 | R174: 200 | BP174: 0
A175: 174 | B175: 10137 | C175: 西内野 | F175: otona+ | G175: =IFERROR(VLOOKUP(F175,[1]データ!$A$2:$B$16,2,FALSE),"") -> 4 | H175: 101374 | I175: 300 | N175: 300 | R175: 300 | BP175: 0
A176: 175 | B176: 10137 | C176: 西内野 | F176: assh | G176: =IFERROR(VLOOKUP(F176,[1]データ!$A$2:$B$16,2,FALSE),"") -> 5 | H176: 101375 | I176: 2300 | N176: 2300 | R176: 2300 | BP176: 0
A177: 176 | B177: 10137 | C177: 西内野 | F177: assh・朝 | G177: =IFERROR(VLOOKUP(F177,[1]データ!$A$2:$B$16,2,FALSE),"") -> 51 | H177: 1013751 | I177: 3020 | R177: 0 | BP177: 0
A178: 177 | B178: 10137 | C178: 西内野 | F178: 市報・区報 | G178: =IFERROR(VLOOKUP(F178,[1]データ!$A$2:$B$16,2,FALSE),"") -> 2 | H178: 101372 | I178: =R178 -> 3020 | N178: =N173 -> 3020 | R178: 3020 | BP178: 0
A179: 178 | B179: 10139 | C179: 上坂井 | F179: 朝刊 | G179: =IFERROR(VLOOKUP(F179,[1]データ!$A$2:$B$16,2,FALSE),"") -> 1 | H179: 101391 | R179: 0 | S179: 0 | BP179: 0
A180: 179 | B180: 10140 | C180: 小新 | E180: 新アマ日 | F180: 朝刊 | G180: =IFERROR(VLOOKUP(F180,[1]データ!$A$2:$B$16,2,FALSE),"") -> 1 | H180: 101401 | I180: 4050 | N180: =I180 -> 4050 | R180: 4050 | S180: 4050 | T180: 3050 | U180: 1000 | BP180: 1000
A181: 180 | B181: 10140 | C181: 小新 | F181: くるみる | G181: =IFERROR(VLOOKUP(F181,[1]データ!$A$2:$B$16,2,FALSE),"") -> 3 | H181: 101403 | I181: 750 | N181: =I181 -> 750 | R181: 750 | BP181: 0
A182: 181 | B182: 10140 | C182: 小新 | F182: otona+ | G182: =IFERROR(VLOOKUP(F182,[1]データ!$A$2:$B$16,2,FALSE),"") -> 4 | H182: 101404 | I182: 340 | N182: 340 | R182: 340 | BP182: 0
A183: 182 | B183: 10140 | C183: 小新 | F183: assh | G183: =IFERROR(VLOOKUP(F183,[1]データ!$A$2:$B$16,2,FALSE),"") -> 5 | H183: 101405 | I183: 3600 | N183: 3600 | R183: 3600 | BP183: 0
A184: 183 | B184: 10140 | C184: 小新 | F184: assh・朝 | G184: =IFERROR(VLOOKUP(F184,[1]データ!$A$2:$B$16,2,FALSE),"") -> 51 | H184: 1014051 | I184: 4050 | R184: 0 | BP184: 0
A185: 184 | B185: 10140 | C185: 小新 | F185: 市報・区報 | G185: =IFERROR(VLOOKUP(F185,[1]データ!$A$2:$B$16,2,FALSE),"") -> 2 | H185: 101402 | I185: =R185 -> 4050 | N185: =N180 -> 4050 | R185: 4050 | BP185: 0
A186: 185 | B186: 10141 | C186: 寺地 | E186: 新アマ日 | F186: 朝刊 | G186: =IFERROR(VLOOKUP(F186,[1]データ!$A$2:$B$16,2,FALSE),"") -> 1 | H186: 101411 | I186: 1750 | N186: =I186 -> 1750 | R186: 1750 | S186: 1750 | U186: =I186 -> 1750 | BP186: 1750
A187: 186 | B187: 10141 | C187: 寺地 | F187: くるみる | G187: =IFERROR(VLOOKUP(F187,[1]データ!$A$2:$B$16,2,FALSE),"") -> 3 | H187: 101413 | I187: 300 | N187: =I187 -> 300 | R187: 300 | BP187: 0
A188: 187 | B188: 10141 | C188: 寺地 | F188: otona+ | G188: =IFERROR(VLOOKUP(F188,[1]データ!$A$2:$B$16,2,FALSE),"") -> 4 | H188: 101414 | I188: 200 | N188: 200 | R188: 200 | BP188: 0
A189: 188 | B189: 10141 | C189: 寺地 | F189: assh | G189: =IFERROR(VLOOKUP(F189,[1]データ!$A$2:$B$16,2,FALSE),"") -> 5 | H189: 101415 | I189: 1750 | N189: 1750 | R189: 1750 | BP189: 0
A190: 189 | B190: 10141 | C190: 寺地 | F190: assh・朝 | G190: =IFERROR(VLOOKUP(F190,[1]データ!$A$2:$B$16,2,FALSE),"") -> 51 | H190: 1014151 | I190: 1750 | R190: 0 | BP190: 0
A191: 190 | B191: 10141 | C191: 寺地 | F191: 市報・区報 | G191: =IFERROR(VLOOKUP(F191,[1]データ!$A$2:$B$16,2,FALSE),"") -> 2 | H191: 101412 | I191: =R191 -> 1750 | N191: =N186 -> 1750 | R191: 1750 | BP191: 0
A192: 191 | B192: 10178 | C192: 黒埼 | D192: MN | E192: 新アマ日 | F192: 朝刊 | G192: =IFERROR(VLOOKUP(F192,[1]データ!$A$2:$B$16,2,FALSE),"") -> 1 | H192: 101781 | I192: 3090 | N192: 2970 | O192: 120 | R192: 3090 | S192: 3090 | U192: 2970 | V192: 120 | BP192: 3090
A193: 192 | B193: 10178 | C193: 黒埼 | F193: くるみる | G193: =IFERROR(VLOOKUP(F193,[1]データ!$A$2:$B$16,2,FALSE),"") -> 3 | H193: 101783 | I193: 490 | N193: 470 | O193: 20 | R193: 490 | BP193: 0
A194: 193 | B194: 10178 | C194: 黒埼 | F194: otona+ | G194: =IFERROR(VLOOKUP(F194,[1]データ!$A$2:$B$16,2,FALSE),"") -> 4 | H194: 101784 | I194: 240 | N194: 230 | O194: 10 | R194: 240 | BP194: 0
A195: 194 | B195: 10178 | C195: 黒埼 | F195: assh | G195: =IFERROR(VLOOKUP(F195,[1]データ!$A$2:$B$16,2,FALSE),"") -> 5 | H195: 101785 | I195: 2100 | N195: 2060 | O195: 40 | R195: 2100 | BP195: 0
A196: 195 | B196: 10178 | C196: 黒埼 | F196: assh・朝 | G196: =IFERROR(VLOOKUP(F196,[1]データ!$A$2:$B$16,2,FALSE),"") -> 51 | H196: 1017851 | I196: =I192 -> 3090 | R196: 0 | BP196: =SUM(U196:BO196) -> 0
A197: 196 | B197: 10178 | C197: 黒埼 | F197: 市報・区報 | G197: =IFERROR(VLOOKUP(F197,[1]データ!$A$2:$B$16,2,FALSE),"") -> 2 | H197: 101782 | I197: =R197 -> 3090 | N197: =N192 -> 2970 | O197: =O192 -> 120 | R197: 3090 | BP197: 0
A198: 197 | B198: 10143 | C198: 黒埼南 | E198: 新アマ日 | F198: 朝刊 | G198: =IFERROR(VLOOKUP(F198,[1]データ!$A$2:$B$16,2,FALSE),"") -> 1 | H198: 101431 | I198: 3150 | O198: =I198 -> 3150 | R198: 3150 | S198: =SUM(T198:AH198) -> 3150 | V198: 450 | AC198: 2700 | BP198: 3150
A199: 198 | B199: 10143 | C199: 黒埼南 | F199: くるみる | G199: =IFERROR(VLOOKUP(F199,[1]データ!$A$2:$B$16,2,FALSE),"") -> 3 | H199: 101433 | I199: 320 | O199: =I199 -> 320 | R199: 320 | BP199: 0
A200: 199 | B200: 10143 | C200: 黒埼南 | F200: otona+ | G200: =IFERROR(VLOOKUP(F200,[1]データ!$A$2:$B$16,2,FALSE),"") -> 4 | H200: 101434 | I200: 130 | O200: 130 | R200: 130 | BP200: 0
... 451 more rows

Sheet 識別一覧 (hidden)
A1: 日報 | Q1: 読売 | AG1: 朝日
A2: 1 | B2: 2 | C2: 3 | D2: 4 | E2: 5 | F2: 6 | G2: 7 | H2: 8 | I2: 9 | J2: 10 | K2: 11 | L2: 12 | M2: 13 | N2: 14 | O2: 15 | Q2: 1 | R2: 2 | S2: 3 | T2: 4 | U2: 5 | V2: 6 | W2: 7 | X2: 8 | Y2: 9 | Z2: 10 | AA2: 11 | AB2: 12 | AC2: 13 | AD2: 14 | AE2: 15 | AG2: 1 | AH2: 2 | AI2: 3 | AJ2: 4 | AK2: 5 | AL2: 6 | AM2: 7 | AN2: 8 | AO2: 9 | AP2: 10 | AQ2: 11 | AR2: 12 | AS2: 13 | AT2: 14 | AU2: 15
A3: 販売店 | B3: 販売店コード | C3: 朝刊 識別 | D3: 市報・区報 | E3: くるみる | F3: otona+ | G3: assh | H3: assh・朝 | I3: n-assh | J3: N-assh② | K3: N-assh④ | L3: ｎ-assh・②朝 | M3: ｎ-assh・④朝 | N3: ミニック | O3: ミニック朝 | Q3: 販売店 | R3: 販売店コード | S3: 朝刊 識別 | T3: 市報・区報 | U3: くるみる | V3: otona+ | W3: assh | X3: assh・朝 | Y3: n-assh | Z3: N-assh② | AA3: N-assh④ | AB3: ｎ-assh・②朝 | AC3: ｎ-assh・④朝 | AD3: ミニック | AE3: ミニック朝 | AG3: 販売店 | AH3: 販売店コード | AI3: 朝刊 識別 | AJ3: 市報・区報 | AK3: くるみる | AL3: otona+ | AM3: assh | AN3: assh・朝 | AO3: n-assh | AP3: N-assh② | AQ3: N-assh④ | AR3: ｎ-assh・②朝 | AS3: ｎ-assh・④朝 | AT3: ミニック | AU3: ミニック朝
A4: 万代 | B4: 10101 | C4: 101011 | D4: 101012 | E4: 101013 | F4: 101014 | G4: 101015 | H4: 1010151 | I4: 101016 | J4: 1010161 | K4: 1010163 | L4: 1010162 | M4: 1010164 | N4: 101017 | O4: 1010131 | Q4: 本町 | R4: 210167 | S4: 2101671 | T4: 2101672 | U4: 2101673 | V4: 2101674 | W4: 2101675 | X4: 21016751 | Y4: 2101676 | Z4: 21016761 | AA4: 21016763 | AB4: 21016762 | AC4: 21016764 | AD4: 2101677 | AE4: 21016731 | AG4: 巻 | AH4: 20106 | AI4: 201061 | AJ4: 201062 | AK4: 201063 | AL4: 201064 | AM4: 201065 | AN4: 2010651 | AO4: 201066 | AP4: 2010661 | AQ4: 2010663 | AR4: 2010662 | AS4: 2010664 | AT4: 201067 | AU4: 2010631
A5: 駅南 | B5: 10102 | C5: 101021 | D5: 101022 | E5: 101023 | F5: 101024 | G5: 101025 | H5: 1010251 | I5: 101026 | J5: 1010261 | K5: 1010263 | L5: 1010262 | M5: 1010264 | N5: 101027 | O5: 1010231 | Q5: 中央 | R5: 210168 | S5: 2101681 | T5: 2101682 | U5: 2101683 | V5: 2101684 | W5: 2101685 | X5: 21016851 | Y5: 2101686 | Z5: 21016861 | AA5: 21016863 | AB5: 21016862 | AC5: 21016864 | AD5: 2101687 | AE5: 21016831 | AG5: 両津 | AH5: 30102 | AI5: 301021 | AJ5: 301022 | AK5: 301023 | AL5: 301024 | AM5: 301025 | AN5: 3010251 | AO5: 301026 | AP5: 3010261 | AQ5: 3010263 | AR5: 3010262 | AS5: 3010264 | AT5: 301027 | AU5: 3010231
A6: 木戸 | B6: 10103 | C6: 101031 | D6: 101032 | E6: 101033 | F6: 101034 | G6: 101035 | H6: 1010351 | I6: 101036 | J6: 1010361 | K6: 1010363 | L6: 1010362 | M6: 1010364 | N6: 101037 | O6: 1010331 | Q6: 小針 | R6: 210169 | S6: 2101691 | T6: 2101692 | U6: 2101693 | V6: 2101694 | W6: 2101695 | X6: 21016951 | Y6: 2101696 | Z6: 21016961 | AA6: 21016963 | AB6: 21016962 | AC6: 21016964 | AD6: 2101697 | AE6: 21016931 | AG6: 真野 | AH6: 30107 | AI6: 301071 | AJ6: 301072 | AK6: 301073 | AL6: 301074 | AM6: 301075 | AN6: 3010751 | AO6: 301076 | AP6: 3010761 | AQ6: 3010763 | AR6: 3010762 | AS6: 3010764 | AT6: 301077 | AU6: 3010731
A7: 石山東 | B7: 10105 | C7: 101051 | D7: 101052 | E7: 101053 | F7: 101054 | G7: 101055 | H7: 1010551 | I7: 101056 | J7: 1010561 | K7: 1010563 | L7: 1010562 | M7: 1010564 | N7: 101057 | O7: 1010531 | Q7: 寺尾 | R7: 210170 | S7: 2101701 | T7: 2101702 | U7: 2101703 | V7: 2101704 | W7: 2101705 | X7: 21017051 | Y7: 2101706 | Z7: 21017061 | AA7: 21017063 | AB7: 21017062 | AC7: 21017064 | AD7: 2101707 | AE7: 21017031 | AG7: 新穂 | AH7: 30109 | AI7: 301091 | AJ7: 301092 | AK7: 301093 | AL7: 301094 | AM7: 301095 | AN7: 3010951 | AO7: 301096 | AP7: 3010961 | AQ7: 3010963 | AR7: 3010962 | AS7: 3010964 | AT7: 301097 | AU7: 3010931
A8: 山ノ下 | B8: 10107 | C8: 101071 | D8: 101072 | E8: 101073 | F8: 101074 | G8: 101075 | H8: 1010751 | I8: 101076 | J8: 1010761 | K8: 1010763 | L8: 1010762 | M8: 1010764 | N8: 101077 | O8: 1010731 | Q8: 内野 | R8: 210171 | S8: 2101711 | T8: 2101712 | U8: 2101713 | V8: 2101714 | W8: 2101715 | X8: 21017151 | Y8: 2101716 | Z8: 21017161 | AA8: 21017163 | AB8: 21017162 | AC8: 21017164 | AD8: 2101717 | AE8: 21017131 | AG8: 畑野 | AH8: 30112 | AI8: 301121 | AJ8: 301122 | AK8: 301123 | AL8: 301124 | AM8: 301125 | AN8: 3011251 | AO8: 301126 | AP8: 3011261 | AQ8: 3011263 | AR8: 3011262 | AS8: 3011264 | AT8: 301127 | AU8: 3011231
A9: 物見山 | B9: 10108 | C9: 101081 | D9: 101082 | E9: 101083 | F9: 101084 | G9: 101085 | H9: 1010851 | I9: 101086 | J9: 1010861 | K9: 1010863 | L9: 1010862 | M9: 1010864 | N9: 101087 | O9: 1010831 | Q9: 小新黒埼 | R9: 210172 | S9: 2101721 | T9: 2101722 | U9: 2101723 | V9: 2101724 | W9: 2101725 | X9: 21017251 | Y9: 2101726 | Z9: 21017261 | AA9: 21017263 | AB9: 21017262 | AC9: 21017264 | AD9: 2101727 | AE9: 21017231 | AG9: 相川 | AH9: 30118 | AI9: 301181 | AJ9: 301182 | AK9: 301183 | AL9: 301184 | AM9: 301185 | AN9: 3011851 | AO9: 301186 | AP9: 3011861 | AQ9: 3011863 | AR9: 3011862 | AS9: 3011864 | AT9: 301187 | AU9: 3011831
A10: とやの | B10: 10109 | C10: 101091 | D10: 101092 | E10: 101093 | F10: 101094 | G10: 101095 | H10: 1010951 | I10: 101096 | J10: 1010961 | K10: 1010963 | L10: 1010962 | M10: 1010964 | N10: 101097 | O10: 1010931 | Q10: 黒埼南 | R10: 210179 | S10: 2101791 | T10: 2101792 | U10: 2101793 | V10: 2101794 | W10: 2101795 | X10: 21017951 | Y10: 2101796 | Z10: 21017961 | AA10: 21017963 | AB10: 21017962 | AC10: 21017964 | AD10: 2101797 | AE10: 21017931 | AG10: 小木 | AH10: 30125 | AI10: 301251 | AJ10: 301252 | AK10: 301253 | AL10: 301254 | AM10: 301255 | AN10: 3012551 | AO10: 301256 | AP10: 3012561 | AQ10: 3012563 | AR10: 3012562 | AS10: 3012564 | AT10: 301257 | AU10: 3012531
A11: 県庁前 | B11: 10111 | C11: 101111 | D11: 101112 | E11: 101113 | F11: 101114 | G11: 101115 | H11: 1011151 | I11: 101116 | J11: 1011161 | K11: 1011163 | L11: 1011162 | M11: 1011164 | N11: 101117 | O11: 1011131 | Q11: 万代 | R11: 210158 | S11: 2101581 | T11: 2101582 | U11: 2101583 | V11: 2101584 | W11: 2101585 | X11: 21015851 | Y11: 2101586 | Z11: 21015861 | AA11: 21015863 | AB11: 21015862 | AC11: 21015864 | AD11: 2101587 | AE11: 21015831 | AG11: 高田 | AH11: 50104 | AI11: 501041 | AJ11: 501042 | AK11: 501043 | AL11: 501044 | AM11: 501045 | AN11: 5010451 | AO11: 501046 | AP11: 5010461 | AQ11: 5010463 | AR11: 5010462 | AS11: 5010464 | AT11: 501047 | AU11: 5010431
A12: 愛宕 | B12: 10113 | C12: 101131 | D12: 101132 | E12: 101133 | F12: 101134 | G12: 101135 | H12: 1011351 | I12: 101136 | J12: 1011361 | K12: 1011363 | L12: 1011362 | M12: 1011364 | N12: 101137 | O12: 1011331 | Q12: 県庁前 | R12: 210159 | S12: 2101591 | T12: 2101592 | U12: 2101593 | V12: 2101594 | W12: 2101595 | X12: 21015951 | Y12: 2101596 | Z12: 21015961 | AA12: 21015963 | AB12: 21015962 | AC12: 21015964 | AD12: 2101597 | AE12: 21015931 | AG12: 直江津 | AH12: 50116 | AI12: 501161 | AJ12: 501162 | AK12: 501163 | AL12: 501164 | AM12: 501165 | AN12: 5011651 | AO12: 501166 | AP12: 5011661 | AQ12: 5011663 | AR12: 5011662 | AS12: 5011664 | AT12: 501167 | AU12: 5011631
A13: 河渡 | B13: 10114 | C13: 101141 | D13: 101142 | E13: 101143 | F13: 101144 | G13: 101145 | H13: 1011451 | I13: 101146 | J13: 1011461 | K13: 1011463 | L13: 1011462 | M13: 1011464 | N13: 101147 | O13: 1011431 | Q13: 駅南東 | R13: 210160 | S13: 2101601 | T13: 2101602 | U13: 2101603 | V13: 2101604 | W13: 2101605 | X13: 21016051 | Y13: 2101606 | Z13: 21016061 | AA13: 21016063 | AB13: 21016062 | AC13: 21016064 | AD13: 2101607 | AE13: 21016031
A14: 牡丹山 | B14: 10115 | C14: 101151 | D14: 101152 | E14: 101153 | F14: 101154 | G14: 101155 | H14: 1011551 | I14: 101156 | J14: 1011561 | K14: 1011563 | L14: 1011562 | M14: 1011564 | N14: 101157 | O14: 1011531 | Q14: 山木戸 | R14: 210162 | S14: 2101621 | T14: 2101622 | U14: 2101623 | V14: 2101624 | W14: 2101625 | X14: 21016251 | Y14: 2101626 | Z14: 21016261 | AA14: 21016263 | AB14: 21016262 | AC14: 21016264 | AD14: 2101627 | AE14: 21016231
A15: 大形 | B15: 10116 | C15: 101161 | D15: 101162 | E15: 101163 | F15: 101164 | G15: 101165 | H15: 1011651 | I15: 101166 | J15: 1011661 | K15: 1011663 | L15: 1011662 | M15: 1011664 | N15: 101167 | O15: 1011631 | Q15: 山ノ下 | R15: 210163 | S15: 2101631 | T15: 2101632 | U15: 2101633 | V15: 2101634 | W15: 2101635 | X15: 21016351 | Y15: 2101636 | Z15: 21016361 | AA15: 21016363 | AB15: 21016362 | AC15: 21016364 | AD15: 2101637 | AE15: 21016331 | AG15: 産経
A16: 松浜 | B16: 10117 | C16: 101171 | D16: 101172 | E16: 101173 | F16: 101174 | G16: 101175 | H16: 1011751 | I16: 101176 | J16: 1011761 | K16: 1011763 | L16: 1011762 | M16: 1011764 | N16: 101177 | O16: 1011731 | Q16: 松浜 | R16: 210164 | S16: 2101641 | T16: 2101642 | U16: 2101643 | V16: 2101644 | W16: 2101645 | X16: 21016451 | Y16: 2101646 | Z16: 21016461 | AA16: 21016463 | AB16: 21016462 | AC16: 21016464 | AD16: 2101647 | AE16: 21016431 | AG16: 販売店 | AH16: 販売店コード | AI16: 朝刊 識別 | AJ16: 市報・区報 | AK16: くるみる | AL16: otona+ | AM16: assh | AN16: assh・朝 | AO16: n-assh | AP16: N-assh② | AQ16: N-assh④ | AR16: ｎ-assh・②朝 | AS16: ｎ-assh・④朝 | AT16: ミニック | AU16: ミニック朝
A17: 新潟南 | B17: 10118 | C17: 101181 | D17: 101182 | E17: 101183 | F17: 101184 | G17: 101185 | H17: 1011851 | I17: 101186 | J17: 1011861 | K17: 1011863 | L17: 1011862 | M17: 1011864 | N17: 101187 | O17: 1011831 | Q17: 亀田 | R17: 210166 | S17: 2101661 | T17: 2101662 | U17: 2101663 | V17: 2101664 | W17: 2101665 | X17: 21016651 | Y17: 2101666 | Z17: 21016661 | AA17: 21016663 | AB17: 21016662 | AC17: 21016664 | AD17: 2101667 | AE17: 21016631 | AG17: 見附 | AH17: 40134 | AI17: 401341 | AJ17: 401342 | AK17: 401343 | AL17: 401344 | AM17: 401345 | AN17: 4013451 | AO17: 401346 | AP17: 4013461 | AQ17: 4013463 | AR17: 4013462 | AS17: 4013464 | AT17: 401347 | AU17: 4013431
A18: 姥ケ山 | B18: 10119 | C18: 101191 | D18: 101192 | E18: 101193 | F18: 101194 | G18: 101195 | H18: 1011951 | I18: 101196 | J18: 1011961 | K18: 1011963 | L18: 1011962 | M18: 1011964 | N18: 101197 | O18: 1011931 | Q18: 巻 | R18: 220107 | S18: 2201071 | T18: 2201072 | U18: 2201073 | V18: 2201074 | W18: 2201075 | X18: 22010751 | Y18: 2201076 | Z18: 22010761 | AA18: 22010763 | AB18: 22010762 | AC18: 22010764 | AD18: 2201077 | AE18: 22010731
A19: 山二ツ | B19: 10120 | C19: 101201 | D19: 101202 | E19: 101203 | F19: 101204 | G19: 101205 | H19: 1012051 | I19: 101206 | J19: 1012061 | K19: 1012063 | L19: 1012062 | M19: 1012064 | N19: 101207 | O19: 1012031 | Q19: 白根 | R19: 220121 | S19: 2201211 | T19: 2201212 | U19: 2201213 | V19: 2201214 | W19: 2201215 | X19: 22012151 | Y19: 2201216 | Z19: 22012161 | AA19: 22012163 | AB19: 22012162 | AC19: 22012164 | AD19: 2201217 | AE19: 22012131
A20: 亀田西 | B20: 10122 | C20: 101221 | D20: 101222 | E20: 101223 | F20: 101224 | G20: 101225 | H20: 1012251 | I20: 101226 | J20: 1012261 | K20: 1012263 | L20: 1012262 | M20: 1012264 | N20: 101227 | O20: 1012231 | Q20: 三条 | R20: 220129 | S20: 2201291 | T20: 2201292 | U20: 2201293 | V20: 2201294 | W20: 2201295 | X20: 22012951 | Y20: 2201296 | Z20: 22012961 | AA20: 22012963 | AB20: 22012962 | AC20: 22012964 | AD20: 2201297 | AE20: 22012931
A21: 亀田 | B21: 10123 | C21: 101231 | D21: 101232 | E21: 101233 | F21: 101234 | G21: 101235 | H21: 1012351 | I21: 101236 | J21: 1012361 | K21: 1012363 | L21: 1012362 | M21: 1012364 | N21: 101237 | O21: 1012331 | Q21: 燕 | R21: 220134 | S21: 2201341 | T21: 2201342 | U21: 2201343 | V21: 2201344 | W21: 2201345 | X21: 22013451 | Y21: 2201346 | Z21: 22013461 | AA21: 22013463 | AB21: 22013462 | AC21: 22013464 | AD21: 2201347 | AE21: 22013431
A22: 横越 | B22: 10176 | C22: 101761 | D22: 101762 | E22: 101763 | F22: 101764 | G22: 101765 | H22: 1017651 | I22: 101766 | J22: 1017661 | K22: 1017663 | L22: 1017662 | M22: 1017664 | N22: 101767 | O22: 1017631 | Q22: 加茂 | R22: 220137 | S22: 2201371 | T22: 2201372 | U22: 2201373 | V22: 2201374 | W22: 2201375 | X22: 22013751 | Y22: 2201376 | Z22: 22013761 | AA22: 22013763 | AB22: 22013762 | AC22: 22013764 | AD22: 2201377 | AE22: 22013731
A23: 有明 | B23: 10177 | C23: 101771 | D23: 101772 | E23: 101773 | F23: 101774 | G23: 101775 | H23: 1017751 | I23: 101776 | J23: 1017761 | K23: 1017763 | L23: 1017762 | M23: 1017764 | N23: 101777 | O23: 1017731 | Q23: 豊栄 | R23: 220145 | S23: 2201451 | T23: 2201452 | U23: 2201453 | V23: 2201454 | W23: 2201455 | X23: 22014551 | Y23: 2201456 | Z23: 22014561 | AA23: 22014563 | AB23: 22014562 | AC23: 22014564 | AD23: 2201457 | AE23: 22014531
A24: 小針 | B24: 10127 | C24: 101271 | D24: 101272 | E24: 101273 | F24: 101274 | G24: 101275 | H24: 1012751 | I24: 101276 | J24: 1012761 | K24: 1012763 | L24: 1012762 | M24: 1012764 | N24: 101277 | O24: 1012731 | Q24: 木崎 | R24: 20146 | S24: 201461 | T24: 201462 | U24: 201463 | V24: 201464 | W24: 201465 | X24: 2014651 | Y24: 201466 | Z24: 2014661 | AA24: 2014663 | AB24: 2014662 | AC24: 2014664 | AD24: 201467 | AE24: 2014631
A25: 中通 | B25: 10128 | C25: 101281 | D25: 101282 | E25: 101283 | F25: 101284 | G25: 101285 | H25: 1012851 | I25: 101286 | J25: 1012861 | K25: 1012863 | L25: 1012862 | M25: 1012864 | N25: 101287 | O25: 1012831 | Q25: 新発田 | R25: 220152 | S25: 2201521 | T25: 2201522 | U25: 2201523 | V25: 2201524 | W25: 2201525 | X25: 22015251 | Y25: 2201526 | Z25: 22015261 | AA25: 22015263 | AB25: 22015262 | AC25: 22015264 | AD25: 2201527 | AE25: 22015231
A26: 本町 | B26: 10130 | C26: 101301 | D26: 101302 | E26: 101303 | F26: 101304 | G26: 101305 | H26: 1013051 | I26: 101306 | J26: 1013061 | K26: 1013063 | L26: 1013062 | M26: 1013064 | N26: 101307 | O26: 1013031 | Q26: 中条 | R26: 220156 | S26: 2201561 | T26: 2201562 | U26: 2201563 | V26: 2201564 | W26: 2201565 | X26: 22015651 | Y26: 2201566 | Z26: 22015661 | AA26: 22015663 | AB26: 22015662 | AC26: 22015664 | AD26: 2201567 | AE26: 22015631
A27: 中央 | B27: 10131 | C27: 101311 | D27: 101312 | E27: 101313 | F27: 101314 | G27: 101315 | H27: 1013151 | I27: 101316 | J27: 1013161 | K27: 1013163 | L27: 1013162 | M27: 1013164 | N27: 101317 | O27: 1013131 | Q27: 水原 | R27: 220160 | S27: 2201601 | T27: 2201602 | U27: 2201603 | V27: 2201604 | W27: 2201605 | X27: 22016051 | Y27: 2201606 | Z27: 22016061 | AA27: 22016063 | AB27: 22016062 | AC27: 22016064 | AD27: 2201607 | AE27: 22016031
A28: 真砂 | B28: 10133 | C28: 101331 | D28: 101332 | E28: 101333 | F28: 101334 | G28: 101335 | H28: 1013351 | I28: 101336 | J28: 1013361 | K28: 1013363 | L28: 1013362 | M28: 1013364 | N28: 101337 | O28: 1013331 | Q28: 両津 | R28: 230103 | S28: 2301031 | T28: 2301032 | U28: 2301033 | V28: 2301034 | W28: 2301035 | X28: 23010351 | Y28: 2301036 | Z28: 23010361 | AA28: 23010363 | AB28: 23010362 | AC28: 23010364 | AD28: 2301037 | AE28: 23010331
A29: 寺尾 | B29: 10134 | C29: 101341 | D29: 101342 | E29: 101343 | F29: 101344 | G29: 101345 | H29: 1013451 | I29: 101346 | J29: 1013461 | K29: 1013463 | L29: 1013462 | M29: 1013464 | N29: 101347 | O29: 1013431 | Q29: 佐和田 | R29: 230115 | S29: 2301151 | T29: 2301152 | U29: 2301153 | V29: 2301154 | W29: 2301155 | X29: 23011551 | Y29: 2301156 | Z29: 23011561 | AA29: 23011563 | AB29: 23011562 | AC29: 23011564 | AD29: 2301157 | AE29: 23011531
A30: 新大前 | B30: 10135 | C30: 101351 | D30: 101352 | E30: 101353 | F30: 101354 | G30: 101355 | H30: 1013551 | I30: 101356 | J30: 1013561 | K30: 1013563 | L30: 1013562 | M30: 1013564 | N30: 101357 | O30: 1013531 | Q30: 沢根 | R30: 230116 | S30: 2301161 | T30: 2301162 | U30: 2301163 | V30: 2301164 | W30: 2301165 | X30: 23011651 | Y30: 2301166 | Z30: 23011661 | AA30: 23011663 | AB30: 23011662 | AC30: 23011664 | AD30: 2301167 | AE30: 23011631
A31: 内野 | B31: 10136 | C31: 101361 | D31: 101362 | E31: 101363 | F31: 101364 | G31: 101365 | H31: 1013651 | I31: 101366 | J31: 1013661 | K31: 1013663 | L31: 1013662 | M31: 1013664 | N31: 101367 | O31: 1013631 | Q31: 相川 | R31: 230120 | S31: 2301201 | T31: 2301202 | U31: 2301203 | V31: 2301204 | W31: 2301205 | X31: 23012051 | Y31: 2301206 | Z31: 23012061 | AA31: 23012063 | AB31: 23012062 | AC31: 23012064 | AD31: 2301207 | AE31: 23012031
A32: 西内野 | B32: 10137 | C32: 101371 | D32: 101372 | E32: 101373 | F32: 101374 | G32: 101375 | H32: 1013751 | I32: 101376 | J32: 1013761 | K32: 1013763 | L32: 1013762 | M32: 1013764 | N32: 101377 | O32: 1013731 | Q32: 小木 | R32: 230126 | S32: 2301261 | T32: 2301262 | U32: 2301263 | V32: 2301264 | W32: 2301265 | X32: 23012651 | Y32: 2301266 | Z32: 23012661 | AA32: 23012663 | AB32: 23012662 | AC32: 23012664 | AD32: 2301267 | AE32: 23012631
A33: 小新 | B33: 10140 | C33: 101401 | D33: 101402 | E33: 101403 | F33: 101404 | G33: 101405 | H33: 1014051 | I33: 101406 | J33: 1014061 | K33: 1014063 | L33: 1014062 | M33: 1014064 | N33: 101407 | O33: 1014031 | Q33: 長岡 | R33: 240109 | S33: 2401091 | T33: 2401092 | U33: 2401093 | V33: 2401094 | W33: 2401095 | X33: 24010951 | Y33: 2401096 | Z33: 24010961 | AA33: 24010963 | AB33: 24010962 | AC33: 24010964 | AD33: 2401097 | AE33: 24010931
A34: 寺地 | B34: 10141 | C34: 101411 | D34: 101412 | E34: 101413 | F34: 101414 | G34: 101415 | H34: 1014151 | I34: 101416 | J34: 1014161 | K34: 1014163 | L34: 1014162 | M34: 1014164 | N34: 101417 | O34: 1014131 | Q34: 長岡南部 | R34: 240110 | S34: 2401101 | T34: 2401102 | U34: 2401103 | V34: 2401104 | W34: 2401105 | X34: 24011051 | Y34: 2401106 | Z34: 24011061 | AA34: 24011063 | AB34: 24011062 | AC34: 24011064 | AD34: 2401107 | AE34: 24011031
A35: 黒埼 | B35: 10178 | C35: 101781 | D35: 101782 | E35: 101783 | F35: 101784 | G35: 101785 | H35: 1017851 | I35: 101786 | J35: 1017861 | K35: 1017863 | L35: 1017862 | M35: 1017864 | N35: 101787 | O35: 1017831 | Q35: 長岡西部 | R35: 240112 | S35: 2401121 | T35: 2401122 | U35: 2401123 | V35: 2401124 | W35: 2401125 | X35: 24011251 | Y35: 2401126 | Z35: 24011261 | AA35: 24011263 | AB35: 24011262 | AC35: 24011264 | AD35: 2401127 | AE35: 24011231
A36: 黒埼南 | B36: 10143 | C36: 101431 | D36: 101432 | E36: 101433 | F36: 101434 | G36: 101435 | H36: 1014351 | I36: 101436 | J36: 1014361 | K36: 1014363 | L36: 1014362 | M36: 1014364 | N36: 101437 | O36: 1014331 | Q36: 長岡宮内 | R36: 240123 | S36: 2401231 | T36: 2401232 | U36: 2401233 | V36: 2401234 | W36: 2401235 | X36: 24012351 | Y36: 2401236 | Z36: 24012361 | AA36: 24012363 | AB36: 24012362 | AC36: 24012364 | AD36: 2401237 | AE36: 24012331
A37: 分水 | B37: 20101 | C37: 201011 | D37: 201012 | E37: 201013 | F37: 201014 | G37: 201015 | H37: 2010151 | I37: 201016 | J37: 2010161 | K37: 2010163 | L37: 2010162 | M37: 2010164 | N37: 201017 | O37: 2010131 | Q37: 栃尾 | R37: 240129 | S37: 2401291 | T37: 2401292 | U37: 2401293 | V37: 2401294 | W37: 2401295 | X37: 24012951 | Y37: 2401296 | Z37: 24012961 | AA37: 24012963 | AB37: 24012962 | AC37: 24012964 | AD37: 2401297 | AE37: 24012931
A38: 吉田 | B38: 20102 | C38: 201021 | D38: 201022 | E38: 201023 | F38: 201024 | G38: 201025 | H38: 2010251 | I38: 201026 | J38: 2010261 | K38: 2010263 | L38: 2010262 | M38: 2010264 | N38: 201027 | O38: 2010231 | Q38: 見附 | R38: 240133 | S38: 2401331 | T38: 2401332 | U38: 2401333 | V38: 2401334 | W38: 2401335 | X38: 24013351 | Y38: 2401336 | Z38: 24013361 | AA38: 24013363 | AB38: 24013362 | AC38: 24013364 | AD38: 2401337 | AE38: 24013331
A39: 粟生津 | B39: 20104 | C39: 201041 | D39: 201042 | E39: 201043 | F39: 201044 | G39: 201045 | H39: 2010451 | I39: 201046 | J39: 2010461 | K39: 2010463 | L39: 2010462 | M39: 2010464 | N39: 201047 | O39: 2010431 | Q39: 今町 | R39: 240136 | S39: 2401361 | T39: 2401362 | U39: 2401363 | V39: 2401364 | W39: 2401365 | X39: 24013651 | Y39: 2401366 | Z39: 24013661 | AA39: 24013663 | AB39: 24013662 | AC39: 24013664 | AD39: 2401367 | AE39: 24013631
A40: 巻 | B40: 20105 | C40: 201051 | D40: 201052 | E40: 201053 | F40: 201054 | G40: 201055 | H40: 2010551 | I40: 201056 | J40: 2010561 | K40: 2010563 | L40: 2010562 | M40: 2010564 | N40: 201057 | O40: 2010531 | Q40: 来迎寺 | R40: 240140 | S40: 2401401 | T40: 2401402 | U40: 2401403 | V40: 2401404 | W40: 2401405 | X40: 24014051 | Y40: 2401406 | Z40: 24014061 | AA40: 24014063 | AB40: 24014062 | AC40: 24014064 | AD40: 2401407 | AE40: 24014031
A41: 岩室 | B41: 20108 | C41: 201081 | D41: 201082 | E41: 201083 | F41: 201084 | G41: 201085 | H41: 2010851 | I41: 201086 | J41: 2010861 | K41: 2010863 | L41: 2010862 | M41: 2010864 | N41: 201087 | O41: 2010831 | Q41: 小千谷 | R41: 240153 | S41: 2401531 | T41: 2401532 | U41: 2401533 | V41: 2401534 | W41: 2401535 | X41: 24015351 | Y41: 2401536 | Z41: 24015361 | AA41: 24015363 | AB41: 24015362 | AC41: 24015364 | AD41: 2401537 | AE41: 24015331
A42: 西川 | B42: 20109 | C42: 201091 | D42: 201092 | E42: 201093 | F42: 201094 | G42: 201095 | H42: 2010951 | I42: 201096 | J42: 2010961 | K42: 2010963 | L42: 2010962 | M42: 2010964 | N42: 201097 | O42: 2010931 | Q42: 十日町 | R42: 240159 | S42: 2401591 | T42: 2401592 | U42: 2401593 | V42: 2401594 | W42: 2401595 | X42: 24015951 | Y42: 2401596 | Z42: 24015961 | AA42: 24015963 | AB42: 24015962 | AC42: 24015964 | AD42: 2401597 | AE42: 24015931
A43: 中之口 | B43: 20110 | C43: 201101 | D43: 201102 | E43: 201103 | F43: 201104 | G43: 201105 | H43: 2011051 | I43: 201106 | J43: 2011061 | K43: 2011063 | L43: 2011062 | M43: 2011064 | N43: 201107 | O43: 2011031 | Q43: 小出 | R43: 240170 | S43: 2401701 | T43: 2401702 | U43: 2401703 | V43: 2401704 | W43: 2401705 | X43: 24017051 | Y43: 2401706 | Z43: 24017061 | AA43: 24017063 | AB43: 24017062 | AC43: 24017064 | AD43: 2401707 | AE43: 24017031
A44: 弥彦 | B44: 20111 | C44: 201111 | D44: 201112 | E44: 201113 | F44: 201114 | G44: 201115 | H44: 2011151 | I44: 201116 | J44: 2011161 | K44: 2011163 | L44: 2011162 | M44: 2011164 | N44: 201117 | O44: 2011131 | Q44: 六日町 | R44: 240183 | S44: 2401831 | T44: 2401832 | U44: 2401833 | V44: 2401834 | W44: 2401835 | X44: 24018351 | Y44: 2401836 | Z44: 24018361 | AA44: 24018363 | AB44: 24018362 | AC44: 24018364 | AD44: 2401837 | AE44: 24018331
A45: 小須戸 | B45: 20112 | C45: 201121 | D45: 201122 | E45: 201123 | F45: 201124 | G45: 201125 | H45: 2011251 | I45: 201126 | J45: 2011261 | K45: 2011263 | L45: 2011262 | M45: 2011264 | N45: 201127 | O45: 2011231 | Q45: 塩沢石打 | R45: 240185 | S45: 2401851 | T45: 2401852 | U45: 2401853 | V45: 2401854 | W45: 2401855 | X45: 24018551 | Y45: 2401856 | Z45: 24018561 | AA45: 24018563 | AB45: 24018562 | AC45: 24018564 | AD45: 2401857 | AE45: 24018531
A46: 矢代田 | B46: 20113 | C46: 201131 | D46: 201132 | E46: 201133 | F46: 201134 | G46: 201135 | H46: 2011351 | I46: 201136 | J46: 2011361 | K46: 2011363 | L46: 2011362 | M46: 2011364 | N46: 201137 | O46: 2011331 | Q46: 湯沢 | R46: 240190 | S46: 2401901 | T46: 2401902 | U46: 2401903 | V46: 2401904 | W46: 2401905 | X46: 24019051 | Y46: 2401906 | Z46: 24019061 | AA46: 24019063 | AB46: 24019062 | AC46: 24019064 | AD46: 2401907 | AE46: 24019031
A47: 村松 | B47: 20114 | C47: 201141 | D47: 201142 | E47: 201143 | F47: 201144 | G47: 201145 | H47: 2011451 | I47: 201146 | J47: 2011461 | K47: 2011463 | L47: 2011462 | M47: 2011464 | N47: 201147 | O47: 2011431 | Q47: 柏崎西部 | R47: 240205 | S47: 2402051 | T47: 2402052 | U47: 2402053 | V47: 2402054 | W47: 2402055 | X47: 24020551 | Y47: 2402056 | Z47: 24020561 | AA47: 24020563 | AB47: 24020562 | AC47: 24020564 | AD47: 2402057 | AE47: 24020531
A48: 村松 | B48: 20114 | C48: 201141 | D48: 201142 | E48: 201143 | F48: 201144 | G48: 201145 | H48: 2011451 | I48: 201146 | J48: 2011461 | K48: 2011463 | L48: 2011462 | M48: 2011464 | N48: 201147 | O48: 2011431 | Q48: 柏崎東部 | R48: 240206 | S48: 2402061 | T48: 2402062 | U48: 2402063 | V48: 2402064 | W48: 2402065 | X48: 24020651 | Y48: 2402066 | Z48: 24020661 | AA48: 24020663 | AB48: 24020662 | AC48: 24020664 | AD48: 2402067 | AE48: 24020631
A49: 新津 | B49: 20116 | C49: 201161 | D49: 201162 | E49: 201163 | F49: 201164 | G49: 201165 | H49: 2011651 | I49: 201166 | J49: 2011661 | K49: 2011663 | L49: 2011662 | M49: 2011664 | N49: 201167 | O49: 2011631 | Q49: 高田 | R49: 250105 | S49: 2501051 | T49: 2501052 | U49: 2501053 | V49: 2501054 | W49: 2501055 | X49: 25010551 | Y49: 2501056 | Z49: 25010561 | AA49: 25010563 | AB49: 25010562 | AC49: 25010564 | AD49: 2501057 | AE49: 25010531
A50: 新津・荻川 | B50: 20181 | C50: 201811 | D50: 201812 | E50: 201813 | F50: 201814 | G50: 201815 | H50: 2018151 | I50: 201816 | J50: 2018161 | K50: 2018163 | L50: 2018162 | M50: 2018164 | N50: 201817 | O50: 2018131 | Q50: 上越中央 | R50: 250107 | S50: 2501071 | T50: 2501072 | U50: 2501073 | V50: 2501074 | W50: 2501075 | X50: 25010751 | Y50: 2501076 | Z50: 25010761 | AA50: 25010763 | AB50: 25010762 | AC50: 25010764 | AD50: 2501077 | AE50: 25010731
A51: 五泉 | B51: 20117 | C51: 201171 | D51: 201172 | E51: 201173 | F51: 201174 | G51: 201175 | H51: 2011751 | I51: 201176 | J51: 2011761 | K51: 2011763 | L51: 2011762 | M51: 2011764 | N51: 201177 | O51: 2011731 | Q51: 脇野田 | R51: 250106 | S51: 2501061 | T51: 2501062 | U51: 2501063 | V51: 2501064 | W51: 2501065 | X51: 25010651 | Y51: 2501066 | Z51: 25010661 | AA51: 25010663 | AB51: 25010662 | AC51: 25010664 | AD51: 2501067 | AE51: 25010631
A52: 五泉・馬下 | B52: 20119 | C52: 201191 | D52: 201192 | E52: 201193 | F52: 201194 | G52: 201195 | H52: 2011951 | I52: 201196 | J52: 2011961 | K52: 2011963 | L52: 2011962 | M52: 2011964 | N52: 201197 | O52: 2011931 | Q52: 直江津 | R52: 250115 | S52: 2501151 | T52: 2501152 | U52: 2501153 | V52: 2501154 | W52: 2501155 | X52: 25011551 | Y52: 2501156 | Z52: 25011561 | AA52: 25011563 | AB52: 25011562 | AC52: 25011564 | AD52: 2501157 | AE52: 25011531
A53: 保田・馬下 | B53: 20183 | C53: 201831 | D53: 201832 | E53: 201833 | F53: 201834 | G53: 201835 | H53: 2018351 | I53: 201836 | J53: 2018361 | K53: 2018363 | L53: 2018362 | M53: 2018364 | N53: 201837 | O53: 2018331 | Q53: 糸魚川綱島 | R53: 50138 | S53: 501381 | T53: 501382 | U53: 501383 | V53: 501384 | W53: 501385 | X53: 5013851 | Y53: 501386 | Z53: 5013861 | AA53: 5013863 | AB53: 5013862 | AC53: 5013864 | AD53: 501387 | AE53: 5013831
A54: 白根 | B54: 20120 | C54: 201201 | D54: 201202 | E54: 201203 | F54: 201204 | G54: 201205 | H54: 2012051 | I54: 201206 | J54: 2012061 | K54: 2012063 | L54: 2012062 | M54: 2012064 | N54: 201207 | O54: 2012031 | Q54: 大和川吉岡 | R54: 50140 | S54: 501401 | T54: 501402 | U54: 501403 | V54: 501404 | W54: 501405 | X54: 5014051 | Y54: 501406 | Z54: 5014061 | AA54: 5014063 | AB54: 5014062 | AC54: 5014064 | AD54: 501407 | AE54: 5014031
A55: 月潟 | B55: 20122 | C55: 201221 | D55: 201222 | E55: 201223 | F55: 201224 | G55: 201225 | H55: 2012251 | I55: 201226 | J55: 2012261 | K55: 2012263 | L55: 2012262 | M55: 2012264 | N55: 201227 | O55: 2012231 | Q55: 浦本田代 | R55: 50143 | S55: 501431 | T55: 501432 | U55: 501433 | V55: 501434 | W55: 501435 | X55: 5014351 | Y55: 501436 | Z55: 5014361 | AA55: 5014363 | AB55: 5014362 | AC55: 5014364 | AD55: 501437 | AE55: 5014331
A56: 新飯田 | B56: 20123 | C56: 201231 | D56: 201232 | E56: 201233 | F56: 201234 | G56: 201235 | H56: 2012351 | I56: 201236 | J56: 2012361 | K56: 2012363 | L56: 2012362 | M56: 2012364 | N56: 201237 | O56: 2012331
A57: 三条北 | B57: 20124 | C57: 201241 | D57: 201242 | E57: 201243 | F57: 201244 | G57: 201245 | H57: 2012451 | I57: 201246 | J57: 2012461 | K57: 2012463 | L57: 2012462 | M57: 2012464 | N57: 201247 | O57: 2012431
A58: 三条南 | B58: 20125 | C58: 201251 | D58: 201252 | E58: 201253 | F58: 201254 | G58: 201255 | H58: 2012551 | I58: 201256 | J58: 2012561 | K58: 2012563 | L58: 2012562 | M58: 2012564 | N58: 201257 | O58: 2012531
A59: 三条西 | B59: 20126 | C59: 201261 | D59: 201262 | E59: 201263 | F59: 201264 | G59: 201265 | H59: 2012651 | I59: 201266 | J59: 2012661 | K59: 2012663 | L59: 2012662 | M59: 2012664 | N59: 201267 | O59: 2012631
A60: 燕 | B60: 20130 | C60: 201301 | D60: 201302 | E60: 201303 | F60: 201304 | G60: 201305 | H60: 2013051 | I60: 201306 | J60: 2013061 | K60: 2013063 | L60: 2013062 | M60: 2013064 | N60: 201307 | O60: 2013031
A61: 燕南 | B61: 20131 | C61: 201311 | D61: 201312 | E61: 201313 | F61: 201314 | G61: 201315 | H61: 2013151 | I61: 201316 | J61: 2013161 | K61: 2013163 | L61: 2013162 | M61: 2013164 | N61: 201317 | O61: 2013131
A62: 加茂 | B62: 20135 | C62: 201351 | D62: 201352 | E62: 201353 | F62: 201354 | G62: 201355 | H62: 2013551 | I62: 201356 | J62: 2013561 | K62: 2013563 | L62: 2013562 | M62: 2013564 | N62: 201357 | O62: 2013531
A63: 下田 | B63: 20139 | C63: 201391 | D63: 201392 | E63: 201393 | F63: 201394 | G63: 201395 | H63: 2013951 | I63: 201396 | J63: 2013961 | K63: 2013963 | L63: 2013962 | M63: 2013964 | N63: 201397 | O63: 2013931
A64: 栄山嵜 | B64: 20140 | C64: 201401 | D64: 201402 | E64: 201403 | F64: 201404 | G64: 201405 | H64: 2014051 | I64: 201406 | J64: 2014061 | K64: 2014063 | L64: 2014062 | M64: 2014064 | N64: 201407 | O64: 2014031
A65: 栄吉田 | B65: 20141 | C65: 201411 | D65: 201412 | E65: 201413 | F65: 201414 | G65: 201415 | H65: 2014151 | I65: 201416 | J65: 2014161 | K65: 2014163 | L65: 2014162 | M65: 2014164 | N65: 201417 | O65: 2014131
A66: 帯織 | B66: 20143 | C66: 201431 | D66: 201432 | E66: 201433 | F66: 201434 | G66: 201435 | H66: 2014351 | I66: 201436 | J66: 2014361 | K66: 2014363 | L66: 2014362 | M66: 2014364 | N66: 201437 | O66: 2014331
A67: 豊栄 | B67: 20179 | C67: 201791 | D67: 201792 | E67: 201793 | F67: 201794 | G67: 201795 | H67: 2017951 | I67: 201796 | J67: 2017961 | K67: 2017963 | L67: 2017962 | M67: 2017964 | N67: 201797 | O67: 2017931
A68: 木崎 | B68: 20146 | C68: 201461 | D68: 201462 | E68: 201463 | F68: 201464 | G68: 201465 | H68: 2014651 | I68: 201466 | J68: 2014661 | K68: 2014663 | L68: 2014662 | M68: 2014664 | N68: 201467 | O68: 2014631
A69: 新発田西 | B69: 20148 | C69: 201481 | D69: 201482 | E69: 201483 | F69: 201484 | G69: 201485 | H69: 2014851 | I69: 201486 | J69: 2014861 | K69: 2014863 | L69: 2014862 | M69: 2014864 | N69: 201487 | O69: 2014831
A70: 新発田東 | B70: 20149 | C70: 201491 | D70: 201492 | E70: 201493 | F70: 201494 | G70: 201495 | H70: 2014951 | I70: 201496 | J70: 2014961 | K70: 2014963 | L70: 2014962 | M70: 2014964 | N70: 201497 | O70: 2014931
A71: 月岡 | B71: 20153 | C71: 201531 | D71: 201532 | E71: 201533 | F71: 201534 | G71: 201535 | H71: 2015351 | I71: 201536 | J71: 2015361 | K71: 2015363 | L71: 2015362 | M71: 2015364 | N71: 201537 | O71: 2015331
A72: 中条東 | B72: 20154 | C72: 201541 | D72: 201542 | E72: 201543 | F72: 201544 | G72: 201545 | H72: 2015451 | I72: 201546 | J72: 2015461 | K72: 2015463 | L72: 2015462 | M72: 2015464 | N72: 201547 | O72: 2015431
A73: 西中条 | B73: 20155 | C73: 201551 | D73: 201552 | E73: 201553 | F73: 201554 | G73: 201555 | H73: 2015551 | I73: 201556 | J73: 2015561 | K73: 2015563 | L73: 2015562 | M73: 2015564 | N73: 201557 | O73: 2015531
A74: 黒川 | B74: 20157 | C74: 201571 | D74: 201572 | E74: 201573 | F74: 201574 | G74: 201575 | H74: 2015751 | I74: 201576 | J74: 2015761 | K74: 2015763 | L74: 2015762 | M74: 2015764 | N74: 201577 | O74: 2015731
A75: 水原 | B75: 20158 | C75: 201581 | D75: 201582 | E75: 201583 | F75: 201584 | G75: 201585 | H75: 2015851 | I75: 201586 | J75: 2015861 | K75: 2015863 | L75: 2015862 | M75: 2015864 | N75: 201587 | O75: 2015831
A76: 保田 | B76: 20161 | C76: 201611 | D76: 201612 | E76: 201613 | F76: 201614 | G76: 201615 | H76: 2016151 | I76: 201616 | J76: 2016161 | K76: 2016163 | L76: 2016162 | M76: 2016164 | N76: 201617 | O76: 2016131
A77: 村上 | B77: 20162 | C77: 201621 | D77: 201622 | E77: 201623 | F77: 201624 | G77: 201625 | H77: 2016251 | I77: 201626 | J77: 2016261 | K77: 2016263 | L77: 2016262 | M77: 2016264 | N77: 201627 | O77: 2016231
A78: 岩船 | B78: 20163 | C78: 201631 | D78: 201632 | E78: 201633 | F78: 201634 | G78: 201635 | H78: 2016351 | I78: 201636 | J78: 2016361 | K78: 2016363 | L78: 2016362 | M78: 2016364 | N78: 201637 | O78: 2016331
A79: 越後早川 | B79: 20164 | C79: 201641 | D79: 201642 | E79: 201643 | F79: 201644 | G79: 201645 | H79: 2016451 | I79: 201646 | J79: 2016461 | K79: 2016463 | L79: 2016462 | M79: 2016464 | N79: 201647 | O79: 2016431
A80: 坂町 | B80: 20165 | C80: 201651 | D80: 201652 | E80: 201653 | F80: 201654 | G80: 201655 | H80: 2016551 | I80: 201656 | J80: 2016561 | K80: 2016563 | L80: 2016562 | M80: 2016564 | N80: 201657 | O80: 2016531
A81: 関川 | B81: 20167 | C81: 201671 | D81: 201672 | E81: 201673 | F81: 201674 | G81: 201675 | H81: 2016751 | I81: 201676 | J81: 2016761 | K81: 2016763 | L81: 2016762 | M81: 2016764 | N81: 201677 | O81: 2016731
A82: 府屋 | B82: 20170 | C82: 201701 | D82: 201702 | E82: 201703 | F82: 201704 | G82: 201705 | H82: 2017051 | I82: 201706 | J82: 2017061 | K82: 2017063 | L82: 2017062 | M82: 2017064 | N82: 201707 | O82: 2017031
A83: 黒川俣 | B83: 20172 | C83: 201721 | D83: 201722 | E83: 201723 | F83: 201724 | G83: 201725 | H83: 2017251 | I83: 201726 | J83: 2017261 | K83: 2017263 | L83: 2017262 | M83: 2017264 | N83: 201727 | O83: 2017231
A84: 津川 | B84: 20173 | C84: 201731 | D84: 201732 | E84: 201733 | F84: 201734 | G84: 201735 | H84: 2017351 | I84: 201736 | J84: 2017361 | K84: 2017363 | L84: 2017362 | M84: 2017364 | N84: 201737 | O84: 2017331
A85: 豊実 | B85: 20174 | C85: 201741 | D85: 201742 | E85: 201743 | F85: 201744 | G85: 201745 | H85: 2017451 | I85: 201746 | J85: 2017461 | K85: 2017463 | L85: 2017462 | M85: 2017464 | N85: 201747 | O85: 2017431
A86: 日出谷 | B86: 20175 | C86: 201751 | D86: 201752 | E86: 201753 | F86: 201754 | G86: 201755 | H86: 2017551 | I86: 201756 | J86: 2017561 | K86: 2017563 | L86: 2017562 | M86: 2017564 | N86: 201757 | O86: 2017531
A87: 鹿瀬 | B87: 20176 | C87: 201761 | D87: 201762 | E87: 201763 | F87: 201764 | G87: 201765 | H87: 2017651 | I87: 201766 | J87: 2017661 | K87: 2017663 | L87: 2017662 | M87: 2017664 | N87: 201767 | O87: 2017631
A88: 白崎 | B88: 20177 | C88: 201771 | D88: 201772 | E88: 201773 | F88: 201774 | G88: 201775 | H88: 2017751 | I88: 201776 | J88: 2017761 | K88: 2017763 | L88: 2017762 | M88: 2017764 | N88: 201777 | O88: 2017731
A89: 白崎・五十島 | B89: 20178 | C89: 201781 | D89: 201782 | E89: 201783 | F89: 201784 | G89: 201785 | H89: 2017851 | I89: 201786 | J89: 2017861 | K89: 2017863 | L89: 2017862 | M89: 2017864 | N89: 201787 | O89: 2017831
A90: 保田・五十島 | B90: 20182 | C90: 201821 | D90: 201822 | E90: 201823 | F90: 201824 | G90: 201825 | H90: 2018251 | I90: 201826 | J90: 2018261 | K90: 2018263 | L90: 2018262 | M90: 2018264 | N90: 201827 | O90: 2018231
A91: 両津 | B91: 30101 | C91: 301011 | D91: 301012 | E91: 301013 | F91: 301014 | G91: 301015 | H91: 3010151 | I91: 301016 | J91: 3010161 | K91: 3010163 | L91: 3010162 | M91: 3010164 | N91: 301017 | O91: 3010131
A92: 吉井 | B92: 30105 | C92: 301051 | D92: 301052 | E92: 301053 | F92: 301054 | G92: 301055 | H92: 3010551 | I92: 301056 | J92: 3010561 | K92: 3010563 | L92: 3010562 | M92: 3010564 | N92: 301057 | O92: 3010531
A93: 真野 | B93: 30106 | C93: 301061 | D93: 301062 | E93: 301063 | F93: 301064 | G93: 301065 | H93: 3010651 | I93: 301066 | J93: 3010661 | K93: 3010663 | L93: 3010662 | M93: 3010664 | N93: 301067 | O93: 3010631
A94: 新穂 | B94: 30108 | C94: 301081 | D94: 301082 | E94: 301083 | F94: 301084 | G94: 301085 | H94: 3010851 | I94: 301086 | J94: 3010861 | K94: 3010863 | L94: 3010862 | M94: 3010864 | N94: 301087 | O94: 3010831
A95: 畑野 | B95: 30111 | C95: 301111 | D95: 301112 | E95: 301113 | F95: 301114 | G95: 301115 | H95: 3011151 | I95: 301116 | J95: 3011161 | K95: 3011163 | L95: 3011162 | M95: 3011164 | N95: 301117 | O95: 3011131
A96: 佐和田 | B96: 30114 | C96: 301141 | D96: 301142 | E96: 301143 | F96: 301144 | G96: 301145 | H96: 3011451 | I96: 301146 | J96: 3011461 | K96: 3011463 | L96: 3011462 | M96: 3011464 | N96: 301147 | O96: 3011431
A97: 相川 | B97: 30110 | C97: 301101 | D97: 301102 | E97: 301103 | F97: 301104 | G97: 301105 | H97: 3011051 | I97: 301106 | J97: 3011061 | K97: 3011063 | L97: 3011062 | M97: 3011064 | N97: 301107 | O97: 3011031
A98: 金井 | B98: 30121 | C98: 301211 | D98: 301212 | E98: 301213 | F98: 301214 | G98: 301215 | H98: 3012151 | I98: 301216 | J98: 3012161 | K98: 3012163 | L98: 3012162 | M98: 3012164 | N98: 301217 | O98: 3012131
A99: 羽茂 | B99: 30122 | C99: 301221 | D99: 301222 | E99: 301223 | F99: 301224 | G99: 301225 | H99: 3012251 | I99: 301226 | J99: 3012261 | K99: 3012263 | L99: 3012262 | M99: 3012264 | N99: 301227 | O99: 3012231
A100: 小木 | B100: 30124 | C100: 301241 | D100: 301242 | E100: 301243 | F100: 301244 | G100: 301245 | H100: 3012451 | I100: 301246 | J100: 3012461 | K100: 3012463 | L100: 3012462 | M100: 3012464 | N100: 301247 | O100: 3012431
A101: 赤泊 | B101: 30127 | C101: 301271 | D101: 301272 | E101: 301273 | F101: 301274 | G101: 301275 | H101: 3012751 | I101: 301276 | J101: 3012761 | K101: 3012763 | L101: 3012762 | M101: 3012764 | N101: 301277 | O101: 3012731
A102: 多田 | B102: 30130 | C102: 301301 | D102: 301302 | E102: 301303 | F102: 301304 | G102: 301305 | H102: 3013051 | I102: 301306 | J102: 3013061 | K102: 3013063 | L102: 3013062 | M102: 3013064 | N102: 301307 | O102: 3013031
A103: 長岡大手 | B103: 40101 | C103: 401011 | D103: 401012 | E103: 401013 | F103: 401014 | G103: 401015 | H103: 4010151 | I103: 401016 | J103: 4010161 | K103: 4010163 | L103: 4010162 | M103: 4010164 | N103: 401017 | O103: 4010131
A104: 長岡中央 | B104: 40102 | C104: 401021 | D104: 401022 | E104: 401023 | F104: 401024 | G104: 401025 | H104: 4010251 | I104: 401026 | J104: 4010261 | K104: 4010263 | L104: 4010262 | M104: 4010264 | N104: 401027 | O104: 4010231
A105: 長岡南 | B105: 40300 | C105: 403001 | D105: 403002 | E105: 403003 | F105: 403004 | G105: 403005 | H105: 4030051 | I105: 403006 | J105: 4030061 | K105: 4030063 | L105: 4030062 | M105: 4030064 | N105: 403007 | O105: 4030031
A106: 長岡東 | B106: 40104 | C106: 401041 | D106: 401042 | E106: 401043 | F106: 401044 | G106: 401045 | H106: 4010451 | I106: 401046 | J106: 4010461 | K106: 4010463 | L106: 4010462 | M106: 4010464 | N106: 401047 | O106: 4010431
A107: 長岡新保 | B107: 40105 | C107: 401051 | D107: 401052 | E107: 401053 | F107: 401054 | G107: 401055 | H107: 4010551 | I107: 401056 | J107: 4010561 | K107: 4010563 | L107: 4010562 | M107: 4010564 | N107: 401057 | O107: 4010531
A108: 長岡悠久 | B108: 40106 | C108: 401061 | D108: 401062 | E108: 401063 | F108: 401064 | G108: 401065 | H108: 4010651 | I108: 401066 | J108: 4010661 | K108: 4010663 | L108: 4010662 | M108: 4010664 | N108: 401067 | O108: 4010631
A109: 西長岡 | B109: 40111 | C109: 401111 | D109: 401112 | E109: 401113 | F109: 401114 | G109: 401115 | H109: 4011151 | I109: 401116 | J109: 4011161 | K109: 4011163 | L109: 4011162 | M109: 4011164 | N109: 401117 | O109: 4011131
A110: 関原 | B110: 40113 | C110: 401131 | D110: 401132 | E110: 401133 | F110: 401134 | G110: 401135 | H110: 4011351 | I110: 401136 | J110: 4011361 | K110: 4011363 | L110: 4011362 | M110: 4011364 | N110: 401137 | O110: 4011331
A111: 王寺川 | B111: 40114 | C111: 401141 | D111: 401142 | E111: 401143 | F111: 401144 | G111: 401145 | H111: 4011451 | I111: 401146 | J111: 4011461 | K111: 4011463 | L111: 4011462 | M111: 4011464 | N111: 401147 | O111: 4011431
A112: 長岡江陽 | B112: 40115 | C112: 401151 | D112: 401152 | E112: 401153 | F112: 401154 | G112: 401155 | H112: 4011551 | I112: 401156 | J112: 4011561 | K112: 4011563 | L112: 4011562 | M112: 4011564 | N112: 401157 | O112: 4011531
A113: 黒条 | B113: 40116 | C113: 401161 | D113: 401162 | E113: 401163 | F113: 401164 | G113: 401165 | H113: 4011651 | I113: 401166 | J113: 4011661 | K113: 4011663 | L113: 4011662 | M113: 4011664 | N113: 401167 | O113: 4011631
A114: 新組 | B114: 40117 | C114: 401171 | D114: 401172 | E114: 401173 | F114: 401174 | G114: 401175 | H114: 4011751 | I114: 401176 | J114: 4011761 | K114: 4011763 | L114: 4011762 | M114: 4011764 | N114: 401177 | O114: 4011731
A115: 長岡宮内 | B115: 40121 | C115: 401211 | D115: 401212 | E115: 401213 | F115: 401214 | G115: 401215 | H115: 4012151 | I115: 401216 | J115: 4012161 | K115: 4012163 | L115: 4012162 | M115: 4012164 | N115: 401217 | O115: 4012131
A116: 濁沢 | B116: 40124 | C116: 401241 | D116: 401242 | E116: 401243 | F116: 401244 | G116: 401245 | H116: 4012451 | I116: 401246 | J116: 4012461 | K116: 4012463 | L116: 4012462 | M116: 4012464 | N116: 401247 | O116: 4012431
A117: 岡南 | B117: 40125 | C117: 401251 | D117: 401252 | E117: 401253 | F117: 401254 | G117: 401255 | H117: 4012551 | I117: 401256 | J117: 4012561 | K117: 4012563 | L117: 4012562 | M117: 4012564 | N117: 401257 | O117: 4012531
A118: 六日市 | B118: 40126 | C118: 401261 | D118: 401262 | E118: 401263 | F118: 401264 | G118: 401265 | H118: 4012651 | I118: 401266 | J118: 4012661 | K118: 4012663 | L118: 4012662 | M118: 4012664 | N118: 401267 | O118: 4012631
A119: 栃尾 | B119: 40127 | C119: 401271 | D119: 401272 | E119: 401273 | F119: 401274 | G119: 401275 | H119: 4012751 | I119: 401276 | J119: 4012761 | K119: 4012763 | L119: 4012762 | M119: 4012764 | N119: 401277 | O119: 4012731
A120: 見附南 | B120: 40130 | C120: 401301 | D120: 401302 | E120: 401303 | F120: 401304 | G120: 401305 | H120: 4013051 | I120: 401306 | J120: 4013061 | K120: 4013063 | L120: 4013062 | M120: 4013064 | N120: 401307 | O120: 4013031
A121: 見附北 | B121: 40131 | C121: 401311 | D121: 401312 | E121: 401313 | F121: 401314 | G121: 401315 | H121: 4013151 | I121: 401316 | J121: 4013161 | K121: 4013163 | L121: 4013162 | M121: 4013164 | N121: 401317 | O121: 4013131
A122: 今町 | B122: 40135 | C122: 401351 | D122: 401352 | E122: 401353 | F122: 401354 | G122: 401355 | H122: 4013551 | I122: 401356 | J122: 4013561 | K122: 4013563 | L122: 4013562 | M122: 4013564 | N122: 401357 | O122: 4013531
A123: 越路 | B123: 40139 | C123: 401391 | D123: 401392 | E123: 401393 | F123: 401394 | G123: 401395 | H123: 4013951 | I123: 401396 | J123: 4013961 | K123: 4013963 | L123: 4013962 | M123: 4013964 | N123: 401397 | O123: 4013931
A124: 塚山 | B124: 40141 | C124: 401411 | D124: 401412 | E124: 401413 | F124: 401414 | G124: 401415 | H124: 4014151 | I124: 401416 | J124: 4014161 | K124: 4014163 | L124: 4014162 | M124: 4014164 | N124: 401417 | O124: 4014131
A125: 与板 | B125: 40144 | C125: 401441 | D125: 401442 | E125: 401443 | F125: 401444 | G125: 401445 | H125: 4014451 | I125: 401446 | J125: 4014461 | K125: 4014463 | L125: 4014462 | M125: 4014464 | N125: 401447 | O125: 4014431
A126: 大河津 | B126: 40145 | C126: 401451 | D126: 401452 | E126: 401453 | F126: 401454 | G126: 401455 | H126: 4014551 | I126: 401456 | J126: 4014561 | K126: 4014563 | L126: 4014562 | M126: 4014564 | N126: 401457 | O126: 4014531
A127: 寺泊 | B127: 40146 | C127: 401461 | D127: 401462 | E127: 401463 | F127: 401464 | G127: 401465 | H127: 4014651 | I127: 401466 | J127: 4014661 | K127: 4014663 | L127: 4014662 | M127: 4014664 | N127: 401467 | O127: 4014631
A128: 和島 | B128: 40147 | C128: 401471 | D128: 401472 | E128: 401473 | F128: 401474 | G128: 401475 | H128: 4014751 | I128: 401476 | J128: 4014761 | K128: 4014763 | L128: 4014762 | M128: 4014764 | N128: 401477 | O128: 4014731
A129: 西越 | B129: 40148 | C129: 401481 | D129: 401482 | E129: 401483 | F129: 401484 | G129: 401485 | H129: 4014851 | I129: 401486 | J129: 4014861 | K129: 4014863 | L129: 4014862 | M129: 4014864 | N129: 401487 | O129: 4014831
A130: 小千谷中央 | B130: 40151 | C130: 401511 | D130: 401512 | E130: 401513 | F130: 401514 | G130: 401515 | H130: 4015151 | I130: 401516 | J130: 4015161 | K130: 4015163 | L130: 4015162 | M130: 4015164 | N130: 401517 | O130: 4015131
A131: 小千谷東 | B131: 40152 | C131: 401521 | D131: 401522 | E131: 401523 | F131: 401524 | G131: 401525 | H131: 4015251 | I131: 401526 | J131: 4015261 | K131: 4015263 | L131: 4015262 | M131: 4015264 | N131: 401527 | O131: 4015231
A132: 片貝 | B132: 40154 | C132: 401541 | D132: 401542 | E132: 401543 | F132: 401544 | G132: 401545 | H132: 4015451 | I132: 401546 | J132: 4015461 | K132: 4015463 | L132: 4015462 | M132: 4015464 | N132: 401547 | O132: 4015431
A133: 岩沢 | B133: 40155 | C133: 401551 | D133: 401552 | E133: 401553 | F133: 401554 | G133: 401555 | H133: 4015551 | I133: 401556 | J133: 4015561 | K133: 4015563 | L133: 4015562 | M133: 4015564 | N133: 401557 | O133: 4015531
A134: 十日町西部 | B134: 40156 | C134: 401561 | D134: 401562 | E134: 401563 | F134: 401564 | G134: 401565 | H134: 4015651 | I134: 401566 | J134: 4015661 | K134: 4015663 | L134: 4015662 | M134: 4015664 | N134: 401567 | O134: 4015631
A135: 十日町東部 | B135: 40157 | C135: 401571 | D135: 401572 | E135: 401573 | F135: 401574 | G135: 401575 | H135: 4015751 | I135: 401576 | J135: 4015761 | K135: 4015763 | L135: 4015762 | M135: 4015764 | N135: 401577 | O135: 4015731
A136: 下条 | B136: 40162 | C136: 401621 | D136: 401622 | E136: 401623 | F136: 401624 | G136: 401625 | H136: 4016251 | I136: 401626 | J136: 4016261 | K136: 4016263 | L136: 4016262 | M136: 4016264 | N136: 401627 | O136: 4016231
A137: 魚沼中条 | B137: 40163 | C137: 401631 | D137: 401632 | E137: 401633 | F137: 401634 | G137: 401635 | H137: 4016351 | I137: 401636 | J137: 4016361 | K137: 4016363 | L137: 4016362 | M137: 4016364 | N137: 401637 | O137: 4016331
A138: 水沢 | B138: 40164 | C138: 401641 | D138: 401642 | E138: 401643 | F138: 401644 | G138: 401645 | H138: 4016451 | I138: 401646 | J138: 4016461 | K138: 4016463 | L138: 4016462 | M138: 4016464 | N138: 401647 | O138: 4016431
A139: 伊達 | B139: 40165 | C139: 401651 | D139: 401652 | E139: 401653 | F139: 401654 | G139: 401655 | H139: 4016551 | I139: 401656 | J139: 4016561 | K139: 4016563 | L139: 4016562 | M139: 4016564 | N139: 401657 | O139: 4016531
A140: 川口 | B140: 40166 | C140: 401661 | D140: 401662 | E140: 401663 | F140: 401664 | G140: 401665 | H140: 4016651 | I140: 401666 | J140: 4016661 | K140: 4016663 | L140: 4016662 | M140: 4016664 | N140: 401667 | O140: 4016631
A141: 堀之内 | B141: 40167 | C141: 401671 | D141: 401672 | E141: 401673 | F141: 401674 | G141: 401675 | H141: 4016751 | I141: 401676 | J141: 4016761 | K141: 4016763 | L141: 4016762 | M141: 4016764 | N141: 401677 | O141: 4016731
A142: 小出 | B142: 40168 | C142: 401681 | D142: 401682 | E142: 401683 | F142: 401684 | G142: 401685 | H142: 4016851 | I142: 401686 | J142: 4016861 | K142: 4016863 | L142: 4016862 | M142: 4016864 | N142: 401687 | O142: 4016831
A143: 魚沼北 | B143: 40172 | C143: 401721 | D143: 401722 | E143: 401723 | F143: 401724 | G143: 401725 | H143: 4017251 | I143: 401726 | J143: 4017261 | K143: 4017263 | L143: 4017262 | M143: 4017264 | N143: 401727 | O143: 4017231
A144: 浦佐 | B144: 40176 | C144: 401761 | D144: 401762 | E144: 401763 | F144: 401764 | G144: 401765 | H144: 4017651 | I144: 401766 | J144: 4017661 | K144: 4017663 | L144: 4017662 | M144: 4017664 | N144: 401767 | O144: 4017631
A145: 大崎 | B145: 40178 | C145: 401781 | D145: 401782 | E145: 401783 | F145: 401784 | G145: 401785 | H145: 4017851 | I145: 401786 | J145: 4017861 | K145: 4017863 | L145: 4017862 | M145: 4017864 | N145: 401787 | O145: 4017831
A146: 五日町 | B146: 40179 | C146: 401791 | D146: 401792 | E146: 401793 | F146: 401794 | G146: 401795 | H146: 4017951 | I146: 401796 | J146: 4017961 | K146: 4017963 | L146: 4017962 | M146: 4017964 | N146: 401797 | O146: 4017931
A147: 城内 | B147: 40180 | C147: 401801 | D147: 401802 | E147: 401803 | F147: 401804 | G147: 401805 | H147: 4018051 | I147: 401806 | J147: 4018061 | K147: 4018063 | L147: 4018062 | M147: 4018064 | N147: 401807 | O147: 4018031
A148: 六日町 | B148: 40181 | C148: 401811 | D148: 401812 | E148: 401813 | F148: 401814 | G148: 401815 | H148: 4018151 | I148: 401816 | J148: 4018161 | K148: 4018163 | L148: 4018162 | M148: 4018164 | N148: 401817 | O148: 4018131
A149: 塩沢 | B149: 40184 | C149: 401841 | D149: 401842 | E149: 401843 | F149: 401844 | G149: 401845 | H149: 4018451 | I149: 401846 | J149: 4018461 | K149: 4018463 | L149: 4018462 | M149: 4018464 | N149: 401847 | O149: 4018431
A150: 上田 | B150: 40186 | C150: 401861 | D150: 401862 | E150: 401863 | F150: 401864 | G150: 401865 | H150: 4018651 | I150: 401866 | J150: 4018661 | K150: 4018663 | L150: 4018662 | M150: 4018664 | N150: 401867 | O150: 4018631
A151: 石打 | B151: 40187 | C151: 401871 | D151: 401872 | E151: 401873 | F151: 401874 | G151: 401875 | H151: 4018751 | I151: 401876 | J151: 4018761 | K151: 4018763 | L151: 4018762 | M151: 4018764 | N151: 401877 | O151: 4018731
A152: 湯沢 | B152: 40189 | C152: 401891 | D152: 401892 | E152: 401893 | F152: 401894 | G152: 401895 | H152: 4018951 | I152: 401896 | J152: 4018961 | K152: 4018963 | L152: 4018962 | M152: 4018964 | N152: 401897 | O152: 4018931
A153: 十日町川西 | B153: 40192 | C153: 401921 | D153: 401922 | E153: 401923 | F153: 401924 | G153: 401925 | H153: 4019251 | I153: 401926 | J153: 4019261 | K153: 4019263 | L153: 4019262 | M153: 4019264 | N153: 401927 | O153: 4019231
A154: 仙田 | B154: 40193 | C154: 401931 | D154: 401932 | E154: 401933 | F154: 401934 | G154: 401935 | H154: 4019351 | I154: 401936 | J154: 4019361 | K154: 4019363 | L154: 4019362 | M154: 4019364 | N154: 401937 | O154: 4019331
A155: 田沢 | B155: 40194 | C155: 401941 | D155: 401942 | E155: 401943 | F155: 401944 | G155: 401945 | H155: 4019451 | I155: 401946 | J155: 4019461 | K155: 4019463 | L155: 4019462 | M155: 4019464 | N155: 401947 | O155: 4019431
A156: 津南 | B156: 340197 | C156: 3401971 | D156: 3401972 | E156: 3401973 | F156: 3401974 | G156: 3401975 | H156: 3401978 | I156: 3401979
A157: 上郷 | B157: 40199 | C157: 401991 | D157: 401992 | E157: 401993 | F157: 401994 | G157: 401995 | H157: 4019951 | I157: 401996 | J157: 4019961 | K157: 4019963 | L157: 4019962 | M157: 4019964 | N157: 401997 | O157: 4019931
A158: 森宮野原 | B158: 40200 | C158: 402001 | D158: 402002 | E158: 402003 | F158: 402004 | G158: 402005 | H158: 4020051 | I158: 402006 | J158: 4020061 | K158: 4020063 | L158: 4020062 | M158: 4020064 | N158: 402007 | O158: 4020031
A159: 柏崎中央 | B159: 40229 | C159: 402291 | D159: 402292 | E159: 402293 | F159: 402294 | G159: 402295 | H159: 4022951 | I159: 402296 | J159: 4022961 | K159: 4022963 | L159: 4022962 | M159: 4022964 | N159: 402297 | O159: 4022931
A160: 柏崎 | B160: 40202 | C160: 402021 | D160: 402022 | E160: 402023 | F160: 402024 | G160: 402025 | H160: 4020251 | I160: 402026 | J160: 4020261 | K160: 4020263 | L160: 4020262 | M160: 4020264 | N160: 402027 | O160: 4020231
A161: 柏崎 | B161: 40202 | C161: 402021 | D161: 402022 | E161: 402023 | F161: 402024 | G161: 402025 | H161: 4020251 | I161: 402026 | J161: 4020261 | K161: 4020263 | L161: 4020262 | M161: 4020264 | N161: 402027 | O161: 4020231
A162: 柏崎南 | B162: 40203 | C162: 402031 | D162: 402032 | E162: 402033 | F162: 402034 | G162: 402035 | H162: 4020351 | I162: 402036 | J162: 4020361 | K162: 4020363 | L162: 4020362 | M162: 4020364 | N162: 402037 | O162: 4020331
A163: 柏崎東 | B163: 40207 | C163: 402071 | D163: 402072 | E163: 402073 | F163: 402074 | G163: 402075 | H163: 4020751 | I163: 402076 | J163: 4020761 | K163: 4020763 | L163: 4020762 | M163: 4020764 | N163: 402077 | O163: 4020731
A164: 安田 | B164: 40211 | C164: 402111 | D164: 402112 | E164: 402113 | F164: 402114 | G164: 402115 | H164: 4021151 | I164: 402116 | J164: 4021161 | K164: 4021163 | L164: 4021162 | M164: 4021164 | N164: 402117 | O164: 4021131
A165: 北条 | B165: 40212 | C165: 402121 | D165: 402122 | E165: 402123 | F165: 402124 | G165: 402125 | H165: 4021251 | I165: 402126 | J165: 4021261 | K165: 4021263 | L165: 4021262 | M165: 4021264 | N165: 402127 | O165: 4021231
A166: 広田 | B166: 40213 | C166: 402131 | D166: 402132 | E166: 402133 | F166: 402134 | G166: 402135 | H166: 4021351 | I166: 402136 | J166: 4021361 | K166: 4021363 | L166: 4021362 | M166: 4021364 | N166: 402137 | O166: 4021331
A167: 米山 | B167: 40228 | C167: 402281 | D167: 402282 | E167: 402283 | F167: 402284 | G167: 402285 | H167: 4022851 | I167: 402286 | J167: 4022861 | K167: 4022863 | L167: 4022862 | M167: 4022864 | N167: 402287 | O167: 4022831
A168: 笠島 | B168: 40216 | C168: 402161 | D168: 402162 | E168: 402163 | F168: 402164 | G168: 402165 | H168: 4021651 | I168: 402166 | J168: 4021661 | K168: 4021663 | L168: 4021662 | M168: 4021664 | N168: 402167 | O168: 4021631
A169: 高柳 | B169: 40217 | C169: 402171 | D169: 402172 | E169: 402173 | F169: 402174 | G169: 402175 | H169: 4021751 | I169: 402176 | J169: 4021761 | K169: 4021763 | L169: 4021762 | M169: 4021764 | N169: 402177 | O169: 4021731
A170: 上小国 | B170: 40219 | C170: 402191 | D170: 402192 | E170: 402193 | F170: 402194 | G170: 402195 | H170: 4021951 | I170: 402196 | J170: 4021961 | K170: 4021963 | L170: 4021962 | M170: 4021964 | N170: 402197 | O170: 4021931
A171: 荒浜 | B171: 40220 | C171: 402201 | D171: 402202 | E171: 402203 | F171: 402204 | G171: 402205 | H171: 4022051 | I171: 402206 | J171: 4022061 | K171: 4022063 | L171: 4022062 | M171: 4022064 | N171: 402207 | O171: 4022031
A172: 西山 | B172: 40221 | C172: 402211 | D172: 402212 | E172: 402213 | F172: 402214 | G172: 402215 | H172: 4022151 | I172: 402216 | J172: 4022161 | K172: 4022163 | L172: 4022162 | M172: 4022164 | N172: 402217 | O172: 4022131
A173: 高田 | B173: 50101 | C173: 501011 | D173: 501012 | E173: 501013 | F173: 501014 | G173: 501015 | H173: 5010151 | I173: 501016 | J173: 5010161 | K173: 5010163 | L173: 5010162 | M173: 5010164 | N173: 501017 | O173: 5010131
A174: 高田南 | B174: 50102 | C174: 501021 | D174: 501022 | E174: 501023 | F174: 501024 | G174: 501025 | H174: 5010251 | I174: 501026 | J174: 5010261 | K174: 5010263 | L174: 5010262 | M174: 5010264 | N174: 501027 | O174: 5010231
A175: 木田 | B175: 50103 | C175: 501031 | D175: 501032 | E175: 501033 | F175: 501034 | G175: 501035 | H175: 5010351 | I175: 501036 | J175: 5010361 | K175: 5010363 | L175: 5010362 | M175: 5010364 | N175: 501037 | O175: 5010331
A176: 春日山 | B176: 50106 | C176: 501061 | D176: 501062 | E176: 501063 | F176: 501064 | G176: 501065 | H176: 5010651 | I176: 501066 | J176: 5010661 | K176: 5010663 | L176: 5010662 | M176: 5010664 | N176: 501067 | O176: 5010631
A177: 脇野田 | B177: 50108 | C177: 501081 | D177: 501082 | E177: 501083 | F177: 501084 | G177: 501085 | H177: 5010851 | I177: 501086 | J177: 5010861 | K177: 5010863 | L177: 5010862 | M177: 5010864 | N177: 501087 | O177: 5010831
A178: 上越東 | B178: 50109 | C178: 501091 | D178: 501092 | E178: 501093 | F178: 501094 | G178: 501095 | H178: 5010951 | I178: 501096 | J178: 5010961 | K178: 5010963 | L178: 5010962 | M178: 5010964 | N178: 501097 | O178: 5010931
A179: 上越東 | B179: 50109 | C179: 501091 | D179: 501092 | E179: 501093 | F179: 501094 | G179: 501095 | H179: 5010951 | I179: 501096 | J179: 5010961 | K179: 5010963 | L179: 5010962 | M179: 5010964 | N179: 501097 | O179: 5010931
A180: 上越三和 | B180: 50112 | C180: 501121 | D180: 501122 | E180: 501123 | F180: 501124 | G180: 501125 | H180: 5011251 | I180: 501126 | J180: 5011261 | K180: 5011263 | L180: 5011262 | M180: 5011264 | N180: 501127 | O180: 5011231
A181: 直江津 | B181: 50113 | C181: 501131 | D181: 501132 | E181: 501133 | F181: 501134 | G181: 501135 | H181: 5011351 | I181: 501136 | J181: 5011361 | K181: 5011363 | L181: 5011362 | M181: 5011364 | N181: 501137 | O181: 5011331
A182: 直江津東 | B182: 50114 | C182: 501141 | D182: 501142 | E182: 501143 | F182: 501144 | G182: 501145 | H182: 5011451 | I182: 501146 | J182: 5011461 | K182: 5011463 | L182: 5011462 | M182: 5011464 | N182: 501147 | O182: 5011431
A183: 黒井 | B183: 50117 | C183: 501171 | D183: 501172 | E183: 501173 | F183: 501174 | G183: 501175 | H183: 5011751 | I183: 501176 | J183: 5011761 | K183: 5011763 | L183: 5011762 | M183: 5011764 | N183: 501177 | O183: 5011731
A184: 名立谷浜 | B184: 50152 | C184: 501521 | D184: 501522 | E184: 501523 | F184: 501524 | G184: 501525 | H184: 5015251 | I184: 501526 | J184: 5015261 | K184: 5015263 | L184: 5015262 | M184: 5015264 | N184: 501527 | O184: 5015231
A185: 新井 | B185: 50119 | C185: 501191 | D185: 501192 | E185: 501193 | F185: 501194 | G185: 501195 | H185: 5011951 | I185: 501196 | J185: 5011961 | K185: 5011963 | L185: 5011962 | M185: 5011964 | N185: 501197 | O185: 5011931
A186: 新井学校町 | B186: 50120 | C186: 501201 | D186: 501202 | E186: 501203 | F186: 501204 | G186: 501205 | H186: 5012051 | I186: 501206 | J186: 5012061 | K186: 5012063 | L186: 5012062 | M186: 5012064 | N186: 501207 | O186: 5012031
A187: 新井南 | B187: 50121 | C187: 501211 | D187: 501212 | E187: 501213 | F187: 501214 | G187: 501215 | H187: 5012151 | I187: 501216 | J187: 5012161 | K187: 5012163 | L187: 5012162 | M187: 5012164 | N187: 501217 | O187: 5012131
A188: 関山 | B188: 50122 | C188: 501221 | D188: 501222 | E188: 501223 | F188: 501224 | G188: 501225 | H188: 5012251 | I188: 501226 | J188: 5012261 | K188: 5012263 | L188: 5012262 | M188: 5012264 | N188: 501227 | O188: 5012231
A189: 妙高 | B189: 50123 | C189: 501231 | D189: 501232 | E189: 501233 | F189: 501234 | G189: 501235 | H189: 5012351 | I189: 501236 | J189: 5012361 | K189: 5012363 | L189: 5012362 | M189: 5012364 | N189: 501237 | O189: 5012331
A190: 赤倉 | B190: 50124 | C190: 501241 | D190: 501242 | E190: 501243 | F190: 501244 | G190: 501245 | H190: 5012451 | I190: 501246 | J190: 5012461 | K190: 5012463 | L190: 5012462 | M190: 5012464 | N190: 501247 | O190: 5012431
A191: 柿崎 | B191: 50125 | C191: 501251 | D191: 501252 | E191: 501253 | F191: 501254 | G191: 501255 | H191: 5012551 | I191: 501256 | J191: 5012561 | K191: 5012563 | L191: 5012562 | M191: 5012564 | N191: 501257 | O191: 5012531
A192: 吉川 | B192: 50126 | C192: 501261 | D192: 501262 | E192: 501263 | F192: 501264 | G192: 501265 | H192: 5012651 | I192: 501266 | J192: 5012661 | K192: 5012663 | L192: 5012662 | M192: 5012664 | N192: 501267 | O192: 5012631
A193: 大潟 | B193: 50127 | C193: 501271 | D193: 501272 | E193: 501273 | F193: 501274 | G193: 501275 | H193: 5012751 | I193: 501276 | J193: 5012761 | K193: 5012763 | L193: 5012762 | M193: 5012764 | N193: 501277 | O193: 5012731
A194: 犀潟 | B194: 50128 | C194: 501281 | D194: 501282 | E194: 501283 | F194: 501284 | G194: 501285 | H194: 5012851 | I194: 501286 | J194: 5012861 | K194: 5012863 | L194: 5012862 | M194: 5012864 | N194: 501287 | O194: 5012831
A195: 百間町 | B195: 50129 | C195: 501291 | D195: 501292 | E195: 501293 | F195: 501294 | G195: 501295 | H195: 5012951 | I195: 501296 | J195: 5012961 | K195: 5012963 | L195: 5012962 | M195: 5012964 | N195: 501297 | O195: 5012931
A196: 明治 | B196: 50130 | C196: 501301 | D196: 501302 | E196: 501303 | F196: 501304 | G196: 501305 | H196: 5013051 | I196: 501306 | J196: 5013061 | K196: 5013063 | L196: 5013062 | M196: 5013064 | N196: 501307 | O196: 5013031
A197: 浦川原 | B197: 50131 | C197: 501311 | D197: 501312 | E197: 501313 | F197: 501314 | G197: 501315 | H197: 5013151 | I197: 501316 | J197: 5013161 | K197: 5013163 | L197: 5013162 | M197: 5013164 | N197: 501317 | O197: 5013131
A198: 上越安塚 | B198: 50133 | C198: 501331 | D198: 501332 | E198: 501333 | F198: 501334 | G198: 501335 | H198: 5013351 | I198: 501336 | J198: 5013361 | K198: 5013363 | L198: 5013362 | M198: 5013364 | N198: 501337 | O198: 5013331
A199: 大島 | B199: 50134 | C199: 501341 | D199: 501342 | E199: 501343 | F199: 501344 | G199: 501345 | H199: 5013451 | I199: 501346 | J199: 5013461 | K199: 5013463 | L199: 5013462 | M199: 5013464 | N199: 501347 | O199: 5013431
A200: 松代 | B200: 50135 | C200: 501351 | D200: 501352 | E200: 501353 | F200: 501354 | G200: 501355 | H200: 5013551 | I200: 501356 | J200: 5013561 | K200: 5013563 | L200: 5013562 | M200: 5013564 | N200: 501357 | O200: 5013531
... 8 more rows

Sheet 表紙
S1: ２０２３年１２月１日 現在
C7: 折込広告部数表 （新聞折込 / くるみる / Otona＋ / assh・n-assh）
K23: 【 納品先 】
K24: ＜下越地区＞ | L24: 流通本社 〒950-1125 新潟市西区流通3-1-1
N25: TEL 025-233-3500 FAX 025-233-3600
K26: ＜中越地区＞ | L26: 長岡折込センター 〒940-2117 長岡市石動南町10-2
E27: 【 お問合せ先 】 | N27: TEL 0258-47-4646 FAX 0258-47-4648
E28: 黒埼本社 | F28: 〒950-1179 新潟市西区善久772-2 | L28: 柏崎営業所 〒945-0026 柏崎市藤元町14-7
G29: TEL ０２５-３８３-８００８ | N29: TEL 0257-22-5212 FAX 0257-24-8590
G30: FAX ０２５-３８３-８００７ | K30: ＜上越地区＞ | L30: 高田営業所 〒943-0823 上越市高土町1-6-4
N31: TEL 025-522-2220 FAX 025-523-2950

Sheet ご案内

Sheet 新潟市
BI1: ='表紙 '!S1 -> ２０２３年１２月１日 現在
A2: 折込日 | M2: スポンサー名 | AD2: サイズ | AI2: チラシ内容・タイトル詳細 | AX2: 朝刊 小計 | BE2: Otona＋ 小計 | BL2: ページ枚数
A3: 2023/--/-- | AB3: 様 | AX3: =BY42+CG42 -> 0 | BE3: =AI42 -> 0 | BL3: =AX3+AX5+BE3+BE5 -> 0
A4: assh ポスティング日 | M4: ご請求先名 | AD4: ガタチラ 掲載 | AX4: くるみる 小計 | BE4: assh 小計 | BL4: 総枚数 | BU4: チラシコード
A5: 2023/--/-- | AB5: 様 | AX5: =CA42 -> 0 | BE5: =AC42 -> 0 | BL5: =BL3+下越1!BL3+下越２!BL3+中越1!BP3+中越２!BL3+上越1!BL3+上越２!BL3 -> 0 | BU5: =VLOOKUP(AD3,折込指示!$D$2:$E$23,2,FALSE) -> 
A7: 01 | B7: 新潟日報 | Z7: ポスティング（assh） | AF7: Otona+ | AL7: 備考 | AX7: 中央紙 | BI7: 備考 | BU7: 朝刊 | CA7: くるみる | CB7: assh | CC7: otona | CE7: 中央紙 朝刊 | CJ7: 日報 | CO7: 中央紙
B8: 販売店名 | E8: 取扱い紙 | H8: 朝刊＋くるみる | K8: 配布数 | N8: 朝刊扱数 | Q8: 配布数 | T8: 朝刊数 | W8: くるみる数 | Z8: 部数 | AC8: 配布数 | AF8: 部数 | AI8: 配布数 | AX8: 販売店名 | BA8: 取扱い紙 | BC8: 部数 | BF8: 配布数 | BU8: 販売店名 | BV8: E | BW8: 朝刊1 | BX8: 朝刊２ | BY8: 部 | BZ8: 指示 | CA8: 部 | CB8: 部 | CC8: 部 | CE8: 販売店名 | CF8: E | CG8: 部 | CH8: 指示 | CJ8: 朝刊 | CK8: くるみる | CL8: assh | CM8: Otona+ | CO8: 朝刊
A9: 新潟市 | B9: 万代 | E9: 新アマ日 | H9: =N9+W9 -> 3590 | N9: =IFERROR(VLOOKUP($CJ9,・!$H$3:$I$700,2,FALSE),"") -> 3190 | T9: =IF(K9="","",IF(K9<=W9,K9,K9-W9)) ->  | W9: =IFERROR(VLOOKUP($CK9,・!$H$3:$I$700,2,FALSE),"") -> 400 | Z9: =IFERROR(VLOOKUP($CL9,・!$H$3:$I$700,2,FALSE),"") -> 2500 | AF9: =IFERROR(VLOOKUP($CM9,・!$H$3:$I$700,2,FALSE),"") -> 550 | AX9: 本町 | BA9: ヨサ日 | BC9: =IFERROR(VLOOKUP($CO9,・!$H$3:$I$700,2,FALSE),"") -> 750 | BU9: 万代 | BV9: 10101 | BW9: =Q9 -> 0 | BX9: =T9 ->  | BY9: =SUM(BW9:BX9) -> 0 | BZ9: =AL9 -> 0 | CA9: =IF($K9>$W9,$W9,"") ->  | CB9: =AC9 -> 0 | CC9: =AI9 -> 0 | CE9: 本町 | CF9: 210167 | CG9: =BF9 -> 0 | CH9: =BI9 -> 0 | CJ9: 101011 | CK9: 101013 | CL9: 101015 | CM9: 101014 | CO9: 2101671
B10: 駅南 | E10: 新アマ日 | H10: 5030 | N10: =IFERROR(VLOOKUP($CJ10,・!$H$3:$I$700,2,FALSE),"") -> 4400 | T10: =IF(K10="","",IF(K10<=W10,K10,K10-W10)) ->  | W10: =IFERROR(VLOOKUP($CK10,・!$H$3:$I$700,2,FALSE),"") -> 630 | Z10: =IFERROR(VLOOKUP($CL10,・!$H$3:$I$700,2,FALSE),"") -> 7500 | AF10: =IFERROR(VLOOKUP($CM10,・!$H$3:$I$700,2,FALSE),"") -> 660 | AX10: 中央 | BA10: ヨサ日 | BC10: =IFERROR(VLOOKUP($CO10,・!$H$3:$I$700,2,FALSE),"") -> 1450 | BU10: 駅南 | BV10: 10102 | BW10: 0 | BY10: =SUM(BW10:BX10) -> 0 | BZ10: =AL10 -> 0 | CA10: =IF($K10>$W10,$W10,"") ->  | CB10: 0 | CC10: 0 | CE10: 中央 | CF10: 210168 | CG10: 0 | CH10: 0 | CJ10: 101021 | CK10: 101023 | CL10: 101025 | CM10: 101024 | CO10: 2101681
B11: 木戸 | E11: 新アマ日 | H11: 5430 | N11: =IFERROR(VLOOKUP($CJ11,・!$H$3:$I$700,2,FALSE),"") -> 4680 | W11: =IFERROR(VLOOKUP($CK11,・!$H$3:$I$700,2,FALSE),"") -> 750 | Z11: =IFERROR(VLOOKUP($CL11,・!$H$3:$I$700,2,FALSE),"") -> 6150 | AF11: =IFERROR(VLOOKUP($CM11,・!$H$3:$I$700,2,FALSE),"") -> 650 | AX11: 小針 | BA11: ヨサ日 | BC11: =IFERROR(VLOOKUP($CO11,・!$H$3:$I$700,2,FALSE),"") -> 1050 | BU11: 木戸 | BV11: 10103 | BW11: 0 | BY11: =SUM(BW11:BX11) -> 0 | BZ11: =AL11 -> 0 | CB11: 0 | CC11: 0 | CE11: 小針 | CF11: 210169 | CG11: 0 | CH11: 0 | CJ11: 101031 | CK11: 101033 | CL11: 101035 | CM11: 101034 | CO11: 2101691
B12: 石山東 | E12: 新アマ日 | H12: 6750 | N12: =IFERROR(VLOOKUP($CJ12,・!$H$3:$I$700,2,FALSE),"") -> 5600 | W12: =IFERROR(VLOOKUP($CK12,・!$H$3:$I$700,2,FALSE),"") -> 1150 | Z12: =IFERROR(VLOOKUP($CL12,・!$H$3:$I$700,2,FALSE),"") -> 5300 | AF12: =IFERROR(VLOOKUP($CM12,・!$H$3:$I$700,2,FALSE),"") -> 640 | AX12: 寺尾 | BA12: ヨサ日 | BC12: =IFERROR(VLOOKUP($CO12,・!$H$3:$I$700,2,FALSE),"") -> 930 | BU12: 石山東 | BV12: 10105 | BW12: 0 | BY12: 0 | BZ12: =AL12 -> 0 | CB12: 0 | CC12: 0 | CE12: 寺尾 | CF12: 210170 | CG12: 0 | CH12: 0 | CJ12: 101051 | CK12: 101053 | CL12: 101055 | CM12: 101054 | CO12: 2101701
B13: 山ノ下 | E13: 新アマ日 | H13: 4390 | N13: =IFERROR(VLOOKUP($CJ13,・!$H$3:$I$700,2,FALSE),"") -> 3790 | W13: =IFERROR(VLOOKUP($CK13,・!$H$3:$I$700,2,FALSE),"") -> 600 | Z13: =IFERROR(VLOOKUP($CL13,・!$H$3:$I$700,2,FALSE),"") -> 3750 | AF13: =IFERROR(VLOOKUP($CM13,・!$H$3:$I$700,2,FALSE),"") -> 620 | AX13: 内野 | BA13: ヨサ日 | BC13: =IFERROR(VLOOKUP($CO13,・!$H$3:$I$700,2,FALSE),"") -> 980 | BU13: 山ノ下 | BV13: 10107 | BW13: 0 | BY13: 0 | BZ13: =AL13 -> 0 | CB13: 0 | CC13: 0 | CE13: 内野 | CF13: 210171 | CG13: 0 | CH13: 0 | CJ13: 101071 | CK13: 101073 | CL13: 101075 | CM13: 101074 | CO13: 2101711
B14: 物見山 | E14: 新アマ日 | H14: 4090 | N14: =IFERROR(VLOOKUP($CJ14,・!$H$3:$I$700,2,FALSE),"") -> 3510 | W14: =IFERROR(VLOOKUP($CK14,・!$H$3:$I$700,2,FALSE),"") -> 580 | Z14: =IFERROR(VLOOKUP($CL14,・!$H$3:$I$700,2,FALSE),"") -> 3600 | AF14: =IFERROR(VLOOKUP($CM14,・!$H$3:$I$700,2,FALSE),"") -> 360 | AX14: 小新黒埼 | BA14: ヨサ日 | BC14: =IFERROR(VLOOKUP($CO14,・!$H$3:$I$700,2,FALSE),"") -> 840 | BU14: 物見山 | BV14: 10108 | BW14: 0 | BY14: 0 | BZ14: =AL14 -> 0 | CB14: 0 | CC14: 0 | CE14: 小新黒埼 | CF14: 210172 | CG14: 0 | CH14: 0 | CJ14: 101081 | CK14: 101083 | CL14: 101085 | CM14: 101084 | CO14: 2101721
B15: とやの | E15: 新アマ日 | H15: 5630 | N15: =IFERROR(VLOOKUP($CJ15,・!$H$3:$I$700,2,FALSE),"") -> 5030 | W15: =IFERROR(VLOOKUP($CK15,・!$H$3:$I$700,2,FALSE),"") -> 600 | Z15: =IFERROR(VLOOKUP($CL15,・!$H$3:$I$700,2,FALSE),"") -> 5800 | AF15: =IFERROR(VLOOKUP($CM15,・!$H$3:$I$700,2,FALSE),"") -> 650 | AX15: 黒埼南 | BA15: ヨサ日 | BC15: =IFERROR(VLOOKUP($CO15,・!$H$3:$I$700,2,FALSE),"") -> 190 | BU15: とやの | BV15: 10109 | BW15: 0 | BY15: 0 | BZ15: =AL15 -> 0 | CB15: 0 | CC15: 0 | CE15: 黒埼南 | CF15: 210179 | CG15: 0 | CH15: 0 | CJ15: 101091 | CK15: 101093 | CL15: 101095 | CM15: 101094 | CO15: 2101791
B16: 県庁前 | E16: 新アマ日 | H16: 4280 | N16: =IFERROR(VLOOKUP($CJ16,・!$H$3:$I$700,2,FALSE),"") -> 4200 | W16: =IFERROR(VLOOKUP($CK16,・!$H$3:$I$700,2,FALSE),"") -> 80 | Z16: =IFERROR(VLOOKUP($CL16,・!$H$3:$I$700,2,FALSE),"") -> 4400 | AF16: =IFERROR(VLOOKUP($CM16,・!$H$3:$I$700,2,FALSE),"") -> 500 | AX16: 万代 | BA16: ヨサ日 | BC16: =IFERROR(VLOOKUP($CO16,・!$H$3:$I$700,2,FALSE),"") -> 1000 | BU16: 県庁前 | BV16: 10111 | BW16: 0 | BY16: 0 | BZ16: 0 | CB16: 0 | CC16: 0 | CE16: 万代 | CF16: 210158 | CG16: 0 | CH16: 0 | CJ16: 101111 | CK16: 101113 | CL16: 101115 | CM16: 101114 | CO16: 2101581
B17: 愛宕 | E17: 新アマ日 | H17: 5300 | N17: =IFERROR(VLOOKUP($CJ17,・!$H$3:$I$700,2,FALSE),"") -> 4900 | W17: =IFERROR(VLOOKUP($CK17,・!$H$3:$I$700,2,FALSE),"") -> 400 | Z17: =IFERROR(VLOOKUP($CL17,・!$H$3:$I$700,2,FALSE),"") -> 4040 | AF17: =IFERROR(VLOOKUP($CM17,・!$H$3:$I$700,2,FALSE),"") -> 600 | AX17: 県庁前 | BA17: ヨサ日 | BC17: =IFERROR(VLOOKUP($CO17,・!$H$3:$I$700,2,FALSE),"") -> 2400 | BU17: 愛宕 | BV17: 10113 | BW17: 0 | BY17: 0 | BZ17: =AL17 -> 0 | CB17: 0 | CC17: 0 | CE17: 県庁前 | CF17: 210159 | CG17: 0 | CH17: 0 | CJ17: 101131 | CK17: 101133 | CL17: 101135 | CM17: 101134 | CO17: 2101591
B18: 河渡 | E18: 新アマ日 | H18: 4800 | N18: =IFERROR(VLOOKUP($CJ18,・!$H$3:$I$700,2,FALSE),"") -> 4600 | W18: =IFERROR(VLOOKUP($CK18,・!$H$3:$I$700,2,FALSE),"") -> 200 | Z18: =IFERROR(VLOOKUP($CL18,・!$H$3:$I$700,2,FALSE),"") -> 4500 | AF18: =IFERROR(VLOOKUP($CM18,・!$H$3:$I$700,2,FALSE),"") -> 450 | AX18: 駅南東 | BA18: ヨサ日 | BC18: =IFERROR(VLOOKUP($CO18,・!$H$3:$I$700,2,FALSE),"") -> 1500 | BU18: 河渡 | BV18: 10114 | BW18: 0 | BY18: 0 | BZ18: 0 | CB18: 0 | CC18: 0 | CE18: 駅南東 | CF18: 210160 | CG18: 0 | CH18: 0 | CJ18: 101141 | CK18: 101143 | CL18: 101145 | CM18: 101144 | CO18: 2101601
B19: 牡丹山 | E19: 新アマ日 | H19: 2030 | N19: =IFERROR(VLOOKUP($CJ19,・!$H$3:$I$700,2,FALSE),"") -> 1830 | W19: =IFERROR(VLOOKUP($CK19,・!$H$3:$I$700,2,FALSE),"") -> 200 | Z19: =IFERROR(VLOOKUP($CL19,・!$H$3:$I$700,2,FALSE),"") -> 1250 | AF19: =IFERROR(VLOOKUP($CM19,・!$H$3:$I$700,2,FALSE),"") -> 170 | AX19: 山木戸 | BA19: ヨサ日 | BC19: =IFERROR(VLOOKUP($CO19,・!$H$3:$I$700,2,FALSE),"") -> 1130 | BU19: 牡丹山 | BV19: 10115 | BW19: 0 | BY19: 0 | BZ19: 0 | CB19: 0 | CC19: 0 | CE19: 山木戸 | CF19: 210162 | CG19: 0 | CH19: 0 | CJ19: 101151 | CK19: 101153 | CL19: 101155 | CM19: 101154 | CO19: 2101621
B20: 大形 | E20: 新アマ日 | H20: 3580 | N20: =IFERROR(VLOOKUP($CJ20,・!$H$3:$I$700,2,FALSE),"") -> 3280 | W20: =IFERROR(VLOOKUP($CK20,・!$H$3:$I$700,2,FALSE),"") -> 300 | Z20: =IFERROR(VLOOKUP($CL20,・!$H$3:$I$700,2,FALSE),"") -> 2900 | AF20: =IFERROR(VLOOKUP($CM20,・!$H$3:$I$700,2,FALSE),"") -> 320 | AX20: 山ノ下 | BA20: ヨサ日 | BC20: =IFERROR(VLOOKUP($CO20,・!$H$3:$I$700,2,FALSE),"") -> 1320 | BU20: 大形 | BV20: 10116 | BW20: 0 | BY20: 0 | BZ20: 0 | CB20: 0 | CC20: 0 | CE20: 山ノ下 | CF20: 210163 | CG20: 0 | CH20: 0 | CJ20: 101161 | CK20: 101163 | CL20: 101165 | CM20: 101164 | CO20: 2101631
B21: 松浜 | E21: 新アマ日 | H21: 7010 | N21: =IFERROR(VLOOKUP($CJ21,・!$H$3:$I$700,2,FALSE),"") -> 6510 | W21: =IFERROR(VLOOKUP($CK21,・!$H$3:$I$700,2,FALSE),"") -> 500 | Z21: =IFERROR(VLOOKUP($CL21,・!$H$3:$I$700,2,FALSE),"") -> 5490 | AF21: =IFERROR(VLOOKUP($CM21,・!$H$3:$I$700,2,FALSE),"") -> 400 | AX21: 松浜 | BA21: ヨサ日 | BC21: =IFERROR(VLOOKUP($CO21,・!$H$3:$I$700,2,FALSE),"") -> 460 | BU21: 松浜 | BV21: 10117 | BW21: 0 | BY21: 0 | BZ21: 0 | CB21: 0 | CC21: 0 | CE21: 松浜 | CF21: 210164 | CG21: 0 | CH21: 0 | CJ21: 101171 | CK21: 101173 | CL21: 101175 | CM21: 101174 | CO21: 2101641
B22: 新潟南 | E22: 合 | H22: 2770 | N22: =IFERROR(VLOOKUP($CJ22,・!$H$3:$I$700,2,FALSE),"") -> 2730 | W22: =IFERROR(VLOOKUP($CK22,・!$H$3:$I$700,2,FALSE),"") -> 40 | Z22: =IFERROR(VLOOKUP($CL22,・!$H$3:$I$700,2,FALSE),"") -> 1620 | AF22: =IFERROR(VLOOKUP($CM22,・!$H$3:$I$700,2,FALSE),"") -> 140 | AX22: 亀田 | BA22: ヨサ日 | BC22: =IFERROR(VLOOKUP($CO22,・!$H$3:$I$700,2,FALSE),"") -> 1950 | BU22: 新潟南 | BV22: 10118 | BW22: 0 | BY22: 0 | BZ22: 0 | CB22: 0 | CC22: 0 | CE22: 亀田 | CF22: 210166 | CG22: 0 | CH22: 0 | CJ22: 101181 | CK22: 101183 | CL22: 101185 | CM22: 101184 | CO22: 2101661
B23: 姥ケ山 | E23: 新アマ日 | H23: 3000 | N23: =IFERROR(VLOOKUP($CJ23,・!$H$3:$I$700,2,FALSE),"") -> 2600 | W23: =IFERROR(VLOOKUP($CK23,・!$H$3:$I$700,2,FALSE),"") -> 400 | Z23: =IFERROR(VLOOKUP($CL23,・!$H$3:$I$700,2,FALSE),"") -> 2250 | AF23: =IFERROR(VLOOKUP($CM23,・!$H$3:$I$700,2,FALSE),"") -> 280 | BU23: 姥ケ山 | BV23: 10119 | BW23: 0 | BY23: 0 | BZ23: 0 | CB23: 0 | CC23: 0 | CG23: 0 | CH23: 0 | CJ23: 101191 | CK23: 101193 | CL23: 101195 | CM23: 101194
B24: 山二ツ | E24: 新アマ日 | H24: 2770 | N24: =IFERROR(VLOOKUP($CJ24,・!$H$3:$I$700,2,FALSE),"") -> 2700 | W24: =IFERROR(VLOOKUP($CK24,・!$H$3:$I$700,2,FALSE),"") -> 70 | Z24: =IFERROR(VLOOKUP($CL24,・!$H$3:$I$700,2,FALSE),"") -> 800 | AF24: =IFERROR(VLOOKUP($CM24,・!$H$3:$I$700,2,FALSE),"") -> 250 | BU24: 山二ツ | BV24: 10120 | BW24: 0 | BY24: 0 | BZ24: 0 | CB24: 0 | CC24: 0 | CG24: 0 | CH24: 0 | CJ24: 101201 | CK24: 101203 | CL24: 101205 | CM24: 101204
B25: 亀田西 | E25: 新アマ日 | H25: 2830 | N25: =IFERROR(VLOOKUP($CJ25,・!$H$3:$I$700,2,FALSE),"") -> 2630 | W25: =IFERROR(VLOOKUP($CK25,・!$H$3:$I$700,2,FALSE),"") -> 200 | Z25: =IFERROR(VLOOKUP($CL25,・!$H$3:$I$700,2,FALSE),"") -> 1600 | AF25: =IFERROR(VLOOKUP($CM25,・!$H$3:$I$700,2,FALSE),"") -> 200 | BU25: 亀田西 | BV25: 10122 | BW25: 0 | BY25: 0 | BZ25: 0 | CB25: 0 | CC25: 0 | CG25: 0 | CH25: 0 | CJ25: 101221 | CK25: 101223 | CL25: 101225 | CM25: 101224
B26: 亀田 | E26: 新アマ日 | H26: 4230 | N26: =IFERROR(VLOOKUP($CJ26,・!$H$3:$I$700,2,FALSE),"") -> 3680 | W26: =IFERROR(VLOOKUP($CK26,・!$H$3:$I$700,2,FALSE),"") -> 550 | Z26: =IFERROR(VLOOKUP($CL26,・!$H$3:$I$700,2,FALSE),"") -> 3600 | AF26: =IFERROR(VLOOKUP($CM26,・!$H$3:$I$700,2,FALSE),"") -> 280 | BU26: 亀田 | BV26: 10123 | BW26: 0 | BY26: 0 | BZ26: 0 | CB26: 0 | CC26: 0 | CG26: 0 | CH26: 0 | CJ26: 101231 | CK26: 101233 | CL26: 101235 | CM26: 101234
B27: 横越 | E27: 新アマ日 | H27: 2240 | N27: =IFERROR(VLOOKUP($CJ27,・!$H$3:$I$700,2,FALSE),"") -> 2190 | W27: =IFERROR(VLOOKUP($CK27,・!$H$3:$I$700,2,FALSE),"") -> 50 | Z27: =IFERROR(VLOOKUP($CL27,・!$H$3:$I$700,2,FALSE),"") -> 1200 | AF27: =IFERROR(VLOOKUP($CM27,・!$H$3:$I$700,2,FALSE),"") -> 110 | BU27: 横越 | BV27: 10176 | BW27: 0 | BY27: 0 | BZ27: 0 | CB27: 0 | CC27: 0 | CG27: 0 | CH27: 0 | CJ27: 101761 | CK27: 101763 | CL27: 101765 | CM27: 101764
B28: 有明 | E28: 新アマ日 | H28: 6200 | N28: =IFERROR(VLOOKUP($CJ28,・!$H$3:$I$700,2,FALSE),"") -> 5490 | W28: =IFERROR(VLOOKUP($CK28,・!$H$3:$I$700,2,FALSE),"") -> 710 | Z28: =IFERROR(VLOOKUP($CL28,・!$H$3:$I$700,2,FALSE),"") -> 5150 | AF28: =IFERROR(VLOOKUP($CM28,・!$H$3:$I$700,2,FALSE),"") -> 1050 | AY28: ■くるみる | BU28: 有明 | BV28: 10177 | BW28: 0 | BY28: 0 | BZ28: 0 | CB28: 0 | CC28: 0 | CG28: 0 | CH28: 0 | CJ28: 101771 | CK28: 101773 | CL28: 101775 | CM28: 101774
B29: 小針 | E29: 新アマ日 | H29: 7810 | N29: =IFERROR(VLOOKUP($CJ29,・!$H$3:$I$700,2,FALSE),"") -> 6970 | W29: =IFERROR(VLOOKUP($CK29,・!$H$3:$I$700,2,FALSE),"") -> 840 | Z29: =IFERROR(VLOOKUP($CL29,・!$H$3:$I$700,2,FALSE),"") -> 6900 | AF29: =IFERROR(VLOOKUP($CM29,・!$H$3:$I$700,2,FALSE),"") -> 1100 | AY29: 新聞無購読者向け、チラシ宅配サービスです。 | BU29: 小針 | BV29: 10127 | BW29: 0 | BY29: 0 | BZ29: 0 | CB29: 0 | CC29: 0 | CG29: 0 | CH29: 0 | CJ29: 101271 | CK29: 101273 | CL29: 101275 | CM29: 101274
B30: 中通 | E30: 新アマ日 | H30: 2620 | N30: =IFERROR(VLOOKUP($CJ30,・!$H$3:$I$700,2,FALSE),"") -> 2600 | W30: =IFERROR(VLOOKUP($CK30,・!$H$3:$I$700,2,FALSE),"") -> 20 | Z30: =IFERROR(VLOOKUP($CL30,・!$H$3:$I$700,2,FALSE),"") -> 2800 | AF30: =IFERROR(VLOOKUP($CM30,・!$H$3:$I$700,2,FALSE),"") -> 500 | AY30: 新潟日報販売店が朝刊配達時に、チラシをお届けします。 | BU30: 中通 | BV30: 10128 | BW30: 0 | BY30: 0 | BZ30: 0 | CB30: 0 | CC30: 0 | CG30: 0 | CH30: 0 | CJ30: 101281 | CK30: 101283 | CL30: 101285 | CM30: 101284
B31: 本町 | E31: 新アマ日 | H31: 3100 | N31: =IFERROR(VLOOKUP($CJ31,・!$H$3:$I$700,2,FALSE),"") -> 2800 | W31: =IFERROR(VLOOKUP($CK31,・!$H$3:$I$700,2,FALSE),"") -> 300 | Z31: =IFERROR(VLOOKUP($CL31,・!$H$3:$I$700,2,FALSE),"") -> 1500 | AF31: =IFERROR(VLOOKUP($CM31,・!$H$3:$I$700,2,FALSE),"") -> 480 | AY31: 新聞折込と合わせてご利用いただくことで、広告効果を高めることができます。 | BU31: 本町 | BV31: 10130 | BW31: 0 | BY31: 0 | BZ31: 0 | CB31: 0 | CC31: 0 | CG31: 0 | CH31: 0 | CJ31: 101301 | CK31: 101303 | CL31: 101305 | CM31: 101304
B32: 中央 | E32: 新アマ日 | H32: 3090 | N32: =IFERROR(VLOOKUP($CJ32,・!$H$3:$I$700,2,FALSE),"") -> 3040 | W32: =IFERROR(VLOOKUP($CK32,・!$H$3:$I$700,2,FALSE),"") -> 50 | Z32: =IFERROR(VLOOKUP($CL32,・!$H$3:$I$700,2,FALSE),"") -> 2050 | AF32: =IFERROR(VLOOKUP($CM32,・!$H$3:$I$700,2,FALSE),"") -> 480 | BU32: 中央 | BV32: 10131 | BW32: 0 | BY32: 0 | BZ32: 0 | CB32: 0 | CC32: 0 | CG32: 0 | CH32: 0 | CJ32: 101311 | CK32: 101313 | CL32: 101315 | CM32: 101314
B33: 真砂 | E33: 新アマ日 | H33: 2300 | N33: =IFERROR(VLOOKUP($CJ33,・!$H$3:$I$700,2,FALSE),"") -> 2100 | W33: =IFERROR(VLOOKUP($CK33,・!$H$3:$I$700,2,FALSE),"") -> 200 | Z33: =IFERROR(VLOOKUP($CL33,・!$H$3:$I$700,2,FALSE),"") -> 1650 | AF33: =IFERROR(VLOOKUP($CM33,・!$H$3:$I$700,2,FALSE),"") -> 460 | BU33: 真砂 | BV33: 10133 | BW33: 0 | BY33: 0 | BZ33: 0 | CB33: 0 | CC33: 0 | CG33: 0 | CH33: 0 | CJ33: 101331 | CK33: 101333 | CL33: 101335 | CM33: 101334
B34: 寺尾 | E34: 新アマ日 | H34: 6210 | N34: =IFERROR(VLOOKUP($CJ34,・!$H$3:$I$700,2,FALSE),"") -> 6000 | W34: =IFERROR(VLOOKUP($CK34,・!$H$3:$I$700,2,FALSE),"") -> 210 | Z34: =IFERROR(VLOOKUP($CL34,・!$H$3:$I$700,2,FALSE),"") -> 3000 | AF34: =IFERROR(VLOOKUP($CM34,・!$H$3:$I$700,2,FALSE),"") -> 830 | AY34: ■ポスティング（assh,n-assh） | BU34: 寺尾 | BV34: 10134 | BW34: 0 | BY34: 0 | BZ34: 0 | CB34: 0 | CC34: 0 | CG34: 0 | CH34: 0 | CJ34: 101341 | CK34: 101343 | CL34: 101345 | CM34: 101344
B35: 新大前 | E35: 新アマ日 | H35: 3240 | N35: =IFERROR(VLOOKUP($CJ35,・!$H$3:$I$700,2,FALSE),"") -> 2810 | W35: =IFERROR(VLOOKUP($CK35,・!$H$3:$I$700,2,FALSE),"") -> 430 | Z35: =IFERROR(VLOOKUP($CL35,・!$H$3:$I$700,2,FALSE),"") -> 3700 | AF35: =IFERROR(VLOOKUP($CM35,・!$H$3:$I$700,2,FALSE),"") -> 400 | AY35: asshは新潟日報社が制作する生活情報誌です（毎月 第2・第4木曜日 発行）。 | BU35: 新大前 | BV35: 10135 | BW35: 0 | BY35: 0 | BZ35: 0 | CB35: 0 | CC35: 0 | CG35: 0 | CH35: 0 | CJ35: 101351 | CK35: 101353 | CL35: 101355 | CM35: 101354
B36: 内野 | E36: 新アマ日 | H36: 4100 | N36: =IFERROR(VLOOKUP($CJ36,・!$H$3:$I$700,2,FALSE),"") -> 3600 | W36: =IFERROR(VLOOKUP($CK36,・!$H$3:$I$700,2,FALSE),"") -> 500 | Z36: =IFERROR(VLOOKUP($CL36,・!$H$3:$I$700,2,FALSE),"") -> 2200 | AF36: =IFERROR(VLOOKUP($CM36,・!$H$3:$I$700,2,FALSE),"") -> 340 | AY36: 新聞無購読世帯へ配布する際に、asshにチラシを折り込みポスティングします。 | BU36: 内野 | BV36: 10136 | BW36: 0 | BY36: 0 | BZ36: 0 | CB36: 0 | CC36: 0 | CG36: 0 | CH36: 0 | CJ36: 101361 | CK36: 101363 | CL36: 101365 | CM36: 101364
B37: 西内野 | E37: 新アマ日 | H37: 3220 | N37: =IFERROR(VLOOKUP($CJ37,・!$H$3:$I$700,2,FALSE),"") -> 3020 | W37: =IFERROR(VLOOKUP($CK37,・!$H$3:$I$700,2,FALSE),"") -> 200 | Z37: =IFERROR(VLOOKUP($CL37,・!$H$3:$I$700,2,FALSE),"") -> 2300 | AF37: =IFERROR(VLOOKUP($CM37,・!$H$3:$I$700,2,FALSE),"") -> 300 | AY37: asshポスティング単独でのご利用も可能ですが、新聞折込と合わせることで、 | BU37: 西内野 | BV37: 10137 | BW37: 0 | BY37: 0 | BZ37: 0 | CB37: 0 | CC37: 0 | CG37: 0 | CH37: 0 | CJ37: 101371 | CK37: 101373 | CL37: 101375 | CM37: 101374
B38: 小新 | E38: 新アマ日 | H38: 4800 | N38: =IFERROR(VLOOKUP($CJ38,・!$H$3:$I$700,2,FALSE),"") -> 4050 | W38: =IFERROR(VLOOKUP($CK38,・!$H$3:$I$700,2,FALSE),"") -> 750 | Z38: =IFERROR(VLOOKUP($CL38,・!$H$3:$I$700,2,FALSE),"") -> 3600 | AF38: =IFERROR(VLOOKUP($CM38,・!$H$3:$I$700,2,FALSE),"") -> 340 | AY38: ほぼ全世帯をカバーすることができます。 ※一部、配布不可世帯を除きます。 | BU38: 小新 | BV38: 10140 | BW38: 0 | BY38: 0 | BZ38: 0 | CB38: 0 | CC38: 0 | CG38: 0 | CH38: 0 | CJ38: 101401 | CK38: 101403 | CL38: 101405 | CM38: 101404
B39: 寺地 | E39: 新アマ日 | H39: 2050 | N39: =IFERROR(VLOOKUP($CJ39,・!$H$3:$I$700,2,FALSE),"") -> 1750 | W39: =IFERROR(VLOOKUP($CK39,・!$H$3:$I$700,2,FALSE),"") -> 300 | Z39: =IFERROR(VLOOKUP($CL39,・!$H$3:$I$700,2,FALSE),"") -> 1750 | AF39: =IFERROR(VLOOKUP($CM39,・!$H$3:$I$700,2,FALSE),"") -> 200 | BU39: 寺地 | BV39: 10141 | BW39: 0 | BY39: 0 | BZ39: 0 | CB39: 0 | CC39: 0 | CG39: 0 | CH39: 0 | CJ39: 101411 | CK39: 101413 | CL39: 101415 | CM39: 101414
B40: 黒埼 | E40: 新アマ日 | H40: 3580 | N40: =IFERROR(VLOOKUP($CJ40,・!$H$3:$I$700,2,FALSE),"") -> 3090 | W40: =IFERROR(VLOOKUP($CK40,・!$H$3:$I$700,2,FALSE),"") -> 490 | Z40: =IFERROR(VLOOKUP($CL40,・!$H$3:$I$700,2,FALSE),"") -> 2100 | AF40: =IFERROR(VLOOKUP($CM40,・!$H$3:$I$700,2,FALSE),"") -> 240 | BU40: 黒埼 | BV40: 10178 | BW40: 0 | BY40: 0 | BZ40: 0 | CB40: 0 | CC40: 0 | CG40: 0 | CH40: 0 | CJ40: 101781 | CK40: 101783 | CL40: 101785 | CM40: 101784
B41: 黒埼南 | E41: 新アマ日 | H41: 3470 | N41: =IFERROR(VLOOKUP($CJ41,・!$H$3:$I$700,2,FALSE),"") -> 3150 | W41: =IFERROR(VLOOKUP($CK41,・!$H$3:$I$700,2,FALSE),"") -> 320 | Z41: =IFERROR(VLOOKUP($CL41,・!$H$3:$I$700,2,FALSE),"") -> 1300 | AF41: =IFERROR(VLOOKUP($CM41,・!$H$3:$I$700,2,FALSE),"") -> 130 | BU41: 黒埼南 | BV41: 10143 | BW41: 0 | BY41: 0 | BZ41: 0 | CB41: 0 | CC41: 0 | CG41: 0 | CH41: 0 | CJ41: 101431 | CK41: 101433 | CL41: 101435 | CM41: 101434
B42: 010 | D42: 小計 | H42: =SUM(H9:J41) -> 135540 | K42: =SUM(K9:M41) -> 0 | N42: =SUM(N9:P41) -> 122520 | Q42: =SUM(Q9:S41) -> 0 | T42: =SUM(T9:V41) -> 0 | W42: =CA42 -> 0 | Z42: =SUM(Z9:AB41) -> 108250 | AC42: =SUM(AC9:AE41) -> 0 | AF42: =SUM(AF9:AH41) -> 14680 | AI42: =SUM(AI9:AK41) -> 0 | AX42: 030 | AZ42: 小計 | BC42: =SUM(BC9:BE22) -> 15950 | BF42: =SUM(BF9:BH41) -> 0 | BW42: =SUM(BW9:BW41) -> 0 | BX42: =SUM(BX9:BX41) -> 0 | BY42: 0 | CA42: =SUM(CA9:CA41) -> 0 | CB42: 0 | CC42: 0 | CG42: =SUM(CG9:CG41) -> 0 | CI42: =SUM(BY42:CH42) -> 0
BY43: =SUM(BY42,CG42) -> 0

Sheet 下越1
BI1: =新潟市!BI1 -> ２０２３年１２月１日 現在
A2: 折込日 | M2: スポンサー名 | AD2: サイズ | AI2: チラシ内容・タイトル詳細 | AX2: 朝刊 小計 | BE2: Otona＋ 小計 | BL2: ページ枚数
A3: =新潟市!A3 -> 2023/--/-- | M3: =新潟市!M3 -> 0 | AB3: 様 | AD3: =新潟市!AD3 -> 0 | AI3: =新潟市!AI3 -> 0 | AX3: =BY49+CG49 -> 0 | BE3: =CC49 -> 0 | BL3: =AX3+AX5+BE3+BE5 -> 0
A4: assh ポスティング日 | M4: ご請求先名 | AD4: ガタチラ 掲載 | AX4: くるみる 小計 | BE4: assh 小計 | BL4: 総枚数
A5: =新潟市!A5 -> 2023/--/-- | M5: =新潟市!M5 -> 0 | AB5: 様 | AD5: =新潟市!AD5 -> 0 | AX5: =CA49 -> 0 | BE5: =CB49 -> 0 | BL5: =新潟市!BL5 -> 0
B7: 新潟日報 | Z7: ポスティング（assh） | AF7: Otona+ | AL7: 備考 | AX7: 中央紙 | BI7: 備考 | BU7: 朝刊 | CA7: くるみる | CB7: assh | CC7: otona | CE7: 中央紙 朝刊 | CJ7: 日報 | CO7: 中央紙
A8: 02 | B8: 販売店名 | E8: 取扱い紙 | H8: 朝刊＋くるみる | K8: 配布数 | N8: 朝刊扱数 | Q8: 配布数 | T8: 朝刊数 | W8: くるみる数 | Z8: 部数 | AC8: 配布数 | AF8: 部数 | AI8: 配布数 | AX8: 販売店名 | BA8: 取扱い紙 | BC8: 部数 | BF8: 配布数 | BU8: 販売店名 | BV8: E | BW8: 朝刊1 | BX8: 朝刊２ | BY8: 部 | BZ8: 指示 | CA8: 部 | CB8: 部 | CC8: 部 | CE8: 販売店名 | CF8: E | CG8: 部 | CH8: 指示 | CJ8: 朝刊 | CK8: くるみる | CL8: assh | CM8: Otona+ | CO8: 朝刊
A9: 旧西蒲原郡 | B9: 分水 | E9: 合 | N9: =IFERROR(VLOOKUP($CJ9,・!$H$3:$I$700,2,FALSE),"") -> 3300 | AX9: 巻 | BA9: アサ | BC9: =IFERROR(VLOOKUP($CO9,・!$H$3:$I$700,2,FALSE),"") -> 640 | BU9: 分水 | BV9: 20101 | BW9: =Q9 -> 0 | BX9: =T9 -> 0 | BY9: =SUM(BW9:BX9) -> 0 | BZ9: =AL9 -> 0 | CA9: =IF($K9>$W9,$W9,"") ->  | CB9: =AC9 -> 0 | CC9: =AI9 -> 0 | CE9: 巻 | CF9: 20106 | CG9: =BF9 -> 0 | CH9: =BI9 -> 0 | CJ9: 201011 | CK9: 201013 | CL9: 201015 | CM9: 201014 | CO9: 201061
B10: 吉田 | E10: 合 | N10: =IFERROR(VLOOKUP($CJ10,・!$H$3:$I$700,2,FALSE),"") -> 4300 | AF10: =IFERROR(VLOOKUP($CM10,・!$H$3:$I$700,2,FALSE),"") -> 70 | AX10: 巻 | BA10: ヨ | BC10: =IFERROR(VLOOKUP($CO10,・!$H$3:$I$700,2,FALSE),"") -> 650 | BU10: 吉田 | BV10: 20102 | BW10: 0 | BX10: 0 | BY10: 0 | BZ10: 0 | CB10: 0 | CC10: 0 | CE10: 巻 | CF10: 220107 | CG10: 0 | CH10: =BI10 -> 0 | CJ10: 201021 | CK10: 201023 | CL10: 201025 | CM10: 201024 | CO10: 2201071
B11: 粟生津 | E11: 合 | N11: =IFERROR(VLOOKUP($CJ11,・!$H$3:$I$700,2,FALSE),"") -> 700 | BU11: 粟生津 | BV11: 20104 | BW11: 0 | BX11: 0 | BY11: 0 | BZ11: 0 | CB11: 0 | CC11: 0 | CG11: =BF11 -> 0 | CH11: 0 | CJ11: 201041 | CK11: 201043 | CL11: 201045 | CM11: 201044
B12: 巻 | E12: 新マ日 | H12: =N12+W12 -> 6510 | N12: =IFERROR(VLOOKUP($CJ12,・!$H$3:$I$700,2,FALSE),"") -> 6160 | T12: =IF(K12="","",IF(K12<=W12,K12,K12-W12)) ->  | W12: =IFERROR(VLOOKUP($CK12,・!$H$3:$I$700,2,FALSE),"") -> 350 | AF12: =IFERROR(VLOOKUP($CM12,・!$H$3:$I$700,2,FALSE),"") -> 380 | BU12: 巻 | BV12: 20105 | BW12: 0 | BY12: 0 | BZ12: 0 | CB12: 0 | CC12: 0 | CG12: 0 | CH12: 0 | CJ12: 201051 | CK12: 201053 | CL12: 201055 | CM12: 201054
B13: 岩室 | E13: 新マ日 | H13: =N13+W13 -> 700 | N13: =IFERROR(VLOOKUP($CJ13,・!$H$3:$I$700,2,FALSE),"") -> 670 | T13: =IF(K13="","",IF(K13<=W13,K13,K13-W13)) ->  | W13: =IFERROR(VLOOKUP($CK13,・!$H$3:$I$700,2,FALSE),"") -> 30 | AF13: =IFERROR(VLOOKUP($CM13,・!$H$3:$I$700,2,FALSE),"") -> 40 | BU13: 岩室 | BV13: 20108 | BW13: 0 | BY13: 0 | BZ13: 0 | CB13: 0 | CC13: 0 | CG13: 0 | CH13: 0 | CJ13: 201081 | CK13: 201083 | CL13: 201085 | CM13: 201084
B14: 西川 | E14: 合 | H14: 4300 | N14: =IFERROR(VLOOKUP($CJ14,・!$H$3:$I$700,2,FALSE),"") -> 3800 | W14: =IFERROR(VLOOKUP($CK14,・!$H$3:$I$700,2,FALSE),"") -> 500 | AF14: =IFERROR(VLOOKUP($CM14,・!$H$3:$I$700,2,FALSE),"") -> 200 | BU14: 西川 | BV14: 20109 | BW14: 0 | BY14: 0 | BZ14: 0 | CB14: 0 | CC14: 0 | CG14: 0 | CH14: 0 | CJ14: 201091 | CK14: 201093 | CL14: 201095 | CM14: 201094
B15: 中之口 | E15: 合 | N15: =IFERROR(VLOOKUP($CJ15,・!$H$3:$I$700,2,FALSE),"") -> 1100 | BU15: 中之口 | BV15: 20110 | BW15: 0 | BX15: 0 | BY15: 0 | BZ15: 0 | CB15: 0 | CC15: 0 | CG15: 0 | CH15: 0 | CJ15: 201101 | CK15: 201103 | CL15: 201105 | CM15: 201104
B16: 弥彦 | E16: 合 | H16: =N16+W16 -> 1940 | N16: =IFERROR(VLOOKUP($CJ16,・!$H$3:$I$700,2,FALSE),"") -> 1840 | T16: =IF(K16="","",IF(K16<=W16,K16,K16-W16)) ->  | W16: =IFERROR(VLOOKUP($CK16,・!$H$3:$I$700,2,FALSE),"") -> 100 | BU16: 弥彦 | BV16: 20111 | BW16: 0 | BY16: 0 | BZ16: 0 | CB16: 0 | CC16: 0 | CG16: 0 | CH16: 0 | CJ16: 201111 | CK16: 201113 | CL16: 201115 | CM16: 201114
B17: 010 | C17: 小計 | E17: =Q17+T17+W17+AC17+AI17+BF17 -> 0 | H17: =SUM(H9:J16) -> 13450 | K17: =SUM(K9:M16) -> 0 | N17: =SUM(N9:P16) -> 21870 | Q17: =SUM(Q9:S16) -> 0 | T17: =SUM(T9:V16) -> 0 | W17: =CA17 -> 0 | AF17: =SUM(AF9:AH16) -> 690 | AI17: =SUM(AI9:AK16) -> 0 | AX17: 小計 | BC17: =SUM(BC9:BE16) -> 1290 | BF17: =SUM(BF9:BH16) -> 0 | BU17: =SUM(BY9:CC16,CG9:CG16) -> 0 | BW17: =SUM(BW9:BW16) -> 0 | BX17: =SUM(BX9:BX16) -> 0 | BY17: 0 | CA17: =SUM(CA9:CA16) -> 0 | CB17: =SUM(CB9:CB16) -> 0 | CC17: 0 | CG17: =SUM(CG9:CG16) -> 0
A18: 旧中蒲原郡・旧新津・五泉市 | B18: 小須戸 | E18: 合 | N18: =IFERROR(VLOOKUP($CJ18,・!$H$3:$I$700,2,FALSE),"") -> 3140 | AF18: =IFERROR(VLOOKUP($CM18,・!$H$3:$I$700,2,FALSE),"") -> 60 | BU18: 小須戸 | BV18: 20112 | BW18: 0 | BX18: 0 | BY18: 0 | BZ18: 0 | CB18: 0 | CC18: 0 | CG18: 0 | CH18: 0 | CJ18: 201121 | CK18: 201123 | CL18: 201125 | CM18: 201124
B19: 矢代田 | E19: 合 | H19: =N19+W19 -> 990 | N19: =IFERROR(VLOOKUP($CJ19,・!$H$3:$I$700,2,FALSE),"") -> 980 | T19: =IF(K19="","",IF(K19<=W19,K19,K19-W19)) ->  | W19: =IFERROR(VLOOKUP($CK19,・!$H$3:$I$700,2,FALSE),"") -> 10 | AF19: =IFERROR(VLOOKUP($CM19,・!$H$3:$I$700,2,FALSE),"") -> 20 | BU19: 矢代田 | BV19: 20113 | BW19: 0 | BY19: 0 | BZ19: 0 | CB19: 0 | CC19: 0 | CG19: 0 | CH19: 0 | CJ19: 201131 | CK19: 201133 | CL19: 201135 | CM19: 201134
B20: 村松 | E20: 合 | N20: =IFERROR(VLOOKUP($CJ20,・!$H$3:$I$700,2,FALSE),"") -> 3700 | AF20: =IFERROR(VLOOKUP($CM20,・!$H$3:$I$700,2,FALSE),"") -> 180 | BU20: 村松 | BV20: 20114 | BW20: 0 | BX20: 0 | BY20: 0 | BZ20: 0 | CB20: 0 | CC20: 0 | CG20: 0 | CH20: 0 | CJ20: 201141 | CK20: 201143 | CL20: 201145 | CM20: 201144
B21: 020 | C21: 小計 | E21: =Q21+T21+W21+AC21+AI21+BF21 -> 0 | H21: =SUM(H18:J20) -> 990 | K21: =SUM(K18:M20) -> 0 | N21: =SUM(N18:P20) -> 7820 | Q21: =SUM(Q18:S20) -> 0 | T21: =SUM(T18:V20) -> 0 | W21: =CA21 -> 0 | AF21: =SUM(AF18:AH20) -> 260 | AI21: =SUM(AI18:AK20) -> 0 | AX21: 小計 | BU21: =SUM(BY18:CC20,CG18:CG20) -> 0 | BW21: =SUM(BW18:BW20) -> 0 | BX21: =SUM(BX18:BX20) -> 0 | BY21: 0 | CA21: =SUM(CA18:CA20) -> 0 | CB21: =SUM(CB18:CB20) -> 0 | CC21: 0 | CG21: =SUM(CG18:CG20) -> 0
B22: 新津 | E22: 合 | H22: =N22+W22 -> 10900 | N22: =IFERROR(VLOOKUP($CJ22,・!$H$3:$I$700,2,FALSE),"") -> 10800 | T22: =IF(K22="","",IF(K22<=W22,K22,K22-W22)) ->  | W22: =IFERROR(VLOOKUP($CK22,・!$H$3:$I$700,2,FALSE),"") -> 100 | AF22: =IFERROR(VLOOKUP($CM22,・!$H$3:$I$700,2,FALSE),"") -> 340 | BU22: 新津 | BV22: 20116 | BW22: 0 | BY22: 0 | BZ22: 0 | CB22: 0 | CC22: 0 | CG22: 0 | CH22: 0 | CJ22: 201161 | CK22: 201163 | CL22: 201165 | CM22: 201164
B23: 新津・荻川 | E23: 合 | H23: =N23+W23 -> 4600 | N23: =IFERROR(VLOOKUP($CJ23,・!$H$3:$I$700,2,FALSE),"") -> 4500 | W23: =IFERROR(VLOOKUP($CK23,・!$H$3:$I$700,2,FALSE),"") -> 100 | AF23: =IFERROR(VLOOKUP($CM23,・!$H$3:$I$700,2,FALSE),"") -> 160 | BU23: 新津・荻川 | BV23: 20181 | BW23: 0 | BY23: 0 | BZ23: 0 | CB23: 0 | CC23: 0 | CG23: 0 | CH23: 0 | CJ23: 201811 | CK23: 201813 | CL23: 201815 | CM23: 201814
B24: 030 | C24: 小計 | E24: =Q24+T24+W24+AC24+AI24+BF24 -> 0 | H24: =SUM(H22:J23) -> 15500 | K24: =SUM(K22:M23) -> 0 | N24: =SUM(N22:P23) -> 15300 | Q24: =SUM(Q22:S23) -> 0 | T24: =SUM(T22:V23) -> 0 | W24: =CA24 -> 0 | AF24: =SUM(AF22:AH23) -> 500 | AI24: =SUM(AI22:AK23) -> 0 | AX24: 小計 | BU24: =SUM(BY22:CC23,CG22:CG23) -> 0 | BW24: =SUM(BW22:BW23) -> 0 | BX24: =SUM(BX22:BX23) -> 0 | BY24: 0 | CA24: =SUM(CA22:CA23) -> 0 | CB24: =SUM(CB22:CB23) -> 0 | CC24: 0 | CG24: =SUM(CG22:CG23) -> 0
B25: 五泉 | E25: 合 | N25: =IFERROR(VLOOKUP($CJ25,・!$H$3:$I$700,2,FALSE),"") -> 7380 | BU25: 五泉 | BV25: 20117 | BW25: 0 | BX25: 0 | BY25: 0 | BZ25: 0 | CB25: 0 | CC25: 0 | CG25: 0 | CH25: 0 | CJ25: 201171 | CK25: 201173 | CL25: 201175 | CM25: 201174
B26: 五泉・馬下 | E26: 合 | N26: =IFERROR(VLOOKUP($CJ26,・!$H$3:$I$700,2,FALSE),"") -> 240 | BU26: 五泉・馬下 | BV26: 20119 | BW26: 0 | BX26: 0 | BY26: 0 | BZ26: 0 | CB26: 0 | CC26: 0 | CG26: 0 | CH26: 0 | CJ26: 201191 | CK26: 201193 | CL26: 201195 | CM26: 201194
B27: 保田・馬下 | E27: 合 | N27: =IFERROR(VLOOKUP($CJ27,・!$H$3:$I$700,2,FALSE),"") -> 150 | BU27: 保田・馬下 | BV27: 20183 | BW27: 0 | BX27: 0 | BY27: 0 | BZ27: 0 | CB27: 0 | CC27: 0 | CG27: 0 | CH27: 0 | CJ27: 201831 | CK27: 201833 | CL27: 201835 | CM27: 201834
B28: 040 | C28: 小計 | E28: =Q28+T28+W28+AC28+AI28+BF28 -> 0 | N28: =SUM(N25:P27) -> 7770 | Q28: =SUM(Q25:S27) -> 0 | AX28: 小計 | BU28: =SUM(BY25:CC27,CG25:CG27) -> 0 | BW28: =SUM(BW25:BW27) -> 0 | BX28: =SUM(BX25:BX27) -> 0 | BY28: 0 | CA28: =SUM(CA25:CA27) -> 0 | CB28: =SUM(CB25:CB27) -> 0 | CC28: 0 | CG28: =SUM(CG25:CG27) -> 0
A29: 旧白根市 | B29: 白根 | E29: 新アマ日 | H29: =N29+W29 -> 3450 | N29: =IFERROR(VLOOKUP($CJ29,・!$H$3:$I$700,2,FALSE),"") -> 3250 | T29: =IF(K29="","",IF(K29<=W29,K29,K29-W29)) ->  | W29: =IFERROR(VLOOKUP($CK29,・!$H$3:$I$700,2,FALSE),"") -> 200 | AF29: =IFERROR(VLOOKUP($CM29,・!$H$3:$I$700,2,FALSE),"") -> 110 | AX29: 白根 | BA29: ヨサ | BC29: =IFERROR(VLOOKUP($CO29,・!$H$3:$I$700,2,FALSE),"") -> 700 | BU29: 白根 | BV29: 20120 | BW29: 0 | BY29: 0 | BZ29: 0 | CB29: 0 | CC29: 0 | CE29: 白根 | CF29: 220121 | CG29: 0 | CH29: 0 | CJ29: 201201 | CK29: 201203 | CL29: 201205 | CM29: 201204 | CO29: 2201211
B30: 月潟 | E30: 新アマ日 | H30: =N30+W30 -> 1650 | N30: =IFERROR(VLOOKUP($CJ30,・!$H$3:$I$700,2,FALSE),"") -> 1620 | W30: =IFERROR(VLOOKUP($CK30,・!$H$3:$I$700,2,FALSE),"") -> 30 | BU30: 月潟 | BV30: 20122 | BW30: 0 | BY30: 0 | BZ30: 0 | CB30: 0 | CC30: 0 | CG30: 0 | CH30: 0 | CJ30: 201221 | CK30: 201223 | CL30: 201225 | CM30: 201224
B31: 新飯田 | E31: 合 | H31: 940 | N31: =IFERROR(VLOOKUP($CJ31,・!$H$3:$I$700,2,FALSE),"") -> 930 | W31: =IFERROR(VLOOKUP($CK31,・!$H$3:$I$700,2,FALSE),"") -> 10 | BU31: 新飯田 | BV31: 20123 | BW31: 0 | BY31: 0 | BZ31: 0 | CB31: 0 | CC31: 0 | CG31: 0 | CH31: 0 | CJ31: 201231 | CK31: 201233 | CL31: 201235 | CM31: 201234
B32: 050 | C32: 小計 | E32: =Q32+T32+W32+AC32+AI32+BF32 -> 0 | H32: =SUM(H29:J31) -> 6040 | K32: =SUM(K29:M31) -> 0 | N32: =SUM(N29:P31) -> 5800 | Q32: =SUM(Q29:S31) -> 0 | T32: =SUM(T29:V31) -> 0 | W32: =CA32 -> 0 | AF32: =SUM(AF29:AH31) -> 110 | AI32: =SUM(AI29:AK31) -> 0 | AX32: 小計 | BC32: =SUM(BC29:BE31) -> 700 | BF32: =SUM(BF29:BH31) -> 0 | BU32: =SUM(BY29:CC31,CG29:CG31) -> 0 | BW32: =SUM(BW29:BW31) -> 0 | BX32: =SUM(BX29:BX31) -> 0 | BY32: 0 | CA32: =SUM(CA29:CA31) -> 0 | CB32: =SUM(CB29:CB31) -> 0 | CC32: 0 | CG32: =SUM(CG29:CG31) -> 0
A33: 三条市・燕市・加茂市 | B33: 三条北 | E33: 新アマサ日 | N33: =IFERROR(VLOOKUP($CJ33,・!$H$3:$I$700,2,FALSE),"") -> 9580 | AF33: =IFERROR(VLOOKUP($CM33,・!$H$3:$I$700,2,FALSE),"") -> 270 | AX33: 三条 | BA33: ヨ | BC33: =IFERROR(VLOOKUP($CO33,・!$H$3:$I$700,2,FALSE),"") -> 5100 | BU33: 三条北 | BV33: 20124 | BW33: 0 | BX33: 0 | BY33: 0 | BZ33: 0 | CB33: 0 | CC33: 0 | CE33: 三条 | CF33: 220129 | CG33: 0 | CH33: 0 | CJ33: 201241 | CK33: 201243 | CL33: 201245 | CM33: 201244 | CO33: 2201291
B34: 三条南 | E34: 新アマサ日 | N34: =IFERROR(VLOOKUP($CJ34,・!$H$3:$I$700,2,FALSE),"") -> 2300 | AF34: =IFERROR(VLOOKUP($CM34,・!$H$3:$I$700,2,FALSE),"") -> 60 | BU34: 三条南 | BV34: 20125 | BW34: 0 | BX34: 0 | BY34: 0 | BZ34: 0 | CB34: 0 | CC34: 0 | CG34: 0 | CH34: 0 | CJ34: 201251 | CK34: 201253 | CL34: 201255 | CM34: 201254
B35: 060 | C35: 小計 | E35: =Q35+T35+W35+AC35+AI35+BF35 -> 0 | N35: =SUM(N33:P34) -> 11880 | Q35: =SUM(Q33:S34) -> 0 | AF35: =SUM(AF33:AH34) -> 330 | AI35: =SUM(AI33:AK34) -> 0 | AX35: 小計 | BC35: =SUM(BC33:BE34) -> 5100 | BF35: =SUM(BF33:BH34) -> 0 | BU35: =SUM(BY33:CC34,CG33:CG34) -> 0 | BW35: =SUM(BW33:BW34) -> 0 | BX35: =SUM(BX33:BX34) -> 0 | BY35: =SUM(BY33:BY34) -> 0 | CA35: =SUM(CA33:CA34) -> 0 | CB35: =SUM(CB33:CB34) -> 0 | CC35: =SUM(CC33:CC34) -> 0 | CG35: =SUM(CG33:CG34) -> 0
B36: 燕 | E36: 新アマサ日 | H36: =N36+W36 -> 5750 | N36: =IFERROR(VLOOKUP($CJ36,・!$H$3:$I$700,2,FALSE),"") -> 5700 | T36: =IF(K36="","",IF(K36<=W36,K36,K36-W36)) ->  | W36: =IFERROR(VLOOKUP($CK36,・!$H$3:$I$700,2,FALSE),"") -> 50 | AF36: =IFERROR(VLOOKUP($CM36,・!$H$3:$I$700,2,FALSE),"") -> 150 | AX36: 燕 | BA36: ヨ | BC36: =IFERROR(VLOOKUP($CO36,・!$H$3:$I$700,2,FALSE),"") -> 3250 | BU36: 燕 | BV36: 20130 | BW36: 0 | BY36: 0 | BZ36: 0 | CB36: 0 | CC36: 0 | CE36: 燕 | CF36: 220134 | CG36: 0 | CH36: 0 | CJ36: 201301 | CK36: 201303 | CL36: 201305 | CM36: 201304 | CO36: 2201341
B37: 燕南 | E37: 新アマサ日 | N37: =IFERROR(VLOOKUP($CJ37,・!$H$3:$I$700,2,FALSE),"") -> 1030 | AF37: =IFERROR(VLOOKUP($CM37,・!$H$3:$I$700,2,FALSE),"") -> 30 | BU37: 燕南 | BV37: 20131 | BW37: 0 | BX37: 0 | BY37: 0 | BZ37: 0 | CB37: 0 | CC37: 0 | CG37: 0 | CH37: 0 | CJ37: 201311 | CK37: 201313 | CL37: 201315 | CM37: 201314
B38: 070 | C38: 小計 | E38: =Q38+T38+W38+AC38+AI38+BF38 -> 0 | H38: =SUM(H36:J37) -> 5750 | K38: =SUM(K36:M37) -> 0 | N38: =SUM(N36:P37) -> 6730 | Q38: =SUM(Q36:S37) -> 0 | T38: =SUM(T36:V37) -> 0 | W38: =CA38 -> 0 | AF38: =SUM(AF36:AH37) -> 180 | AI38: =SUM(AI36:AK37) -> 0 | AX38: 小計 | BC38: =SUM(BC36:BE37) -> 3250 | BF38: =SUM(BF36:BH37) -> 0 | BU38: =SUM(BY36:CC37,CG36:CG37) -> 0 | BW38: =SUM(BW36:BW37) -> 0 | BX38: =SUM(BX36:BX37) -> 0 | BY38: 0 | CA38: =SUM(CA36:CA37) -> 0 | CB38: =SUM(CB36:CB37) -> 0 | CC38: 0 | CG38: =SUM(CG36:CG37) -> 0
B39: 加茂 | E39: 新アマサ日 | H39: =N39+W39 -> 7230 | N39: =IFERROR(VLOOKUP($CJ39,・!$H$3:$I$700,2,FALSE),"") -> 7150 | T39: =IF(K39="","",IF(K39<=W39,K39,K39-W39)) ->  | W39: =IFERROR(VLOOKUP($CK39,・!$H$3:$I$700,2,FALSE),"") -> 80 | AF39: =IFERROR(VLOOKUP($CM39,・!$H$3:$I$700,2,FALSE),"") -> 260 | AX39: 加茂 | BA39: ヨ | BC39: =IFERROR(VLOOKUP($CO39,・!$H$3:$I$700,2,FALSE),"") -> 1600 | BU39: 加茂 | BV39: 20135 | BW39: 0 | BY39: 0 | BZ39: 0 | CB39: 0 | CC39: 0 | CE39: 加茂 | CF39: 220137 | CG39: 0 | CH39: 0 | CJ39: 201351 | CK39: 201353 | CL39: 201355 | CM39: 201354 | CO39: 2201371
B40: 080 | C40: 小計 | E40: =Q40+T40+W40+AC40+AI40+BF40 -> 0 | H40: =SUM(H39) -> 7230 | K40: =SUM(K39) -> 0 | N40: =SUM(N39) -> 7150 | Q40: =SUM(Q39) -> 0 | T40: =SUM(T39) -> 0 | W40: =CA40 -> 0 | AF40: =SUM(AF39) -> 260 | AI40: =SUM(AI39) -> 0 | AX40: 小計 | BC40: =SUM(BC39) -> 1600 | BF40: =SUM(BF39) -> 0 | BU40: =SUM(BY39:CC39,CG39) -> 0 | BW40: =SUM(BW39) -> 0 | BX40: =SUM(BX39) -> 0 | BY40: 0 | CA40: =SUM(CA39) -> 0 | CB40: =SUM(CB39) -> 0 | CC40: 0 | CG40: =SUM(CG39) -> 0
A41: 旧南蒲原郡 | B41: 下田 | E41: 合 | N41: =IFERROR(VLOOKUP($CJ41,・!$H$3:$I$700,2,FALSE),"") -> 2000 | BU41: 下田 | BV41: 20139 | BW41: 0 | BX41: 0 | BY41: 0 | BZ41: 0 | CB41: 0 | CC41: 0 | CG41: 0 | CH41: 0 | CJ41: 201391 | CK41: 201393 | CL41: 201395 | CM41: 201394
B42: 栄山嵜 | E42: 合 | N42: =IFERROR(VLOOKUP($CJ42,・!$H$3:$I$700,2,FALSE),"") -> 1120 | BU42: 栄山嵜 | BV42: 20140 | BW42: 0 | BX42: 0 | BY42: 0 | BZ42: 0 | CB42: 0 | CC42: 0 | CG42: 0 | CH42: 0 | CJ42: 201401 | CK42: 201403 | CL42: 201405 | CM42: 201404
B43: 栄吉田 | E43: 合 | N43: =IFERROR(VLOOKUP($CJ43,・!$H$3:$I$700,2,FALSE),"") -> 300 | BU43: 栄吉田 | BV43: 20141 | BW43: 0 | BX43: 0 | BY43: 0 | BZ43: 0 | CB43: 0 | CC43: 0 | CG43: 0 | CH43: 0 | CJ43: 201411 | CK43: 201413 | CL43: 201415 | CM43: 201414
B44: 帯織 | E44: 合 | N44: =IFERROR(VLOOKUP($CJ44,・!$H$3:$I$700,2,FALSE),"") -> 340 | BU44: 帯織 | BV44: 20143 | BW44: 0 | BX44: 0 | BY44: 0 | BZ44: 0 | CB44: 0 | CC44: 0 | CG44: 0 | CH44: 0 | CJ44: 201431 | CK44: 201433 | CL44: 201435 | CM44: 201434
B45: 090 | C45: 小計 | E45: =Q45+T45+W45+AC45+AI45+BF45 -> 0 | N45: =SUM(N41:P44) -> 3760 | Q45: =SUM(Q41:S44) -> 0 | AX45: 小計 | BU45: =SUM(BY41:CC44,CG41:CG44) -> 0 | BW45: =SUM(BW41:BW44) -> 0 | BX45: =SUM(BX41:BX44) -> 0 | BY45: 0 | CA45: =SUM(CA41:CA44) -> 0 | CB45: =SUM(CB41:CB44) -> 0 | CC45: 0 | CG45: =SUM(CG41:CG44) -> 0
A46: 旧豊栄市 | B46: 豊栄 | E46: 新アマ日 | H46: =N46+W46 -> 6110 | N46: =IFERROR(VLOOKUP($CJ46,・!$H$3:$I$700,2,FALSE),"") -> 5490 | T46: =IF(K46="","",IF(K46<=W46,K46,K46-W46)) ->  | W46: =IFERROR(VLOOKUP($CK46,・!$H$3:$I$700,2,FALSE),"") -> 620 | Z46: =IFERROR(VLOOKUP(CL46,・!$H$3:$I$700,2,FALSE),"") -> 5820 | AF46: =IFERROR(VLOOKUP($CM46,・!$H$3:$I$700,2,FALSE),"") -> 260 | AX46: 豊栄 | BA46: ヨサ日 | BC46: =IFERROR(VLOOKUP($CO46,・!$H$3:$I$700,2,FALSE),"") -> 830 | BU46: 豊栄 | BV46: 20179 | BW46: =Q46 -> 0 | BX46: =T46 ->  | BY46: =SUM(BW46:BX46) -> 0 | BZ46: =AL46 -> 0 | CB46: =AC46 -> 0 | CC46: =AI46 -> 0 | CE46: 豊栄 | CF46: 220145 | CG46: 0 | CH46: 0 | CJ46: 201791 | CK46: 201793 | CL46: 201795 | CM46: 201794 | CO46: 2201451
B47: 木崎 | E47: 合 | H47: =N47+W47 -> 2390 | N47: =IFERROR(VLOOKUP($CJ47,・!$H$3:$I$700,2,FALSE),"") -> 2340 | W47: =IFERROR(VLOOKUP($CK47,・!$H$3:$I$700,2,FALSE),"") -> 50 | Z47: =IFERROR(VLOOKUP(CL47,・!$H$3:$I$700,2,FALSE),"") -> 1200 | AF47: =IFERROR(VLOOKUP($CM47,・!$H$3:$I$700,2,FALSE),"") -> 70 | BU47: 木崎 | BV47: 20146 | BW47: =Q47 -> 0 | BX47: =T47 ->  | BY47: =SUM(BW47:BX47) -> 0 | BZ47: =AL47 -> 0 | CA47: =IF($K47>$W47,$W47,"") ->  | CB47: =AC47 -> 0 | CC47: =AI47 -> 0 | CG47: 0 | CH47: 0 | CJ47: 201461 | CK47: 201463 | CL47: 201465 | CM47: 201464
B48: 100 | C48: 小計 | E48: =Q48+T48+W48+AC48+AI48+BF48 -> 0 | H48: =SUM(H46:J47) -> 8500 | K48: =SUM(K46:M47) -> 0 | N48: =SUM(N46:P47) -> 7830 | Q48: =SUM(Q46:S47) -> 0 | T48: =SUM(T46:V47) -> 0 | W48: =CA48 -> 0 | Z48: =SUM(Z46:AB47) -> 7020 | AC48: =SUM(AC46:AE47) -> 0 | AF48: =SUM(AF46:AH47) -> 330 | AI48: =SUM(AI46:AK47) -> 0 | AX48: 小計 | BC48: =SUM(BC46:BE47) -> 830 | BF48: =SUM(BF46:BH47) -> 0 | BU48: =SUM(BY46:CC47,CG46:CG47) -> 0 | BW48: =SUM(BW46:BW47) -> 0 | BX48: =SUM(BX46:BX47) -> 0 | BY48: =SUM(BY46:BY47) -> 0 | CA48: =SUM(CA46:CA47) -> 0 | CB48: =SUM(CB46:CB47) -> 0 | CC48: =SUM(CC46:CC47) -> 0 | CG48: =SUM(CG46:CG47) -> 0
A49: 合計 | E49: =SUM(E48,E45,E40,E38,E35,E32,E28,E24,E21,E17) -> 0 | H49: =SUM(H48,H45,H40,H38,H35,H32,H28,H24,H21,H17) -> 57460 | K49: =SUM(K48,K45,K40,K38,K35,K32,K28,K24,K21,K17) -> 0 | N49: =SUM(N48,N45,N40,N38,N35,N32,N28,N24,N21,N17) -> 95910 | Q49: =SUM(Q48,Q45,Q40,Q38,Q35,Q32,Q28,Q24,Q21,Q17) -> 0 | T49: =SUM(T48,T45,T40,T38,T35,T32,T28,T24,T21,T17) -> 0 | W49: =SUM(W48,W45,W40,W38,W35,W32,W28,W24,W21,W17) -> 0 | Z49: =SUM(Z48,Z45,Z40,Z38,Z35,Z32,Z28,Z24,Z21,Z17) -> 7020 | AC49: =SUM(AC48,AC45,AC40,AC38,AC35,AC32,AC28,AC24,AC21,AC17) -> 0 | AF49: =SUM(AF48,AF45,AF40,AF38,AF35,AF32,AF28,AF24,AF21,AF17) -> 2660 | AI49: =SUM(AI48,AI45,AI40,AI38,AI35,AI32,AI28,AI24,AI21,AI17) -> 0 | AX49: 合計 | BC49: =SUM(BC48,BC45,BC40,BC38,BC35,BC32,BC28,BC24,BC21,BC17) -> 12770 | BF49: =SUM(BF48,BF45,BF40,BF38,BF35,BF32,BF28,BF24,BF21,BF17) -> 0 | BU49: =SUM(BU48,BU45,BU40,BU38,BU35,BU32,BU28,BU24,BU21,BU17) -> 0 | BW49: =SUM(BW48,BW45,BW40,BW38,BW35,BW32,BW28,BW24,BW21,BW17) -> 0 | BX49: =SUM(BX48,BX45,BX40,BX38,BX35,BX32,BX28,BX24,BX21,BX17) -> 0 | BY49: =SUM(BY48,BY45,BY40,BY38,BY35,BY32,BY28,BY24,BY21,BY17) -> 0 | CA49: =SUM(CA48,CA45,CA40,CA38,CA35,CA32,CA28,CA24,CA21,CA17) -> 0 | CB49: =SUM(CB48,CB45,CB40,CB38,CB35,CB32,CB28,CB24,CB21,CB17) -> 0 | CC49: =SUM(CC48,CC45,CC40,CC38,CC35,CC32,CC28,CC24,CC21,CC17) -> 0 | CG49: =SUM(CG48,CG45,CG40,CG38,CG35,CG32,CG28,CG24,CG21,CG17) -> 0 | CI49: =SUM(BY49:CH49) -> 0
AF50: ■Otona+ ※ がある販売店は一部朝刊時宅配エリアがございます。 | BY50: =SUM(BY49,CG49) -> 0

Sheet 下越２
BI1: =新潟市!BI1 -> ２０２３年１２月１日 現在
A2: 折込日 | M2: スポンサー名 | AD2: サイズ | AI2: チラシ内容・タイトル詳細 | AX2: 朝刊 小計 | BE2: Otona＋ 小計 | BL2: ページ枚数
A3: =新潟市!A3 -> 2023/--/-- | M3: =新潟市!M3 -> 0 | AB3: 様 | AD3: =新潟市!AD3 -> 0 | AI3: =新潟市!AI3 -> 0 | AX3: =BY52+CG52 -> 0 | BE3: =CC52 -> 0 | BL3: =SUM(AX3,BE3,AX5,BE5) -> 0
A4: assh ポスティング日 | M4: ご請求先名 | AD4: ガタチラ 掲載 | AX4: くるみる 小計 | BE4: assh 小計 | BL4: 総枚数
A5: =新潟市!A5 -> 2023/--/-- | M5: =新潟市!M5 -> 0 | AB5: 様 | AD5: =新潟市!AD5 -> 0 | AX5: =CA52 -> 0 | BE5: =CB52 -> 0 | BL5: =新潟市!BL5 -> 0
A7: 02 | B7: 新潟日報 | Z7: ポスティング（assh） | AF7: Otona+ | AL7: 備考 | AX7: 中央紙 | BI7: 備考 | BU7: 朝刊 | CA7: くるみる | CB7: assh | CC7: otona | CE7: 中央紙 朝刊 | CJ7: 日報 | CP7: 中央紙
B8: 販売店名 | E8: 取扱い紙 | H8: 朝刊＋くるみる | K8: 配布数 | N8: 朝刊扱数 | Q8: 配布数 | T8: 朝刊数 | W8: くるみる数 | Z8: 部数 | AC8: 配布数 | AF8: 部数 | AI8: 配布数 | AX8: 販売店名 | BA8: 取扱い紙 | BC8: 部数 | BF8: 配布数 | BU8: 販売店名 | BV8: E | BW8: 朝刊1 | BX8: 朝刊２ | BY8: 部 | BZ8: 指示 | CA8: 部 | CB8: 部 | CC8: 部 | CE8: 販売店名 | CF8: E | CG8: 部 | CH8: 指示 | CJ8: 朝刊 | CK8: くるみる | CL8: assh | CM8: Otona+ | CN8: ミニック | CP8: 朝刊
A9: 新発田市 | B9: 新発田西 | E9: 新アマ日 | H9: =N9+W9 -> 10500 | N9: =IFERROR(VLOOKUP($CJ9,・!$H$3:$I$700,2,FALSE),"") -> 9670 | T9: =IF(K9="","",IF(K9<=W9,K9,K9-W9)) ->  | W9: =IFERROR(VLOOKUP(CK9,・!$H$3:$I$700,2,FALSE),"") -> 830 | AF9: =IFERROR(VLOOKUP($CM9,・!$H$3:$I$700,2,FALSE),"") -> 350 | AX9: 新発田 | BA9: ヨサ | BC9: =IFERROR(VLOOKUP($CP9,・!$H$3:$I$700,2,FALSE),"") -> 3100 | BU9: 新発田西 | BV9: 20148 | BW9: =Q9 -> 0 | BX9: =T9 ->  | BY9: =SUM(BW9:BX9) -> 0 | BZ9: =AL9 -> 0 | CA9: =IF($K9>$W9,$W9,"") ->  | CB9: =AC9 -> 0 | CC9: =AI9 -> 0 | CE9: 新発田 | CF9: 220152 | CG9: =BF9 -> 0 | CH9: =BI9 -> 0 | CJ9: 201481 | CK9: 201483 | CL9: 201485 | CM9: 201484 | CN9: 201487 | CP9: 2201521
B10: 新発田東 | E10: 新アマ日 | H10: =N10+W10 -> 9900 | N10: =IFERROR(VLOOKUP($CJ10,・!$H$3:$I$700,2,FALSE),"") -> 9320 | T10: =IF(K10="","",IF(K10<=W10,K10,K10-W10)) ->  | W10: =IFERROR(VLOOKUP(CK10,・!$H$3:$I$700,2,FALSE),"") -> 580 | AF10: =IFERROR(VLOOKUP($CM10,・!$H$3:$I$700,2,FALSE),"") -> 300 | BU10: 新発田東 | BV10: 20149 | BW10: =Q10 -> 0 | BX10: =T10 ->  | BY10: =SUM(BW10:BX10) -> 0 | BZ10: =AL10 -> 0 | CA10: =IF($K10>$W10,$W10,"") ->  | CB10: =AC10 -> 0 | CC10: =AI10 -> 0 | CG10: =BF10 -> 0 | CJ10: 201491 | CK10: 201493 | CL10: 201495 | CM10: 201494 | CN10: 201497
B11: 月岡 | E11: 合 | H11: 1920 | N11: =IFERROR(VLOOKUP($CJ11,・!$H$3:$I$700,2,FALSE),"") -> 1890 | T11: =IF(K11="","",IF(K11<=W11,K11,K11-W11)) ->  | W11: =IFERROR(VLOOKUP(CK11,・!$H$3:$I$700,2,FALSE),"") -> 30 | BU11: 月岡 | BV11: 20153 | BW11: 0 | BY11: 0 | BZ11: 0 | CB11: 0 | CC11: 0 | CG11: 0 | CJ11: 201531 | CK11: 201533 | CL11: 201535 | CM11: 201534 | CN11: 201537
B12: 110 | C12: 小計 | E12: =Q12+T12+W12+AC12+AI12+BF12 -> 0 | H12: =SUM(H9:J11) -> 22320 | K12: =SUM(K9:M11) -> 0 | N12: =SUM(N9:P11) -> 20880 | Q12: =SUM(Q9:S11) -> 0 | T12: =SUM(T9:V11) -> 0 | W12: =CA12 -> 0 | Z12: =SUM(Z9:AB11) -> 0 | AC12: =SUM(AC9:AE11) -> 0 | AF12: =SUM(AF9:AH11) -> 650 | AI12: =SUM(AI9:AK11) -> 0 | AX12: 小計 | BC12: =SUM(BC9:BE11) -> 3100 | BF12: =SUM(BF9:BH11) -> 0 | BU12: =SUM(BY12,CA12:CC12,CG12) -> 0 | BW12: =SUM(BW9:BW11) -> 0 | BX12: 0 | BY12: 0 | BZ12: 0 | CA12: 0 | CB12: 0 | CC12: 0 | CG12: =SUM(CG9:CG11) -> 0
A13: 旧北蒲原郡 | B13: 中条東 | E13: 新アマ日 | N13: =IFERROR(VLOOKUP($CJ13,・!$H$3:$I$700,2,FALSE),"") -> 1800 | AX13: 中条 | BA13: ヨ | BC13: =IFERROR(VLOOKUP($CP13,・!$H$3:$I$700,2,FALSE),"") -> 970 | BU13: 中条東 | BV13: 20154 | BW13: 0 | BX13: 0 | BY13: 0 | BZ13: 0 | CB13: 0 | CC13: 0 | CE13: 中条 | CF13: 220156 | CG13: 0 | CH13: =BI13 -> 0 | CJ13: 201541 | CK13: 201543 | CL13: 201545 | CM13: 201544 | CN13: 201547 | CP13: 2201561
B14: 西中条 | E14: 新アマ日 | N14: =IFERROR(VLOOKUP($CJ14,・!$H$3:$I$700,2,FALSE),"") -> 1450 | AX14: 水原 | BA14: ヨサ | BC14: =IFERROR(VLOOKUP($CP14,・!$H$3:$I$700,2,FALSE),"") -> 1150 | BU14: 西中条 | BV14: 20155 | BW14: 0 | BX14: 0 | BY14: 0 | BZ14: 0 | CB14: 0 | CC14: 0 | CE14: 水原 | CF14: 220160 | CG14: 0 | CH14: 0 | CJ14: 201551 | CK14: 201553 | CL14: 201555 | CM14: 201554 | CN14: 201557 | CP14: 2201601
B15: 黒川 | E15: 合 | N15: =IFERROR(VLOOKUP($CJ15,・!$H$3:$I$700,2,FALSE),"") -> 2170 | BU15: 黒川 | BV15: 20157 | BW15: 0 | BX15: 0 | BY15: 0 | BZ15: 0 | CB15: 0 | CC15: 0 | CG15: 0 | CJ15: 201571 | CK15: 201573 | CL15: 201575 | CM15: 201574 | CN15: 201577
B16: 水原 | E16: 新アマ日 | H16: =N16+W16 -> 5900 | N16: =IFERROR(VLOOKUP($CJ16,・!$H$3:$I$700,2,FALSE),"") -> 5700 | T16: =IF(K16="","",IF(K16<=W16,K16,K16-W16)) ->  | W16: =IFERROR(VLOOKUP(CK16,・!$H$3:$I$700,2,FALSE),"") -> 200 | Z16: =IFERROR(VLOOKUP(CL16,・!$H$3:$I$700,2,FALSE),"") -> 110 | AF16: =IFERROR(VLOOKUP($CM16,・!$H$3:$I$700,2,FALSE),"") -> 120 | BU16: 水原 | BV16: 20158 | BW16: 0 | BY16: 0 | BZ16: 0 | CB16: 0 | CC16: 0 | CG16: 0 | CJ16: 201581 | CK16: 201583 | CL16: 201585 | CM16: 201584 | CN16: 201587
B17: 保田 | E17: 合 | N17: =IFERROR(VLOOKUP($CJ17,・!$H$3:$I$700,2,FALSE),"") -> 2450 | AF17: =IFERROR(VLOOKUP($CM17,・!$H$3:$I$700,2,FALSE),"") -> 110 | BU17: 保田 | BV17: 20161 | BW17: 0 | BX17: 0 | BY17: 0 | BZ17: 0 | CB17: 0 | CC17: 0 | CG17: 0 | CJ17: 201611 | CK17: 201613 | CL17: 201615 | CM17: 201614 | CN17: 201617
B18: 120 | C18: 小計 | E18: =Q18+T18+W18+AC18+AI18+BF18 -> 0 | H18: =SUM(H13:J17) -> 5900 | K18: =SUM(K13:M17) -> 0 | N18: =SUM(N13:P17) -> 13570 | Q18: =SUM(Q13:S17) -> 0 | T18: =SUM(T13:V17) -> 0 | W18: =CA18 -> 0 | Z18: =SUM(Z13:AB17) -> 110 | AC18: =SUM(AC13:AE17) -> 0 | AF18: =SUM(AF13:AH17) -> 230 | AI18: =SUM(AI13:AK17) -> 0 | AX18: 小計 | BC18: =SUM(BC13:BE17) -> 2120 | BF18: =SUM(BF13:BH17) -> 0 | BU18: =SUM(BY18,CA18:CC18,CG18) -> 0 | BW18: =SUM(BW13:BW17) -> 0 | BX18: =SUM(BX13:BX17) -> 0 | BY18: 0 | CA18: =SUM(CA13:CA17) -> 0 | CB18: =SUM(CB13:CB17) -> 0 | CC18: 0 | CG18: =SUM(CG13:CG17) -> 0
A19: 村上市 | B19: 村上 | E19: 合 | N19: =IFERROR(VLOOKUP($CJ19,・!$H$3:$I$700,2,FALSE),"") -> 7340 | BU19: 村上 | BV19: 20162 | BW19: 0 | BX19: 0 | BY19: 0 | BZ19: 0 | CB19: 0 | CC19: 0 | CG19: 0 | CJ19: 201621 | CK19: 201623 | CL19: 201625 | CM19: 201624 | CN19: 201627
B20: 岩船 | E20: 合 | N20: =IFERROR(VLOOKUP($CJ20,・!$H$3:$I$700,2,FALSE),"") -> 2200 | BU20: 岩船 | BV20: 20163 | BW20: 0 | BX20: 0 | BY20: 0 | BZ20: 0 | CB20: 0 | CC20: 0 | CG20: 0 | CJ20: 201631 | CK20: 201633 | CL20: 201635 | CM20: 201634 | CN20: 201637
B21: 越後早川 | E21: 合 | N21: =IFERROR(VLOOKUP($CJ21,・!$H$3:$I$700,2,FALSE),"") -> 320 | BU21: 越後早川 | BV21: 20164 | BW21: 0 | BX21: 0 | BY21: 0 | BZ21: 0 | CB21: 0 | CC21: 0 | CG21: 0 | CJ21: 201641 | CK21: 201643 | CL21: 201645 | CM21: 201644 | CN21: 201647
B22: 130 | C22: 小計 | E22: =Q22+T22+W22+AC22+AI22+BF22 -> 0 | N22: =SUM(N19:P21) -> 9860 | Q22: =SUM(Q19:S21) -> 0 | AX22: 小計 | BU22: =SUM(BY22,CA22:CC22,CG22) -> 0 | BW22: =SUM(BW19:BW21) -> 0 | BX22: =SUM(BX19:BX21) -> 0 | BY22: 0 | CA22: =SUM(CA19:CA21) -> 0 | CB22: =SUM(CB19:CB21) -> 0 | CC22: 0 | CG22: =SUM(CG19:CG21) -> 0
A23: 岩船郡 | B23: 坂町 | E23: 合 | N23: =IFERROR(VLOOKUP($CJ23,・!$H$3:$I$700,2,FALSE),"") -> 1880 | BU23: 坂町 | BV23: 20165 | BW23: 0 | BX23: 0 | BY23: 0 | BZ23: 0 | CB23: 0 | CC23: 0 | CG23: 0 | CH23: =BI50 -> 0 | CJ23: 201651 | CK23: 201653 | CL23: 201655 | CM23: 201654 | CN23: 201657
B24: 関川 | E24: 合 | N24: =IFERROR(VLOOKUP($CJ24,・!$H$3:$I$700,2,FALSE),"") -> 1200 | BU24: 関川 | BV24: 20167 | BW24: 0 | BX24: 0 | BY24: 0 | BZ24: 0 | CB24: 0 | CC24: 0 | CG24: 0 | CH24: 0 | CJ24: 201671 | CK24: 201673 | CL24: 201675 | CM24: 201674 | CN24: 201677
B25: 府屋 | E25: 合 | N25: =IFERROR(VLOOKUP($CJ25,・!$H$3:$I$700,2,FALSE),"") -> 960 | BU25: 府屋 | BV25: 20170 | BW25: 0 | BX25: 0 | BY25: 0 | BZ25: 0 | CB25: 0 | CC25: 0 | CG25: 0 | CH25: =BI53 -> 0 | CJ25: 201701 | CK25: 201703 | CL25: 201705 | CM25: 201704 | CN25: 201707
B26: 黒川俣 | E26: 合 | N26: =IFERROR(VLOOKUP($CJ26,・!$H$3:$I$700,2,FALSE),"") -> 200 | BU26: 黒川俣 | BV26: 20172 | BW26: 0 | BX26: 0 | BY26: 0 | BZ26: 0 | CB26: 0 | CC26: 0 | CG26: 0 | CH26: =BI52 -> 0 | CJ26: 201721 | CK26: 201723 | CL26: 201725 | CM26: 201724 | CN26: 201727
B27: 140 | C27: 小計 | E27: =Q27+T27+W27+AC27+AI27+BF27 -> 0 | N27: =SUM(N23:P26) -> 4240 | Q27: =SUM(Q23:S26) -> 0 | AX27: 小計 | BU27: =SUM(BY27,CA27:CC27,CG27) -> 0 | BW27: =SUM(BW23:BW26) -> 0 | BX27: =SUM(BX23:BX26) -> 0 | BY27: 0 | CA27: =SUM(CA23:CA26) -> 0 | CB27: =SUM(CB23:CB26) -> 0 | CC27: 0 | CG27: =SUM(CG23:CG26) -> 0
A28: 旧東蒲原郡・※山形県 | B28: 津川 | E28: 合 | N28: =IFERROR(VLOOKUP($CJ28,・!$H$3:$I$700,2,FALSE),"") -> 1600 | BU28: 津川 | BV28: 20173 | BW28: 0 | BX28: 0 | BY28: 0 | BZ28: 0 | CB28: 0 | CC28: 0 | CG28: 0 | CJ28: 201731 | CK28: 201733 | CL28: 201735 | CM28: 201734 | CN28: 201737
B29: 豊実 | E29: 合 | N29: =IFERROR(VLOOKUP($CJ29,・!$H$3:$I$700,2,FALSE),"") -> 60 | BU29: 豊実 | BV29: 20174 | BW29: 0 | BX29: 0 | BY29: 0 | BZ29: 0 | CB29: 0 | CC29: 0 | CG29: 0 | CJ29: 201741 | CK29: 201743 | CL29: 201745 | CM29: 201744 | CN29: 201747
B30: 日出谷 | E30: 合 | N30: =IFERROR(VLOOKUP($CJ30,・!$H$3:$I$700,2,FALSE),"") -> 180 | BU30: 日出谷 | BV30: 20175 | BW30: 0 | BX30: 0 | BY30: 0 | BZ30: 0 | CB30: 0 | CC30: 0 | CG30: 0 | CJ30: 201751 | CK30: 201753 | CL30: 201755 | CM30: 201754 | CN30: 201757
B31: 鹿瀬 | E31: 合 | N31: =IFERROR(VLOOKUP($CJ31,・!$H$3:$I$700,2,FALSE),"") -> 280 | BU31: 鹿瀬 | BV31: 20176 | BW31: 0 | BX31: 0 | BY31: 0 | BZ31: 0 | CB31: 0 | CC31: 0 | CG31: 0 | CJ31: 201761 | CK31: 201763 | CL31: 201765 | CM31: 201764 | CN31: 201767
B32: 白崎 | E32: 合 | N32: =IFERROR(VLOOKUP($CJ32,・!$H$3:$I$700,2,FALSE),"") -> 580 | BU32: 白崎 | BV32: 20177 | BW32: 0 | BX32: 0 | BY32: 0 | BZ32: 0 | CB32: 0 | CC32: 0 | CG32: 0 | CJ32: 201771 | CK32: 201773 | CL32: 201775 | CM32: 201774 | CN32: 201777
B33: 白崎・五十島 | E33: 合 | N33: =IFERROR(VLOOKUP($CJ33,・!$H$3:$I$700,2,FALSE),"") -> 60 | BU33: 白崎・五十島 | BV33: 20178 | BW33: 0 | BX33: 0 | BY33: 0 | BZ33: 0 | CB33: 0 | CC33: 0 | CG33: 0 | CJ33: 201781 | CK33: 201783 | CL33: 201785 | CM33: 201784 | CN33: 201787
B34: 保田・五十島 | E34: 合 | N34: =IFERROR(VLOOKUP($CJ34,・!$H$3:$I$700,2,FALSE),"") -> 90 | BU34: 保田・五十島 | BV34: 20182 | BW34: 0 | BX34: 0 | BY34: 0 | BZ34: 0 | CB34: 0 | CC34: 0 | CG34: 0 | CJ34: 201821 | CK34: 201823 | CL34: 201825 | CM34: 201824 | CN34: 201827
B35: 150 | C35: 小計 | E35: =Q35+T35+W35+AC35+AI35+BF35 -> 0 | N35: =SUM(N28:P34) -> 2850 | Q35: =SUM(Q28:S34) -> 0 | AX35: 小計 | BU35: =SUM(BY35,CA35:CC35,CG35) -> 0 | BW35: =SUM(BW28:BW34) -> 0 | BX35: =SUM(BX28:BX34) -> 0 | BY35: 0 | CA35: =SUM(CA28:CA34) -> 0 | CG35: =SUM(CG28:CG34) -> 0
B36: 小国 | E36: 合 | N36: =IFERROR(VLOOKUP($CJ36,・!$H$3:$I$700,2,FALSE),"") -> 2800 | BU36: 小国 | BV36: 20201 | BW36: 0 | BX36: 0 | BY36: 0 | BZ36: 0 | CB36: 0 | CC36: 0 | CG36: 0 | CJ36: 501511
B37: 160 | C37: 小計 | E37: =Q37+T37+W37+AC37+AI37+BF37 -> 0 | N37: =SUM(N36) -> 2800 | Q37: =SUM(Q36) -> 0 | AX37: 小計 | BU37: =SUM(BY37,CA37:CC37,CG37) -> 0 | BW37: =SUM(BW36) -> 0 | BX37: =SUM(BX36) -> 0 | BY37: 0 | CA37: =SUM(CA36) -> 0 | CG37: =SUM(CG36) -> 0
A38: 03 | B38: 両津 | E38: 新マ日 | N38: =IFERROR(VLOOKUP($CJ38,・!$H$3:$I$700,2,FALSE),"") -> 2200 | AX38: 両津 | BA38: ア | BC38: =IFERROR(VLOOKUP($CP38,・!$H$3:$I$700,2,FALSE),"") -> 630 | BU38: 両津 | BV38: 30101 | BW38: 0 | BX38: 0 | BY38: 0 | BZ38: 0 | CB38: 0 | CC38: 0 | CE38: 両津 | CF38: 30102 | CG38: 0 | CH38: =BI38 -> 0 | CJ38: 301011 | CK38: 301013 | CL38: 301015 | CM38: 301014 | CN38: 301017 | CP38: 301021
A39: 旧両津市・旧佐渡郡 | B39: 吉井 | E39: 新マ日 | N39: =IFERROR(VLOOKUP($CJ39,・!$H$3:$I$700,2,FALSE),"") -> 180 | AX39: 両津 | BA39: ヨサ | BC39: =IFERROR(VLOOKUP($CP39,・!$H$3:$I$700,2,FALSE),"") -> 830 | BU39: 吉井 | BV39: 30105 | BW39: 0 | BX39: 0 | BY39: 0 | BZ39: 0 | CB39: 0 | CC39: 0 | CE39: 両津 | CF39: 230103 | CG39: 0 | CH39: 0 | CJ39: 301051 | CK39: 301053 | CL39: 301055 | CM39: 301054 | CN39: 301057 | CP39: 2301031
B40: 010 | C40: 小計 | E40: =Q40+T40+W40+AC40+AI40+BF40 -> 0 | N40: =SUM(N38:P39) -> 2380 | Q40: =SUM(Q38:S39) -> 0 | AX40: 小計 | BC40: =SUM(BC38:BE39) -> 1460 | BF40: =SUM(BF38:BH39) -> 0 | BU40: =SUM(BY40,CA40:CC40,CG40) -> 0 | BW40: =SUM(BW38:BW39) -> 0 | BX40: =SUM(BX38:BX39) -> 0 | BY40: 0 | CA40: =SUM(CA38:CA39) -> 0 | CG40: =SUM(CG38:CG39) -> 0
B41: 真野 | E41: 新サ | N41: =IFERROR(VLOOKUP($CJ41,・!$H$3:$I$700,2,FALSE),"") -> 730 | AX41: 真野 | BA41: アマヨサ日 | BC41: =IFERROR(VLOOKUP($CP41,・!$H$3:$I$700,2,FALSE),"") -> 250 | BU41: 真野 | BV41: 30106 | BW41: 0 | BX41: 0 | BY41: 0 | BZ41: 0 | CB41: 0 | CC41: 0 | CE41: 真野 | CF41: 30107 | CG41: 0 | CH41: =BI41 -> 0 | CJ41: 301061 | CK41: 301063 | CL41: 301065 | CM41: 301064 | CN41: 301067 | CP41: 301071
B42: 新穂 | E42: 新マサ日 | N42: =IFERROR(VLOOKUP($CJ42,・!$H$3:$I$700,2,FALSE),"") -> 700 | AX42: 新穂 | BA42: ア | BC42: =IFERROR(VLOOKUP($CP42,・!$H$3:$I$700,2,FALSE),"") -> 70 | BU42: 新穂 | BV42: 30108 | BW42: 0 | BX42: 0 | BY42: 0 | BZ42: 0 | CB42: 0 | CC42: 0 | CE42: 新穂 | CF42: 30109 | CG42: 0 | CH42: 0 | CJ42: 301081 | CK42: 301083 | CL42: 301085 | CM42: 301084 | CN42: 301087 | CP42: 301091
B43: 畑野 | E43: 新 | N43: =IFERROR(VLOOKUP($CJ43,・!$H$3:$I$700,2,FALSE),"") -> 690 | AX43: 畑野 | BA43: アマヨサ日 | BC43: =IFERROR(VLOOKUP($CP43,・!$H$3:$I$700,2,FALSE),"") -> 250 | BU43: 畑野 | BV43: 30111 | BW43: 0 | BX43: 0 | BY43: 0 | BZ43: 0 | CB43: 0 | CC43: 0 | CE43: 畑野 | CF43: 30112 | CG43: 0 | CH43: 0 | CJ43: 301111 | CK43: 301113 | CL43: 301115 | CM43: 301114 | CN43: 301117 | CP43: 301121
B44: 佐和田 | E44: 新アマ日 | N44: =IFERROR(VLOOKUP($CJ44,・!$H$3:$I$700,2,FALSE),"") -> 1420 | AX44: 佐和田 | BA44: ヨサ | BC44: =IFERROR(VLOOKUP($CP44,・!$H$3:$I$700,2,FALSE),"") -> 270 | BU44: 佐和田 | BV44: 30114 | BW44: 0 | BX44: 0 | BY44: 0 | BZ44: 0 | CB44: 0 | CC44: 0 | CE44: 佐和田 | CF44: 230115 | CG44: 0 | CH44: 0 | CJ44: 301141 | CK44: 301143 | CL44: 301145 | CM44: 301144 | CN44: 301147 | CP44: 2301151
B45: 相川 | E45: 合 | N45: =IFERROR(VLOOKUP($CJ45,・!$H$3:$I$700,2,FALSE),"") -> 980 | AX45: 沢根 | BA45: ヨア | BC45: =IFERROR(VLOOKUP($CP45,・!$H$3:$I$700,2,FALSE),"") -> 40 | BU45: 相川 | BV45: 30110 | BW45: 0 | BX45: 0 | BY45: 0 | BZ45: 0 | CB45: 0 | CC45: 0 | CE45: 沢根 | CF45: 230116 | CG45: 0 | CH45: 0 | CJ45: 301101 | CK45: 301103 | CL45: 301105 | CM45: 301104 | CN45: 301107 | CP45: 2301161
B46: 金井 | E46: 合 | N46: =IFERROR(VLOOKUP($CJ46,・!$H$3:$I$700,2,FALSE),"") -> 850 | AX46: 相川 | BA46: ア | BC46: =IFERROR(VLOOKUP($CP46,・!$H$3:$I$700,2,FALSE),"") -> 120 | BU46: 金井 | BV46: 30121 | BW46: 0 | BX46: 0 | BY46: 0 | BZ46: 0 | CB46: 0 | CC46: 0 | CE46: 相川 | CF46: 30118 | CG46: 0 | CH46: 0 | CJ46: 301211 | CK46: 301213 | CL46: 301215 | CM46: 301214 | CN46: 301217 | CP46: 301181
B47: 羽茂 | E47: 合 | N47: =IFERROR(VLOOKUP($CJ47,・!$H$3:$I$700,2,FALSE),"") -> 800 | AX47: 相川 | BA47: ヨサ | BC47: =IFERROR(VLOOKUP($CP47,・!$H$3:$I$700,2,FALSE),"") -> 100 | BU47: 羽茂 | BV47: 30122 | BW47: 0 | BX47: 0 | BY47: 0 | BZ47: 0 | CB47: 0 | CC47: 0 | CE47: 相川 | CF47: 230120 | CG47: 0 | CH47: 0 | CJ47: 301221 | CK47: 301223 | CL47: 301225 | CM47: 301224 | CN47: 301227 | CP47: 2301201
B48: 小木 | E48: 新 | N48: =IFERROR(VLOOKUP($CJ48,・!$H$3:$I$700,2,FALSE),"") -> 470 | AX48: 小木 | BA48: アマサ日 | BC48: =IFERROR(VLOOKUP($CP48,・!$H$3:$I$700,2,FALSE),"") -> 150 | BU48: 小木 | BV48: 30124 | BW48: 0 | BX48: 0 | BY48: 0 | BZ48: 0 | CB48: 0 | CC48: 0 | CE48: 小木 | CF48: 30125 | CG48: 0 | CH48: 0 | CJ48: 301241 | CK48: 301243 | CL48: 301245 | CM48: 301244 | CN48: 301247 | CP48: 301251
B49: 赤泊 | E49: 合 | N49: =IFERROR(VLOOKUP($CJ49,・!$H$3:$I$700,2,FALSE),"") -> 450 | AX49: 小木 | BA49: ヨ | BC49: =IFERROR(VLOOKUP($CP49,・!$H$3:$I$700,2,FALSE),"") -> 140 | BU49: 赤泊 | BV49: 30127 | BW49: 0 | BX49: 0 | BY49: 0 | BZ49: 0 | CB49: 0 | CC49: 0 | CE49: 小木 | CF49: 230126 | CG49: 0 | CH49: 0 | CJ49: 301271 | CK49: 301273 | CL49: 301275 | CM49: 301274 | CN49: 301277 | CP49: 2301261
B50: 多田 | E50: 合 | N50: =IFERROR(VLOOKUP($CJ50,・!$H$3:$I$700,2,FALSE),"") -> 130 | BC50: =IFERROR(VLOOKUP($CP50,・!$H$3:$I$700,2,FALSE),"") ->  | BU50: 多田 | BV50: 30130 | BW50: 0 | BX50: 0 | BY50: 0 | BZ50: 0 | CB50: 0 | CC50: 0 | CG50: 0 | CJ50: 301301 | CK50: 301303 | CL50: 301305 | CM50: 301304 | CN50: 301307
B51: 020 | C51: 小計 | E51: =Q51+T51+W51+AC51+AI51+BF51 -> 0 | N51: =SUM(N41:P50) -> 7220 | Q51: =SUM(Q41:S50) -> 0 | AX51: 小計 | BC51: =SUM(BC41:BE50) -> 1390 | BF51: =SUM(BF41:BH50) -> 0 | BU51: =SUM(BY51,CA51:CC51,CG51) -> 0 | BW51: =SUM(BW41:BW50) -> 0 | BX51: =SUM(BX41:BX50) -> 0 | BY51: 0 | CA51: =SUM(CA41:CA50) -> 0 | CB51: =SUM(CB41:CB50) -> 0 | CC51: 0 | CG51: =SUM(CG41:CG50) -> 0
A52: 合計 | E52: =SUM(E51,E40,E37,E35,E27,E22,E18,E12) -> 0 | H52: =SUM(H51,H40,H37,H35,H27,H22,H18,H12) -> 28220 | K52: =SUM(K51,K40,K37,K35,K27,K22,K18,K12) -> 0 | N52: =SUM(N51,N40,N37,N35,N27,N22,N18,N12) -> 63800 | Q52: =SUM(Q51,Q40,Q37,Q35,Q27,Q22,Q18,Q12) -> 0 | T52: =SUM(T51,T40,T37,T35,T27,T22,T18,T12) -> 0 | W52: =SUM(W51,W40,W37,W35,W27,W22,W18,W12) -> 0 | Z52: =SUM(Z51,Z40,Z37,Z35,Z27,Z22,Z18,Z12) -> 110 | AC52: =SUM(AC51,AC40,AC37,AC35,AC27,AC22,AC18,AC12) -> 0 | AF52: =SUM(AF51,AF40,AF37,AF35,AF27,AF22,AF18,AF12) -> 880 | AI52: =SUM(AI51,AI40,AI37,AI35,AI27,AI22,AI18,AI12) -> 0 | AX52: 合計 | BC52: =SUM(BC51,BC40,BC37,BC35,BC27,BC22,BC18,BC12) -> 8070 | BF52: =SUM(BF51,BF40,BF37,BF35,BF27,BF22,BF18,BF12) -> 0 | BU52: =SUM(BU51,BU40,BU37,BU35,BU27,BU22,BU18,BU12) -> 0 | BW52: =SUM(BW51,BW40,BW37,BW35,BW27,BW22,BW18,BW12) -> 0 | BX52: =SUM(BX51,BX40,BX37,BX35,BX27,BX22,BX18,BX12) -> 0 | BY52: 0 | CA52: =SUM(CA51,CA40,CA37,CA35,CA27,CA22,CA18,CA12) -> 0 | CB52: =SUM(CB51,CB40,CB37,CB35,CB27,CB22,CB18,CB12) -> 0 | CC52: 0 | CG52: =SUM(CG51,CG40,CG37,CG35,CG27,CG22,CG18,CG12) -> 0 | CI52: =SUM(BY52:CH52) -> 0
AF53: ■Otona+ ※ がある販売店は一部朝刊時宅配エリアがございます。 | BY53: =SUM(BY52,CG52) -> 0

Sheet 中越1
BO1: =新潟市!BI1 -> ２０２３年１２月１日 現在
A2: 折込日 | N2: スポンサー名 | AE2: サイズ | AJ2: チラシ内容・タイトル詳細 | AZ2: 朝刊 小計 | BH2: Otona＋ 小計 | BP2: ページ枚数
A3: =新潟市!A3 -> 2023/--/-- | N3: =新潟市!M3 -> 0 | AC3: 様 | AE3: =新潟市!AD3 -> 0 | AJ3: =新潟市!AI3 -> 0 | AZ3: =CD39+CM39 -> 0 | BH3: =CI39 -> 0 | BP3: =SUM(AZ3,BH3,AZ5,BH5) -> 0
A4: assh ポスティング日 | N4: ご請求先名 | AE4: ガタチラ 掲載 | AZ4: くるみる 小計 | BH4: assh 小計 | BP4: 総枚数
A5: =新潟市!A5 -> 2023/--/-- | N5: =新潟市!M5 -> 0 | AC5: 様 | AE5: =新潟市!AD5 -> 0 | AZ5: =CF39 -> 0 | BH5: =CG39+CH39 -> 0 | BP5: =新潟市!BL5 -> 0
A7: 04 | B7: 新潟日報 | Z7: ポスティング （ｎ-assh）2週目 | AF7: ポスティング （ｎ-assh）4週目 | AL7: Otona+ | AR7: 備考 | BC7: 中央紙 | BN7: 備考 | BZ7: 朝刊 | CF7: くるみる | CG7: assh | CH7: assh | CI7: otona | CK7: 中央紙 朝刊 | CP7: 日報 | CV7: 中央紙
B8: 販売店名 | E8: 取扱い紙 | H8: 朝刊＋くるみる | K8: 配布数 | N8: 朝刊扱数 | Q8: 配布数 | T8: 朝刊数 | W8: くるみる数 | Z8: 部数 | AC8: 配布数 | AF8: 部数 | AI8: 配布数 | AL8: 部数 | AO8: 配布数 | BC8: 販売店名 | BF8: 取扱い紙 | BH8: 部数 | BK8: 配布数 | BZ8: 販売店名 | CA8: E | CB8: 朝刊1 | CC8: 朝刊２ | CD8: 部 | CE8: 指示 | CF8: 部 | CG8: 部 | CH8: 部 | CI8: 部 | CK8: 販売店名 | CL8: E | CM8: 部 | CN8: 指示 | CP8: 朝刊 | CQ8: くるみる | CR8: N-assh② | CS8: N-assh④ | CT8: Otona+ | CV8: 朝刊
A9: 旧長岡市 | B9: 長岡中央 | E9: 新アマサ日 | H9: =N9+W9 -> 5760 | N9: =IFERROR(VLOOKUP($CP9,・!$H$3:$I$700,2,FALSE),"") -> 5100 | T9: =IF(K9="","",IF(K9<=W9,K9,K9-W9)) ->  | W9: =IFERROR(VLOOKUP($CQ9,・!$H$3:$I$700,2,FALSE),"") -> 660 | Z9: =IFERROR(VLOOKUP($CR9,・!$H$3:$I$700,2,FALSE),"") -> 4760 | AF9: =IFERROR(VLOOKUP($CS9,・!$H$3:$I$700,2,FALSE),"") -> 4760 | AL9: =IFERROR(VLOOKUP($CT9,・!$H$3:$I$700,2,FALSE),"") -> 490 | BC9: 長岡 | BF9: ヨ | BH9: =IFERROR(VLOOKUP($CV9,・!$H$3:$I$700,2,FALSE),"") -> 3370 | BZ9: 長岡中央 | CA9: 40102 | CB9: =Q9 -> 0 | CC9: =T9 ->  | CD9: =SUM(CB9:CC9) -> 0 | CE9: =AR9 -> 0 | CF9: =IF($K9>$W9,$W9,"") ->  | CG9: =AC9 -> 0 | CH9: =AI9 -> 0 | CI9: =AO9 -> 0 | CK9: 長岡 | CL9: 240109 | CM9: =BK9 -> 0 | CN9: =BN9 -> 0 | CP9: 401021 | CQ9: 401023 | CR9: 4010261 | CS9: 4010263 | CT9: 401024 | CV9: 2401091
B10: 長岡南 | E10: 新アマサ日 | H10: =N10+W10 -> 1590 | N10: =IFERROR(VLOOKUP($CP10,・!$H$3:$I$700,2,FALSE),"") -> 1560 | T10: =IF(K10="","",IF(K10<=W10,K10,K10-W10)) ->  | W10: =IFERROR(VLOOKUP($CQ10,・!$H$3:$I$700,2,FALSE),"") -> 30 | Z10: =IFERROR(VLOOKUP($CR10,・!$H$3:$I$700,2,FALSE),"") -> 1430 | AF10: =IFERROR(VLOOKUP($CS10,・!$H$3:$I$700,2,FALSE),"") -> 1430 | AL10: =IFERROR(VLOOKUP($CT10,・!$H$3:$I$700,2,FALSE),"") -> 110 | BC10: 長岡南部 | BF10: ヨ | BH10: =IFERROR(VLOOKUP($CV10,・!$H$3:$I$700,2,FALSE),"") -> 1180 | BZ10: 長岡南 | CA10: 40300 | CB10: 0 | CD10: =SUM(CB10:CC10) -> 0 | CE10: 0 | CG10: 0 | CH10: 0 | CI10: 0 | CK10: 長岡南部 | CL10: 240110 | CM10: 0 | CN10: =BN10 -> 0 | CP10: 403001 | CQ10: 403003 | CR10: 4030061 | CS10: 4030063 | CT10: 403004 | CV10: 2401101
B11: 長岡東 | E11: 新アマサ日 | H11: =N11+W11 -> 6030 | N11: =IFERROR(VLOOKUP($CP11,・!$H$3:$I$700,2,FALSE),"") -> 5310 | T11: =IF(K11="","",IF(K11<=W11,K11,K11-W11)) ->  | W11: =IFERROR(VLOOKUP($CQ11,・!$H$3:$I$700,2,FALSE),"") -> 720 | Z11: =IFERROR(VLOOKUP($CR11,・!$H$3:$I$700,2,FALSE),"") -> 5640 | AF11: =IFERROR(VLOOKUP($CS11,・!$H$3:$I$700,2,FALSE),"") -> 5640 | AL11: =IFERROR(VLOOKUP($CT11,・!$H$3:$I$700,2,FALSE),"") -> 330 | BC11: 長岡西部 | BF11: ヨ | BH11: =IFERROR(VLOOKUP($CV11,・!$H$3:$I$700,2,FALSE),"") -> 2600 | BZ11: 長岡東 | CA11: 40104 | CB11: 0 | CD11: =SUM(CB11:CC11) -> 0 | CE11: 0 | CG11: 0 | CH11: 0 | CI11: 0 | CK11: 長岡西部 | CL11: 240112 | CM11: 0 | CN11: =BN11 -> 0 | CP11: 401041 | CQ11: 401043 | CR11: 4010461 | CS11: 4010463 | CT11: 401044 | CV11: 2401121
B12: 長岡新保 | E12: 新アマサ日 | H12: =N12+W12 -> 2940 | N12: =IFERROR(VLOOKUP($CP12,・!$H$3:$I$700,2,FALSE),"") -> 2840 | T12: =IF(K12="","",IF(K12<=W12,K12,K12-W12)) ->  | W12: =IFERROR(VLOOKUP($CQ12,・!$H$3:$I$700,2,FALSE),"") -> 100 | Z12: =IFERROR(VLOOKUP($CR12,・!$H$3:$I$700,2,FALSE),"") -> 2540 | AF12: =IFERROR(VLOOKUP($CS12,・!$H$3:$I$700,2,FALSE),"") -> 2540 | AL12: =IFERROR(VLOOKUP($CT12,・!$H$3:$I$700,2,FALSE),"") -> 90 | BC12: 長岡宮内 | BF12: ヨ | BH12: =IFERROR(VLOOKUP($CV12,・!$H$3:$I$700,2,FALSE),"") -> 1160 | BZ12: 長岡新保 | CA12: 40105 | CB12: 0 | CD12: =SUM(CB12:CC12) -> 0 | CE12: 0 | CG12: 0 | CH12: 0 | CI12: 0 | CK12: 長岡宮内 | CL12: 240123 | CM12: 0 | CN12: =BN12 -> 0 | CP12: 401051 | CQ12: 401053 | CR12: 4010561 | CS12: 4010563 | CT12: 401054 | CV12: 2401231
B13: 長岡悠久 | E13: 新アマサ日 | H13: 3400 | N13: =IFERROR(VLOOKUP($CP13,・!$H$3:$I$700,2,FALSE),"") -> 3300 | W13: =IFERROR(VLOOKUP($CQ13,・!$H$3:$I$700,2,FALSE),"") -> 100 | Z13: =IFERROR(VLOOKUP($CR13,・!$H$3:$I$700,2,FALSE),"") -> 3780 | AF13: =IFERROR(VLOOKUP($CS13,・!$H$3:$I$700,2,FALSE),"") -> 3780 | AL13: =IFERROR(VLOOKUP($CT13,・!$H$3:$I$700,2,FALSE),"") -> 120 | BZ13: 長岡悠久 | CA13: 40106 | CB13: 0 | CD13: 0 | CE13: 0 | CG13: 0 | CH13: 0 | CI13: 0 | CM13: 0 | CP13: 401061 | CQ13: 401063 | CR13: 4010661 | CS13: 4010663 | CT13: 401064
B14: 西長岡 | E14: 新アマサ日 | H14: 4140 | N14: =IFERROR(VLOOKUP($CP14,・!$H$3:$I$700,2,FALSE),"") -> 3920 | W14: =IFERROR(VLOOKUP($CQ14,・!$H$3:$I$700,2,FALSE),"") -> 220 | Z14: =IFERROR(VLOOKUP($CR14,・!$H$3:$I$700,2,FALSE),"") -> 5000 | AF14: =IFERROR(VLOOKUP($CS14,・!$H$3:$I$700,2,FALSE),"") -> 5000 | AL14: =IFERROR(VLOOKUP($CT14,・!$H$3:$I$700,2,FALSE),"") -> 170 | BZ14: 西長岡 | CA14: 40111 | CB14: 0 | CD14: 0 | CE14: 0 | CG14: 0 | CH14: 0 | CI14: 0 | CM14: 0 | CP14: 401111 | CQ14: 401113 | CR14: 4011161 | CS14: 4011163 | CT14: 401114
B15: 関原 | E15: 新アマサ日 | N15: =IFERROR(VLOOKUP($CP15,・!$H$3:$I$700,2,FALSE),"") -> 4500 | Z15: =IFERROR(VLOOKUP($CR15,・!$H$3:$I$700,2,FALSE),"") -> 5250 | AF15: =IFERROR(VLOOKUP($CS15,・!$H$3:$I$700,2,FALSE),"") -> 5250 | AL15: =IFERROR(VLOOKUP($CT15,・!$H$3:$I$700,2,FALSE),"") -> 150 | BZ15: 関原 | CA15: 40113 | CB15: 0 | CC15: 0 | CD15: 0 | CE15: 0 | CG15: 0 | CH15: 0 | CI15: 0 | CM15: 0 | CP15: 401131 | CQ15: 401133 | CR15: 4011361 | CS15: 4011363 | CT15: 401134
B16: 王寺川 | E16: 合 | H16: =N16+W16 -> 460 | N16: =IFERROR(VLOOKUP($CP16,・!$H$3:$I$700,2,FALSE),"") -> 410 | T16: =IF(K16="","",IF(K16<=W16,K16,K16-W16)) ->  | W16: =IFERROR(VLOOKUP($CQ16,・!$H$3:$I$700,2,FALSE),"") -> 50 | Z16: =IFERROR(VLOOKUP($CR16,・!$H$3:$I$700,2,FALSE),"") -> 170 | AF16: =IFERROR(VLOOKUP($CS16,・!$H$3:$I$700,2,FALSE),"") -> 170 | BZ16: 王寺川 | CA16: 40114 | CB16: 0 | CD16: 0 | CE16: 0 | CG16: 0 | CH16: 0 | CI16: 0 | CM16: 0 | CP16: 401141 | CQ16: 401143 | CR16: 4011461 | CS16: 4011463 | CT16: 401144
B17: 長岡江陽 | E17: 新アマサ日 | H17: =N17+W17 -> 2030 | N17: =IFERROR(VLOOKUP($CP17,・!$H$3:$I$700,2,FALSE),"") -> 2000 | T17: =IF(K17="","",IF(K17<=W17,K17,K17-W17)) ->  | W17: =IFERROR(VLOOKUP($CQ17,・!$H$3:$I$700,2,FALSE),"") -> 30 | Z17: =IFERROR(VLOOKUP($CR17,・!$H$3:$I$700,2,FALSE),"") -> 2500 | AF17: =IFERROR(VLOOKUP($CS17,・!$H$3:$I$700,2,FALSE),"") -> 2500 | AL17: =IFERROR(VLOOKUP($CT17,・!$H$3:$I$700,2,FALSE),"") -> 60 | BZ17: 長岡江陽 | CA17: 40115 | CB17: 0 | CD17: 0 | CE17: 0 | CG17: 0 | CH17: 0 | CI17: 0 | CM17: 0 | CP17: 401151 | CQ17: 401153 | CR17: 4011561 | CS17: 4011563 | CT17: 401154
B18: 黒条 | E18: 合 | H18: =N18+W18 -> 1840 | N18: =IFERROR(VLOOKUP($CP18,・!$H$3:$I$700,2,FALSE),"") -> 1660 | W18: =IFERROR(VLOOKUP($CQ18,・!$H$3:$I$700,2,FALSE),"") -> 180 | Z18: =IFERROR(VLOOKUP($CR18,・!$H$3:$I$700,2,FALSE),"") -> 1390 | AF18: =IFERROR(VLOOKUP($CS18,・!$H$3:$I$700,2,FALSE),"") -> 1390 | AL18: =IFERROR(VLOOKUP($CT18,・!$H$3:$I$700,2,FALSE),"") -> 40 | BZ18: 黒条 | CA18: 40116 | CB18: 0 | CD18: 0 | CE18: 0 | CG18: 0 | CH18: 0 | CI18: 0 | CM18: 0 | CP18: 401161 | CQ18: 401163 | CR18: 4011661 | CS18: 4011663 | CT18: 401164
B19: 新組 | E19: 合 | H19: =N19+W19 -> 1430 | N19: =IFERROR(VLOOKUP($CP19,・!$H$3:$I$700,2,FALSE),"") -> 1400 | W19: =IFERROR(VLOOKUP($CQ19,・!$H$3:$I$700,2,FALSE),"") -> 30 | Z19: =IFERROR(VLOOKUP($CR19,・!$H$3:$I$700,2,FALSE),"") -> 600 | AF19: =IFERROR(VLOOKUP($CS19,・!$H$3:$I$700,2,FALSE),"") -> 500 | AL19: =IFERROR(VLOOKUP($CT19,・!$H$3:$I$700,2,FALSE),"") -> 20 | BZ19: 新組 | CA19: 40117 | CB19: 0 | CD19: 0 | CE19: 0 | CG19: 0 | CH19: 0 | CI19: 0 | CM19: 0 | CP19: 401171 | CQ19: 401173 | CR19: 4011761 | CS19: 4011763 | CT19: 401174
B20: 長岡宮内 | E20: 新アマサ日 | H20: =N20+W20 -> 4200 | N20: =IFERROR(VLOOKUP($CP20,・!$H$3:$I$700,2,FALSE),"") -> 4100 | W20: =IFERROR(VLOOKUP($CQ20,・!$H$3:$I$700,2,FALSE),"") -> 100 | Z20: =IFERROR(VLOOKUP($CR20,・!$H$3:$I$700,2,FALSE),"") -> 5370 | AF20: =IFERROR(VLOOKUP($CS20,・!$H$3:$I$700,2,FALSE),"") -> 5370 | AL20: =IFERROR(VLOOKUP($CT20,・!$H$3:$I$700,2,FALSE),"") -> 180 | BZ20: 長岡宮内 | CA20: 40121 | CB20: 0 | CD20: 0 | CE20: 0 | CG20: 0 | CH20: 0 | CI20: 0 | CM20: 0 | CP20: 401211 | CQ20: 401213 | CR20: 4012161 | CS20: 4012163 | CT20: 401214
B21: 濁沢 | E21: 合 | N21: =IFERROR(VLOOKUP($CP21,・!$H$3:$I$700,2,FALSE),"") -> 260 | Z21: =IFERROR(VLOOKUP($CR21,・!$H$3:$I$700,2,FALSE),"") -> 200 | AF21: =IFERROR(VLOOKUP($CS21,・!$H$3:$I$700,2,FALSE),"") -> 200 | BZ21: 濁沢 | CA21: 40124 | CB21: 0 | CC21: 0 | CD21: 0 | CE21: 0 | CG21: 0 | CH21: 0 | CI21: 0 | CM21: 0 | CP21: 401241 | CQ21: 401243 | CR21: 4012461 | CS21: 4012463 | CT21: 401244
B22: 岡南 | E22: 合 | N22: =IFERROR(VLOOKUP($CP22,・!$H$3:$I$700,2,FALSE),"") -> 760 | Z22: =IFERROR(VLOOKUP($CR22,・!$H$3:$I$700,2,FALSE),"") -> 80 | AF22: =IFERROR(VLOOKUP($CS22,・!$H$3:$I$700,2,FALSE),"") -> 80 | BZ22: 岡南 | CA22: 40125 | CB22: 0 | CC22: 0 | CD22: 0 | CE22: 0 | CG22: 0 | CH22: 0 | CI22: 0 | CM22: 0 | CP22: 401251 | CQ22: 401253 | CR22: 4012561 | CS22: 4012563 | CT22: 401254
B23: 六日市 | E23: 合 | N23: =IFERROR(VLOOKUP($CP23,・!$H$3:$I$700,2,FALSE),"") -> 350 | Z23: =IFERROR(VLOOKUP($CR23,・!$H$3:$I$700,2,FALSE),"") -> 10 | AF23: =IFERROR(VLOOKUP($CS23,・!$H$3:$I$700,2,FALSE),"") -> 10 | BZ23: 六日市 | CA23: 40126 | CB23: 0 | CC23: 0 | CD23: 0 | CE23: 0 | CG23: 0 | CH23: 0 | CI23: 0 | CM23: 0 | CP23: 401261 | CQ23: 401263 | CR23: 4012661 | CS23: 4012663 | CT23: 401264
B24: 010 | C24: 小計 | E24: =Q24+T24+W24+AC24+AI24+AO24+BK24 -> 0 | H24: =SUM(H9:J23) -> 33820 | K24: =SUM(K9:M23) -> 0 | N24: =SUM(N9:P23) -> 37470 | Q24: =SUM(Q9:S23) -> 0 | T24: =SUM(T9:V23) -> 0 | W24: =CF24 -> 0 | Z24: =SUM(Z9:AB23) -> 38720 | AC24: =SUM(AC9:AE23) -> 0 | AF24: =SUM(AF9:AH23) -> 38620 | AI24: =SUM(AI9:AK23) -> 0 | AL24: =SUM(AL9:AN23) -> 1760 | AO24: =SUM(AO9:AQ15,AO17:AQ20) -> 0 | BC24: 小計 | BH24: =SUM(BH9:BJ23) -> 8310 | BK24: =SUM(BK9:BM23) -> 0 | BZ24: =SUM(CD24,CF24:CI24,CM24) -> 0 | CB24: =SUM(CB9:CB23) -> 0 | CC24: =SUM(CC9:CC23) -> 0 | CD24: =SUM(CD9:CD23) -> 0 | CF24: =SUM(CF9:CF23) -> 0 | CG24: =SUM(CG9:CG23) -> 0 | CH24: =SUM(CH9:CH23) -> 0 | CI24: =SUM(CI9:CI23) -> 0 | CM24: =SUM(CM9:CM23) -> 0
A25: 旧栃尾市・見附市 | B25: 栃尾 | E25: 新アマサ | N25: =IFERROR(VLOOKUP($CP25,・!$H$3:$I$700,2,FALSE),"") -> 2960 | Z25: =IFERROR(VLOOKUP($CR25,・!$H$3:$I$700,2,FALSE),"") -> 900 | AF25: =IFERROR(VLOOKUP($CS25,・!$H$3:$I$700,2,FALSE),"") -> 900 | BC25: 栃尾 | BF25: ヨ日 | BH25: =IFERROR(VLOOKUP($CV25,・!$H$3:$I$700,2,FALSE),"") -> 2000 | BZ25: 栃尾 | CA25: 40127 | CB25: =Q25 -> 0 | CC25: =T25 -> 0 | CD25: 0 | CE25: =AR25 -> 0 | CF25: =IF($K25>$W25,$W25,"") ->  | CG25: =AC25 -> 0 | CH25: =AI25 -> 0 | CI25: =AO25 -> 0 | CK25: 栃尾 | CL25: 240129 | CM25: =BK25 -> 0 | CN25: =BN25 -> 0 | CP25: 401271 | CQ25: 401273 | CR25: 4012761 | CS25: 4012763 | CT25: 401274 | CV25: 2401291
B26: 020 | C26: 小計 | E26: =Q26+T26+W26+AC26+AI26+AO26+BK26 -> 0 | N26: =SUM(N25) -> 2960 | Q26: =SUM(Q25) -> 0 | W26: =CF26 -> 0 | Z26: =SUM(Z25) -> 900 | AC26: =SUM(AC25) -> 0 | AF26: =SUM(AF25) -> 900 | AI26: =SUM(AI25) -> 0 | BC26: 小計 | BH26: =SUM(BH25) -> 2000 | BK26: =SUM(BK25) -> 0 | BZ26: =SUM(CD26,CF26:CI26,CM26) -> 0 | CB26: =SUM(CB25) -> 0 | CC26: =SUM(CC25) -> 0 | CD26: 0 | CF26: =SUM(CF25) -> 0 | CG26: =SUM(CG25) -> 0 | CH26: 0 | CI26: 0 | CM26: =SUM(CM25) -> 0
B27: 見附南 | E27: 新アマサ日 | N27: =IFERROR(VLOOKUP($CP27,・!$H$3:$I$700,2,FALSE),"") -> 2600 | Z27: =IFERROR(VLOOKUP($CR27,・!$H$3:$I$700,2,FALSE),"") -> 1500 | AF27: =IFERROR(VLOOKUP($CS27,・!$H$3:$I$700,2,FALSE),"") -> 20 | AL27: =IFERROR(VLOOKUP($CT27,・!$H$3:$I$700,2,FALSE),"") -> 90 | BC27: 見附 | BF27: ヨ | BH27: =IFERROR(VLOOKUP($CV27,・!$H$3:$I$700,2,FALSE),"") -> 1400 | BZ27: 見附南 | CA27: 40130 | CB27: =Q27 -> 0 | CC27: =T27 -> 0 | CD27: 0 | CE27: =AR27 -> 0 | CF27: =IF($K27>$W27,$W27,"") ->  | CG27: =AC27 -> 0 | CH27: =AI27 -> 0 | CI27: =AO27 -> 0 | CK27: 見附 | CL27: 240133 | CM27: =BK27 -> 0 | CN27: =BN27 -> 0 | CP27: 401301 | CQ27: 401303 | CR27: 4013061 | CS27: 4013063 | CT27: 401304 | CV27: 2401331
B28: 見附北 | E28: 新アマ日 | N28: =IFERROR(VLOOKUP($CP28,・!$H$3:$I$700,2,FALSE),"") -> 3350 | Z28: =IFERROR(VLOOKUP($CR28,・!$H$3:$I$700,2,FALSE),"") -> 3250 | AF28: 0 | AL28: =IFERROR(VLOOKUP($CT28,・!$H$3:$I$700,2,FALSE),"") -> 140 | BC28: 見附 | BF28: サ | BH28: =IFERROR(VLOOKUP($CV28,・!$H$3:$I$700,2,FALSE),"") -> 640 | BZ28: 見附北 | CA28: 40131 | CB28: =Q28 -> 0 | CC28: =T28 -> 0 | CD28: 0 | CE28: =AR28 -> 0 | CF28: =IF($K28>$W28,$W28,"") ->  | CG28: =AC28 -> 0 | CH28: =AI28 -> 0 | CI28: =AO28 -> 0 | CK28: 見附 | CL28: 40134 | CM28: =BK28 -> 0 | CN28: =BN28 -> 0 | CP28: 401311 | CQ28: 401313 | CR28: 4013161 | CS28: 4013163 | CT28: 401314 | CV28: 401341
B29: 今町 | E29: 新アマサ日 | N29: =IFERROR(VLOOKUP($CP29,・!$H$3:$I$700,2,FALSE),"") -> 3200 | Z29: =IFERROR(VLOOKUP($CR29,・!$H$3:$I$700,2,FALSE),"") -> 1610 | AF29: =IFERROR(VLOOKUP($CS29,・!$H$3:$I$700,2,FALSE),"") -> 460 | AL29: =IFERROR(VLOOKUP($CT29,・!$H$3:$I$700,2,FALSE),"") -> 130 | BC29: 今町 | BF29: ヨ | BH29: =IFERROR(VLOOKUP($CV29,・!$H$3:$I$700,2,FALSE),"") -> 600 | BZ29: 今町 | CA29: 40135 | CB29: =Q29 -> 0 | CC29: =T29 -> 0 | CD29: 0 | CE29: =AR29 -> 0 | CF29: =IF($K29>$W29,$W29,"") ->  | CG29: =AC29 -> 0 | CH29: =AI29 -> 0 | CI29: =AO29 -> 0 | CK29: 今町 | CL29: 240136 | CM29: =BK29 -> 0 | CN29: =BN29 -> 0 | CP29: 401351 | CQ29: 401353 | CR29: 4013561 | CS29: 4013563 | CT29: 401354 | CV29: 2401361
B30: 030 | C30: 小計 | E30: =Q30+T30+W30+AC30+AI30+AO30+BK30 -> 0 | N30: =SUM(N27:P29) -> 9150 | Q30: =SUM(Q27:S29) -> 0 | W30: =CF30 -> 0 | Z30: =SUM(Z27:AA29) -> 6360 | AC30: =SUM(AC27:AE29) -> 0 | AF30: =SUM(AF27:AH29) -> 480 | AI30: =SUM(AI27:AK29) -> 0 | AL30: =SUM(AL27:AN29) -> 360 | AO30: =SUM(AO27:AQ29) -> 0 | BC30: 小計 | BH30: =SUM(BH27:BI29) -> 2640 | BK30: =SUM(BK27:BM29) -> 0 | BZ30: =SUM(CD30,CF30:CI30,CM30) -> 0 | CB30: =SUM(CB27:CB29) -> 0 | CC30: =SUM(CC27:CC29) -> 0 | CD30: 0 | CF30: =SUM(CF27:CF29) -> 0 | CG30: =SUM(CG27:CG29) -> 0 | CH30: 0 | CI30: 0 | CM30: =SUM(CM27:CM29) -> 0
A31: 旧三島郡 | B31: 越路 | E31: 新アマサ日 | H31: =N31+W31 -> 2820 | N31: =IFERROR(VLOOKUP($CP31,・!$H$3:$I$700,2,FALSE),"") -> 2770 | T31: =IF(K31="","",IF(K31<=W31,K31,K31-W31)) ->  | W31: =IFERROR(VLOOKUP($CQ31,・!$H$3:$I$700,2,FALSE),"") -> 50 | Z31: =IFERROR(VLOOKUP($CR31,・!$H$3:$I$700,2,FALSE),"") -> 2470 | AF31: =IFERROR(VLOOKUP($CS31,・!$H$3:$I$700,2,FALSE),"") -> 2470 | AL31: 0 | BC31: 来迎寺 | BF31: ヨ | BH31: =IFERROR(VLOOKUP($CV31,・!$H$3:$I$700,2,FALSE),"") -> 590 | BZ31: 越路 | CA31: 40139 | CB31: =Q31 -> 0 | CC31: =T31 ->  | CD31: 0 | CE31: =AR31 -> 0 | CF31: =IF($K31>$W31,$W31,"") ->  | CG31: =AC31 -> 0 | CH31: =AI31 -> 0 | CI31: =AO31 -> 0 | CK31: 来迎寺 | CL31: 240140 | CM31: =BK31 -> 0 | CN31: =BN31 -> 0 | CP31: 401391 | CQ31: 401393 | CR31: 4013961 | CS31: 4013963 | CT31: 401394 | CV31: 2401401
B32: 塚山 | E32: 合 | N32: =IFERROR(VLOOKUP($CP32,・!$H$3:$I$700,2,FALSE),"") -> 790 | Z32: =IFERROR(VLOOKUP($CR32,・!$H$3:$I$700,2,FALSE),"") -> 130 | AF32: =IFERROR(VLOOKUP($CS32,・!$H$3:$I$700,2,FALSE),"") -> 130 | BZ32: 塚山 | CA32: 40141 | CB32: 0 | CC32: 0 | CD32: 0 | CE32: 0 | CG32: 0 | CH32: 0 | CI32: 0 | CM32: 0 | CP32: 401411 | CQ32: 401413 | CR32: 4014161 | CS32: 4014163 | CT32: 401414
B33: 与板 | E33: 合 | H33: =N33+W33 -> 2790 | N33: =IFERROR(VLOOKUP($CP33,・!$H$3:$I$700,2,FALSE),"") -> 2640 | T33: =IF(K33="","",IF(K33<=W33,K33,K33-W33)) ->  | W33: =IFERROR(VLOOKUP($CQ33,・!$H$3:$I$700,2,FALSE),"") -> 150 | Z33: =IFERROR(VLOOKUP($CR33,・!$H$3:$I$700,2,FALSE),"") -> 900 | AF33: =IFERROR(VLOOKUP($CS33,・!$H$3:$I$700,2,FALSE),"") -> 900 | BZ33: 与板 | CA33: 40144 | CB33: 0 | CD33: 0 | CE33: 0 | CG33: 0 | CH33: 0 | CI33: 0 | CM33: 0 | CP33: 401441 | CQ33: 401443 | CR33: 4014461 | CS33: 4014463 | CT33: 401444
B34: 大河津 | E34: 合 | N34: =IFERROR(VLOOKUP($CP34,・!$H$3:$I$700,2,FALSE),"") -> 1070 | BZ34: 大河津 | CA34: 40145 | CB34: 0 | CC34: 0 | CD34: 0 | CE34: 0 | CG34: 0 | CH34: 0 | CI34: 0 | CM34: 0 | CP34: 401451 | CQ34: 401453 | CR34: 4014561 | CS34: 4014563 | CT34: 401454
B35: 寺泊 | E35: 合 | N35: =IFERROR(VLOOKUP($CP35,・!$H$3:$I$700,2,FALSE),"") -> 1090 | BZ35: 寺泊 | CA35: 40146 | CB35: 0 | CC35: 0 | CD35: 0 | CE35: 0 | CG35: 0 | CH35: 0 | CI35: 0 | CM35: 0 | CP35: 401461 | CQ35: 401463 | CR35: 4014661 | CS35: 4014663 | CT35: 401464
B36: 和島 | E36: 合 | N36: =IFERROR(VLOOKUP($CP36,・!$H$3:$I$700,2,FALSE),"") -> 920 | BZ36: 和島 | CA36: 40147 | CB36: 0 | CC36: 0 | CD36: 0 | CE36: 0 | CG36: 0 | CH36: 0 | CI36: 0 | CM36: 0 | CP36: 401471 | CQ36: 401473 | CR36: 4014761 | CS36: 4014763 | CT36: 401474
B37: 西越 | E37: 合 | N37: =IFERROR(VLOOKUP($CP37,・!$H$3:$I$700,2,FALSE),"") -> 1180 | BZ37: 西越 | CA37: 40148 | CB37: 0 | CC37: 0 | CD37: 0 | CE37: 0 | CG37: 0 | CH37: 0 | CI37: 0 | CM37: 0 | CP37: 401481 | CQ37: 401483 | CR37: 4014861 | CS37: 4014863 | CT37: 401484
B38: 040 | C38: 小計 | E38: =Q38+T38+W38+AC38+AI38+AO38+BK38 -> 0 | H38: =SUM(H31:J37) -> 5610 | K38: =SUM(K31:M37) -> 0 | N38: =SUM(N31:P37) -> 10460 | Q38: =SUM(Q31:S37) -> 0 | T38: =SUM(T31:V37) -> 0 | W38: =CF38 -> 0 | Z38: =SUM(Z31:AB37) -> 3500 | AC38: =SUM(AC31:AE37) -> 0 | AF38: =SUM(AF31:AH37) -> 3500 | AI38: =SUM(AI31:AK37) -> 0 | BC38: 小計 | BH38: =SUM(BH31:BJ37) -> 590 | BK38: =SUM(BK31:BM37) -> 0 | BZ38: =SUM(CD38,CF38:CI38,CM38) -> 0 | CB38: =SUM(CB31:CB37) -> 0 | CC38: =SUM(CC31:CC37) -> 0 | CD38: =SUM(CD31:CD37) -> 0 | CE38: =SUM(CE8:CE37) -> 0 | CF38: =SUM(CF31:CF37) -> 0 | CG38: =SUM(CG31:CG37) -> 0 | CH38: 0 | CI38: 0 | CM38: =SUM(CM31:CM37) -> 0
A39: 合計 | E39: =SUM(E38,E30,E26,E24) -> 0 | H39: =SUM(H38,H30,H26,H24) -> 39430 | K39: =SUM(K38,K30,K26,K24) -> 0 | N39: =SUM(N38,N30,N26,N24) -> 60040 | Q39: =SUM(Q38,Q30,Q26,Q24) -> 0 | T39: =SUM(T38,T30,T26,T24) -> 0 | W39: =SUM(W38,W30,W26,W24) -> 0 | Z39: =SUM(Z38,Z30,Z26,Z24) -> 49480 | AC39: =SUM(AC38,AC30,AC26,AC24) -> 0 | AF39: =SUM(AF38,AF30,AF26,AF24) -> 43500 | AI39: =SUM(AI38,AI30,AI26,AI24) -> 0 | AL39: =SUM(AL38,AL30,AL26,AL24) -> 2120 | AO39: =SUM(AO38,AO30,AO26,AO24) -> 0 | BC39: 合計 | BH39: =SUM(BH38,BH30,BH26,BH24) -> 13540 | BK39: =SUM(BK38,BK30,BK26,BK24) -> 0 | BZ39: =SUM(BZ38,BZ30,BZ26,BZ24) -> 0 | CB39: =SUM(CB38,CB30,CB26,CB24) -> 0 | CC39: =SUM(CC38,CC30,CC26,CC24) -> 0 | CD39: 0 | CF39: =SUM(CF24,CF26,CF30,CF38) -> 0 | CG39: =SUM(CG38,CG30,CG26,CG24) -> 0 | CH39: 0 | CI39: =SUM(CI38,CI30,CI26,CI24) -> 0 | CM39: =SUM(CM38,CM30,CM26,CM24) -> 0 | CO39: =SUM(CD39:CN39) -> 0
AL40: ■Otona+ ※ がある販売店は一部朝刊時宅配エリアがございます。 | CD40: =SUM(CD39,CM39) -> 0

Sheet 中越２
BI1: =新潟市!BI1 -> ２０２３年１２月１日 現在
A2: 折込日 | M2: スポンサー名 | AD2: サイズ | AI2: チラシ内容・タイトル詳細 | AX2: 朝刊 小計 | BE2: Otona＋ 小計 | BL2: ページ枚数
A3: =新潟市!A3 -> 2023/--/-- | M3: =新潟市!M3 -> 0 | AB3: 様 | AD3: =新潟市!AD3 -> 0 | AI3: =新潟市!AI3 -> 0 | AX3: =BY42+CG42 -> 0 | BL3: =SUM(AX3,BE3,BE5,AX5) -> 0
A4: assh ポスティング日 | M4: ご請求先名 | AD4: ガタチラ 掲載 | AX4: くるみる 小計 | BE4: assh 小計 | BL4: 総枚数
A5: =新潟市!A5 -> 2023/--/-- | M5: =新潟市!M5 -> 0 | AB5: 様 | AD5: =新潟市!AD5 -> 0 | AX5: =CA42 -> 0 | BL5: =新潟市!BL5 -> 0
A7: 04 | B7: 新潟日報 | Z7: ポスティング | AF7: Otona+ | AL7: 備考 | AX7: 中央紙 | BI7: 備考 | BU7: 朝刊 | CA7: くるみる | CB7: assh | CC7: otona | CE7: 中央紙 朝刊 | CJ7: 日報 | CM7: 中央紙
B8: 販売店名 | E8: 取扱い紙 | H8: 朝刊＋くるみる | K8: 配布数 | N8: 朝刊扱数 | Q8: 配布数 | T8: 朝刊数 | W8: くるみる数 | Z8: 部数 | AC8: 配布数 | AF8: 部数 | AI8: 配布数 | AX8: 販売店名 | BA8: 取扱い紙 | BC8: 部数 | BF8: 配布数 | BU8: 販売店名 | BV8: E | BW8: 朝刊1 | BX8: 朝刊２ | BY8: 部 | BZ8: 指示 | CA8: 部 | CB8: 部 | CC8: 部 | CE8: 販売店名 | CF8: E | CG8: 部 | CH8: 指示 | CJ8: 朝刊 | CK8: くるみる | CM8: 朝刊
A9: 小千谷市 | B9: 小千谷中央 | E9: 新アマサ日 | N9: =IFERROR(VLOOKUP($CJ9,・!$H$3:$I$700,2,FALSE),"") -> 3730 | AX9: 小千谷 | BA9: ヨ | BC9: =IFERROR(VLOOKUP($CM9,・!$H$3:$I$700,2,FALSE),"") -> 1280 | BU9: 小千谷中央 | BV9: 40151 | BW9: =Q9 -> 0 | BX9: =W9 -> 0 | BY9: =SUM(BW9:BX9) -> 0 | BZ9: =AL9 -> 0 | CE9: 小千谷 | CF9: 240153 | CG9: =BF9 -> 0 | CH9: =BI9 -> 0 | CJ9: 401511 | CK9: 401513 | CM9: 2401531
B10: 小千谷東 | E10: 新アマサ日 | N10: =IFERROR(VLOOKUP($CJ10,・!$H$3:$I$700,2,FALSE),"") -> 1450 | BU10: 小千谷東 | BV10: 40152 | BW10: =Q10 -> 0 | BX10: =W10 -> 0 | BY10: =SUM(BW10:BX10) -> 0 | BZ10: =AL10 -> 0 | CG10: =BF10 -> 0 | CH10: =BI10 -> 0 | CJ10: 401521 | CK10: 401523
B11: 片貝 | E11: 合 | N11: =IFERROR(VLOOKUP($CJ11,・!$H$3:$I$700,2,FALSE),"") -> 1440 | BU11: 片貝 | BV11: 40154 | BW11: 0 | BX11: 0 | BY11: 0 | BZ11: 0 | CG11: 0 | CH11: 0 | CJ11: 401541 | CK11: 401543
B12: 岩沢 | E12: 合 | N12: =IFERROR(VLOOKUP($CJ12,・!$H$3:$I$700,2,FALSE),"") -> 630 | BU12: 岩沢 | BV12: 40155 | BW12: 0 | BX12: 0 | BY12: 0 | BZ12: 0 | CG12: 0 | CH12: 0 | CJ12: 401551 | CK12: 401553
B13: 050 | C13: 小計 | E13: =Q13+T13+W13+BF13 -> 0 | N13: =SUM(N9:P12) -> 7250 | Q13: =SUM(Q9:S12) -> 0 | AX13: 小計 | BC13: =SUM(BC9:BE12) -> 1280 | BF13: =SUM(BF9:BH12) -> 0 | BU13: =SUM(BY13,CA13:CC13,CG13) -> 0 | BW13: =SUM(BW9:BW12) -> 0 | BX13: =SUM(BX9:BX12) -> 0 | BY13: 0 | CA13: =SUM(CA9:CA12) -> 0 | CB13: 0 | CC13: 0 | CG13: =SUM(CG9:CG12) -> 0
A14: 十日町市 | B14: 十日町西部 | E14: 新アマサ日 | N14: =IFERROR(VLOOKUP($CJ14,・!$H$3:$I$700,2,FALSE),"") -> 2750 | AX14: 十日町 | BA14: ヨ日 | BC14: =IFERROR(VLOOKUP($CM14,・!$H$3:$I$700,2,FALSE),"") -> 1450 | BU14: 十日町西部 | BV14: 40156 | BW14: 0 | BX14: 0 | BY14: 0 | BZ14: 0 | CE14: 十日町 | CF14: 240159 | CG14: 0 | CH14: 0 | CJ14: 401561 | CK14: 401563 | CM14: 2401591
B15: 十日町東部 | E15: 新アマサ日 | N15: =IFERROR(VLOOKUP($CJ15,・!$H$3:$I$700,2,FALSE),"") -> 1100 | BU15: 十日町東部 | BV15: 40157 | BW15: 0 | BX15: 0 | BY15: 0 | BZ15: 0 | CG15: 0 | CH15: 0 | CJ15: 401571 | CK15: 401573
B16: 下条 | E16: 合 | N16: =IFERROR(VLOOKUP($CJ16,・!$H$3:$I$700,2,FALSE),"") -> 1030 | BU16: 下条 | BV16: 40162 | BW16: 0 | BX16: 0 | BY16: 0 | BZ16: 0 | CG16: 0 | CH16: 0 | CJ16: 401621 | CK16: 401623
B17: 魚沼中条 | E17: 合 | N17: =IFERROR(VLOOKUP($CJ17,・!$H$3:$I$700,2,FALSE),"") -> 870 | BU17: 魚沼中条 | BV17: 40163 | BW17: 0 | BX17: 0 | BY17: 0 | BZ17: 0 | CG17: 0 | CH17: 0 | CJ17: 401631 | CK17: 401633
B18: 水沢 | E18: 合 | N18: =IFERROR(VLOOKUP($CJ18,・!$H$3:$I$700,2,FALSE),"") -> 710 | BU18: 水沢 | BV18: 40164 | BW18: 0 | BX18: 0 | BY18: 0 | BZ18: 0 | CG18: 0 | CH18: 0 | CJ18: 401641 | CK18: 401643
B19: 伊達 | E19: 合 | N19: =IFERROR(VLOOKUP($CJ19,・!$H$3:$I$700,2,FALSE),"") -> 320 | BU19: 伊達 | BV19: 40165 | BW19: 0 | BX19: 0 | BY19: 0 | BZ19: 0 | CG19: 0 | CH19: 0 | CJ19: 401651 | CK19: 401653
B20: 060 | C20: 小計 | E20: =Q20+T20+W20+BF20 -> 0 | N20: =SUM(N14:P19) -> 6780 | Q20: =SUM(Q14:S19) -> 0 | AX20: 小計 | BC20: =SUM(BC14:BE19) -> 1450 | BF20: =SUM(BF14:BH19) -> 0 | BU20: =SUM(BY20,CA20:CC20,CG20) -> 0 | BW20: =SUM(BW14:BW19) -> 0 | BX20: =SUM(BX14:BX19) -> 0 | BY20: 0 | CA20: =SUM(CA14:CA19) -> 0 | CB20: 0 | CC20: 0 | CG20: =SUM(CG14:CG19) -> 0
A21: 旧北魚沼郡 | B21: 川口 | E21: 合 | N21: =IFERROR(VLOOKUP($CJ21,・!$H$3:$I$700,2,FALSE),"") -> 1050 | AX21: 小出 | BA21: ヨ | BC21: =IFERROR(VLOOKUP($CM21,・!$H$3:$I$700,2,FALSE),"") -> 1260 | BU21: 川口 | BV21: 40166 | BW21: 0 | BX21: 0 | BY21: 0 | BZ21: 0 | CE21: 小出 | CF21: 240170 | CG21: 0 | CH21: 0 | CJ21: 401661 | CK21: 401663 | CM21: 2401701
B22: 堀之内 | E22: 合 | N22: =IFERROR(VLOOKUP($CJ22,・!$H$3:$I$700,2,FALSE),"") -> 1720 | BU22: 堀之内 | BV22: 40167 | BW22: 0 | BX22: 0 | BY22: 0 | BZ22: 0 | CG22: 0 | CH22: 0 | CJ22: 401671 | CK22: 401673
B23: 小出 | E23: 新アマサ日 | N23: =IFERROR(VLOOKUP($CJ23,・!$H$3:$I$700,2,FALSE),"") -> 4320 | BU23: 小出 | BV23: 40168 | BW23: 0 | BX23: 0 | BY23: 0 | BZ23: 0 | CG23: 0 | CH23: 0 | CJ23: 401681 | CK23: 401683
B24: 魚沼北 | E24: 合 | N24: =IFERROR(VLOOKUP($CJ24,・!$H$3:$I$700,2,FALSE),"") -> 1980 | BU24: 魚沼北 | BV24: 40172 | BW24: 0 | BX24: 0 | BY24: 0 | BZ24: 0 | CG24: 0 | CH24: 0 | CJ24: 401721 | CK24: 401723
B25: 070 | C25: 小計 | E25: =Q25+T25+W25+BF25 -> 0 | N25: =SUM(N21:P24) -> 9070 | Q25: =SUM(Q21:S24) -> 0 | AX25: 小計 | BC25: =SUM(BC21:BE24) -> 1260 | BF25: =SUM(BF21:BH24) -> 0 | BU25: =SUM(BY25,CA25:CC25,CG25) -> 0 | BW25: =SUM(BW21:BW24) -> 0 | BX25: =SUM(BX21:BX24) -> 0 | BY25: 0 | CA25: =SUM(CA21:CA24) -> 0 | CB25: 0 | CC25: 0 | CG25: =SUM(CG21:CG24) -> 0
A26: 旧南魚沼郡 | B26: 浦佐 | E26: 合 | N26: =IFERROR(VLOOKUP($CJ26,・!$H$3:$I$700,2,FALSE),"") -> 1490 | AX26: 六日町 | BA26: ヨ | BC26: =IFERROR(VLOOKUP($CM26,・!$H$3:$I$700,2,FALSE),"") -> 1750 | BU26: 浦佐 | BV26: 40176 | BW26: 0 | BX26: 0 | BY26: 0 | BZ26: 0 | CE26: 六日町 | CF26: 240183 | CG26: 0 | CH26: 0 | CJ26: 401761 | CK26: 401763 | CM26: 2401831
B27: 大崎 | E27: 合 | N27: =IFERROR(VLOOKUP($CJ27,・!$H$3:$I$700,2,FALSE),"") -> 620 | AX27: 塩沢石打 | BA27: ヨ | BC27: =IFERROR(VLOOKUP($CM27,・!$H$3:$I$700,2,FALSE),"") -> 1400 | BU27: 大崎 | BV27: 40178 | BW27: 0 | BX27: 0 | BY27: 0 | BZ27: 0 | CE27: 塩沢石打 | CF27: 240185 | CG27: 0 | CH27: 0 | CJ27: 401781 | CK27: 401783 | CM27: 2401851
B28: 五日町 | E28: 合 | N28: =IFERROR(VLOOKUP($CJ28,・!$H$3:$I$700,2,FALSE),"") -> 980 | AX28: 湯沢 | BA28: ヨ | BC28: =IFERROR(VLOOKUP($CM28,・!$H$3:$I$700,2,FALSE),"") -> 700 | BU28: 五日町 | BV28: 40179 | BW28: 0 | BX28: 0 | BY28: 0 | BZ28: 0 | CE28: 湯沢 | CF28: 240190 | CG28: 0 | CH28: 0 | CJ28: 401791 | CK28: 401793 | CM28: 2401901
B29: 城内 | E29: 合 | N29: =IFERROR(VLOOKUP($CJ29,・!$H$3:$I$700,2,FALSE),"") -> 850 | BU29: 城内 | BV29: 40180 | BW29: 0 | BX29: 0 | BY29: 0 | BZ29: 0 | CG29: 0 | CH29: 0 | CJ29: 401801 | CK29: 401803
B30: 六日町 | E30: 新アマサ日 | N30: =IFERROR(VLOOKUP($CJ30,・!$H$3:$I$700,2,FALSE),"") -> 2600 | BU30: 六日町 | BV30: 40181 | BW30: 0 | BX30: 0 | BY30: 0 | BZ30: 0 | CG30: 0 | CH30: 0 | CJ30: 401811 | CK30: 401813
B31: 塩沢 | E31: 新アマサ日 | N31: =IFERROR(VLOOKUP($CJ31,・!$H$3:$I$700,2,FALSE),"") -> 1890 | BU31: 塩沢 | BV31: 40184 | BW31: =Q31 -> 0 | BX31: 0 | BY31: 0 | BZ31: 0 | CG31: 0 | CH31: 0 | CJ31: 401841 | CK31: 401843
B32: 上田 | E32: 合 | N32: =IFERROR(VLOOKUP($CJ32,・!$H$3:$I$700,2,FALSE),"") -> 610 | BU32: 上田 | BV32: 40186 | BW32: 0 | BX32: 0 | BY32: 0 | BZ32: 0 | CG32: 0 | CH32: 0 | CJ32: 401861 | CK32: 401863
B33: 湯沢 | E33: 新アマサ日 | N33: =IFERROR(VLOOKUP($CJ33,・!$H$3:$I$700,2,FALSE),"") -> 1450 | BU33: 湯沢 | BV33: 40189 | BW33: 0 | BX33: 0 | BY33: 0 | BZ33: 0 | CG33: 0 | CH33: 0 | CJ33: 401891 | CK33: 401893
B34: 080 | C34: 小計 | E34: =Q34+T34+W34+BF34 -> 0 | N34: =SUM(N26:P33) -> 10490 | Q34: =SUM(Q26:S33) -> 0 | AX34: 小計 | BC34: =SUM(BC26:BE33) -> 3850 | BF34: =SUM(BF26:BH33) -> 0 | BU34: =SUM(BY34,CA34:CC34,CG34) -> 0 | BW34: =SUM(BW26:BW33) -> 0 | BX34: =SUM(BX26:BX33) -> 0 | BY34: =SUM(BY26:BY33) -> 0 | CA34: =SUM(CA26:CA33) -> 0 | CB34: =SUM(CB26:CB33) -> 0 | CC34: =SUM(CC26:CC33) -> 0 | CG34: =SUM(CG26:CG33) -> 0
A35: 旧中魚沼郡 | B35: 十日町川西 | E35: 合 | N35: =IFERROR(VLOOKUP($CJ35,・!$H$3:$I$700,2,FALSE),"") -> 1420 | BU35: 十日町川西 | BV35: 40192 | BW35: 0 | BX35: 0 | BY35: 0 | BZ35: 0 | CG35: 0 | CH35: 0 | CJ35: 401921 | CK35: 401923
B36: 仙田 | E36: 合 | N36: =IFERROR(VLOOKUP($CJ36,・!$H$3:$I$700,2,FALSE),"") -> 160 | BU36: 仙田 | BV36: 40193 | BW36: 0 | BX36: 0 | BY36: 0 | BZ36: 0 | CG36: 0 | CH36: 0 | CJ36: 401931 | CK36: 401933
B37: 田沢 | E37: 合 | N37: =IFERROR(VLOOKUP($CJ37,・!$H$3:$I$700,2,FALSE),"") -> 1050 | BU37: 田沢 | BV37: 40194 | BW37: 0 | BX37: 0 | BY37: 0 | BZ37: 0 | CG37: 0 | CH37: 0 | CJ37: 401941 | CK37: 401943
B38: 津南 | E38: 合 | N38: =IFERROR(VLOOKUP($CJ38,・!$H$3:$I$700,2,FALSE),"") -> 1700 | BU38: 津南 | BV38: 340197 | BW38: 0 | BX38: 0 | BY38: 0 | BZ38: 0 | CG38: 0 | CH38: 0 | CJ38: 3401971 | CK38: 3401973
B39: 上郷 | E39: 合 | N39: =IFERROR(VLOOKUP($CJ39,・!$H$3:$I$700,2,FALSE),"") -> 330 | BU39: 上郷 | BV39: 40199 | BW39: 0 | BX39: 0 | BY39: 0 | BZ39: 0 | CG39: 0 | CH39: 0 | CJ39: 401991 | CK39: 401993
B40: 森宮野原 | E40: 合 | N40: =IFERROR(VLOOKUP($CJ40,・!$H$3:$I$700,2,FALSE),"") -> 40 | BU40: 森宮野原 | BV40: 40200 | BW40: 0 | BX40: 0 | BY40: 0 | BZ40: 0 | CG40: 0 | CH40: 0 | CJ40: 402001 | CK40: 402003
B41: 090 | C41: 小計 | E41: =Q41+T41+W41+BF41 -> 0 | N41: =SUM(N35:P40) -> 4700 | Q41: =SUM(Q35:S40) -> 0 | AX41: 小計 | BU41: =SUM(BY41,CA41:CC41,CG41) -> 0 | BW41: =SUM(BW35:BW40) -> 0 | BX41: =SUM(BX35:BX40) -> 0 | BY41: 0 | CA41: =SUM(CA35:CA40) -> 0 | CB41: 0 | CC41: 0 | CG41: =SUM(CG35:CG40) -> 0
A42: 合計 | E42: =SUM(E41,E34,E25,E20,E13) -> 0 | N42: =SUM(N41,N34,N25,N20,N13) -> 38290 | Q42: =SUM(Q41,Q34,Q25,Q20,Q13) -> 0 | Z42: =SUM(Z40) -> 0 | AF42: =SUM(AF40,AF32,AF30,AF27,AF23,AF15,AF12,AF8) -> 0 | AX42: 合計 | BC42: =SUM(BC41,BC34,BC25,BC20,BC13) -> 7840 | BF42: =SUM(BF41,BF34,BF25,BF20,BF13) -> 0 | BU42: =SUM(BU41,BU34,BU25,BU20,BU13) -> 0 | BW42: =SUM(BW41,BW34,BW25,BW20,BW13) -> 0 | BX42: =SUM(BX41,BX34,BX25,BX20,BX13) -> 0 | BY42: =SUM(BY41,BY34,BY25,BY20,BY13) -> 0 | CA42: =SUM(CA41,CA34,CA25,CA20,CA13) -> 0 | CB42: =SUM(CB41,CB34,CB25,CB20,CB13) -> 0 | CC42: =SUM(CC41,CC34,CC25,CC20,CC13) -> 0 | CG42: =SUM(CG41,CG34,CG25,CG20,CG13) -> 0 | CI42: =SUM(BY42:CH42) -> 0
BY43: =SUM(BY42,CG42) -> 0

Sheet 上越1
BI1: =新潟市!BI1 -> ２０２３年１２月１日 現在
A2: 折込日 | M2: スポンサー名 | AD2: サイズ | AI2: チラシ内容・タイトル詳細 | AX2: 朝刊 小計 | BE2: Otona＋ 小計 | BL2: ページ枚数
A3: =新潟市!A3 -> 2023/--/-- | M3: =新潟市!M3 -> 0 | AB3: 様 | AD3: =新潟市!AD3 -> 0 | AI3: =新潟市!AI3 -> 0 | AX3: =BY43+CG43 -> 0 | BL3: =SUM(AX3,BE3,AX5,BE5) -> 0
A4: assh ポスティング日 | M4: ご請求先名 | AD4: ガタチラ 掲載 | AX4: くるみる 小計 | BE4: assh 小計 | BL4: 総枚数
A5: =新潟市!A5 -> 2023/--/-- | M5: =新潟市!M5 -> 0 | AB5: 様 | AD5: =新潟市!AD5 -> 0 | AX5: =CA43 -> 0 | BL5: =新潟市!BL5 -> 0
A7: 04 | B7: 新潟日報 | Z7: ポスティング | AF7: Otona+ | AL7: 備考 | AX7: 中央紙 | BI7: 備考 | BU7: 朝刊 | CA7: くるみる | CB7: assh | CC7: otona | CE7: 中央紙 朝刊 | CJ7: 日報 | CM7: 中央紙
B8: 販売店名 | E8: 取扱い紙 | H8: 朝刊＋くるみる | K8: 配布数 | N8: 朝刊扱数 | Q8: 配布数 | T8: 朝刊数 | W8: くるみる数 | Z8: 部数 | AC8: 配布数 | AF8: 部数 | AI8: 配布数 | AX8: 販売店名 | BA8: 取扱い紙 | BC8: 部数 | BF8: 配布数 | BU8: 販売店名 | BV8: E | BW8: 朝刊1 | BX8: 朝刊２ | BY8: 部 | BZ8: 指示 | CA8: 部 | CB8: 部 | CC8: 部 | CE8: 販売店名 | CF8: E | CG8: 部 | CH8: 指示 | CJ8: 朝刊 | CK8: くるみる | CM8: 朝刊
A9: 柏崎市 | B9: 柏崎中央 | E9: 新アマサ日 | N9: =IFERROR(VLOOKUP($CJ9,・!$H$3:$I$700,2,FALSE),"") -> 2180 | AX9: 柏崎西部 | BA9: ヨ | BC9: =IFERROR(VLOOKUP($CM9,・!$H$3:$I$700,2,FALSE),"") -> 2280 | BU9: 柏崎中央 | BV9: 40229 | BW9: =Q9 -> 0 | BX9: =T9 -> 0 | BY9: =SUM(BW9:BX9) -> 0 | BZ9: =AL9 -> 0 | CA9: =IF($K9>$W9,$W9,"") ->  | CE9: 柏崎西部 | CF9: 240205 | CG9: =BF9 -> 0 | CH9: =BI9 -> 0 | CJ9: 402291 | CK9: 402293 | CM9: 2402051
B10: 柏崎 | E10: 新アマサ日 | H10: =N10+W10 -> 3840 | N10: =IFERROR(VLOOKUP($CJ10,・!$H$3:$I$700,2,FALSE),"") -> 3420 | T10: =IF(K10="","",IF(K10<=W10,K10,K10-W10)) ->  | W10: =IFERROR(VLOOKUP($CK10,・!$H$3:$I$700,2,FALSE),"") -> 420 | AX10: 柏崎東部 | BA10: ヨ | BC10: =IFERROR(VLOOKUP($CM10,・!$H$3:$I$700,2,FALSE),"") -> 2070 | BU10: 柏崎 | BV10: 40202 | BW10: =Q10 -> 0 | BX10: =T10 ->  | BY10: =SUM(BW10:BX10) -> 0 | BZ10: =AL10 -> 0 | CA10: =IF($K10>$W10,$W10,"") ->  | CE10: 柏崎東部 | CF10: 240206 | CG10: =BF10 -> 0 | CH10: =BI10 -> 0 | CJ10: 402021 | CK10: 402023 | CM10: 2402061
B11: 柏崎南 | E11: 新アマサ日 | N11: =IFERROR(VLOOKUP($CJ11,・!$H$3:$I$700,2,FALSE),"") -> 2670 | BU11: 柏崎南 | BV11: 40203 | BW11: =Q11 -> 0 | BX11: =T11 -> 0 | BY11: =SUM(BW11:BX11) -> 0 | BZ11: =AL11 -> 0 | CG11: 0 | CH11: 0 | CJ11: 402031 | CK11: 402033
B12: 100 | C12: 小計 | E12: =Q12+T12+W12+BF12 -> 0 | H12: =SUM(H10) -> 3840 | K12: =SUM(K10) -> 0 | N12: =SUM(N9:P11) -> 8270 | Q12: =SUM(Q9:S11) -> 0 | T12: =SUM(T9:V11) -> 0 | W12: =CA12 -> 0 | AX12: 小計 | BC12: =SUM(BC9:BE11) -> 4350 | BF12: =SUM(BF9:BH11) -> 0 | BU12: =SUM(BY12,CA12:CC12,CG12) -> 0 | BW12: =SUM(BW9:BW11) -> 0 | BX12: =SUM(BX9:BX11) -> 0 | BY12: 0 | CA12: =SUM(CA9:CA11) -> 0 | CB12: =SUM(CB9:CB11) -> 0 | CC12: 0 | CG12: =SUM(CG9:CG11) -> 0
B13: 安田 | E13: 合 | N13: =IFERROR(VLOOKUP($CJ13,・!$H$3:$I$700,2,FALSE),"") -> 2300 | BU13: 安田 | BV13: 40211 | BW13: 0 | BX13: 0 | BY13: 0 | BZ13: 0 | CG13: 0 | CH13: 0 | CJ13: 402111 | CK13: 402113
B14: 北条 | E14: 合 | N14: =IFERROR(VLOOKUP($CJ14,・!$H$3:$I$700,2,FALSE),"") -> 280 | BU14: 北条 | BV14: 40212 | BW14: 0 | BX14: 0 | BY14: 0 | BZ14: 0 | CG14: 0 | CH14: 0 | CJ14: 402121 | CK14: 402123
B15: 広田 | E15: 合 | N15: =IFERROR(VLOOKUP($CJ15,・!$H$3:$I$700,2,FALSE),"") -> 380 | BU15: 広田 | BV15: 40213 | BW15: 0 | BX15: 0 | BY15: 0 | BZ15: 0 | CG15: 0 | CH15: 0 | CJ15: 402131 | CK15: 402133
B16: 米山 | E16: 合 | N16: =IFERROR(VLOOKUP($CJ16,・!$H$3:$I$700,2,FALSE),"") -> 320 | BU16: 米山 | BV16: 40228 | BW16: 0 | BX16: 0 | BY16: 0 | BZ16: 0 | CG16: 0 | CH16: 0 | CJ16: 402281 | CK16: 402283
B17: 笠島 | E17: 合 | N17: =IFERROR(VLOOKUP($CJ17,・!$H$3:$I$700,2,FALSE),"") -> 60 | BU17: 笠島 | BV17: 40216 | BW17: 0 | BX17: 0 | BY17: 0 | BZ17: 0 | CG17: 0 | CH17: 0 | CJ17: 402161 | CK17: 402163
B18: 110 | C18: 小計 | E18: =Q18+T18+W18+BF18 -> 0 | N18: =SUM(N13:P17) -> 3340 | Q18: =SUM(Q13:S17) -> 0 | AX18: 小計 | BU18: =SUM(BY18,CA18:CC18,CG18) -> 0 | BW18: =SUM(BW13:BW17) -> 0 | BX18: =SUM(BX13:BX17) -> 0 | BY18: =SUM(BY13:BY17) -> 0 | CA18: =SUM(CA13:CA17) -> 0 | CB18: =SUM(CB13:CB17) -> 0 | CC18: =SUM(CC13:CC17) -> 0 | CG18: =SUM(CG13:CG17) -> 0
A19: 旧刈羽郡 | B19: 高柳 | E19: 合 | N19: =IFERROR(VLOOKUP($CJ19,・!$H$3:$I$700,2,FALSE),"") -> 320 | BU19: 高柳 | BV19: 40217 | BW19: 0 | BX19: 0 | BY19: 0 | BZ19: 0 | CG19: 0 | CH19: 0 | CJ19: 402171 | CK19: 402173
B20: 上小国 | E20: 合 | N20: =IFERROR(VLOOKUP($CJ20,・!$H$3:$I$700,2,FALSE),"") -> 830 | BU20: 上小国 | BV20: 40219 | BW20: 0 | BX20: 0 | BY20: 0 | BZ20: 0 | CG20: 0 | CH20: 0 | CJ20: 402191 | CK20: 402193
B21: 荒浜 | E21: 合 | N21: =IFERROR(VLOOKUP($CJ21,・!$H$3:$I$700,2,FALSE),"") -> 1900 | BU21: 荒浜 | BV21: 40220 | BW21: 0 | BX21: 0 | BY21: 0 | BZ21: 0 | CG21: 0 | CH21: 0 | CJ21: 402201 | CK21: 402203
B22: 西山 | E22: 合 | N22: =IFERROR(VLOOKUP($CJ22,・!$H$3:$I$700,2,FALSE),"") -> 1000 | BU22: 西山 | BV22: 40221 | BW22: 0 | BX22: 0 | BY22: 0 | BZ22: 0 | CG22: 0 | CH22: 0 | CJ22: 402211 | CK22: 402213
B23: 120 | C23: 小計 | E23: =Q23+T23+W23+BF23 -> 0 | N23: =SUM(N19:P22) -> 4050 | Q23: =SUM(Q19:S22) -> 0 | AX23: 小計 | BU23: =SUM(BY23,CA23:CC23,CG23) -> 0 | BW23: =SUM(BW19:BW22) -> 0 | BX23: =SUM(BX19:BX22) -> 0 | BY23: 0 | CA23: =SUM(CA19:CA22) -> 0 | CB23: =SUM(CB19:CB22) -> 0 | CC23: 0 | CG23: =SUM(CG19:CG22) -> 0
A24: 05 | B24: 高田 | E24: 新マサ日 | H24: =N24+W24 -> 2650 | N24: =IFERROR(VLOOKUP($CJ24,・!$H$3:$I$700,2,FALSE),"") -> 2290 | T24: =IF(K24="","",IF(K24<=W24,K24,K24-W24)) ->  | W24: =IFERROR(VLOOKUP($CK24,・!$H$3:$I$700,2,FALSE),"") -> 360 | AX24: 高田 | BA24: ア | BC24: =IFERROR(VLOOKUP($CM24,・!$H$3:$I$700,2,FALSE),"") -> 2400 | BU24: 高田 | BV24: 50101 | BW24: 0 | BY24: 0 | BZ24: 0 | CE24: 高田 | CF24: 50104 | CG24: 0 | CH24: 0 | CJ24: 501011 | CK24: 501013 | CM24: 501041
A25: 上越市 | B25: 高田南 | E25: 新マサ日 | H25: 2650 | N25: =IFERROR(VLOOKUP($CJ25,・!$H$3:$I$700,2,FALSE),"") -> 2350 | T25: =IF(K25="","",IF(K25<=W25,K25,K25-W25)) ->  | W25: =IFERROR(VLOOKUP($CK25,・!$H$3:$I$700,2,FALSE),"") -> 300 | AX25: 高田 | BA25: ヨ | BC25: =IFERROR(VLOOKUP($CM25,・!$H$3:$I$700,2,FALSE),"") -> 3250 | BU25: 高田南 | BV25: 50102 | BW25: 0 | BY25: 0 | BZ25: 0 | CE25: 高田 | CF25: 250105 | CG25: 0 | CH25: 0 | CJ25: 501021 | CK25: 501023 | CM25: 2501051
B26: 木田 | E26: 新マサ日 | H26: 1620 | N26: =IFERROR(VLOOKUP($CJ26,・!$H$3:$I$700,2,FALSE),"") -> 1550 | W26: =IFERROR(VLOOKUP($CK26,・!$H$3:$I$700,2,FALSE),"") -> 70 | AX26: 上越中央 | BA26: ヨ | BC26: =IFERROR(VLOOKUP($CM26,・!$H$3:$I$700,2,FALSE),"") -> 2230 | BU26: 木田 | BV26: 50103 | BW26: 0 | BY26: 0 | BZ26: 0 | CE26: 上越中央 | CF26: 250107 | CG26: 0 | CH26: 0 | CJ26: 501031 | CK26: 501033 | CM26: 2501071
B27: 春日山 | E27: 新マサ日 | H27: 2590 | N27: =IFERROR(VLOOKUP($CJ27,・!$H$3:$I$700,2,FALSE),"") -> 2440 | W27: =IFERROR(VLOOKUP($CK27,・!$H$3:$I$700,2,FALSE),"") -> 150 | AX27: 脇野田 | BA27: ヨ | BC27: =IFERROR(VLOOKUP($CM27,・!$H$3:$I$700,2,FALSE),"") -> 390 | BU27: 春日山 | BV27: 50106 | BW27: 0 | BY27: 0 | BZ27: 0 | CE27: 脇野田 | CF27: 250106 | CG27: 0 | CH27: 0 | CJ27: 501061 | CK27: 501063 | CM27: 2501061
B28: 脇野田 | E28: 新アマサ日 | H28: 1880 | N28: =IFERROR(VLOOKUP($CJ28,・!$H$3:$I$700,2,FALSE),"") -> 1680 | W28: =IFERROR(VLOOKUP($CK28,・!$H$3:$I$700,2,FALSE),"") -> 200 | AX28: 直江津 | BA28: ヨ | BC28: =IFERROR(VLOOKUP($CM28,・!$H$3:$I$700,2,FALSE),"") -> 3880 | BU28: 脇野田 | BV28: 50108 | BW28: 0 | BY28: 0 | BZ28: 0 | CE28: 直江津 | CF28: 250115 | CG28: 0 | CH28: 0 | CJ28: 501081 | CK28: 501083 | CM28: 2501151
B29: 上越東 | E29: 合 | H29: 2990 | N29: =IFERROR(VLOOKUP($CJ29,・!$H$3:$I$700,2,FALSE),"") -> 2980 | W29: =IFERROR(VLOOKUP($CK29,・!$H$3:$I$700,2,FALSE),"") -> 10 | AX29: 直江津 | BA29: ア | BC29: =IFERROR(VLOOKUP($CM29,・!$H$3:$I$700,2,FALSE),"") -> 1700 | BU29: 上越東 | BV29: 50109 | BW29: 0 | BY29: 0 | BZ29: 0 | CE29: 直江津 | CF29: 50116 | CG29: 0 | CH29: 0 | CJ29: 501091 | CK29: 501093 | CM29: 501161
B30: 上越三和 | E30: 合 | N30: =IFERROR(VLOOKUP($CJ30,・!$H$3:$I$700,2,FALSE),"") -> 1550 | BU30: 上越三和 | BV30: 50112 | BW30: 0 | BX30: 0 | BY30: 0 | BZ30: 0 | CG30: 0 | CH30: 0 | CJ30: 501121 | CK30: 501123
B31: 直江津 | E31: 新マサ日 | H31: =N31+W31 -> 2490 | N31: =IFERROR(VLOOKUP($CJ31,・!$H$3:$I$700,2,FALSE),"") -> 2340 | T31: =IF(K31="","",IF(K31<=W31,K31,K31-W31)) ->  | W31: =IFERROR(VLOOKUP($CK31,・!$H$3:$I$700,2,FALSE),"") -> 150 | BU31: 直江津 | BV31: 50113 | BW31: 0 | BY31: 0 | BZ31: 0 | CG31: 0 | CH31: 0 | CJ31: 501131 | CK31: 501133
B32: 直江津東 | E32: 新マサ日 | H32: =N32+W32 -> 2690 | N32: =IFERROR(VLOOKUP($CJ32,・!$H$3:$I$700,2,FALSE),"") -> 2600 | T32: =IF(K32="","",IF(K32<=W32,K32,K32-W32)) ->  | W32: =IFERROR(VLOOKUP($CK32,・!$H$3:$I$700,2,FALSE),"") -> 90 | BU32: 直江津東 | BV32: 50114 | BW32: 0 | BY32: 0 | BZ32: 0 | CG32: 0 | CH32: 0 | CJ32: 501141 | CK32: 501143
B33: 黒井 | E33: 合 | N33: =IFERROR(VLOOKUP($CJ33,・!$H$3:$I$700,2,FALSE),"") -> 820 | BU33: 黒井 | BV33: 50117 | BW33: 0 | BX33: 0 | BY33: 0 | BZ33: 0 | CG33: 0 | CH33: 0 | CJ33: 501171 | CK33: 501173
B34: 名立谷浜 | E34: 合 | N34: =IFERROR(VLOOKUP($CJ34,・!$H$3:$I$700,2,FALSE),"") -> 950 | BU34: 名立谷浜 | BV34: 50152 | BW34: 0 | BX34: 0 | BY34: 0 | BZ34: 0 | CG34: 0 | CH34: 0 | CJ34: 501521 | CK34: 501523
B35: 010 | C35: 小計 | E35: =Q35+T35+W35+BF35 -> 0 | H35: =SUM(H24:J34) -> 19560 | K35: =SUM(K24:M34) -> 0 | N35: =SUM(N24:P34) -> 21550 | Q35: =SUM(Q24:S34) -> 0 | T35: =SUM(T24:V34) -> 0 | W35: =CA35 -> 0 | Z35: =SUM(Z24:AB34) -> 0 | AX35: 小計 | BC35: =SUM(BC24:BE34) -> 13850 | BF35: =SUM(BF24:BH34) -> 0 | BU35: =SUM(BY35,CA35:CC35,CG35) -> 0 | BW35: =SUM(BW24:BW34) -> 0 | BX35: =SUM(BX24:BX34) -> 0 | BY35: 0 | CA35: =SUM(CA24:CA34) -> 0 | CB35: =SUM(CB24:CB34) -> 0 | CC35: 0 | CG35: =SUM(CG24:CG34) -> 0
A36: 旧新井市 | B36: 新井 | E36: 合 | N36: =IFERROR(VLOOKUP($CJ36,・!$H$3:$I$700,2,FALSE),"") -> 5300 | BU36: 新井 | BV36: 50119 | BW36: 0 | BX36: 0 | BY36: 0 | BZ36: 0 | CG36: 0 | CH36: 0 | CJ36: 501191 | CK36: 501193
B37: 新井学校町 | E37: 合 | N37: =IFERROR(VLOOKUP($CJ37,・!$H$3:$I$700,2,FALSE),"") -> 1240 | BU37: 新井学校町 | BV37: 50120 | BW37: 0 | BX37: 0 | BY37: 0 | BZ37: 0 | CG37: 0 | CH37: 0 | CJ37: 501201 | CK37: 501203
B38: 新井南 | E38: 合 | N38: =IFERROR(VLOOKUP($CJ38,・!$H$3:$I$700,2,FALSE),"") -> 870 | BU38: 新井南 | BV38: 50121 | BW38: 0 | BX38: 0 | BY38: 0 | BZ38: 0 | CG38: 0 | CH38: 0 | CJ38: 501211 | CK38: 501213
B39: 関山 | E39: 合 | N39: =IFERROR(VLOOKUP($CJ39,・!$H$3:$I$700,2,FALSE),"") -> 870 | BU39: 関山 | BV39: 50122 | BW39: 0 | BX39: 0 | BY39: 0 | BZ39: 0 | CG39: 0 | CH39: 0 | CJ39: 501221 | CK39: 501223
B40: 妙高 | E40: 合 | N40: =IFERROR(VLOOKUP($CJ40,・!$H$3:$I$700,2,FALSE),"") -> 530 | BU40: 妙高 | BV40: 50123 | BW40: 0 | BX40: 0 | BY40: 0 | BZ40: 0 | CG40: 0 | CH40: 0 | CJ40: 501231 | CK40: 501233
B41: 赤倉 | E41: 合 | N41: =IFERROR(VLOOKUP($CJ41,・!$H$3:$I$700,2,FALSE),"") -> 650 | BU41: 赤倉 | BV41: 50124 | BW41: 0 | BX41: 0 | BY41: 0 | BZ41: 0 | CG41: 0 | CH41: 0 | CJ41: 501241 | CK41: 501243
B42: 020 | C42: 小計 | E42: =Q42+T42+W42+BF42 -> 0 | N42: =SUM(N36:P41) -> 9460 | Q42: =SUM(Q36:S41) -> 0 | AX42: 小計 | BU42: =SUM(BY42,CA42:CC42,CG42) -> 0 | BW42: =SUM(BW36:BW41) -> 0 | BX42: =SUM(BX36:BX41) -> 0 | BY42: 0 | CA42: =SUM(CA36:CA41) -> 0 | CB42: =SUM(CB36:CB41) -> 0 | CC42: 0 | CG42: =SUM(CG36:CG41) -> 0
A43: 合計 | E43: =SUM(E42,E35,E23,E18,E12) -> 0 | H43: =SUM(H42,H35,H23,H18,H12) -> 23400 | K43: =SUM(K42,K35,K23,K18,K12) -> 0 | N43: =SUM(N42,N35,N23,N18,N12) -> 46670 | Q43: =SUM(Q42,Q35,Q23,Q18,Q12) -> 0 | T43: =SUM(T42,T35,T23,T18,T12) -> 0 | W43: =SUM(W42,W35,W23,W18,W12) -> 0 | Z43: =SUM(Z41) -> 0 | AX43: 合計 | BC43: =SUM(BC42,BC35,BC23,BC18,BC12) -> 18200 | BF43: =SUM(BF42,BF35,BF23,BF18,BF12) -> 0 | BU43: =SUM(BU42,BU35,BU23,BU18,BU12) -> 0 | BW43: =SUM(BW42,BW35,BW23,BW18,BW12) -> 0 | BX43: =SUM(BX42,BX35,BX23,BX18,BX12) -> 0 | BY43: =SUM(BY42,BY35,BY23,BY18,BY12) -> 0 | CA43: =SUM(CA42,CA35,CA23,CA18,CA12) -> 0 | CB43: =SUM(CB42,CB35,CB23,CB18,CB12) -> 0 | CC43: =SUM(CC42,CC35,CC23,CC18,CC12) -> 0 | CG43: =SUM(CG42,CG35,CG23,CG18,CG12) -> 0 | CI43: =SUM(BY43:CH43) -> 0
BY44: =SUM(BY43,CG43) -> 0

Sheet 上越２
BI1: =新潟市!BI1 -> ２０２３年１２月１日 現在
A2: 折込日 | M2: スポンサー名 | AD2: サイズ | AI2: チラシ内容・タイトル詳細 | AX2: 朝刊 小計 | BE2: Otona＋ 小計 | BL2: ページ枚数
A3: =新潟市!A3 -> 2023/--/-- | M3: =新潟市!M3 -> 0 | AB3: 様 | AD3: =新潟市!AD3 -> 0 | AI3: =新潟市!AI3 -> 0 | AX3: =BY30+CG30 -> 0 | BL3: =SUM(AX3,BE3,AX5,BE5) -> 0
A4: assh ポスティング日 | M4: ご請求先名 | AD4: ガタチラ 掲載 | AX4: くるみる 小計 | BE4: assh 小計 | BL4: 総枚数
A5: =新潟市!A5 -> 2023/--/-- | M5: =新潟市!M5 -> 0 | AB5: 様 | AD5: =新潟市!AD5 -> 0 | AX5: =CA30 -> 0 | BL5: =新潟市!BL5 -> 0
A7: 05 | B7: 新潟日報 | Z7: ポスティング | AF7: Otona+ | AL7: 備考 | AX7: 中央紙 | BI7: 備考 | BU7: 朝刊 | CA7: くるみる | CB7: assh | CC7: otona | CE7: 中央紙 朝刊 | CJ7: 日報 | CM7: 中央紙
B8: 販売店名 | E8: 取扱い紙 | H8: 朝刊＋くるみる | K8: 配布数 | N8: 朝刊扱数 | Q8: 配布数 | T8: 朝刊数 | W8: くるみる数 | Z8: 部数 | AC8: 配布数 | AF8: 部数 | AI8: 配布数 | AX8: 販売店名 | BA8: 取扱い紙 | BC8: 部数 | BF8: 配布数 | BU8: 販売店名 | BV8: E | BW8: 朝刊1 | BX8: 朝刊２ | BY8: 部 | BZ8: 指示 | CA8: 部 | CB8: 部 | CC8: 部 | CE8: 販売店名 | CF8: E | CG8: 部 | CH8: 指示 | CJ8: 朝刊 | CK8: くるみる | CM8: 朝刊
A9: 旧中頸城郡 | B9: 柿崎 | E9: 合 | N9: =IFERROR(VLOOKUP($CJ9,・!$H$3:$I$700,2,FALSE),"") -> 2250 | BU9: 柿崎 | BV9: 50125 | BW9: =Q9 -> 0 | BX9: =W9 -> 0 | BY9: =SUM(BW9:BX9) -> 0 | BZ9: =AL9 -> 0 | CG9: =BF9 -> 0 | CJ9: 501251 | CK9: 501253
B10: 吉川 | E10: 合 | N10: =IFERROR(VLOOKUP($CJ10,・!$H$3:$I$700,2,FALSE),"") -> 780 | BU10: 吉川 | BV10: 50126 | BW10: =Q10 -> 0 | BX10: =W10 -> 0 | BY10: =SUM(BW10:BX10) -> 0 | BZ10: =AL10 -> 0 | CG10: 0 | CJ10: 501261 | CK10: 501263
B11: 大潟 | E11: 合 | N11: =IFERROR(VLOOKUP($CJ11,・!$H$3:$I$700,2,FALSE),"") -> 1580 | BU11: 大潟 | BV11: 50127 | BW11: 0 | BX11: 0 | BY11: 0 | BZ11: 0 | CG11: 0 | CJ11: 501271 | CK11: 501273
B12: 犀潟 | E12: 合 | N12: =IFERROR(VLOOKUP($CJ12,・!$H$3:$I$700,2,FALSE),"") -> 800 | BU12: 犀潟 | BV12: 50128 | BW12: 0 | BX12: 0 | BY12: 0 | BZ12: 0 | CG12: 0 | CJ12: 501281 | CK12: 501283
B13: 百間町 | E13: 合 | N13: =IFERROR(VLOOKUP($CJ13,・!$H$3:$I$700,2,FALSE),"") -> 780 | BU13: 百閒町 | BV13: 50129 | BW13: 0 | BX13: 0 | BY13: 0 | BZ13: 0 | CG13: 0 | CJ13: 501291 | CK13: 501293
B14: 明治 | E14: 合 | N14: =IFERROR(VLOOKUP($CJ14,・!$H$3:$I$700,2,FALSE),"") -> 350 | BU14: 明治 | BV14: 50130 | BW14: 0 | BX14: 0 | BY14: 0 | BZ14: 0 | CG14: 0 | CJ14: 501301 | CK14: 501303
B15: 030 | C15: 小計 | E15: =Q15+T15+W15+BF15 -> 0 | N15: =SUM(N9:P14) -> 6540 | Q15: =SUM(Q9:S14) -> 0 | AX15: 小計 | BU15: =SUM(BY15:CC15,CG15) -> 0 | BW15: =SUM(BW9:BW14) -> 0 | BX15: =SUM(BX9:BX14) -> 0 | BY15: 0 | CA15: =SUM(CA9:CA14) -> 0 | CB15: 0 | CC15: =SUM(CC9:CC14) -> 0 | CG15: =SUM(CG9:CG14) -> 0
A16: 旧東頚城郡 | B16: 浦川原 | E16: 合 | N16: =IFERROR(VLOOKUP($CJ16,・!$H$3:$I$700,2,FALSE),"") -> 750 | BU16: 浦川原 | BV16: 50131 | BW16: =Q16 -> 0 | BX16: =W16 -> 0 | BY16: =SUM(BW16:BX16) -> 0 | BZ16: =AL16 -> 0 | CG16: =BF16 -> 0 | CJ16: 501311 | CK16: 501313
B17: 上越安塚 | E17: 合 | N17: =IFERROR(VLOOKUP($CJ17,・!$H$3:$I$700,2,FALSE),"") -> 570 | BU17: 上越安塚 | BV17: 50133 | BW17: 0 | BX17: 0 | BY17: 0 | BZ17: 0 | CG17: 0 | CJ17: 501331 | CK17: 501333
B18: 大島 | E18: 合 | N18: =IFERROR(VLOOKUP($CJ18,・!$H$3:$I$700,2,FALSE),"") -> 350 | BU18: 大島 | BV18: 50134 | BW18: 0 | BX18: 0 | BY18: 0 | BZ18: 0 | CG18: 0 | CJ18: 501341 | CK18: 501343
B19: 松代 | E19: 合 | N19: =IFERROR(VLOOKUP($CJ19,・!$H$3:$I$700,2,FALSE),"") -> 700 | BU19: 松代 | BV19: 50135 | BW19: 0 | BX19: 0 | BY19: 0 | BZ19: 0 | CG19: 0 | CJ19: 501351 | CK19: 501353
B20: 松之山 | E20: 合 | N20: =IFERROR(VLOOKUP($CJ20,・!$H$3:$I$700,2,FALSE),"") -> 460 | BU20: 松之山 | BV20: 50136 | BW20: 0 | BX20: 0 | BY20: 0 | BZ20: 0 | CG20: 0 | CJ20: 501361 | CK20: 501363
B21: 040 | C21: 小計 | E21: =Q21+T21+W21+BF21 -> 0 | N21: =SUM(N16:P20) -> 2830 | Q21: =SUM(Q16:S20) -> 0 | AX21: 小計 | BU21: =SUM(BY21:CC21,CG21) -> 0 | BW21: =SUM(BW16:BW20) -> 0 | BX21: =SUM(BX16:BX20) -> 0 | BY21: 0 | CA21: =SUM(CA16:CA20) -> 0 | CB21: 0 | CC21: 0 | CG21: =SUM(CG16:CG20) -> 0
A22: 糸魚川市・旧西頸城郡 | B22: 糸魚川 | E22: 新マ | N22: =IFERROR(VLOOKUP($CJ22,・!$H$3:$I$700,2,FALSE),"") -> 2900 | AX22: 糸魚川綱島 | BA22: ヨアサ日 | BC22: =IFERROR(VLOOKUP($CM22,・!$H$3:$I$700,2,FALSE),"") -> 3150 | BU22: 糸魚川 | BV22: 50137 | BW22: =Q22 -> 0 | BX22: =W22 -> 0 | BY22: =SUM(BW22:BX22) -> 0 | BZ22: =AL22 -> 0 | CE22: 糸魚川綱島 | CF22: 50138 | CG22: =BF22 -> 0 | CH22: =BI22 -> 0 | CJ22: 501371 | CK22: 501373 | CM22: 501381
B23: 糸魚川東 | E23: 新マ | N23: =IFERROR(VLOOKUP($CJ23,・!$H$3:$I$700,2,FALSE),"") -> 1700 | AX23: 大和川吉岡 | BA23: ヨア | BC23: =IFERROR(VLOOKUP($CM23,・!$H$3:$I$700,2,FALSE),"") -> 400 | BU23: 糸魚川東 | BV23: 50142 | BW23: 0 | BX23: 0 | BY23: 0 | BZ23: 0 | CE23: 大和川吉岡 | CF23: 50140 | CG23: =BF23 -> 0 | CH23: =BI23 -> 0 | CJ23: 501421 | CK23: 501423 | CM23: 501401
B24: 根知 | E24: 合 | N24: =IFERROR(VLOOKUP($CJ24,・!$H$3:$I$700,2,FALSE),"") -> 300 | AX24: 浦本田代 | BA24: ヨア | BC24: =IFERROR(VLOOKUP($CM24,・!$H$3:$I$700,2,FALSE),"") -> 100 | BU24: 根知 | BV24: 50144 | BW24: 0 | BX24: 0 | BY24: 0 | BZ24: 0 | CE24: 浦本田代 | CF24: 50143 | CG24: 0 | CH24: 0 | CJ24: 501441 | CK24: 501443 | CM24: 501431
B25: 050 | C25: 小計 | E25: =Q25+T25+W25+BF25 -> 0 | N25: =SUM(N22:P24) -> 4900 | Q25: =SUM(Q22:S24) -> 0 | AX25: 小計 | BC25: =SUM(BC22:BE24) -> 3650 | BF25: =SUM(BF22:BH24) -> 0 | BU25: =SUM(BY25:CC25,CG25) -> 0 | BW25: =SUM(BW22:BW24) -> 0 | BX25: =SUM(BX22:BX24) -> 0 | BY25: 0 | CA25: =SUM(CA22:CA24) -> 0 | CB25: 0 | CC25: 0 | CG25: =SUM(CG22:CG24) -> 0
B26: 筒石 | E26: 合 | N26: =IFERROR(VLOOKUP($CJ26,・!$H$3:$I$700,2,FALSE),"") -> 390 | BU26: 筒石 | BV26: 50148 | BW26: =Q26 -> 0 | BX26: =W26 -> 0 | BY26: =SUM(BW26:BX26) -> 0 | BZ26: =AL26 -> 0 | CG26: =BF26 -> 0 | CJ26: 501481 | CK26: 501483
B27: 能生 | E27: 合 | N27: =IFERROR(VLOOKUP($CJ27,・!$H$3:$I$700,2,FALSE),"") -> 1670 | BU27: 能生 | BV27: 50149 | BW27: 0 | BX27: 0 | BY27: 0 | BZ27: 0 | CG27: 0 | CJ27: 501491 | CK27: 501493
B28: 青海 | E28: 合 | N28: =IFERROR(VLOOKUP($CJ28,・!$H$3:$I$700,2,FALSE),"") -> 1500 | BU28: 青梅 | BV28: 50150 | BW28: 0 | BX28: 0 | BY28: 0 | BZ28: 0 | CG28: 0 | CJ28: 501501 | CK28: 501503
B29: 060 | C29: 小計 | E29: =Q29+T29+W29+BF29 -> 0 | N29: =SUM(N26:P28) -> 3560 | Q29: =SUM(Q26:S28) -> 0 | AX29: 小計 | BU29: =SUM(BY29:CC29,CG29) -> 0 | BW29: =SUM(BW26:BW28) -> 0 | BX29: =SUM(BX26:BX28) -> 0 | BY29: 0 | CA29: =SUM(CA26:CA28) -> 0 | CB29: 0 | CC29: 0 | CG29: =SUM(CG26:CG28) -> 0
A30: 合計 | E30: =SUM(E29,E25,E21,E15) -> 0 | N30: =SUM(N29,N25,N21,N15) -> 17830 | Q30: =SUM(Q29,Q25,Q21,Q15) -> 0 | AX30: 合計 | BC30: =SUM(BC29,BC25,BC21,BC15) -> 3650 | BF30: =SUM(BF29,BF25,BF21,BF15) -> 0 | BU30: =SUM(BU29,BU25,BU21,BU15) -> 0 | BW30: =SUM(BW29,BW25,BW21,BW15) -> 0 | BX30: =SUM(BX29,BX25,BX21,BX15) -> 0 | BY30: 0 | CA30: =SUM(CA29,CA25,CA21,CA15) -> 0 | CB30: 0 | CC30: 0 | CG30: =SUM(CG29,CG25,CG21,CG15) -> 0 | CI30: =SUM(BY30:CH30) -> 0
BY31: =SUM(BY30,CG30) -> 0

Sheet 地区集計
B1: 新潟県地区別/媒体別 折込部数・配布部数表
A2: エリア | C2: 新潟日報＋くるみる | F2: assh n-assh 1回目 | G2: n-assh 2回目 | H2: Ｏｔｏｎａ+ | I2: 中央紙 | L2: 販売店件数
A6: 地区 | B6: 市郡 | C6: 朝刊+くるみる | D6: 朝刊 | E6: くるみる | F6: 部数 | G6: 部数 | H6: 配布数 | I6: 朝日新聞 | J6: 読売新聞 | K6: 産経新聞 | L6: 新潟日報 | M6: 朝日新聞 | N6: 読売新聞 | O6: 産経新聞 | P6: 計 | Q6: くるみる
A7: 下越・佐渡地区 | B7: 旧新潟市 | C7: =SUM(D7:E7) -> 135540 | D7: =新潟市!N42 -> 122520 | E7: =SUM(新潟市!W9:Y41) -> 13020 | F7: =新潟市!Z42 -> 108250 | H7: =新潟市!AF42 -> 14680 | J7: =SUM(新潟市!BC9:BE22) -> 15950 | L7: =SUM(COUNTIF(新潟市!E9:G41,{"新アマ日","合"})) -> 33 | N7: =SUM(COUNTIF(新潟市!BA9:BB22,{"ヨサ日"})) -> 14 | P7: =SUM(L7:O7) -> 47 | Q7: =COUNTA(新潟市!W9:Y41) -> 33
B8: 旧西蒲原郡 | C8: =SUM(D8:E8) -> 22850 | D8: =下越1!N17 -> 21870 | E8: =SUM(下越1!W9:Y16) -> 980 | H8: =SUM(下越1!AF9:AH16) -> 690 | I8: =下越1!BC9 -> 640 | J8: =下越1!BC10 -> 650 | L8: =SUM(COUNTIF(下越1!E9:G16,{"新アマヨ日","新マ日","合"})) -> 8 | M8: =SUM(COUNTIF(下越1!BA9:BB11,{"アサ"})) -> 1 | N8: =SUM(COUNTIF(下越1!BA9:BB11,{"ヨ"})) -> 1 | P8: =SUM(L8:O8) -> 10 | Q8: =COUNTA(下越1!W12:Y16) -> 4
B9: 旧中蒲原郡 | C9: 7830 | D9: =SUM(下越1!N18:P20) -> 7820 | E9: =SUM(下越1!W18:W20) -> 10 | H9: =SUM(下越1!AF18:AH20) -> 260 | L9: =SUM(COUNTIF(下越1!E18:G20,{"合"})) -> 3 | P9: 3 | Q9: =COUNTA(下越1!W19) -> 1
B10: 旧新津市 | C10: =SUM(D10:E10) -> 15500 | D10: =SUM(下越1!N22:P23) -> 15300 | E10: =SUM(下越1!W22:W23) -> 200 | H10: =SUM(下越1!AF24) -> 500 | L10: =SUM(COUNTIF(下越1!E22:G23,{"合"})) -> 2 | P10: 2 | Q10: =COUNTA(下越1!W22:Y23) -> 2
B11: 五泉市 | C11: =SUM(D11:E11) -> 7770 | D11: =SUM(下越1!N25:P27) -> 7770 | L11: =SUM(COUNTIF(下越1!E25:G27,{"合"})) -> 3 | P11: 3
B12: 旧白根市 | C12: =SUM(D12:E12) -> 6040 | D12: =SUM(下越1!N29:P31) -> 5800 | E12: =SUM(下越1!W29:Y31) -> 240 | H12: =SUM(下越1!AF29:AF31) -> 110 | J12: =下越1!BC32 -> 700 | L12: =SUM(COUNTIF(下越1!E29:G31,{"新アマ日","合"})) -> 3 | N12: =SUM(COUNTIF(下越1!BA29,{"ヨサ"})) -> 1 | P12: 4 | Q12: =COUNTA(下越1!W29:Y31) -> 3
B13: 三条市 | C13: =SUM(D13:E13) -> 11880 | D13: =SUM(下越1!N33:P34) -> 11880 | H13: =SUM(下越1!AF35) -> 330 | J13: =下越1!BC35 -> 5100 | L13: =SUM(COUNTIF(下越1!E33:G34,{"新アマサ日"})) -> 2 | N13: =SUM(COUNTIF(下越1!BA33,{"ヨ"})) -> 1 | P13: 3
B14: 燕市 | C14: =SUM(D14:E14) -> 6780 | D14: =下越1!N38 -> 6730 | E14: =SUM(下越1!W36:W37) -> 50 | H14: =下越1!AF38 -> 180 | J14: =下越1!BC38 -> 3250 | L14: =SUM(COUNTIF(下越1!E36:G37,{"新アマサ日"})) -> 2 | N14: =SUM(COUNTIF(下越1!BA36,{"ヨ"})) -> 1 | P14: 3 | Q14: =COUNTA(下越1!W36) -> 1
B15: 加茂市 | C15: 7230 | D15: =下越1!N40 -> 7150 | E15: =SUM(下越1!W39) -> 80 | H15: =SUM(下越1!AF40) -> 260 | J15: =下越1!BC40 -> 1600 | L15: =SUM(COUNTIF(下越1!E39,{"新アマサ日"})) -> 1 | N15: =SUM(COUNTIF(下越1!BA39,{"ヨ"})) -> 1 | P15: 2 | Q15: =COUNTA(下越1!W39) -> 1
B16: 旧南蒲原郡 | C16: =SUM(D16:E16) -> 3760 | D16: =SUM(下越1!N45) -> 3760 | L16: =SUM(COUNTIF(下越1!E41:G44,{"合"})) -> 4 | P16: 4
B17: 旧豊栄市 | C17: 8500 | D17: =SUM(下越1!N48) -> 7830 | E17: =SUM(下越1!W46:Y47) -> 670 | F17: =下越1!Z48 -> 7020 | H17: =SUM(下越1!AF48) -> 330 | J17: =下越1!BC46 -> 830 | L17: =SUM(COUNTIF(下越1!E46:G47,{"新アマ日","合"})) -> 2 | N17: =SUM(COUNTIF(下越1!BA46,{"ヨサ日"})) -> 1 | P17: 3 | Q17: =COUNTA(下越1!W46:Y47) -> 2
B18: 新発田市 | C18: 22320 | D18: =SUM(下越２!N12) -> 20880 | E18: =SUM(下越２!W9:Y11) -> 1440 | F18: =SUM(下越２!Z12) -> 0 | H18: =SUM(下越２!AF12) -> 650 | J18: =下越２!BC9 -> 3100 | L18: =SUM(COUNTIF(下越２!E9:G11,{"新アマ日","合"})) -> 3 | N18: =SUM(COUNTIF(下越２!BA9,{"ヨサ"})) -> 1 | P18: 4 | Q18: =COUNTA(下越２!W9:Y11) -> 3
B19: 旧北蒲原郡 | C19: 13770 | D19: =SUM(下越２!N18) -> 13570 | E19: =SUM(下越２!W13:W17) -> 200 | F19: =下越２!Z18 -> 110 | H19: =下越２!AF18 -> 230 | J19: =下越２!BC18 -> 2120 | L19: =SUM(COUNTIF(下越２!E13:G17,{"新アマ日","合"})) -> 5 | N19: =SUM(COUNTIF(下越２!BA13:BB14,{"ヨサ","ヨ"})) -> 2 | P19: 7 | Q19: =COUNTA(下越２!W16) -> 1
B20: 村上市 | C20: =SUM(D20:E20) -> 9860 | D20: =SUM(下越２!N22) -> 9860 | L20: =SUM(COUNTIF(下越２!E19:G21,{"合"})) -> 3 | P20: 3
B21: 岩船郡 | C21: 4240 | D21: =SUM(下越２!N27) -> 4240 | L21: =SUM(COUNTIF(下越２!E23:G26,{"合"})) -> 4 | P21: 4
B22: 旧東蒲原郡 | C22: 2850 | D22: =SUM(下越２!N35) -> 2850 | L22: =SUM(COUNTIF(下越２!E28:G34,{"合"})) -> 7 | P22: 7
B23: 旧両津市 | C23: 2380 | D23: =SUM(下越２!N40) -> 2380 | I23: =下越２!BC38 -> 630 | J23: =下越２!BC39 -> 830 | L23: =SUM(COUNTIF(下越２!E38:G39,{"新マサ日","新マ日"})) -> 2 | M23: =SUM(COUNTIF(下越２!BA38:BB39,{"ア"})) -> 1 | N23: =SUM(COUNTIF(下越２!BA38:BB39,{"ヨサ"})) -> 1 | P23: 4
B24: 旧佐渡郡 | C24: 7220 | D24: =SUM(下越２!N51) -> 7220 | I24: =SUM(下越２!BC41:BE43,下越２!BC46,下越２!BC48) -> 840 | J24: =SUM(下越２!BC44:BE45,下越２!BC47,下越２!BC49) -> 550 | L24: =SUM(COUNTIF(下越２!E41:G50,{"新サ","新マサ日","新","新アマ日","合"})) -> 10 | M24: =SUM(COUNTIF(下越２!BA41:BB49,{"アマヨサ日","アマサ日","ア"})) -> 5 | N24: =SUM(COUNTIF(下越２!BA41:BB49,{"ヨサ","ヨア","ヨ"})) -> 4 | P24: 19
A25: 中越地区 | B25: 旧長岡市 | C25: 39690 | D25: =SUM(中越1!N24) -> 37470 | E25: =SUM(中越1!W9:W23) -> 2220 | F25: =中越1!Z24 -> 38720 | G25: =中越1!AF24 -> 38620 | H25: =中越1!AL24 -> 1760 | J25: =中越1!BH24 -> 8310 | L25: =SUM(COUNTIF(中越1!E9:G23,{"新アマサ日","合"})) -> 15 | N25: =SUM(COUNTIF(中越1!BF9:BG12,{"ヨ"})) -> 4 | P25: 19 | Q25: =COUNTA(中越1!W9:Y20) -> 11
B26: 栃尾市 | C26: =SUM(D26:E26) -> 2960 | D26: =中越1!N26 -> 2960 | F26: =中越1!Z26 -> 900 | G26: =中越1!AF26 -> 900 | H26: =中越1!AL26 -> 0 | J26: =中越1!BH26 -> 2000 | L26: =SUM(COUNTIF(中越1!E25,{"新アマサ"})) -> 1 | N26: =SUM(COUNTIF(中越1!BF25,{"ヨ日"})) -> 1 | P26: 2
B27: 見附市 | C27: 9150 | D27: =中越1!N30 -> 9150 | F27: =中越1!Z30 -> 6360 | G27: =中越1!AF30 -> 480 | H27: =中越1!AL30 -> 360 | J27: =SUM(中越1!BH27,中越1!BH29) -> 2000 | K27: =SUM(中越1!BH28) -> 640 | L27: =SUM(COUNTIF(中越1!E27:G29,{"新アマサ日","新アマ日"})) -> 3 | N27: =SUM(COUNTIF(中越1!BF27:BG29,{"ヨ"})) -> 2 | O27: =SUM(COUNTIF(中越1!BF27:BG29,{"サ"})) -> 1 | P27: 6
B28: 旧三島郡 | C28: 10660 | D28: =中越1!N38 -> 10460 | E28: =SUM(中越1!W31:Y37) -> 200 | F28: =中越1!Z38 -> 3500 | G28: =中越1!AF38 -> 3500 | H28: =中越1!AL38 -> 0 | J28: =SUM(中越1!BH38) -> 590 | L28: =SUM(COUNTIF(中越1!E31:G37,{"新アマサ日","合"})) -> 7 | N28: =SUM(COUNTIF(中越1!BF31,{"ヨ"})) -> 1 | P28: 8 | Q28: =COUNTA(中越1!W31:Y33) -> 2
B29: 小千谷市 | C29: 7250 | D29: =中越２!N13 -> 7250 | J29: =中越２!BC13 -> 1280 | L29: =SUM(COUNTIF(中越２!E9:G12,{"新アマサ日","合"})) -> 4 | N29: =SUM(COUNTIF(中越２!BA9,{"ヨ"})) -> 1 | P29: 5
B30: 十日町市 | C30: 6780 | D30: =中越２!N20 -> 6780 | J30: =中越２!BC20 -> 1450 | L30: =SUM(COUNTIF(中越２!E14:G19,{"新アマサ日","合"})) -> 6 | N30: =SUM(COUNTIF(中越２!BA14,{"ヨ日"})) -> 1 | P30: 7
B31: 旧北魚沼郡 | C31: 9070 | D31: =中越２!N25 -> 9070 | J31: =中越２!BC25 -> 1260 | L31: =SUM(COUNTIF(中越２!E21:G24,{"新アマサ日","合"})) -> 4 | N31: =SUM(COUNTIF(中越２!BA21,{"ヨ"})) -> 1 | P31: 5
B32: 旧南魚沼郡 | C32: 10490 | D32: =中越２!N34 -> 10490 | J32: =中越２!BC34 -> 3850 | L32: =SUM(COUNTIF(中越２!E26:G33,{"新アマサ日","合"})) -> 8 | N32: =SUM(COUNTIF(中越２!BA26:BB28,{"ヨ"})) -> 3 | P32: 11
B33: 旧中魚沼郡 | C33: 4700 | D33: =中越２!N41 -> 4700 | L33: =SUM(COUNTIF(中越２!E35:G40,{"合"})) -> 6 | P33: 6
B34: 柏崎市 | C34: =SUM(D34:E34) -> 12030 | D34: =SUM(上越1!N12,上越1!N18) -> 11610 | E34: =SUM(上越1!W9:W11) -> 420 | J34: =SUM(上越1!BC12) -> 4350 | L34: =SUM(COUNTIF(上越1!E9:G17,{"新アマサ日","合"})) -> 8 | N34: =SUM(COUNTIF(上越1!BA9:BB10,{"ヨ"})) -> 2 | P34: 10 | Q34: =COUNTA(上越1!W10) -> 1
B35: 旧刈羽郡 | C35: =SUM(D35:E35) -> 4050 | D35: =上越1!N23 -> 4050 | L35: =SUM(COUNTIF(上越1!E19:G22,{"合"})) -> 4 | P35: 4
A36: 上越地区 | B36: 上越市 | C36: =SUM(D36:E36) -> 22880 | D36: =上越1!N35 -> 21550 | E36: =SUM(上越1!W24:W34) -> 1330 | F36: =上越1!Z35 -> 0 | I36: =SUM(上越1!BC24,上越1!BC29) -> 4100 | J36: =SUM(上越1!BC25:BE28) -> 9750 | L36: =SUM(COUNTIF(上越1!E24:G34,{"新マサ日","新アマサ日","合"})) -> 11 | M36: =SUM(COUNTIF(上越1!BA24:BB29,{"ア"})) -> 2 | N36: =SUM(COUNTIF(上越1!BA24:BB29,{"ヨ"})) -> 4 | P36: 17 | Q36: =COUNTA(上越1!W24:Y32) -> 8
B37: 旧新井市 | C37: =SUM(D37:E37) -> 9460 | D37: =上越1!N42 -> 9460 | L37: =SUM(COUNTIF(上越1!E36:G41,{"合"})) -> 6 | P37: 6
B38: 旧中頸城郡 | C38: 6540 | D38: =上越２!N15 -> 6540 | F38: =上越２!Z15 -> 0 | L38: =SUM(COUNTIF(上越２!E9:G14,{"合"})) -> 6 | P38: 6
B39: 旧東頸城郡 | C39: 2830 | D39: =上越２!N21 -> 2830 | L39: =SUM(COUNTIF(上越２!E16:G20,{"合"})) -> 5 | P39: 5
B40: 糸魚川市 | C40: 4900 | D40: =上越２!N25 -> 4900 | J40: =上越２!BC25 -> 3650 | L40: =SUM(COUNTIF(上越２!E22:G24,{"新マ","合"})) -> 3 | N40: =SUM(COUNTIF(上越２!BA22:BB24,{"ヨアサ日","ヨア"})) -> 3 | P40: 6
B41: 旧西頸城郡 | C41: 3560 | D41: =上越２!N29 -> 3560 | L41: =SUM(COUNTIF(上越２!E26:G28,{"合"})) -> 3 | P41: 3
A42: 合計 | C42: =SUM(D42:E42) -> 463320 | D42: =SUM(D7:D41) -> 442260 | E42: =SUM(E7:E41) -> 21060 | F42: =SUM(F7:F41) -> 164860 | G42: =SUM(G7:G41) -> 43500 | H42: 20340 | I42: =SUM(I7:I41) -> 6210 | J42: =SUM(J7:J41) -> 73170 | K42: 640 | L42: =SUM(L7:L41) -> 197 | M42: =SUM(M7:M41) -> 9 | N42: 51 | O42: 1 | P42: 258 | Q42: 73
B43: ※山形県の販売店の折込部数は新潟県の折込部数の合計値に含まれておりません。
B44: ※新潟日報の販売店が扱う主要日刊紙は、新潟日報の折込部数に包含します。 | I44: ※朝刊部数 計 | K44: =SUM(D42,I42:K42) -> 522280
B45: ※新潟県内には、日本経済新聞の専売店がありませんので系統区分には記載がありません。 | I45: ※朝刊部数 計（くるみる含） | K45: =SUM(C42,I42:K42) -> 543340

Sheet ガタチラ(チラシ情報)掲載 (hidden)
A1: Gatachira（ガタチラ）チラシ情報への広告掲載【申込書】
A3: 基本要項（必須） | N3: 以下は初回時、又は2回目以降に変更がある場合にご記入ください。
A4: ふりがな | N4: ふりがな
A5: クライアント名 | N5: 広告主 又は代理店
C6: ※ チラシ情報ページのクライアント名に表示されます。タイトルの【】では株式会社等は省略されます。 | N6: ふりがな
A7: 広告タイトル | N7: ご担当者
C8: ※ チラシ情報ページのタイトル、【】以降に表示されます。 | N8: ご住所 | O8: 〒
A9: 店舗名
C10: ※ チラシ情報ページのタイトル前【】内に表示されます。指定が無い場合はクライアント名が表示されます。
A11: 掲載開始日 | G11: 掲載終了日 ※最大6ヵ月 | N11: TEL
B12: 月 | D12: 日 | F12: 曜日 | H12: 月 | J12: 日 | L12: 曜日 | N12: MAIL
A13: エリア (最大5個)
A14: チラシのカテゴリ (最大5個) | N14: データ入稿先 | O14: gatachira2@niigata-mn.co.jp
A15: 対象店舗やURL、注意書き、クーポンの利用方法など その他掲載情報（任意） | N15: データ形式：JPG PNG データサイズ：5000ピクセル以内（テキストが潰れない程度） データ送信容量：合計4MB（データ容量が4MBを超える場合はデータ便などのオンラインストレージサービスをご利用ください。） ※弊社「新聞折込広告基準」に準じている広告をご入稿ください。 ※トンボなどの不要なデータは削除してご入稿ください。 ※指定サイズを超える場合はご相談ください。
C18: 【掲載期間】 | E18: 掲載期間は最大6ヵ月となります。掲載の延長を希望される場合は改めてお申し込みください。
C19: 【データ入稿】 | E19: データ入稿の締切は掲載日の2営業日前のAMまでとなります（お盆・年末年始などは除く） また、データ容量が大きすぎる場合はインターネット上での読み込み速度が遅くなる為、弊社にて加工させていただく場合がございます。
C20: 【その他】 | E20: クーポン付チラシの場合、電子クーポンの利用について「可・否」をご記載ください。利用可の場合、「利用方法」も併せてご記載をお願いします。 サイトの仕様上、タイトルのテキスト数やカテゴリ等、弊社の判断で添削する場合がございます。予めご了承ください。
C21: 株式会社 新潟日報メディアネット ガタチラ事務局
A23: 運営記入欄 | C23: No | G23: 受付日 | I23: 備考
A25: カテゴリ
A26: スーパー
A27: 百貨店
A28: ホームセンター
A29: 電化製品
A30: 家電製品
A31: パソコン用品
A32: 携帯電話
A33: ファッション
A34: 衣服
A35: 靴
A36: アクセサリー
A37: 雑貨
A38: おもちゃ
A39: インテリア雑貨・家具
A40: 通信販売
A41: 車
A42: 新車
A43: 中古車
A44: カー用品
A45: 習い事
A46: 塾
A47: そろばん
A48: スポーツ
A49: スイミング
A50: プログラミング
A51: その他
A52: 住宅
A53: 不動産
A54: マンション・アパート
A55: リフォーム
A56: お掃除
A57: クリーニング
A58: ハウスクリーニング
A59: 便利屋
A60: 官公庁（自治体）
A61: ドラッグストア
A62: 飲食店
A63: レストラン・食事処
A64: カフェ
A65: スイーツ
A66: 居酒屋
A67: 宅配・テイクアウト
A68: 美容
A69: 美容室
A70: エステ
A71: スポーツジム
A72: 入浴・スパ
A73: パチンコ
A74: 冠婚葬祭
A75: 式場
A76: 葬儀場
A77: 買取／販売
A78: 旅行／レジャー
A79: 求人情報
A80: その他

Sheet 更新履歴 (hidden)
A1: 日 | B1: 対象シート | C1: 更新内容 | D1: 対応者
A2: 2022-11-04 | B2: 下越１・２、中越１ | C2: Otona+部数欄に※追加 朝刊配達エリア店 | D2: 櫻井
A3: 2022-11-04 | B3: 新潟市 | C3: assh説明文 J-assh削除 | D3: 櫻井
A4: 2022-11-04 | B4: 新潟市 | C4: くるみる部数欄 条件設定変更 色付け解除 | D4: 櫻井
A5: 2022-11-05 | B5: 下越２ | C5: 佐渡の中央紙並び替え（従来版に戻した） | D5: 櫻井
A6: 2022-11-05 | B6: 地区集計 | C6: 旧佐渡郡、中央紙部数・件数計算式更新 | D6: 櫻井
A7: 2022-11-05 | B7: 下越１・２、中越１ | C7: 条件設定変更 旧豊栄市 色付け設定 | D7: 櫻井
A8: 2022-11-05 | B8: 下越１・２、中越１ | C8: 地域小計 計算式追加（ａｓｓｈ、おとプラ） | D8: 櫻井
A9: 2022-11-14 | B9: 中越１ | C9: 長岡大手くるみる欄追加、条件設定変更（Ｑ） | D9: 櫻井
A10: 2022-11-14 | B10: 地区集計 | C10: くるみる欄長岡市数式更新 | D10: 櫻井
A11: 2022-11-14 | B11: 新潟市～上越２ | C11: 全媒体部数改定12月 | D11: 櫻井
A12: 2022-11-18 | B12: 下越２ | C12: 羽茂 合、旧佐渡郡合計部数 | D12: 櫻井
A13: 2023-01-26 | B13: 下越１ | C13: 吉田産経削除 → 吉田 合 4730部 | D13: 込山
A14: 2023-01-27 | B14: 下越１～上越2 | C14: サイズ・ガタチラ他 入力制限・ロック設定 | D14: 櫻井
A15: 2023-10-12 | B15: 下越１ | C15: 矢代田・新津 朝刊部数 | D15: 櫻井
A16: 2023-10-12 | B16: 下越１ | C16: 三条西削除 三条北 朝刊・Otona+部数 | D16: 櫻井
A17: 2023-10-12 | B17: 下越１ | C17: 豊栄南削除 豊栄北 朝・く・ａ・お部数、販売店名称 | D17: 櫻井
A18: 2023-10-12 | B18: 中越１ | C18: 長岡大手削除 長岡中央・東 各部数 | D18: 櫻井
A19: 2023-10-12 | B19: 上越１ | C19: 柏崎東削除 柏崎 朝刊部数 | D19: 櫻井
A20: 2023-10-12 | B20: 表紙 | C20: 日付 | D20: 櫻井

Sheet ＥＤＩ朝刊 (hidden)
A1: 1 | B1: =A1+1 -> 2 | C1: =B1+1 -> 3 | D1: 4 | E1: 5 | F1: 6 | G1: 7 | H1: 8 | I1: 9 | J1: 10 | K1: 11 | L1: 12 | M1: 13 | N1: 14 | O1: 15 | P1: 16 | Q1: 17 | R1: 18 | S1: 19 | T1: 20 | U1: 21 | V1: 22
F2: CSV出力範囲
F3: 1 | G3: 2 | H3: 3 | I3: 4 | J3: 5 | K3: 6 | L3: 7 | M3: 8 | N3: 9 | O3: 10 | P3: 11 | Q3: 12 | R3: 13 | S3: 14 | T3: 15 | U3: 16 | V3: 17
A4: ①ヘッダーレコード | F4: 1 | G4: 0 | H4: 025669 | I4: 0 | J4: 0 | K4: 株式会社 新潟日報サービスネット | L4: データ作成日付（YYYYMMDD） | M4: 受注No． | N4: 1 | O4: 0 | P4: 0 | Q4: =新潟市!M3 -> 0 | R4: =TEXT(新潟市!A3,"yyyymmdd") -> 2023/--/-- | S4: =IF(新潟市!AI3=0,"",新潟市!AI3) ->  | T4: =新潟市!BU5 ->  | U4: =SUM(I5:I321) -> 
A5: ②明細コード | B5: 新潟市 | C5: 日報 | D5: 1 | E5: =新潟市!BU9 -> 万代 | F5: 2 | G5: 受注No． | H5: =新潟市!BV9 -> 10101 | I5: =IF(新潟市!BY9=0,"",新潟市!BY9) ->  | J5: 1 | K5: =IF(新潟市!AL9=0,"",新潟市!AL9) -> 
A6: ②明細コード | B6: 新潟市 | C6: 日報 | D6: =D5+1 -> 2 | E6: =新潟市!BU10 -> 駅南 | F6: 2 | G6: 受注No． | H6: =新潟市!BV10 -> 10102 | I6: =IF(新潟市!BY10=0,"",新潟市!BY10) ->  | J6: 1 | K6: =IF(新潟市!AL10=0,"",新潟市!AL10) -> 
A7: ②明細コード | B7: 新潟市 | C7: 日報 | D7: =D6+1 -> 3 | E7: =新潟市!BU11 -> 木戸 | F7: 2 | G7: 受注No． | H7: =新潟市!BV11 -> 10103 | I7: =IF(新潟市!BY11=0,"",新潟市!BY11) ->  | J7: 1 | K7: =IF(新潟市!AL11=0,"",新潟市!AL11) -> 
A8: ②明細コード | B8: 新潟市 | C8: 日報 | D8: 4 | E8: =新潟市!BU12 -> 石山東 | F8: 2 | G8: 受注No． | H8: =新潟市!BV12 -> 10105 | I8: =IF(新潟市!BY12=0,"",新潟市!BY12) ->  | J8: 1 | K8: =IF(新潟市!AL12=0,"",新潟市!AL12) -> 
A9: ②明細コード | B9: 新潟市 | C9: 日報 | D9: 5 | E9: =新潟市!BU13 -> 山ノ下 | F9: 2 | G9: 受注No． | H9: =新潟市!BV13 -> 10107 | I9: =IF(新潟市!BY13=0,"",新潟市!BY13) ->  | J9: 1 | K9: =IF(新潟市!AL13=0,"",新潟市!AL13) -> 
A10: ②明細コード | B10: 新潟市 | C10: 日報 | D10: 6 | E10: =新潟市!BU14 -> 物見山 | F10: 2 | G10: 受注No． | H10: =新潟市!BV14 -> 10108 | I10: =IF(新潟市!BY14=0,"",新潟市!BY14) ->  | J10: 1 | K10: =IF(新潟市!AL14=0,"",新潟市!AL14) -> 
A11: ②明細コード | B11: 新潟市 | C11: 日報 | D11: 7 | E11: =新潟市!BU15 -> とやの | F11: 2 | G11: 受注No． | H11: =新潟市!BV15 -> 10109 | I11: =IF(新潟市!BY15=0,"",新潟市!BY15) ->  | J11: 1 | K11: =IF(新潟市!AL15=0,"",新潟市!AL15) -> 
A12: ②明細コード | B12: 新潟市 | C12: 日報 | D12: 8 | E12: =新潟市!BU16 -> 県庁前 | F12: 2 | G12: 受注No． | H12: =新潟市!BV16 -> 10111 | I12: =IF(新潟市!BY16=0,"",新潟市!BY16) ->  | J12: 1 | K12: =IF(新潟市!AL16=0,"",新潟市!AL16) -> 
A13: ②明細コード | B13: 新潟市 | C13: 日報 | D13: 9 | E13: =新潟市!#REF! ->  | F13: 2 | G13: 受注No． | H13: =新潟市!#REF! ->  | I13: =IF(新潟市!#REF!=0,"",新潟市!#REF!) ->  | J13: 1 | K13: =IF(新潟市!#REF!=0,"",新潟市!#REF!) -> 
A14: ②明細コード | B14: 新潟市 | C14: 日報 | D14: 10 | E14: =新潟市!BU17 -> 愛宕 | F14: 2 | G14: 受注No． | H14: =新潟市!BV17 -> 10113 | I14: =IF(新潟市!BY17=0,"",新潟市!BY17) ->  | J14: 1 | K14: =IF(新潟市!AL17=0,"",新潟市!AL17) -> 
A15: ②明細コード | B15: 新潟市 | C15: 日報 | D15: 11 | E15: =新潟市!BU18 -> 河渡 | F15: 2 | G15: 受注No． | H15: =新潟市!BV18 -> 10114 | I15: =IF(新潟市!BY18=0,"",新潟市!BY18) ->  | J15: 1 | K15: =IF(新潟市!AL18=0,"",新潟市!AL18) -> 
A16: ②明細コード | B16: 新潟市 | C16: 日報 | D16: 12 | E16: =新潟市!BU19 -> 牡丹山 | F16: 2 | G16: 受注No． | H16: =新潟市!BV19 -> 10115 | I16: =IF(新潟市!BY19=0,"",新潟市!BY19) ->  | J16: 1 | K16: =IF(新潟市!AL19=0,"",新潟市!AL19) -> 
A17: ②明細コード | B17: 新潟市 | C17: 日報 | D17: 13 | E17: =新潟市!BU20 -> 大形 | F17: 2 | G17: 受注No． | H17: =新潟市!BV20 -> 10116 | I17: =IF(新潟市!BY20=0,"",新潟市!BY20) ->  | J17: 1 | K17: =IF(新潟市!AL20=0,"",新潟市!AL20) -> 
A18: ②明細コード | B18: 新潟市 | C18: 日報 | D18: 14 | E18: =新潟市!BU21 -> 松浜 | F18: 2 | G18: 受注No． | H18: =新潟市!BV21 -> 10117 | I18: =IF(新潟市!BY21=0,"",新潟市!BY21) ->  | J18: 1 | K18: =IF(新潟市!AL21=0,"",新潟市!AL21) -> 
A19: ②明細コード | B19: 新潟市 | C19: 日報 | D19: 15 | E19: =新潟市!BU22 -> 新潟南 | F19: 2 | G19: 受注No． | H19: =新潟市!BV22 -> 10118 | I19: =IF(新潟市!BY22=0,"",新潟市!BY22) ->  | J19: 1 | K19: =IF(新潟市!AL22=0,"",新潟市!AL22) -> 
A20: ②明細コード | B20: 新潟市 | C20: 日報 | D20: 16 | E20: =新潟市!BU23 -> 姥ケ山 | F20: 2 | G20: 受注No． | H20: =新潟市!BV23 -> 10119 | I20: =IF(新潟市!BY23=0,"",新潟市!BY23) ->  | J20: 1 | K20: =IF(新潟市!AL23=0,"",新潟市!AL23) -> 
A21: ②明細コード | B21: 新潟市 | C21: 日報 | D21: 17 | E21: =新潟市!BU24 -> 山二ツ | F21: 2 | G21: 受注No． | H21: =新潟市!BV24 -> 10120 | I21: =IF(新潟市!BY24=0,"",新潟市!BY24) ->  | J21: 1 | K21: =IF(新潟市!AL24=0,"",新潟市!AL24) -> 
A22: ②明細コード | B22: 新潟市 | C22: 日報 | D22: 18 | E22: =新潟市!BU25 -> 亀田西 | F22: 2 | G22: 受注No． | H22: =新潟市!BV25 -> 10122 | I22: =IF(新潟市!BY25=0,"",新潟市!BY25) ->  | J22: 1 | K22: =IF(新潟市!AL25=0,"",新潟市!AL25) -> 
A23: ②明細コード | B23: 新潟市 | C23: 日報 | D23: 19 | E23: =新潟市!BU26 -> 亀田 | F23: 2 | G23: 受注No． | H23: =新潟市!BV26 -> 10123 | I23: =IF(新潟市!BY26=0,"",新潟市!BY26) ->  | J23: 1 | K23: =IF(新潟市!AL26=0,"",新潟市!AL26) -> 
A24: ②明細コード | B24: 新潟市 | C24: 日報 | D24: 20 | E24: =新潟市!BU27 -> 横越 | F24: 2 | G24: 受注No． | H24: =新潟市!BV27 -> 10176 | I24: =IF(新潟市!BY27=0,"",新潟市!BY27) ->  | J24: 1 | K24: =IF(新潟市!AL27=0,"",新潟市!AL27) -> 
A25: ②明細コード | B25: 新潟市 | C25: 日報 | D25: 21 | E25: =新潟市!BU28 -> 有明 | F25: 2 | G25: 受注No． | H25: =新潟市!BV28 -> 10177 | I25: =IF(新潟市!BY28=0,"",新潟市!BY28) ->  | J25: 1 | K25: =IF(新潟市!AL28=0,"",新潟市!AL28) -> 
A26: ②明細コード | B26: 新潟市 | C26: 日報 | D26: 22 | E26: =新潟市!BU29 -> 小針 | F26: 2 | G26: 受注No． | H26: =新潟市!BV29 -> 10127 | I26: =IF(新潟市!BY29=0,"",新潟市!BY29) ->  | J26: 1 | K26: =IF(新潟市!AL29=0,"",新潟市!AL29) -> 
A27: ②明細コード | B27: 新潟市 | C27: 日報 | D27: 23 | E27: =新潟市!BU30 -> 中通 | F27: 2 | G27: 受注No． | H27: =新潟市!BV30 -> 10128 | I27: =IF(新潟市!BY30=0,"",新潟市!BY30) ->  | J27: 1 | K27: =IF(新潟市!AL30=0,"",新潟市!AL30) -> 
A28: ②明細コード | B28: 新潟市 | C28: 日報 | D28: 24 | E28: =新潟市!BU31 -> 本町 | F28: 2 | G28: 受注No． | H28: =新潟市!BV31 -> 10130 | I28: =IF(新潟市!BY31=0,"",新潟市!BY31) ->  | J28: 1 | K28: =IF(新潟市!AL31=0,"",新潟市!AL31) -> 
A29: ②明細コード | B29: 新潟市 | C29: 日報 | D29: 25 | E29: =新潟市!BU32 -> 中央 | F29: 2 | G29: 受注No． | H29: =新潟市!BV32 -> 10131 | I29: =IF(新潟市!BY32=0,"",新潟市!BY32) ->  | J29: 1 | K29: =IF(新潟市!AL32=0,"",新潟市!AL32) -> 
A30: ②明細コード | B30: 新潟市 | C30: 日報 | D30: 26 | E30: =新潟市!BU33 -> 真砂 | F30: 2 | G30: 受注No． | H30: =新潟市!BV33 -> 10133 | I30: =IF(新潟市!BY33=0,"",新潟市!BY33) ->  | J30: 1 | K30: =IF(新潟市!AL33=0,"",新潟市!AL33) -> 
A31: ②明細コード | B31: 新潟市 | C31: 日報 | D31: 27 | E31: =新潟市!BU34 -> 寺尾 | F31: 2 | G31: 受注No． | H31: =新潟市!BV34 -> 10134 | I31: =IF(新潟市!BY34=0,"",新潟市!BY34) ->  | J31: 1 | K31: =IF(新潟市!AL34=0,"",新潟市!AL34) -> 
A32: ②明細コード | B32: 新潟市 | C32: 日報 | D32: 28 | E32: =新潟市!BU35 -> 新大前 | F32: 2 | G32: 受注No． | H32: =新潟市!BV35 -> 10135 | I32: =IF(新潟市!BY35=0,"",新潟市!BY35) ->  | J32: 1 | K32: =IF(新潟市!AL35=0,"",新潟市!AL35) -> 
A33: ②明細コード | B33: 新潟市 | C33: 日報 | D33: 29 | E33: =新潟市!BU36 -> 内野 | F33: 2 | G33: 受注No． | H33: =新潟市!BV36 -> 10136 | I33: =IF(新潟市!BY36=0,"",新潟市!BY36) ->  | J33: 1 | K33: =IF(新潟市!AL36=0,"",新潟市!AL36) -> 
A34: ②明細コード | B34: 新潟市 | C34: 日報 | D34: 30 | E34: =新潟市!BU37 -> 西内野 | F34: 2 | G34: 受注No． | H34: =新潟市!BV37 -> 10137 | I34: =IF(新潟市!BY37=0,"",新潟市!BY37) ->  | J34: 1 | K34: =IF(新潟市!AL37=0,"",新潟市!AL37) -> 
A35: ②明細コード | B35: 新潟市 | C35: 日報 | D35: 31 | E35: =新潟市!#REF! ->  | F35: 2 | G35: 受注No． | H35: =新潟市!#REF! ->  | I35: =IF(新潟市!#REF!=0,"",新潟市!#REF!) ->  | J35: 1 | K35: =IF(新潟市!#REF!=0,"",新潟市!#REF!) -> 
A36: ②明細コード | B36: 新潟市 | C36: 日報 | D36: 32 | E36: =新潟市!BU38 -> 小新 | F36: 2 | G36: 受注No． | H36: =新潟市!BV38 -> 10140 | I36: =IF(新潟市!BY38=0,"",新潟市!BY38) ->  | J36: 1 | K36: =IF(新潟市!AL38=0,"",新潟市!AL38) -> 
A37: ②明細コード | B37: 新潟市 | C37: 日報 | D37: 33 | E37: =新潟市!BU39 -> 寺地 | F37: 2 | G37: 受注No． | H37: =新潟市!BV39 -> 10141 | I37: =IF(新潟市!BY39=0,"",新潟市!BY39) ->  | J37: 1 | K37: =IF(新潟市!AL39=0,"",新潟市!AL39) -> 
A38: ②明細コード | B38: 新潟市 | C38: 日報 | D38: 34 | E38: =新潟市!BU40 -> 黒埼 | F38: 2 | G38: 受注No． | H38: =新潟市!BV40 -> 10178 | I38: =IF(新潟市!BY40=0,"",新潟市!BY40) ->  | J38: 1 | K38: =IF(新潟市!AL40=0,"",新潟市!AL40) -> 
A39: ②明細コード | B39: 新潟市 | C39: 日報 | D39: 35 | E39: =新潟市!BU41 -> 黒埼南 | F39: 2 | G39: 受注No． | H39: =新潟市!BV41 -> 10143 | I39: =IF(新潟市!BY41=0,"",新潟市!BY41) ->  | J39: 1 | K39: =IF(新潟市!AL41=0,"",新潟市!AL41) -> 
A40: ②明細コード | B40: 新潟市 | C40: 中央紙 | D40: 1 | E40: =新潟市!#REF! ->  | F40: 2 | G40: 受注No． | H40: =新潟市!#REF! ->  | I40: =IF(新潟市!#REF!=0,"",新潟市!#REF!) ->  | J40: 1 | K40: =IF(新潟市!#REF!=0,"",新潟市!#REF!) -> 
A41: ②明細コード | B41: 新潟市 | C41: 中央紙 | D41: 2 | E41: =新潟市!#REF! ->  | F41: 2 | G41: 受注No． | H41: =新潟市!#REF! ->  | I41: =IF(新潟市!#REF!=0,"",新潟市!#REF!) ->  | J41: 1 | K41: =IF(新潟市!#REF!=0,"",新潟市!#REF!) -> 
A42: ②明細コード | B42: 新潟市 | C42: 中央紙 | D42: 3 | E42: =新潟市!CE9 -> 本町 | F42: 2 | G42: 受注No． | H42: =新潟市!CF9 -> 210167 | I42: =IF(新潟市!CG9=0,"",新潟市!CG9) ->  | J42: 1 | K42: =IF(新潟市!CH9=0,"",新潟市!CH9) -> 
A43: ②明細コード | B43: 新潟市 | C43: 中央紙 | D43: 4 | E43: =新潟市!CE10 -> 中央 | F43: 2 | G43: 受注No． | H43: =新潟市!CF10 -> 210168 | I43: =IF(新潟市!CG10=0,"",新潟市!CG10) ->  | J43: 1 | K43: =IF(新潟市!CH10=0,"",新潟市!CH10) -> 
A44: ②明細コード | B44: 新潟市 | C44: 中央紙 | D44: 5 | E44: =新潟市!CE11 -> 小針 | F44: 2 | G44: 受注No． | H44: =新潟市!CF11 -> 210169 | I44: =IF(新潟市!CG11=0,"",新潟市!CG11) ->  | J44: 1 | K44: =IF(新潟市!CH11=0,"",新潟市!CH11) -> 
A45: ②明細コード | B45: 新潟市 | C45: 中央紙 | D45: 6 | E45: =新潟市!CE12 -> 寺尾 | F45: 2 | G45: 受注No． | H45: =新潟市!CF12 -> 210170 | I45: =IF(新潟市!CG12=0,"",新潟市!CG12) ->  | J45: 1 | K45: =IF(新潟市!CH12=0,"",新潟市!CH12) -> 
A46: ②明細コード | B46: 新潟市 | C46: 中央紙 | D46: 7 | E46: =新潟市!CE13 -> 内野 | F46: 2 | G46: 受注No． | H46: =新潟市!CF13 -> 210171 | I46: =IF(新潟市!CG13=0,"",新潟市!CG13) ->  | J46: 1 | K46: =IF(新潟市!CH13=0,"",新潟市!CH13) -> 
A47: ②明細コード | B47: 新潟市 | C47: 中央紙 | D47: 8 | E47: =新潟市!CE14 -> 小新黒埼 | F47: 2 | G47: 受注No． | H47: =新潟市!CF14 -> 210172 | I47: =IF(新潟市!CG14=0,"",新潟市!CG14) ->  | J47: 1 | K47: =IF(新潟市!CH14=0,"",新潟市!CH14) -> 
A48: ②明細コード | B48: 新潟市 | C48: 中央紙 | D48: 9 | E48: =新潟市!CE15 -> 黒埼南 | F48: 2 | G48: 受注No． | H48: =新潟市!CF15 -> 210179 | I48: =IF(新潟市!CG15=0,"",新潟市!CG15) ->  | J48: 1 | K48: =IF(新潟市!CH15=0,"",新潟市!CH15) -> 
A49: ②明細コード | B49: 新潟市 | C49: 中央紙 | D49: 10 | E49: =新潟市!CE16 -> 万代 | F49: 2 | G49: 受注No． | H49: =新潟市!CF16 -> 210158 | I49: =IF(新潟市!CG16=0,"",新潟市!CG16) ->  | J49: 1 | K49: =IF(新潟市!CH16=0,"",新潟市!CH16) -> 
A50: ②明細コード | B50: 新潟市 | C50: 中央紙 | D50: 11 | E50: =新潟市!CE17 -> 県庁前 | F50: 2 | G50: 受注No． | H50: =新潟市!CF17 -> 210159 | I50: =IF(新潟市!CG17=0,"",新潟市!CG17) ->  | J50: 1 | K50: =IF(新潟市!CH17=0,"",新潟市!CH17) -> 
A51: ②明細コード | B51: 新潟市 | C51: 中央紙 | D51: 12 | E51: =新潟市!CE18 -> 駅南東 | F51: 2 | G51: 受注No． | H51: =新潟市!CF18 -> 210160 | I51: =IF(新潟市!CG18=0,"",新潟市!CG18) ->  | J51: 1 | K51: =IF(新潟市!CH18=0,"",新潟市!CH18) -> 
A52: ②明細コード | B52: 新潟市 | C52: 中央紙 | D52: 13 | E52: =新潟市!CE19 -> 山木戸 | F52: 2 | G52: 受注No． | H52: =新潟市!CF19 -> 210162 | I52: =IF(新潟市!CG19=0,"",新潟市!CG19) ->  | J52: 1 | K52: =IF(新潟市!CH19=0,"",新潟市!CH19) -> 
A53: ②明細コード | B53: 新潟市 | C53: 中央紙 | D53: 14 | E53: =新潟市!CE20 -> 山ノ下 | F53: 2 | G53: 受注No． | H53: =新潟市!CF20 -> 210163 | I53: =IF(新潟市!CG20=0,"",新潟市!CG20) ->  | J53: 1 | K53: =IF(新潟市!CH20=0,"",新潟市!CH20) -> 
A54: ②明細コード | B54: 新潟市 | C54: 中央紙 | D54: 15 | E54: =新潟市!CE21 -> 松浜 | F54: 2 | G54: 受注No． | H54: =新潟市!CF21 -> 210164 | I54: =IF(新潟市!CG21=0,"",新潟市!CG21) ->  | J54: 1 | K54: =IF(新潟市!CH21=0,"",新潟市!CH21) -> 
A55: ②明細コード | B55: 新潟市 | C55: 中央紙 | D55: 16 | E55: =新潟市!CE22 -> 亀田 | F55: 2 | G55: 受注No． | H55: =新潟市!CF22 -> 210166 | I55: =IF(新潟市!CG22=0,"",新潟市!CG22) ->  | J55: 1 | K55: =IF(新潟市!CH22=0,"",新潟市!CH22) -> 
A56: ②明細コード | B56: 下越地区1 | C56: 日報 | D56: 1 | E56: =下越1!BU9 -> 分水 | F56: 2 | G56: 受注No． | H56: =IF(下越1!BV9=0,"",下越1!BV9) -> 20101 | I56: =IF(下越1!BY9=0,"",下越1!BY9) ->  | J56: 1 | K56: =IF(下越1!BZ9=0,"",下越1!BZ9) -> 
A57: ②明細コード | B57: 下越地区1 | C57: 日報 | D57: =D56+1 -> 2 | E57: =下越1!BU10 -> 吉田 | F57: 2 | G57: 受注No． | H57: =IF(下越1!BV10=0,"",下越1!BV10) -> 20102 | I57: =IF(下越1!BY10=0,"",下越1!BY10) ->  | J57: 1 | K57: =IF(下越1!BZ10=0,"",下越1!BZ10) -> 
A58: ②明細コード | B58: 下越地区1 | C58: 日報 | D58: =D57+1 -> 3 | E58: =下越1!BU11 -> 粟生津 | F58: 2 | G58: 受注No． | H58: =IF(下越1!BV11=0,"",下越1!BV11) -> 20104 | I58: =IF(下越1!BY11=0,"",下越1!BY11) ->  | J58: 1 | K58: =IF(下越1!BZ11=0,"",下越1!BZ11) -> 
A59: ②明細コード | B59: 下越地区1 | C59: 日報 | D59: 4 | E59: =下越1!BU12 -> 巻 | F59: 2 | G59: 受注No． | H59: =IF(下越1!BV12=0,"",下越1!BV12) -> 20105 | I59: =IF(下越1!BY12=0,"",下越1!BY12) ->  | J59: 1 | K59: =IF(下越1!BZ12=0,"",下越1!BZ12) -> 
A60: ②明細コード | B60: 下越地区1 | C60: 日報 | D60: 5 | E60: =下越1!BU13 -> 岩室 | F60: 2 | G60: 受注No． | H60: =IF(下越1!BV13=0,"",下越1!BV13) -> 20108 | I60: =IF(下越1!BY13=0,"",下越1!BY13) ->  | J60: 1 | K60: =IF(下越1!BZ13=0,"",下越1!BZ13) -> 
A61: ②明細コード | B61: 下越地区1 | C61: 日報 | D61: 6 | E61: =下越1!BU14 -> 西川 | F61: 2 | G61: 受注No． | H61: =IF(下越1!BV14=0,"",下越1!BV14) -> 20109 | I61: =IF(下越1!BY14=0,"",下越1!BY14) ->  | J61: 1 | K61: =IF(下越1!BZ14=0,"",下越1!BZ14) -> 
A62: ②明細コード | B62: 下越地区1 | C62: 日報 | D62: 7 | E62: =下越1!BU15 -> 中之口 | F62: 2 | G62: 受注No． | H62: =IF(下越1!BV15=0,"",下越1!BV15) -> 20110 | I62: =IF(下越1!BY15=0,"",下越1!BY15) ->  | J62: 1 | K62: =IF(下越1!BZ15=0,"",下越1!BZ15) -> 
A63: ②明細コード | B63: 下越地区1 | C63: 日報 | D63: 8 | E63: =下越1!BU16 -> 弥彦 | F63: 2 | G63: 受注No． | H63: =IF(下越1!BV16=0,"",下越1!BV16) -> 20111 | I63: =IF(下越1!BY16=0,"",下越1!BY16) ->  | J63: 1 | K63: =IF(下越1!BZ16=0,"",下越1!BZ16) -> 
A64: ②明細コード | B64: 下越地区1 | C64: 日報 | D64: 9 | E64: =下越1!BU17 -> 0 | F64: 2 | G64: 受注No． | H64: =IF(下越1!BV17=0,"",下越1!BV17) ->  | I64: =IF(下越1!BY17=0,"",下越1!BY17) ->  | J64: 1 | K64: =IF(下越1!BZ17=0,"",下越1!BZ17) -> 
A65: ②明細コード | B65: 下越地区1 | C65: 日報 | D65: 10 | E65: =下越1!BU18 -> 小須戸 | F65: 2 | G65: 受注No． | H65: =IF(下越1!BV18=0,"",下越1!BV18) -> 20112 | I65: =IF(下越1!BY18=0,"",下越1!BY18) ->  | J65: 1 | K65: =IF(下越1!BZ18=0,"",下越1!BZ18) -> 
A66: ②明細コード | B66: 下越地区1 | C66: 日報 | D66: 11 | E66: =下越1!BU19 -> 矢代田 | F66: 2 | G66: 受注No． | H66: =IF(下越1!BV19=0,"",下越1!BV19) -> 20113 | I66: =IF(下越1!BY19=0,"",下越1!BY19) ->  | J66: 1 | K66: =IF(下越1!BZ19=0,"",下越1!BZ19) -> 
A67: ②明細コード | B67: 下越地区1 | C67: 日報 | D67: 12 | E67: =下越1!BU20 -> 村松 | F67: 2 | G67: 受注No． | H67: =IF(下越1!BV20=0,"",下越1!BV20) -> 20114 | I67: =IF(下越1!BY20=0,"",下越1!BY20) ->  | J67: 1 | K67: =IF(下越1!BZ20=0,"",下越1!BZ20) -> 
A68: ②明細コード | B68: 下越地区1 | C68: 日報 | D68: 13 | E68: =下越1!BU21 -> 0 | F68: 2 | G68: 受注No． | H68: =IF(下越1!BV21=0,"",下越1!BV21) ->  | I68: =IF(下越1!BY21=0,"",下越1!BY21) ->  | J68: 1 | K68: =IF(下越1!BZ21=0,"",下越1!BZ21) -> 
A69: ②明細コード | B69: 下越地区1 | C69: 日報 | D69: 14 | E69: =下越1!BU22 -> 新津 | F69: 2 | G69: 受注No． | H69: =IF(下越1!BV22=0,"",下越1!BV22) -> 20116 | I69: =IF(下越1!BY22=0,"",下越1!BY22) ->  | J69: 1 | K69: =IF(下越1!BZ22=0,"",下越1!BZ22) -> 
A70: ②明細コード | B70: 下越地区1 | C70: 日報 | D70: 15 | E70: =下越1!BU23 -> 新津・荻川 | F70: 2 | G70: 受注No． | H70: =IF(下越1!BV23=0,"",下越1!BV23) -> 20181 | I70: =IF(下越1!BY23=0,"",下越1!BY23) ->  | J70: 1 | K70: =IF(下越1!BZ23=0,"",下越1!BZ23) -> 
A71: ②明細コード | B71: 下越地区1 | C71: 日報 | D71: 16 | E71: =下越1!BU24 -> 0 | F71: 2 | G71: 受注No． | H71: =IF(下越1!BV24=0,"",下越1!BV24) ->  | I71: =IF(下越1!BY24=0,"",下越1!BY24) ->  | J71: 1 | K71: =IF(下越1!BZ24=0,"",下越1!BZ24) -> 
A72: ②明細コード | B72: 下越地区1 | C72: 日報 | D72: 17 | E72: =下越1!BU25 -> 五泉 | F72: 2 | G72: 受注No． | H72: =IF(下越1!BV25=0,"",下越1!BV25) -> 20117 | I72: =IF(下越1!BY25=0,"",下越1!BY25) ->  | J72: 1 | K72: =IF(下越1!BZ25=0,"",下越1!BZ25) -> 
A73: ②明細コード | B73: 下越地区1 | C73: 日報 | D73: 18 | E73: =下越1!BU27 -> 保田・馬下 | F73: 2 | G73: 受注No． | H73: =IF(下越1!BV27=0,"",下越1!BV27) -> 20183 | I73: =IF(下越1!BY27=0,"",下越1!BY27) ->  | J73: 1 | K73: =IF(下越1!BZ27=0,"",下越1!BZ27) -> 
A74: ②明細コード | B74: 下越地区1 | C74: 日報 | D74: 19 | E74: =下越1!BU28 -> 0 | F74: 2 | G74: 受注No． | H74: =IF(下越1!BV28=0,"",下越1!BV28) ->  | I74: =IF(下越1!BY28=0,"",下越1!BY28) ->  | J74: 1 | K74: =IF(下越1!BZ28=0,"",下越1!BZ28) -> 
A75: ②明細コード | B75: 下越地区1 | C75: 日報 | D75: 20 | E75: =下越1!BU29 -> 白根 | F75: 2 | G75: 受注No． | H75: =IF(下越1!BV29=0,"",下越1!BV29) -> 20120 | I75: =IF(下越1!BY29=0,"",下越1!BY29) ->  | J75: 1 | K75: =IF(下越1!BZ29=0,"",下越1!BZ29) -> 
A76: ②明細コード | B76: 下越地区1 | C76: 日報 | D76: 21 | E76: =下越1!BU30 -> 月潟 | F76: 2 | G76: 受注No． | H76: =IF(下越1!BV30=0,"",下越1!BV30) -> 20122 | I76: =IF(下越1!BY30=0,"",下越1!BY30) ->  | J76: 1 | K76: =IF(下越1!BZ30=0,"",下越1!BZ30) -> 
A77: ②明細コード | B77: 下越地区1 | C77: 日報 | D77: 22 | E77: =下越1!BU31 -> 新飯田 | F77: 2 | G77: 受注No． | H77: =IF(下越1!BV31=0,"",下越1!BV31) -> 20123 | I77: =IF(下越1!BY31=0,"",下越1!BY31) ->  | J77: 1 | K77: =IF(下越1!BZ31=0,"",下越1!BZ31) -> 
A78: ②明細コード | B78: 下越地区1 | C78: 日報 | D78: 23 | E78: =下越1!BU32 -> 0 | F78: 2 | G78: 受注No． | H78: =IF(下越1!BV32=0,"",下越1!BV32) ->  | I78: =IF(下越1!BY32=0,"",下越1!BY32) ->  | J78: 1 | K78: =IF(下越1!BZ32=0,"",下越1!BZ32) -> 
A79: ②明細コード | B79: 下越地区1 | C79: 日報 | D79: 24 | E79: =下越1!BU33 -> 三条北 | F79: 2 | G79: 受注No． | H79: =IF(下越1!BV33=0,"",下越1!BV33) -> 20124 | I79: =IF(下越1!BY33=0,"",下越1!BY33) ->  | J79: 1 | K79: =IF(下越1!BZ33=0,"",下越1!BZ33) -> 
A80: ②明細コード | B80: 下越地区1 | C80: 日報 | D80: 25 | E80: =下越1!BU34 -> 三条南 | F80: 2 | G80: 受注No． | H80: =IF(下越1!BV34=0,"",下越1!BV34) -> 20125 | I80: =IF(下越1!BY34=0,"",下越1!BY34) ->  | J80: 1 | K80: =IF(下越1!BZ34=0,"",下越1!BZ34) -> 
A81: ②明細コード | B81: 下越地区1 | C81: 日報 | D81: 26 | E81: =下越1!#REF! ->  | F81: 2 | G81: 受注No． | H81: =IF(下越1!#REF!=0,"",下越1!#REF!) ->  | I81: =IF(下越1!#REF!=0,"",下越1!#REF!) ->  | J81: 1 | K81: =IF(下越1!#REF!=0,"",下越1!#REF!) -> 
A82: ②明細コード | B82: 下越地区1 | C82: 日報 | D82: 27 | E82: =下越1!BU35 -> 0 | F82: 2 | G82: 受注No． | H82: =IF(下越1!BV35=0,"",下越1!BV35) ->  | I82: =IF(下越1!BY35=0,"",下越1!BY35) ->  | J82: 1 | K82: =IF(下越1!BZ35=0,"",下越1!BZ35) -> 
A83: ②明細コード | B83: 下越地区1 | C83: 日報 | D83: 28 | E83: =下越1!BU36 -> 燕 | F83: 2 | G83: 受注No． | H83: =IF(下越1!BV36=0,"",下越1!BV36) -> 20130 | I83: =IF(下越1!BY36=0,"",下越1!BY36) ->  | J83: 1 | K83: =IF(下越1!BZ36=0,"",下越1!BZ36) -> 
A84: ②明細コード | B84: 下越地区1 | C84: 日報 | D84: 29 | E84: =下越1!BU37 -> 燕南 | F84: 2 | G84: 受注No． | H84: =IF(下越1!BV37=0,"",下越1!BV37) -> 20131 | I84: =IF(下越1!BY37=0,"",下越1!BY37) ->  | J84: 1 | K84: =IF(下越1!BZ37=0,"",下越1!BZ37) -> 
A85: ②明細コード | B85: 下越地区1 | C85: 日報 | D85: 30 | E85: =下越1!BU38 -> 0 | F85: 2 | G85: 受注No． | H85: =IF(下越1!BV38=0,"",下越1!BV38) ->  | I85: =IF(下越1!BY38=0,"",下越1!BY38) ->  | J85: 1 | K85: =IF(下越1!BZ38=0,"",下越1!BZ38) -> 
A86: ②明細コード | B86: 下越地区1 | C86: 日報 | D86: 31 | E86: =下越1!BU39 -> 加茂 | F86: 2 | G86: 受注No． | H86: =IF(下越1!BV39=0,"",下越1!BV39) -> 20135 | I86: =IF(下越1!BY39=0,"",下越1!BY39) ->  | J86: 1 | K86: =IF(下越1!BZ39=0,"",下越1!BZ39) -> 
A87: ②明細コード | B87: 下越地区1 | C87: 日報 | D87: 32 | E87: =下越1!BU40 -> 0 | F87: 2 | G87: 受注No． | H87: =IF(下越1!BV40=0,"",下越1!BV40) ->  | I87: =IF(下越1!BY40=0,"",下越1!BY40) ->  | J87: 1 | K87: =IF(下越1!BZ40=0,"",下越1!BZ40) -> 
A88: ②明細コード | B88: 下越地区1 | C88: 日報 | D88: 33 | E88: =下越1!BU41 -> 下田 | F88: 2 | G88: 受注No． | H88: =IF(下越1!BV41=0,"",下越1!BV41) -> 20139 | I88: =IF(下越1!BY41=0,"",下越1!BY41) ->  | J88: 1 | K88: =IF(下越1!BZ41=0,"",下越1!BZ41) -> 
A89: ②明細コード | B89: 下越地区1 | C89: 日報 | D89: 34 | E89: =下越1!BU42 -> 栄山嵜 | F89: 2 | G89: 受注No． | H89: =IF(下越1!BV42=0,"",下越1!BV42) -> 20140 | I89: =IF(下越1!BY42=0,"",下越1!BY42) ->  | J89: 1 | K89: =IF(下越1!BZ42=0,"",下越1!BZ42) -> 
A90: ②明細コード | B90: 下越地区1 | C90: 日報 | D90: 35 | E90: =下越1!BU43 -> 栄吉田 | F90: 2 | G90: 受注No． | H90: =IF(下越1!BV43=0,"",下越1!BV43) -> 20141 | I90: =IF(下越1!BY43=0,"",下越1!BY43) ->  | J90: 1 | K90: =IF(下越1!BZ43=0,"",下越1!BZ43) -> 
A91: ②明細コード | B91: 下越地区1 | C91: 日報 | D91: 36 | E91: =下越1!BU44 -> 帯織 | F91: 2 | G91: 受注No． | H91: =IF(下越1!BV44=0,"",下越1!BV44) -> 20143 | I91: =IF(下越1!BY44=0,"",下越1!BY44) ->  | J91: 1 | K91: =IF(下越1!BZ44=0,"",下越1!BZ44) -> 
A92: ②明細コード | B92: 下越地区1 | C92: 日報 | D92: 37 | E92: =下越1!BU45 -> 0 | F92: 2 | G92: 受注No． | H92: =IF(下越1!BV45=0,"",下越1!BV45) ->  | I92: =IF(下越1!BY45=0,"",下越1!BY45) ->  | J92: 1 | K92: =IF(下越1!BZ45=0,"",下越1!BZ45) -> 
A93: ②明細コード | B93: 下越地区1 | C93: 日報 | D93: 38 | E93: =下越1!BU46 -> 豊栄 | F93: 2 | G93: 受注No． | H93: =IF(下越1!BV46=0,"",下越1!BV46) -> 20179 | I93: =IF(下越1!BY46=0,"",下越1!BY46) ->  | J93: 1 | K93: =IF(下越1!BZ46=0,"",下越1!BZ46) -> 
A94: ②明細コード | B94: 下越地区1 | C94: 日報 | D94: 39 | E94: =下越1!#REF! ->  | F94: 2 | G94: 受注No． | H94: =IF(下越1!#REF!=0,"",下越1!#REF!) ->  | I94: =IF(下越1!#REF!=0,"",下越1!#REF!) ->  | J94: 1 | K94: =IF(下越1!#REF!=0,"",下越1!#REF!) -> 
A95: ②明細コード | B95: 下越地区1 | C95: 日報 | D95: 40 | E95: =下越1!BU47 -> 木崎 | F95: 2 | G95: 受注No． | H95: =IF(下越1!BV47=0,"",下越1!BV47) -> 20146 | I95: =IF(下越1!BY47=0,"",下越1!BY47) ->  | J95: 1 | K95: =IF(下越1!BZ47=0,"",下越1!BZ47) -> 
A96: ②明細コード | B96: 下越地区1 | C96: 中央紙 | D96: 1 | E96: =下越1!CE9 -> 巻 | F96: 2 | G96: 受注No． | H96: =IF(下越1!CF9=0,"",下越1!CF9) -> 20106 | I96: =IF(下越1!CG9=0,"",下越1!CG9) ->  | J96: 1 | K96: =IF(下越1!CH9=0,"",下越1!CH9) -> 
A97: ②明細コード | B97: 下越地区1 | C97: 中央紙 | D97: 2 | E97: =下越1!CE10 -> 巻 | F97: 2 | G97: 受注No． | H97: =IF(下越1!CF10=0,"",下越1!CF10) -> 220107 | I97: =IF(下越1!CG10=0,"",下越1!CG10) ->  | J97: 1 | K97: =IF(下越1!CH10=0,"",下越1!CH10) -> 
A98: ②明細コード | B98: 下越地区1 | C98: 中央紙 | D98: 3 | E98: =下越1!CE11 -> 0 | F98: 2 | G98: 受注No． | H98: =IF(下越1!CF11=0,"",下越1!CF11) ->  | I98: =IF(下越1!CG11=0,"",下越1!CG11) ->  | J98: 1 | K98: =IF(下越1!CH11=0,"",下越1!CH11) -> 
A99: ②明細コード | B99: 下越地区1 | C99: 中央紙 | D99: 4 | E99: =下越1!CE12 -> 0 | F99: 2 | G99: 受注No． | H99: =IF(下越1!CF12=0,"",下越1!CF12) ->  | I99: =IF(下越1!CG12=0,"",下越1!CG12) ->  | J99: 1 | K99: =IF(下越1!CH12=0,"",下越1!CH12) -> 
A100: ②明細コード | B100: 下越地区1 | C100: 中央紙 | D100: 5 | E100: =下越1!CE13 -> 0 | F100: 2 | G100: 受注No． | H100: =IF(下越1!CF13=0,"",下越1!CF13) ->  | I100: =IF(下越1!CG13=0,"",下越1!CG13) ->  | J100: 1 | K100: =IF(下越1!CH13=0,"",下越1!CH13) -> 
A101: ②明細コード | B101: 下越地区1 | C101: 中央紙 | D101: 6 | E101: =下越1!CE14 -> 0 | F101: 2 | G101: 受注No． | H101: =IF(下越1!CF14=0,"",下越1!CF14) ->  | I101: =IF(下越1!CG14=0,"",下越1!CG14) ->  | J101: 1 | K101: =IF(下越1!CH14=0,"",下越1!CH14) -> 
A102: ②明細コード | B102: 下越地区1 | C102: 中央紙 | D102: 7 | E102: =下越1!CE15 -> 0 | F102: 2 | G102: 受注No． | H102: =IF(下越1!CF15=0,"",下越1!CF15) ->  | I102: =IF(下越1!CG15=0,"",下越1!CG15) ->  | J102: 1 | K102: =IF(下越1!CH15=0,"",下越1!CH15) -> 
A103: ②明細コード | B103: 下越地区1 | C103: 中央紙 | D103: 8 | E103: =下越1!CE16 -> 0 | F103: 2 | G103: 受注No． | H103: =IF(下越1!CF16=0,"",下越1!CF16) ->  | I103: =IF(下越1!CG16=0,"",下越1!CG16) ->  | J103: 1 | K103: =IF(下越1!CH16=0,"",下越1!CH16) -> 
A104: ②明細コード | B104: 下越地区1 | C104: 中央紙 | D104: 9 | E104: =下越1!CE17 -> 0 | F104: 2 | G104: 受注No． | H104: =IF(下越1!CF17=0,"",下越1!CF17) ->  | I104: =IF(下越1!CG17=0,"",下越1!CG17) ->  | J104: 1 | K104: =IF(下越1!CH17=0,"",下越1!CH17) -> 
A105: ②明細コード | B105: 下越地区1 | C105: 中央紙 | D105: 10 | E105: =下越1!CE18 -> 0 | F105: 2 | G105: 受注No． | H105: =IF(下越1!CF18=0,"",下越1!CF18) ->  | I105: =IF(下越1!CG18=0,"",下越1!CG18) ->  | J105: 1 | K105: =IF(下越1!CH18=0,"",下越1!CH18) -> 
A106: ②明細コード | B106: 下越地区２ | C106: 日報 | D106: 1 | E106: =下越２!BU9 -> 新発田西 | F106: 2 | G106: 受注No． | H106: =IF(下越２!BV9=0,"",下越２!BV9) -> 20148 | I106: =IF(下越２!BY9=0,"",下越２!BY9) ->  | J106: 1 | K106: =IF(下越２!BZ9=0,"",下越２!BZ9) -> 
A107: ②明細コード | B107: 下越地区２ | C107: 日報 | D107: 2 | E107: =下越２!BU10 -> 新発田東 | F107: 2 | G107: 受注No． | H107: =IF(下越２!BV10=0,"",下越２!BV10) -> 20149 | I107: =IF(下越２!BY10=0,"",下越２!BY10) ->  | J107: 1 | K107: =IF(下越２!BZ10=0,"",下越２!BZ10) -> 
A108: ②明細コード | B108: 下越地区２ | C108: 日報 | D108: 3 | E108: =下越２!BU11 -> 月岡 | F108: 2 | G108: 受注No． | H108: =IF(下越２!BV11=0,"",下越２!BV11) -> 20153 | I108: =IF(下越２!BY11=0,"",下越２!BY11) ->  | J108: 1 | K108: =IF(下越２!BZ11=0,"",下越２!BZ11) -> 
A109: ②明細コード | B109: 下越地区２ | C109: 日報 | D109: 4 | E109: =下越２!#REF! ->  | F109: 2 | G109: 受注No． | H109: =IF(下越２!#REF!=0,"",下越２!#REF!) ->  | I109: =IF(下越２!#REF!=0,"",下越２!#REF!) ->  | J109: 1 | K109: =IF(下越２!#REF!=0,"",下越２!#REF!) -> 
A110: ②明細コード | B110: 下越地区２ | C110: 日報 | D110: 5 | E110: =下越２!BU12 -> 0 | F110: 2 | G110: 受注No． | H110: =IF(下越２!BV12=0,"",下越２!BV12) ->  | I110: =IF(下越２!BY12=0,"",下越２!BY12) ->  | J110: 1 | K110: =IF(下越２!BZ12=0,"",下越２!BZ12) -> 
A111: ②明細コード | B111: 下越地区２ | C111: 日報 | D111: 6 | E111: =下越２!BU13 -> 中条東 | F111: 2 | G111: 受注No． | H111: =IF(下越２!BV13=0,"",下越２!BV13) -> 20154 | I111: =IF(下越２!BY13=0,"",下越２!BY13) ->  | J111: 1 | K111: =IF(下越２!BZ13=0,"",下越２!BZ13) -> 
A112: ②明細コード | B112: 下越地区２ | C112: 日報 | D112: 7 | E112: =下越２!BU14 -> 西中条 | F112: 2 | G112: 受注No． | H112: =IF(下越２!BV14=0,"",下越２!BV14) -> 20155 | I112: =IF(下越２!BY14=0,"",下越２!BY14) ->  | J112: 1 | K112: =IF(下越２!BZ14=0,"",下越２!BZ14) -> 
A113: ②明細コード | B113: 下越地区２ | C113: 日報 | D113: 8 | E113: =下越２!BU15 -> 黒川 | F113: 2 | G113: 受注No． | H113: =IF(下越２!BV15=0,"",下越２!BV15) -> 20157 | I113: =IF(下越２!BY15=0,"",下越２!BY15) ->  | J113: 1 | K113: =IF(下越２!BZ15=0,"",下越２!BZ15) -> 
A114: ②明細コード | B114: 下越地区２ | C114: 日報 | D114: 9 | E114: =下越２!BU16 -> 水原 | F114: 2 | G114: 受注No． | H114: =IF(下越２!BV16=0,"",下越２!BV16) -> 20158 | I114: =IF(下越２!BY16=0,"",下越２!BY16) ->  | J114: 1 | K114: =IF(下越２!BZ16=0,"",下越２!BZ16) -> 
A115: ②明細コード | B115: 下越地区２ | C115: 日報 | D115: 10 | E115: =下越２!BU17 -> 保田 | F115: 2 | G115: 受注No． | H115: =IF(下越２!BV17=0,"",下越２!BV17) -> 20161 | I115: =IF(下越２!BY17=0,"",下越２!BY17) ->  | J115: 1 | K115: =IF(下越２!BZ17=0,"",下越２!BZ17) -> 
A116: ②明細コード | B116: 下越地区２ | C116: 日報 | D116: 11 | E116: =下越２!BU18 -> 0 | F116: 2 | G116: 受注No． | H116: =IF(下越２!BV18=0,"",下越２!BV18) ->  | I116: =IF(下越２!BY18=0,"",下越２!BY18) ->  | J116: 1 | K116: =IF(下越２!BZ18=0,"",下越２!BZ18) -> 
A117: ②明細コード | B117: 下越地区２ | C117: 日報 | D117: 12 | E117: =下越２!BU19 -> 村上 | F117: 2 | G117: 受注No． | H117: =IF(下越２!BV19=0,"",下越２!BV19) -> 20162 | I117: =IF(下越２!BY19=0,"",下越２!BY19) ->  | J117: 1 | K117: =IF(下越２!BZ19=0,"",下越２!BZ19) -> 
A118: ②明細コード | B118: 下越地区２ | C118: 日報 | D118: 13 | E118: =下越２!BU20 -> 岩船 | F118: 2 | G118: 受注No． | H118: =IF(下越２!BV20=0,"",下越２!BV20) -> 20163 | I118: =IF(下越２!BY20=0,"",下越２!BY20) ->  | J118: 1 | K118: =IF(下越２!BZ20=0,"",下越２!BZ20) -> 
A119: ②明細コード | B119: 下越地区２ | C119: 日報 | D119: 14 | E119: =下越２!BU21 -> 越後早川 | F119: 2 | G119: 受注No． | H119: =IF(下越２!BV21=0,"",下越２!BV21) -> 20164 | I119: =IF(下越２!BY21=0,"",下越２!BY21) ->  | J119: 1 | K119: =IF(下越２!BZ21=0,"",下越２!BZ21) -> 
A120: ②明細コード | B120: 下越地区２ | C120: 日報 | D120: 15 | E120: =下越２!BU22 -> 0 | F120: 2 | G120: 受注No． | H120: =IF(下越２!BV22=0,"",下越２!BV22) ->  | I120: =IF(下越２!BY22=0,"",下越２!BY22) ->  | J120: 1 | K120: =IF(下越２!BZ22=0,"",下越２!BZ22) -> 
A121: ②明細コード | B121: 下越地区２ | C121: 日報 | D121: 16 | E121: =下越２!BU23 -> 坂町 | F121: 2 | G121: 受注No． | H121: =IF(下越２!BV23=0,"",下越２!BV23) -> 20165 | I121: =IF(下越２!BY23=0,"",下越２!BY23) ->  | J121: 1 | K121: =IF(下越２!BZ23=0,"",下越２!BZ23) -> 
A122: ②明細コード | B122: 下越地区２ | C122: 日報 | D122: 17 | E122: =下越２!#REF! ->  | F122: 2 | G122: 受注No． | H122: =IF(下越２!#REF!=0,"",下越２!#REF!) ->  | I122: =IF(下越２!#REF!=0,"",下越２!#REF!) ->  | J122: 1 | K122: =IF(下越２!#REF!=0,"",下越２!#REF!) -> 
A123: ②明細コード | B123: 下越地区２ | C123: 日報 | D123: =D122+1 -> 18 | E123: =下越２!BU24 -> 関川 | F123: 2 | G123: 受注No． | H123: =IF(下越２!BV24=0,"",下越２!BV24) -> 20167 | I123: =IF(下越２!BY24=0,"",下越２!BY24) ->  | J123: 1 | K123: =IF(下越２!BZ24=0,"",下越２!BZ24) -> 
A124: ②明細コード | B124: 下越地区２ | C124: 日報 | D124: 19 | E124: =下越２!#REF! ->  | F124: 2 | G124: 受注No． | H124: =IF(下越２!#REF!=0,"",下越２!#REF!) ->  | I124: =IF(下越２!#REF!=0,"",下越２!#REF!) ->  | J124: 1 | K124: =IF(下越２!#REF!=0,"",下越２!#REF!) -> 
A125: ②明細コード | B125: 下越地区２ | C125: 日報 | D125: 20 | E125: =下越２!BU25 -> 府屋 | F125: 2 | G125: 受注No． | H125: =IF(下越２!BV25=0,"",下越２!BV25) -> 20170 | I125: =IF(下越２!BY25=0,"",下越２!BY25) ->  | J125: 1 | K125: =IF(下越２!BZ25=0,"",下越２!BZ25) -> 
A126: ②明細コード | B126: 下越地区２ | C126: 日報 | D126: 21 | E126: =下越２!BU26 -> 黒川俣 | F126: 2 | G126: 受注No． | H126: =IF(下越２!BV26=0,"",下越２!BV26) -> 20172 | I126: =IF(下越２!BY26=0,"",下越２!BY26) ->  | J126: 1 | K126: =IF(下越２!BZ26=0,"",下越２!BZ26) -> 
A127: ②明細コード | B127: 下越地区２ | C127: 日報 | D127: 22 | E127: =下越２!BU27 -> 0 | F127: 2 | G127: 受注No． | H127: =IF(下越２!BV27=0,"",下越２!BV27) ->  | I127: =IF(下越２!BY27=0,"",下越２!BY27) ->  | J127: 1 | K127: =IF(下越２!BZ27=0,"",下越２!BZ27) -> 
A128: ②明細コード | B128: 下越地区２ | C128: 日報 | D128: 23 | E128: =下越２!BU28 -> 津川 | F128: 2 | G128: 受注No． | H128: =IF(下越２!BV28=0,"",下越２!BV28) -> 20173 | I128: =IF(下越２!BY28=0,"",下越２!BY28) ->  | J128: 1 | K128: =IF(下越２!BZ28=0,"",下越２!BZ28) -> 
A129: ②明細コード | B129: 下越地区２ | C129: 日報 | D129: 24 | E129: =下越２!BU29 -> 豊実 | F129: 2 | G129: 受注No． | H129: =IF(下越２!BV29=0,"",下越２!BV29) -> 20174 | I129: =IF(下越２!BY29=0,"",下越２!BY29) ->  | J129: 1 | K129: =IF(下越２!BZ29=0,"",下越２!BZ29) -> 
A130: ②明細コード | B130: 下越地区２ | C130: 日報 | D130: 25 | E130: =下越２!BU30 -> 日出谷 | F130: 2 | G130: 受注No． | H130: =IF(下越２!BV30=0,"",下越２!BV30) -> 20175 | I130: =IF(下越２!BY30=0,"",下越２!BY30) ->  | J130: 1 | K130: =IF(下越２!BZ30=0,"",下越２!BZ30) -> 
A131: ②明細コード | B131: 下越地区２ | C131: 日報 | D131: 26 | E131: =下越２!BU31 -> 鹿瀬 | F131: 2 | G131: 受注No． | H131: =IF(下越２!BV31=0,"",下越２!BV31) -> 20176 | I131: =IF(下越２!BY31=0,"",下越２!BY31) ->  | J131: 1 | K131: =IF(下越２!BZ31=0,"",下越２!BZ31) -> 
A132: ②明細コード | B132: 下越地区２ | C132: 日報 | D132: 27 | E132: =下越２!BU32 -> 白崎 | F132: 2 | G132: 受注No． | H132: =IF(下越２!BV32=0,"",下越２!BV32) -> 20177 | I132: =IF(下越２!BY32=0,"",下越２!BY32) ->  | J132: 1 | K132: =IF(下越２!BZ32=0,"",下越２!BZ32) -> 
A133: ②明細コード | B133: 下越地区２ | C133: 日報 | D133: 28 | E133: =下越２!BU34 -> 保田・五十島 | F133: 2 | G133: 受注No． | H133: =IF(下越２!BV34=0,"",下越２!BV34) -> 20182 | I133: =IF(下越２!BY34=0,"",下越２!BY34) ->  | J133: 1 | K133: =IF(下越２!BZ34=0,"",下越２!BZ34) -> 
A134: ②明細コード | B134: 下越地区２ | C134: 日報 | D134: 29 | E134: =下越２!BU35 -> 0 | F134: 2 | G134: 受注No． | H134: =IF(下越２!BV35=0,"",下越２!BV35) ->  | I134: =IF(下越２!BY35=0,"",下越２!BY35) ->  | J134: 1 | K134: =IF(下越２!BZ35=0,"",下越２!BZ35) -> 
A135: ②明細コード | B135: 下越地区２ | C135: 日報 | D135: 30 | E135: =下越２!BU36 -> 小国 | F135: 2 | G135: 受注No． | H135: =IF(下越２!BV36=0,"",下越２!BV36) -> 20201 | I135: =IF(下越２!BY36=0,"",下越２!BY36) ->  | J135: 1 | K135: =IF(下越２!BZ36=0,"",下越２!BZ36) -> 
A136: ②明細コード | B136: 下越地区２ | C136: 日報 | D136: 31 | E136: =下越２!BU37 -> 0 | F136: 2 | G136: 受注No． | H136: =IF(下越２!BV37=0,"",下越２!BV37) ->  | I136: =IF(下越２!BY37=0,"",下越２!BY37) ->  | J136: 1 | K136: =IF(下越２!BZ37=0,"",下越２!BZ37) -> 
A137: ②明細コード | B137: 下越地区２ | C137: 日報 | D137: 32 | E137: =下越２!BU38 -> 両津 | F137: 2 | G137: 受注No． | H137: =IF(下越２!BV38=0,"",下越２!BV38) -> 30101 | I137: =IF(下越２!BY38=0,"",下越２!BY38) ->  | J137: 1 | K137: =IF(下越２!BZ38=0,"",下越２!BZ38) -> 
A138: ②明細コード | B138: 下越地区２ | C138: 日報 | D138: 33 | E138: =下越２!BU39 -> 吉井 | F138: 2 | G138: 受注No． | H138: =IF(下越２!BV39=0,"",下越２!BV39) -> 30105 | I138: =IF(下越２!BY39=0,"",下越２!BY39) ->  | J138: 1 | K138: =IF(下越２!BZ39=0,"",下越２!BZ39) -> 
A139: ②明細コード | B139: 下越地区２ | C139: 日報 | D139: 34 | E139: =下越２!#REF! ->  | F139: 2 | G139: 受注No． | H139: =IF(下越２!#REF!=0,"",下越２!#REF!) ->  | I139: =IF(下越２!#REF!=0,"",下越２!#REF!) ->  | J139: 1 | K139: =IF(下越２!#REF!=0,"",下越２!#REF!) -> 
A140: ②明細コード | B140: 下越地区２ | C140: 日報 | D140: 35 | E140: =下越２!BU40 -> 0 | F140: 2 | G140: 受注No． | H140: =IF(下越２!BV40=0,"",下越２!BV40) ->  | I140: =IF(下越２!BY40=0,"",下越２!BY40) ->  | J140: 1 | K140: =IF(下越２!BZ40=0,"",下越２!BZ40) -> 
A141: ②明細コード | B141: 下越地区２ | C141: 日報 | D141: 36 | E141: =下越２!BU41 -> 真野 | F141: 2 | G141: 受注No． | H141: =IF(下越２!BV41=0,"",下越２!BV41) -> 30106 | I141: =IF(下越２!BY41=0,"",下越２!BY41) ->  | J141: 1 | K141: =IF(下越２!BZ41=0,"",下越２!BZ41) -> 
A142: ②明細コード | B142: 下越地区２ | C142: 日報 | D142: 37 | E142: =下越２!BU42 -> 新穂 | F142: 2 | G142: 受注No． | H142: =IF(下越２!BV42=0,"",下越２!BV42) -> 30108 | I142: =IF(下越２!BY42=0,"",下越２!BY42) ->  | J142: 1 | K142: =IF(下越２!BZ42=0,"",下越２!BZ42) -> 
A143: ②明細コード | B143: 下越地区２ | C143: 日報 | D143: 38 | E143: =下越２!BU43 -> 畑野 | F143: 2 | G143: 受注No． | H143: =IF(下越２!BV43=0,"",下越２!BV43) -> 30111 | I143: =IF(下越２!BY43=0,"",下越２!BY43) ->  | J143: 1 | K143: =IF(下越２!BZ43=0,"",下越２!BZ43) -> 
A144: ②明細コード | B144: 下越地区２ | C144: 日報 | D144: 39 | E144: =下越２!BU44 -> 佐和田 | F144: 2 | G144: 受注No． | H144: =IF(下越２!BV44=0,"",下越２!BV44) -> 30114 | I144: =IF(下越２!BY44=0,"",下越２!BY44) ->  | J144: 1 | K144: =IF(下越２!BZ44=0,"",下越２!BZ44) -> 
A145: ②明細コード | B145: 下越地区２ | C145: 日報 | D145: 40 | E145: =下越２!BU45 -> 相川 | F145: 2 | G145: 受注No． | H145: =IF(下越２!BV45=0,"",下越２!BV45) -> 30110 | I145: =IF(下越２!BY45=0,"",下越２!BY45) ->  | J145: 1 | K145: =IF(下越２!BZ45=0,"",下越２!BZ45) -> 
A146: ②明細コード | B146: 下越地区２ | C146: 日報 | D146: 41 | E146: =下越２!BU46 -> 金井 | F146: 2 | G146: 受注No． | H146: =IF(下越２!BV46=0,"",下越２!BV46) -> 30121 | I146: =IF(下越２!BY46=0,"",下越２!BY46) ->  | J146: 1 | K146: =IF(下越２!BZ46=0,"",下越２!BZ46) -> 
A147: ②明細コード | B147: 下越地区２ | C147: 日報 | D147: 42 | E147: =下越２!BU47 -> 羽茂 | F147: 2 | G147: 受注No． | H147: =IF(下越２!BV47=0,"",下越２!BV47) -> 30122 | I147: =IF(下越２!BY47=0,"",下越２!BY47) ->  | J147: 1 | K147: =IF(下越２!BZ47=0,"",下越２!BZ47) -> 
A148: ②明細コード | B148: 下越地区２ | C148: 日報 | D148: 43 | E148: =下越２!BU48 -> 小木 | F148: 2 | G148: 受注No． | H148: =IF(下越２!BV48=0,"",下越２!BV48) -> 30124 | I148: =IF(下越２!BY48=0,"",下越２!BY48) ->  | J148: 1 | K148: =IF(下越２!BZ48=0,"",下越２!BZ48) -> 
A149: ②明細コード | B149: 下越地区２ | C149: 日報 | D149: 44 | E149: =下越２!BU49 -> 赤泊 | F149: 2 | G149: 受注No． | H149: =IF(下越２!BV49=0,"",下越２!BV49) -> 30127 | I149: =IF(下越２!BY49=0,"",下越２!BY49) ->  | J149: 1 | K149: =IF(下越２!BZ49=0,"",下越２!BZ49) -> 
A150: ②明細コード | B150: 下越地区２ | C150: 日報 | D150: 45 | E150: =下越２!BU50 -> 多田 | F150: 2 | G150: 受注No． | H150: =IF(下越２!BV50=0,"",下越２!BV50) -> 30130 | I150: =IF(下越２!BY50=0,"",下越２!BY50) ->  | J150: 1 | K150: =IF(下越２!BZ50=0,"",下越２!BZ50) -> 
A151: ②明細コード | B151: 下越地区２ | C151: 中央紙 | D151: 1 | E151: =下越２!#REF! ->  | F151: 2 | G151: 受注No． | H151: =IF(下越２!#REF!=0,"",下越２!#REF!) ->  | I151: =IF(下越２!#REF!=0,"",下越２!#REF!) ->  | J151: 1 | K151: =IF(下越２!#REF!=0,"",下越２!#REF!) -> 
A152: ②明細コード | B152: 下越地区２ | C152: 中央紙 | D152: =D151+1 -> 2 | E152: =下越２!CE9 -> 新発田 | F152: 2 | G152: 受注No． | H152: =IF(下越２!CF9=0,"",下越２!CF9) -> 220152 | I152: =IF(下越２!CG9=0,"",下越２!CG9) ->  | J152: 1 | K152: =IF(下越２!CH9=0,"",下越２!CH9) -> 
A153: ②明細コード | B153: 下越地区２ | C153: 中央紙 | D153: 3 | E153: =下越２!CE10 -> 0 | F153: 2 | G153: 受注No． | H153: =IF(下越２!CF10=0,"",下越２!CF10) ->  | I153: =IF(下越２!CG10=0,"",下越２!CG10) ->  | J153: 1 | K153: =IF(下越２!CH10=0,"",下越２!CH10) -> 
A154: ②明細コード | B154: 下越地区２ | C154: 中央紙 | D154: 4 | E154: =下越２!CE11 -> 0 | F154: 2 | G154: 受注No． | H154: =IF(下越２!CF11=0,"",下越２!CF11) ->  | I154: =IF(下越２!CG11=0,"",下越２!CG11) ->  | J154: 1 | K154: =IF(下越２!CH11=0,"",下越２!CH11) -> 
A155: ②明細コード | B155: 下越地区２ | C155: 中央紙 | D155: 5 | E155: =下越２!#REF! ->  | F155: 2 | G155: 受注No． | H155: =IF(下越２!#REF!=0,"",下越２!#REF!) ->  | I155: =IF(下越２!#REF!=0,"",下越２!#REF!) ->  | J155: 1 | K155: =IF(下越２!#REF!=0,"",下越２!#REF!) -> 
A156: ②明細コード | B156: 下越地区２ | C156: 中央紙 | D156: 6 | E156: =下越２!CE12 -> 0 | F156: 2 | G156: 受注No． | H156: =IF(下越２!CF12=0,"",下越２!CF12) ->  | I156: =IF(下越２!CG12=0,"",下越２!CG12) ->  | J156: 1 | K156: =IF(下越２!CH12=0,"",下越２!CH12) -> 
A157: ②明細コード | B157: 下越地区２ | C157: 中央紙 | D157: 7 | E157: =下越２!CE13 -> 中条 | F157: 2 | G157: 受注No． | H157: =IF(下越２!CF13=0,"",下越２!CF13) -> 220156 | I157: =IF(下越２!CG13=0,"",下越２!CG13) ->  | J157: 1 | K157: =IF(下越２!CH13=0,"",下越２!CH13) -> 
A158: ②明細コード | B158: 下越地区２ | C158: 中央紙 | D158: 8 | E158: =下越２!CE17 -> 0 | F158: 2 | G158: 受注No． | H158: =IF(下越２!CF17=0,"",下越２!CF17) ->  | I158: =IF(下越２!CG17=0,"",下越２!CG17) ->  | J158: 1 | K158: =IF(下越２!CH17=0,"",下越２!CH17) -> 
A159: ②明細コード | B159: 下越地区２ | C159: 中央紙 | D159: 9 | E159: =下越２!CE18 -> 0 | F159: 2 | G159: 受注No． | H159: =IF(下越２!CF18=0,"",下越２!CF18) ->  | I159: =IF(下越２!CG18=0,"",下越２!CG18) ->  | J159: 1 | K159: =IF(下越２!CH18=0,"",下越２!CH18) -> 
A160: ②明細コード | B160: 下越地区２ | C160: 中央紙 | D160: 10 | E160: =下越２!CE20 -> 0 | F160: 2 | G160: 受注No． | H160: =IF(下越２!CF20=0,"",下越２!CF20) ->  | I160: =IF(下越２!CG20=0,"",下越２!CG20) ->  | J160: 1 | K160: =IF(下越２!CH20=0,"",下越２!CH20) -> 
A161: ②明細コード | B161: 下越地区２ | C161: 中央紙 | D161: 11 | E161: =下越２!CE22 -> 0 | F161: 2 | G161: 受注No． | H161: =IF(下越２!CF22=0,"",下越２!CF22) ->  | I161: =IF(下越２!CG22=0,"",下越２!CG22) ->  | J161: 1 | K161: =IF(下越２!CH22=0,"",下越２!CH22) -> 
A162: ②明細コード | B162: 下越地区２ | C162: 中央紙 | D162: 12 | E162: =下越２!CE14 -> 水原 | F162: 2 | G162: 受注No． | H162: =IF(下越２!CF14=0,"",下越２!CF14) -> 220160 | I162: =IF(下越２!CG14=0,"",下越２!CG14) ->  | J162: 1 | K162: =IF(下越２!CH14=0,"",下越２!CH14) -> 
A163: ②明細コード | B163: 下越地区２ | C163: 中央紙 | D163: 13 | E163: =下越２!CE15 -> 0 | F163: 2 | G163: 受注No． | H163: =IF(下越２!CF15=0,"",下越２!CF15) ->  | I163: =IF(下越２!CG15=0,"",下越２!CG15) ->  | J163: 1 | K163: =IF(下越２!CH15=0,"",下越２!CH15) -> 
A164: ②明細コード | B164: 下越地区２ | C164: 中央紙 | D164: 14 | E164: =下越２!CE16 -> 0 | F164: 2 | G164: 受注No． | H164: =IF(下越２!CF16=0,"",下越２!CF16) ->  | I164: =IF(下越２!CG16=0,"",下越２!CG16) ->  | J164: 1 | K164: =IF(下越２!CH16=0,"",下越２!CH16) -> 
A165: ②明細コード | B165: 下越地区２ | C165: 中央紙 | D165: 15 | E165: =下越２!CE19 -> 0 | F165: 2 | G165: 受注No． | H165: =IF(下越２!CF19=0,"",下越２!CF19) ->  | I165: =IF(下越２!CG19=0,"",下越２!CG19) ->  | J165: 1 | K165: =IF(下越２!CH19=0,"",下越２!CH19) -> 
A166: ②明細コード | B166: 下越地区２ | C166: 中央紙 | D166: 16 | E166: =下越２!#REF! ->  | F166: 2 | G166: 受注No． | H166: =IF(下越２!#REF!=0,"",下越２!#REF!) ->  | I166: =IF(下越２!#REF!=0,"",下越２!#REF!) ->  | J166: 1 | K166: =IF(下越２!#REF!=0,"",下越２!#REF!) -> 
A167: ②明細コード | B167: 下越地区２ | C167: 中央紙 | D167: =D166+1 -> 17 | E167: =下越２!CE21 -> 0 | F167: 2 | G167: 受注No． | H167: =IF(下越２!CF21=0,"",下越２!CF21) ->  | I167: =IF(下越２!CG21=0,"",下越２!CG21) ->  | J167: 1 | K167: =IF(下越２!CH21=0,"",下越２!CH21) -> 
A168: ②明細コード | B168: 下越地区２ | C168: 中央紙 | D168: 18 | E168: =下越２!#REF! ->  | F168: 2 | G168: 受注No． | H168: =IF(下越２!#REF!=0,"",下越２!#REF!) ->  | I168: =IF(下越２!#REF!=0,"",下越２!#REF!) ->  | J168: 1 | K168: =IF(下越２!#REF!=0,"",下越２!#REF!) -> 
A169: ②明細コード | B169: 中越地区 | C169: 日報 | D169: 1 | E169: =中越1!#REF! ->  | F169: 2 | G169: 受注No． | H169: =IF(中越1!#REF!=0,"",中越1!#REF!) ->  | I169: =IF(中越1!#REF!=0,"",中越1!#REF!) ->  | J169: 1 | K169: =IF(中越1!#REF!=0,"",中越1!#REF!) -> 
A170: ②明細コード | B170: 中越地区 | C170: 日報 | D170: =D169+1 -> 2 | E170: =中越1!BZ9 -> 長岡中央 | F170: 2 | G170: 受注No． | H170: =IF(中越1!CA9=0,"",中越1!CA9) -> 40102 | I170: =IF(中越1!CD9=0,"",中越1!CD9) ->  | J170: 1 | K170: =IF(中越1!CE9=0,"",中越1!CE9) -> 
A171: ②明細コード | B171: 中越地区 | C171: 日報 | D171: 3 | E171: =中越1!BZ10 -> 長岡南 | F171: 2 | G171: 受注No． | H171: =IF(中越1!CA10=0,"",中越1!CA10) -> 40300 | I171: =IF(中越1!CD10=0,"",中越1!CD10) ->  | J171: 1 | K171: =IF(中越1!CE10=0,"",中越1!CE10) -> 
A172: ②明細コード | B172: 中越地区 | C172: 日報 | D172: 4 | E172: =中越1!BZ11 -> 長岡東 | F172: 2 | G172: 受注No． | H172: =IF(中越1!CA11=0,"",中越1!CA11) -> 40104 | I172: =IF(中越1!CD11=0,"",中越1!CD11) ->  | J172: 1 | K172: =IF(中越1!CE11=0,"",中越1!CE11) -> 
A173: ②明細コード | B173: 中越地区 | C173: 日報 | D173: 5 | E173: =中越1!BZ12 -> 長岡新保 | F173: 2 | G173: 受注No． | H173: =IF(中越1!CA12=0,"",中越1!CA12) -> 40105 | I173: =IF(中越1!CD12=0,"",中越1!CD12) ->  | J173: 1 | K173: =IF(中越1!CE12=0,"",中越1!CE12) -> 
A174: ②明細コード | B174: 中越地区 | C174: 日報 | D174: 6 | E174: =中越1!BZ13 -> 長岡悠久 | F174: 2 | G174: 受注No． | H174: =IF(中越1!CA13=0,"",中越1!CA13) -> 40106 | I174: =IF(中越1!CD13=0,"",中越1!CD13) ->  | J174: 1 | K174: =IF(中越1!CE13=0,"",中越1!CE13) -> 
A175: ②明細コード | B175: 中越地区 | C175: 日報 | D175: 7 | E175: =中越1!BZ14 -> 西長岡 | F175: 2 | G175: 受注No． | H175: =IF(中越1!CA14=0,"",中越1!CA14) -> 40111 | I175: =IF(中越1!CD14=0,"",中越1!CD14) ->  | J175: 1 | K175: =IF(中越1!CE14=0,"",中越1!CE14) -> 
A176: ②明細コード | B176: 中越地区 | C176: 日報 | D176: 8 | E176: =中越1!BZ15 -> 関原 | F176: 2 | G176: 受注No． | H176: =IF(中越1!CA15=0,"",中越1!CA15) -> 40113 | I176: =IF(中越1!CD15=0,"",中越1!CD15) ->  | J176: 1 | K176: =IF(中越1!CE15=0,"",中越1!CE15) -> 
A177: ②明細コード | B177: 中越地区 | C177: 日報 | D177: 9 | E177: =中越1!BZ16 -> 王寺川 | F177: 2 | G177: 受注No． | H177: =IF(中越1!CA16=0,"",中越1!CA16) -> 40114 | I177: =IF(中越1!CD16=0,"",中越1!CD16) ->  | J177: 1 | K177: =IF(中越1!CE16=0,"",中越1!CE16) -> 
A178: ②明細コード | B178: 中越地区 | C178: 日報 | D178: 10 | E178: =中越1!BZ17 -> 長岡江陽 | F178: 2 | G178: 受注No． | H178: =IF(中越1!CA17=0,"",中越1!CA17) -> 40115 | I178: =IF(中越1!CD17=0,"",中越1!CD17) ->  | J178: 1 | K178: =IF(中越1!CE17=0,"",中越1!CE17) -> 
A179: ②明細コード | B179: 中越地区 | C179: 日報 | D179: 11 | E179: =中越1!BZ18 -> 黒条 | F179: 2 | G179: 受注No． | H179: =IF(中越1!CA18=0,"",中越1!CA18) -> 40116 | I179: =IF(中越1!CD18=0,"",中越1!CD18) ->  | J179: 1 | K179: =IF(中越1!CE18=0,"",中越1!CE18) -> 
A180: ②明細コード | B180: 中越地区 | C180: 日報 | D180: 12 | E180: =中越1!BZ19 -> 新組 | F180: 2 | G180: 受注No． | H180: =IF(中越1!CA19=0,"",中越1!CA19) -> 40117 | I180: =IF(中越1!CD19=0,"",中越1!CD19) ->  | J180: 1 | K180: =IF(中越1!CE19=0,"",中越1!CE19) -> 
A181: ②明細コード | B181: 中越地区 | C181: 日報 | D181: 13 | E181: =中越1!BZ20 -> 長岡宮内 | F181: 2 | G181: 受注No． | H181: =IF(中越1!CA20=0,"",中越1!CA20) -> 40121 | I181: =IF(中越1!CD20=0,"",中越1!CD20) ->  | J181: 1 | K181: =IF(中越1!CE20=0,"",中越1!CE20) -> 
A182: ②明細コード | B182: 中越地区 | C182: 日報 | D182: 14 | E182: =中越1!BZ21 -> 濁沢 | F182: 2 | G182: 受注No． | H182: =IF(中越1!CA21=0,"",中越1!CA21) -> 40124 | I182: =IF(中越1!CD21=0,"",中越1!CD21) ->  | J182: 1 | K182: =IF(中越1!CE21=0,"",中越1!CE21) -> 
A183: ②明細コード | B183: 中越地区 | C183: 日報 | D183: 15 | E183: =中越1!BZ22 -> 岡南 | F183: 2 | G183: 受注No． | H183: =IF(中越1!CA22=0,"",中越1!CA22) -> 40125 | I183: =IF(中越1!CD22=0,"",中越1!CD22) ->  | J183: 1 | K183: =IF(中越1!CE22=0,"",中越1!CE22) -> 
A184: ②明細コード | B184: 中越地区 | C184: 日報 | D184: 16 | E184: =中越1!BZ23 -> 六日市 | F184: 2 | G184: 受注No． | H184: =IF(中越1!CA23=0,"",中越1!CA23) -> 40126 | I184: =IF(中越1!CD23=0,"",中越1!CD23) ->  | J184: 1 | K184: =IF(中越1!CE23=0,"",中越1!CE23) -> 
A185: ②明細コード | B185: 中越地区 | C185: 日報 | D185: 17 | E185: =中越1!BZ24 -> 0 | F185: 2 | G185: 受注No． | H185: =IF(中越1!CA24=0,"",中越1!CA24) ->  | I185: =IF(中越1!CD24=0,"",中越1!CD24) ->  | J185: 1 | K185: =IF(中越1!CE24=0,"",中越1!CE24) -> 
A186: ②明細コード | B186: 中越地区 | C186: 日報 | D186: 18 | E186: =中越1!BZ25 -> 栃尾 | F186: 2 | G186: 受注No． | H186: =IF(中越1!CA25=0,"",中越1!CA25) -> 40127 | I186: =IF(中越1!CD25=0,"",中越1!CD25) ->  | J186: 1 | K186: =IF(中越1!CE25=0,"",中越1!CE25) -> 
A187: ②明細コード | B187: 中越地区 | C187: 日報 | D187: 19 | E187: =中越1!BZ26 -> 0 | F187: 2 | G187: 受注No． | H187: =IF(中越1!CA26=0,"",中越1!CA26) ->  | I187: =IF(中越1!CD26=0,"",中越1!CD26) ->  | J187: 1 | K187: =IF(中越1!CE26=0,"",中越1!CE26) -> 
A188: ②明細コード | B188: 中越地区 | C188: 日報 | D188: 20 | E188: =中越1!BZ27 -> 見附南 | F188: 2 | G188: 受注No． | H188: =IF(中越1!CA27=0,"",中越1!CA27) -> 40130 | I188: =IF(中越1!CD27=0,"",中越1!CD27) ->  | J188: 1 | K188: =IF(中越1!CE27=0,"",中越1!CE27) -> 
A189: ②明細コード | B189: 中越地区 | C189: 日報 | D189: 21 | E189: =中越1!BZ28 -> 見附北 | F189: 2 | G189: 受注No． | H189: =IF(中越1!CA28=0,"",中越1!CA28) -> 40131 | I189: =IF(中越1!CD28=0,"",中越1!CD28) ->  | J189: 1 | K189: =IF(中越1!CE28=0,"",中越1!CE28) -> 
A190: ②明細コード | B190: 中越地区 | C190: 日報 | D190: 22 | E190: =中越1!BZ29 -> 今町 | F190: 2 | G190: 受注No． | H190: =IF(中越1!CA29=0,"",中越1!CA29) -> 40135 | I190: =IF(中越1!CD29=0,"",中越1!CD29) ->  | J190: 1 | K190: =IF(中越1!CE29=0,"",中越1!CE29) -> 
A191: ②明細コード | B191: 中越地区 | C191: 日報 | D191: 23 | E191: =中越1!BZ30 -> 0 | F191: 2 | G191: 受注No． | H191: =IF(中越1!CA30=0,"",中越1!CA30) ->  | I191: =IF(中越1!CD30=0,"",中越1!CD30) ->  | J191: 1 | K191: =IF(中越1!CE30=0,"",中越1!CE30) -> 
A192: ②明細コード | B192: 中越地区 | C192: 日報 | D192: 24 | E192: =中越1!BZ31 -> 越路 | F192: 2 | G192: 受注No． | H192: =IF(中越1!CA31=0,"",中越1!CA31) -> 40139 | I192: =IF(中越1!CD31=0,"",中越1!CD31) ->  | J192: 1 | K192: =IF(中越1!CE31=0,"",中越1!CE31) -> 
A193: ②明細コード | B193: 中越地区 | C193: 日報 | D193: 25 | E193: =中越1!BZ32 -> 塚山 | F193: 2 | G193: 受注No． | H193: =IF(中越1!CA32=0,"",中越1!CA32) -> 40141 | I193: =IF(中越1!CD32=0,"",中越1!CD32) ->  | J193: 1 | K193: =IF(中越1!CE32=0,"",中越1!CE32) -> 
A194: ②明細コード | B194: 中越地区 | C194: 日報 | D194: 26 | E194: =中越1!#REF! ->  | F194: 2 | G194: 受注No． | H194: =IF(中越1!#REF!=0,"",中越1!#REF!) ->  | I194: =IF(中越1!#REF!=0,"",中越1!#REF!) ->  | J194: 1 | K194: =IF(中越1!#REF!=0,"",中越1!#REF!) -> 
A195: ②明細コード | B195: 中越地区 | C195: 日報 | D195: 27 | E195: =中越1!#REF! ->  | F195: 2 | G195: 受注No． | H195: =IF(中越1!#REF!=0,"",中越1!#REF!) ->  | I195: =IF(中越1!#REF!=0,"",中越1!#REF!) ->  | J195: 1 | K195: =IF(中越1!#REF!=0,"",中越1!#REF!) -> 
A196: ②明細コード | B196: 中越地区 | C196: 日報 | D196: 28 | E196: =中越1!BZ33 -> 与板 | F196: 2 | G196: 受注No． | H196: =IF(中越1!CA33=0,"",中越1!CA33) -> 40144 | I196: =IF(中越1!CD33=0,"",中越1!CD33) ->  | J196: 1 | K196: =IF(中越1!CE33=0,"",中越1!CE33) -> 
A197: ②明細コード | B197: 中越地区 | C197: 日報 | D197: 29 | E197: =中越1!BZ34 -> 大河津 | F197: 2 | G197: 受注No． | H197: =IF(中越1!CA34=0,"",中越1!CA34) -> 40145 | I197: =IF(中越1!CD34=0,"",中越1!CD34) ->  | J197: 1 | K197: =IF(中越1!CE34=0,"",中越1!CE34) -> 
A198: ②明細コード | B198: 中越地区 | C198: 日報 | D198: 30 | E198: =中越1!BZ35 -> 寺泊 | F198: 2 | G198: 受注No． | H198: =IF(中越1!CA35=0,"",中越1!CA35) -> 40146 | I198: =IF(中越1!CD35=0,"",中越1!CD35) ->  | J198: 1 | K198: =IF(中越1!CE35=0,"",中越1!CE35) -> 
A199: ②明細コード | B199: 中越地区 | C199: 日報 | D199: 31 | E199: =中越1!BZ36 -> 和島 | F199: 2 | G199: 受注No． | H199: =IF(中越1!CA36=0,"",中越1!CA36) -> 40147 | I199: =IF(中越1!CD36=0,"",中越1!CD36) ->  | J199: 1 | K199: =IF(中越1!CE36=0,"",中越1!CE36) -> 
A200: ②明細コード | B200: 中越地区 | C200: 日報 | D200: 32 | E200: =中越1!BZ37 -> 西越 | F200: 2 | G200: 受注No． | H200: =IF(中越1!CA37=0,"",中越1!CA37) -> 40148 | I200: =IF(中越1!CD37=0,"",中越1!CD37) ->  | J200: 1 | K200: =IF(中越1!CE37=0,"",中越1!CE37) -> 
... 123 more rows

Sheet ＥＤＩくるみる (hidden)
A1: 1 | B1: =A1+1 -> 2 | C1: =B1+1 -> 3 | D1: 4 | E1: 5 | F1: 6 | G1: 7 | H1: 8 | I1: 9 | J1: 10 | K1: 11 | L1: 12 | M1: 13 | N1: 14 | O1: 15 | P1: 16 | Q1: 17 | R1: 18 | S1: 19 | T1: 20 | U1: 21 | V1: 22
F2: CSV出力範囲
F3: 1 | G3: 2 | H3: 3 | I3: 4 | J3: 5 | K3: 6 | L3: 7 | M3: 8 | N3: 9 | O3: 10 | P3: 11 | Q3: 12 | R3: 13 | S3: 14 | T3: 15 | U3: 16 | V3: 17
A4: ①ヘッダーレコード | F4: 1 | G4: 0 | H4: 025669 | I4: 0 | J4: 0 | K4: 株式会社 新潟日報サービスネット | L4: データ作成日付（YYYYMMDD） | M4: 受注No． | N4: 7 | O4: 0 | P4: 0 | Q4: =新潟市!M3 -> 0 | R4: =TEXT(新潟市!A3,"yyyymmdd") -> 2023/--/-- | S4: ="くるみる折込 "&新潟市!AI3 -> くるみる折込 | T4: =新潟市!BU5 ->  | U4: =SUM(I5:I241) -> 
A5: ②明細コード | B5: 新潟市 | C5: 日報 | D5: 1 | E5: =新潟市!BU9 -> 万代 | F5: 2 | G5: 受注No． | H5: =新潟市!BV9 -> 10101 | I5: =IF(新潟市!CA9=0,"",新潟市!CA9) ->  | J5: 1
A6: ②明細コード | B6: 新潟市 | C6: 日報 | D6: =D5+1 -> 2 | E6: =新潟市!BU10 -> 駅南 | F6: 2 | G6: 受注No． | H6: =新潟市!BV10 -> 10102 | I6: =IF(新潟市!CA10=0,"",新潟市!CA10) ->  | J6: 1
A7: ②明細コード | B7: 新潟市 | C7: 日報 | D7: =D6+1 -> 3 | E7: =新潟市!BU11 -> 木戸 | F7: 2 | G7: 受注No． | H7: =新潟市!BV11 -> 10103 | I7: =IF(新潟市!CA11=0,"",新潟市!CA11) ->  | J7: 1
A8: ②明細コード | B8: 新潟市 | C8: 日報 | D8: 4 | E8: =新潟市!BU12 -> 石山東 | F8: 2 | G8: 受注No． | H8: =新潟市!BV12 -> 10105 | I8: =IF(新潟市!CA12=0,"",新潟市!CA12) ->  | J8: 1
A9: ②明細コード | B9: 新潟市 | C9: 日報 | D9: 5 | E9: =新潟市!BU13 -> 山ノ下 | F9: 2 | G9: 受注No． | H9: =新潟市!BV13 -> 10107 | I9: =IF(新潟市!CA13=0,"",新潟市!CA13) ->  | J9: 1
A10: ②明細コード | B10: 新潟市 | C10: 日報 | D10: 6 | E10: =新潟市!BU14 -> 物見山 | F10: 2 | G10: 受注No． | H10: =新潟市!BV14 -> 10108 | I10: =IF(新潟市!CA14=0,"",新潟市!CA14) ->  | J10: 1
A11: ②明細コード | B11: 新潟市 | C11: 日報 | D11: 7 | E11: =新潟市!BU15 -> とやの | F11: 2 | G11: 受注No． | H11: =新潟市!BV15 -> 10109 | I11: =IF(新潟市!CA15=0,"",新潟市!CA15) ->  | J11: 1
A12: ②明細コード | B12: 新潟市 | C12: 日報 | D12: 8 | E12: =新潟市!BU16 -> 県庁前 | F12: 2 | G12: 受注No． | H12: =新潟市!BV16 -> 10111 | I12: =IF(新潟市!CA16=0,"",新潟市!CA16) ->  | J12: 1
A13: ②明細コード | B13: 新潟市 | C13: 日報 | D13: 9 | E13: =新潟市!#REF! ->  | F13: 2 | G13: 受注No． | H13: =新潟市!#REF! ->  | I13: =IF(新潟市!#REF!=0,"",新潟市!#REF!) ->  | J13: 1
A14: ②明細コード | B14: 新潟市 | C14: 日報 | D14: 10 | E14: =新潟市!BU17 -> 愛宕 | F14: 2 | G14: 受注No． | H14: =新潟市!BV17 -> 10113 | I14: =IF(新潟市!CA17=0,"",新潟市!CA17) ->  | J14: 1
A15: ②明細コード | B15: 新潟市 | C15: 日報 | D15: 11 | E15: =新潟市!BU18 -> 河渡 | F15: 2 | G15: 受注No． | H15: =新潟市!BV18 -> 10114 | I15: =IF(新潟市!CA18=0,"",新潟市!CA18) ->  | J15: 1
A16: ②明細コード | B16: 新潟市 | C16: 日報 | D16: 12 | E16: =新潟市!BU19 -> 牡丹山 | F16: 2 | G16: 受注No． | H16: =新潟市!BV19 -> 10115 | I16: =IF(新潟市!CA19=0,"",新潟市!CA19) ->  | J16: 1
A17: ②明細コード | B17: 新潟市 | C17: 日報 | D17: 13 | E17: =新潟市!BU20 -> 大形 | F17: 2 | G17: 受注No． | H17: =新潟市!BV20 -> 10116 | I17: =IF(新潟市!CA20=0,"",新潟市!CA20) ->  | J17: 1
A18: ②明細コード | B18: 新潟市 | C18: 日報 | D18: 14 | E18: =新潟市!BU21 -> 松浜 | F18: 2 | G18: 受注No． | H18: =新潟市!BV21 -> 10117 | I18: =IF(新潟市!CA21=0,"",新潟市!CA21) ->  | J18: 1
A19: ②明細コード | B19: 新潟市 | C19: 日報 | D19: 15 | E19: =新潟市!BU22 -> 新潟南 | F19: 2 | G19: 受注No． | H19: =新潟市!BV22 -> 10118 | I19: =IF(新潟市!CA22=0,"",新潟市!CA22) ->  | J19: 1
A20: ②明細コード | B20: 新潟市 | C20: 日報 | D20: 16 | E20: =新潟市!BU23 -> 姥ケ山 | F20: 2 | G20: 受注No． | H20: =新潟市!BV23 -> 10119 | I20: =IF(新潟市!CA23=0,"",新潟市!CA23) ->  | J20: 1
A21: ②明細コード | B21: 新潟市 | C21: 日報 | D21: 17 | E21: =新潟市!BU24 -> 山二ツ | F21: 2 | G21: 受注No． | H21: =新潟市!BV24 -> 10120 | I21: =IF(新潟市!CA24=0,"",新潟市!CA24) ->  | J21: 1
A22: ②明細コード | B22: 新潟市 | C22: 日報 | D22: 18 | E22: =新潟市!BU25 -> 亀田西 | F22: 2 | G22: 受注No． | H22: =新潟市!BV25 -> 10122 | I22: =IF(新潟市!CA25=0,"",新潟市!CA25) ->  | J22: 1
A23: ②明細コード | B23: 新潟市 | C23: 日報 | D23: 19 | E23: =新潟市!BU26 -> 亀田 | F23: 2 | G23: 受注No． | H23: =新潟市!BV26 -> 10123 | I23: =IF(新潟市!CA26=0,"",新潟市!CA26) ->  | J23: 1
A24: ②明細コード | B24: 新潟市 | C24: 日報 | D24: 20 | E24: =新潟市!BU27 -> 横越 | F24: 2 | G24: 受注No． | H24: =新潟市!BV27 -> 10176 | I24: =IF(新潟市!CA27=0,"",新潟市!CA27) ->  | J24: 1
A25: ②明細コード | B25: 新潟市 | C25: 日報 | D25: 21 | E25: =新潟市!BU28 -> 有明 | F25: 2 | G25: 受注No． | H25: =新潟市!BV28 -> 10177 | I25: =IF(新潟市!CA28=0,"",新潟市!CA28) ->  | J25: 1
A26: ②明細コード | B26: 新潟市 | C26: 日報 | D26: 22 | E26: =新潟市!BU29 -> 小針 | F26: 2 | G26: 受注No． | H26: =新潟市!BV29 -> 10127 | I26: =IF(新潟市!CA29=0,"",新潟市!CA29) ->  | J26: 1
A27: ②明細コード | B27: 新潟市 | C27: 日報 | D27: 23 | E27: =新潟市!BU30 -> 中通 | F27: 2 | G27: 受注No． | H27: =新潟市!BV30 -> 10128 | I27: =IF(新潟市!CA30=0,"",新潟市!CA30) ->  | J27: 1
A28: ②明細コード | B28: 新潟市 | C28: 日報 | D28: 24 | E28: =新潟市!BU31 -> 本町 | F28: 2 | G28: 受注No． | H28: =新潟市!BV31 -> 10130 | I28: =IF(新潟市!CA31=0,"",新潟市!CA31) ->  | J28: 1
A29: ②明細コード | B29: 新潟市 | C29: 日報 | D29: 25 | E29: =新潟市!BU32 -> 中央 | F29: 2 | G29: 受注No． | H29: =新潟市!BV32 -> 10131 | I29: =IF(新潟市!CA32=0,"",新潟市!CA32) ->  | J29: 1
A30: ②明細コード | B30: 新潟市 | C30: 日報 | D30: 26 | E30: =新潟市!BU33 -> 真砂 | F30: 2 | G30: 受注No． | H30: =新潟市!BV33 -> 10133 | I30: =IF(新潟市!CA33=0,"",新潟市!CA33) ->  | J30: 1
A31: ②明細コード | B31: 新潟市 | C31: 日報 | D31: 27 | E31: =新潟市!BU34 -> 寺尾 | F31: 2 | G31: 受注No． | H31: =新潟市!BV34 -> 10134 | I31: =IF(新潟市!CA34=0,"",新潟市!CA34) ->  | J31: 1
A32: ②明細コード | B32: 新潟市 | C32: 日報 | D32: 28 | E32: =新潟市!BU35 -> 新大前 | F32: 2 | G32: 受注No． | H32: =新潟市!BV35 -> 10135 | I32: =IF(新潟市!CA35=0,"",新潟市!CA35) ->  | J32: 1
A33: ②明細コード | B33: 新潟市 | C33: 日報 | D33: 29 | E33: =新潟市!BU36 -> 内野 | F33: 2 | G33: 受注No． | H33: =新潟市!BV36 -> 10136 | I33: =IF(新潟市!CA36=0,"",新潟市!CA36) ->  | J33: 1
A34: ②明細コード | B34: 新潟市 | C34: 日報 | D34: 30 | E34: =新潟市!BU37 -> 西内野 | F34: 2 | G34: 受注No． | H34: =新潟市!BV37 -> 10137 | I34: =IF(新潟市!CA37=0,"",新潟市!CA37) ->  | J34: 1
A35: ②明細コード | B35: 新潟市 | C35: 日報 | D35: 31 | E35: =新潟市!#REF! ->  | F35: 2 | G35: 受注No． | H35: =新潟市!#REF! ->  | I35: =IF(新潟市!#REF!=0,"",新潟市!#REF!) ->  | J35: 1
A36: ②明細コード | B36: 新潟市 | C36: 日報 | D36: 32 | E36: =新潟市!BU38 -> 小新 | F36: 2 | G36: 受注No． | H36: =新潟市!BV38 -> 10140 | I36: =IF(新潟市!CA38=0,"",新潟市!CA38) ->  | J36: 1
A37: ②明細コード | B37: 新潟市 | C37: 日報 | D37: 33 | E37: =新潟市!BU39 -> 寺地 | F37: 2 | G37: 受注No． | H37: =新潟市!BV39 -> 10141 | I37: =IF(新潟市!CA39=0,"",新潟市!CA39) ->  | J37: 1
A38: ②明細コード | B38: 新潟市 | C38: 日報 | D38: 34 | E38: =新潟市!BU40 -> 黒埼 | F38: 2 | G38: 受注No． | H38: =新潟市!BV40 -> 10178 | I38: =IF(新潟市!CA40=0,"",新潟市!CA40) ->  | J38: 1
A39: ②明細コード | B39: 新潟市 | C39: 日報 | D39: 35 | E39: =新潟市!BU41 -> 黒埼南 | F39: 2 | G39: 受注No． | H39: =新潟市!BV41 -> 10143 | I39: =IF(新潟市!CA41=0,"",新潟市!CA41) ->  | J39: 1
A40: ②明細コード | B40: 下越地区1 | C40: 日報 | D40: 1 | E40: =下越1!BU9 -> 分水 | F40: 2 | G40: 受注No． | H40: =IF(下越1!BV9=0,"",下越1!BV9) -> 20101 | I40: =IF(下越1!CA9=0,"",下越1!CA9) ->  | J40: 1
A41: ②明細コード | B41: 下越地区1 | C41: 日報 | D41: =D40+1 -> 2 | E41: =下越1!BU10 -> 吉田 | F41: 2 | G41: 受注No． | H41: =IF(下越1!BV10=0,"",下越1!BV10) -> 20102 | I41: =IF(下越1!CA10=0,"",下越1!CA10) ->  | J41: 1
A42: ②明細コード | B42: 下越地区1 | C42: 日報 | D42: =D41+1 -> 3 | E42: =下越1!BU11 -> 粟生津 | F42: 2 | G42: 受注No． | H42: =IF(下越1!BV11=0,"",下越1!BV11) -> 20104 | I42: =IF(下越1!CA11=0,"",下越1!CA11) ->  | J42: 1
A43: ②明細コード | B43: 下越地区1 | C43: 日報 | D43: 4 | E43: =下越1!BU12 -> 巻 | F43: 2 | G43: 受注No． | H43: =IF(下越1!BV12=0,"",下越1!BV12) -> 20105 | I43: =IF(下越1!CA12=0,"",下越1!CA12) ->  | J43: 1
A44: ②明細コード | B44: 下越地区1 | C44: 日報 | D44: 5 | E44: =下越1!BU13 -> 岩室 | F44: 2 | G44: 受注No． | H44: =IF(下越1!BV13=0,"",下越1!BV13) -> 20108 | I44: =IF(下越1!CA13=0,"",下越1!CA13) ->  | J44: 1
A45: ②明細コード | B45: 下越地区1 | C45: 日報 | D45: 6 | E45: =下越1!BU14 -> 西川 | F45: 2 | G45: 受注No． | H45: =IF(下越1!BV14=0,"",下越1!BV14) -> 20109 | I45: =IF(下越1!CA14=0,"",下越1!CA14) ->  | J45: 1
A46: ②明細コード | B46: 下越地区1 | C46: 日報 | D46: 7 | E46: =下越1!BU15 -> 中之口 | F46: 2 | G46: 受注No． | H46: =IF(下越1!BV15=0,"",下越1!BV15) -> 20110 | I46: =IF(下越1!CA15=0,"",下越1!CA15) ->  | J46: 1
A47: ②明細コード | B47: 下越地区1 | C47: 日報 | D47: 8 | E47: =下越1!BU16 -> 弥彦 | F47: 2 | G47: 受注No． | H47: =IF(下越1!BV16=0,"",下越1!BV16) -> 20111 | I47: =IF(下越1!CA16=0,"",下越1!CA16) ->  | J47: 1
A48: ②明細コード | B48: 下越地区1 | C48: 日報 | D48: 9 | E48: =下越1!BU17 -> 0 | F48: 2 | G48: 受注No． | H48: =IF(下越1!BV17=0,"",下越1!BV17) ->  | I48: =IF(下越1!CA17=0,"",下越1!CA17) ->  | J48: 1
A49: ②明細コード | B49: 下越地区1 | C49: 日報 | D49: 10 | E49: =下越1!BU18 -> 小須戸 | F49: 2 | G49: 受注No． | H49: =IF(下越1!BV18=0,"",下越1!BV18) -> 20112 | I49: =IF(下越1!CA18=0,"",下越1!CA18) ->  | J49: 1
A50: ②明細コード | B50: 下越地区1 | C50: 日報 | D50: 11 | E50: =下越1!BU19 -> 矢代田 | F50: 2 | G50: 受注No． | H50: =IF(下越1!BV19=0,"",下越1!BV19) -> 20113 | I50: =IF(下越1!CA19=0,"",下越1!CA19) ->  | J50: 1
A51: ②明細コード | B51: 下越地区1 | C51: 日報 | D51: 12 | E51: =下越1!BU20 -> 村松 | F51: 2 | G51: 受注No． | H51: =IF(下越1!BV20=0,"",下越1!BV20) -> 20114 | I51: =IF(下越1!CA20=0,"",下越1!CA20) ->  | J51: 1
A52: ②明細コード | B52: 下越地区1 | C52: 日報 | D52: 13 | E52: =下越1!BU21 -> 0 | F52: 2 | G52: 受注No． | H52: =IF(下越1!BV21=0,"",下越1!BV21) ->  | I52: =IF(下越1!CA21=0,"",下越1!CA21) ->  | J52: 1
A53: ②明細コード | B53: 下越地区1 | C53: 日報 | D53: 14 | E53: =下越1!BU22 -> 新津 | F53: 2 | G53: 受注No． | H53: =IF(下越1!BV22=0,"",下越1!BV22) -> 20116 | I53: =IF(下越1!CA22=0,"",下越1!CA22) ->  | J53: 1
A54: ②明細コード | B54: 下越地区1 | C54: 日報 | D54: 15 | E54: =下越1!BU23 -> 新津・荻川 | F54: 2 | G54: 受注No． | H54: =IF(下越1!BV23=0,"",下越1!BV23) -> 20181 | I54: =IF(下越1!CA23=0,"",下越1!CA23) ->  | J54: 1
A55: ②明細コード | B55: 下越地区1 | C55: 日報 | D55: 16 | E55: =下越1!BU24 -> 0 | F55: 2 | G55: 受注No． | H55: =IF(下越1!BV24=0,"",下越1!BV24) ->  | I55: =IF(下越1!CA24=0,"",下越1!CA24) ->  | J55: 1
A56: ②明細コード | B56: 下越地区1 | C56: 日報 | D56: 17 | E56: =下越1!BU25 -> 五泉 | F56: 2 | G56: 受注No． | H56: =IF(下越1!BV25=0,"",下越1!BV25) -> 20117 | I56: =IF(下越1!CA25=0,"",下越1!CA25) ->  | J56: 1
A57: ②明細コード | B57: 下越地区1 | C57: 日報 | D57: 18 | E57: =下越1!BU27 -> 保田・馬下 | F57: 2 | G57: 受注No． | H57: =IF(下越1!BV27=0,"",下越1!BV27) -> 20183 | I57: =IF(下越1!CA27=0,"",下越1!CA27) ->  | J57: 1
A58: ②明細コード | B58: 下越地区1 | C58: 日報 | D58: 19 | E58: =下越1!BU28 -> 0 | F58: 2 | G58: 受注No． | H58: =IF(下越1!BV28=0,"",下越1!BV28) ->  | I58: =IF(下越1!CA28=0,"",下越1!CA28) ->  | J58: 1
A59: ②明細コード | B59: 下越地区1 | C59: 日報 | D59: 20 | E59: =下越1!BU29 -> 白根 | F59: 2 | G59: 受注No． | H59: =IF(下越1!BV29=0,"",下越1!BV29) -> 20120 | I59: =IF(下越1!CA29=0,"",下越1!CA29) ->  | J59: 1
A60: ②明細コード | B60: 下越地区1 | C60: 日報 | D60: 21 | E60: =下越1!BU30 -> 月潟 | F60: 2 | G60: 受注No． | H60: =IF(下越1!BV30=0,"",下越1!BV30) -> 20122 | I60: =IF(下越1!CA30=0,"",下越1!CA30) ->  | J60: 1
A61: ②明細コード | B61: 下越地区1 | C61: 日報 | D61: 22 | E61: =下越1!BU31 -> 新飯田 | F61: 2 | G61: 受注No． | H61: =IF(下越1!BV31=0,"",下越1!BV31) -> 20123 | I61: =IF(下越1!CA31=0,"",下越1!CA31) ->  | J61: 1
A62: ②明細コード | B62: 下越地区1 | C62: 日報 | D62: 23 | E62: =下越1!BU32 -> 0 | F62: 2 | G62: 受注No． | H62: =IF(下越1!BV32=0,"",下越1!BV32) ->  | I62: =IF(下越1!CA32=0,"",下越1!CA32) ->  | J62: 1
A63: ②明細コード | B63: 下越地区1 | C63: 日報 | D63: 24 | E63: =下越1!BU33 -> 三条北 | F63: 2 | G63: 受注No． | H63: =IF(下越1!BV33=0,"",下越1!BV33) -> 20124 | I63: =IF(下越1!CA33=0,"",下越1!CA33) ->  | J63: 1
A64: ②明細コード | B64: 下越地区1 | C64: 日報 | D64: 25 | E64: =下越1!BU34 -> 三条南 | F64: 2 | G64: 受注No． | H64: =IF(下越1!BV34=0,"",下越1!BV34) -> 20125 | I64: =IF(下越1!CA34=0,"",下越1!CA34) ->  | J64: 1
A65: ②明細コード | B65: 下越地区1 | C65: 日報 | D65: 26 | E65: =下越1!#REF! ->  | F65: 2 | G65: 受注No． | H65: =IF(下越1!#REF!=0,"",下越1!#REF!) ->  | I65: =IF(下越1!#REF!=0,"",下越1!#REF!) ->  | J65: 1
A66: ②明細コード | B66: 下越地区1 | C66: 日報 | D66: 27 | E66: =下越1!BU35 -> 0 | F66: 2 | G66: 受注No． | H66: =IF(下越1!BV35=0,"",下越1!BV35) ->  | I66: =IF(下越1!CA35=0,"",下越1!CA35) ->  | J66: 1
A67: ②明細コード | B67: 下越地区1 | C67: 日報 | D67: 28 | E67: =下越1!BU36 -> 燕 | F67: 2 | G67: 受注No． | H67: =IF(下越1!BV36=0,"",下越1!BV36) -> 20130 | I67: =IF(下越1!CA36=0,"",下越1!CA36) ->  | J67: 1
A68: ②明細コード | B68: 下越地区1 | C68: 日報 | D68: 29 | E68: =下越1!BU37 -> 燕南 | F68: 2 | G68: 受注No． | H68: =IF(下越1!BV37=0,"",下越1!BV37) -> 20131 | I68: =IF(下越1!CA37=0,"",下越1!CA37) ->  | J68: 1
A69: ②明細コード | B69: 下越地区1 | C69: 日報 | D69: 30 | E69: =下越1!BU38 -> 0 | F69: 2 | G69: 受注No． | H69: =IF(下越1!BV38=0,"",下越1!BV38) ->  | I69: =IF(下越1!CA38=0,"",下越1!CA38) ->  | J69: 1
A70: ②明細コード | B70: 下越地区1 | C70: 日報 | D70: 31 | E70: =下越1!BU39 -> 加茂 | F70: 2 | G70: 受注No． | H70: =IF(下越1!BV39=0,"",下越1!BV39) -> 20135 | I70: =IF(下越1!CA39=0,"",下越1!CA39) ->  | J70: 1
A71: ②明細コード | B71: 下越地区1 | C71: 日報 | D71: 32 | E71: =下越1!BU40 -> 0 | F71: 2 | G71: 受注No． | H71: =IF(下越1!BV40=0,"",下越1!BV40) ->  | I71: =IF(下越1!CA40=0,"",下越1!CA40) ->  | J71: 1
A72: ②明細コード | B72: 下越地区1 | C72: 日報 | D72: 33 | E72: =下越1!BU41 -> 下田 | F72: 2 | G72: 受注No． | H72: =IF(下越1!BV41=0,"",下越1!BV41) -> 20139 | I72: =IF(下越1!CA41=0,"",下越1!CA41) ->  | J72: 1
A73: ②明細コード | B73: 下越地区1 | C73: 日報 | D73: 34 | E73: =下越1!BU42 -> 栄山嵜 | F73: 2 | G73: 受注No． | H73: =IF(下越1!BV42=0,"",下越1!BV42) -> 20140 | I73: =IF(下越1!CA42=0,"",下越1!CA42) ->  | J73: 1
A74: ②明細コード | B74: 下越地区1 | C74: 日報 | D74: 35 | E74: =下越1!BU43 -> 栄吉田 | F74: 2 | G74: 受注No． | H74: =IF(下越1!BV43=0,"",下越1!BV43) -> 20141 | I74: =IF(下越1!CA43=0,"",下越1!CA43) ->  | J74: 1
A75: ②明細コード | B75: 下越地区1 | C75: 日報 | D75: 36 | E75: =下越1!BU44 -> 帯織 | F75: 2 | G75: 受注No． | H75: =IF(下越1!BV44=0,"",下越1!BV44) -> 20143 | I75: =IF(下越1!CA44=0,"",下越1!CA44) ->  | J75: 1
A76: ②明細コード | B76: 下越地区1 | C76: 日報 | D76: 37 | E76: =下越1!BU45 -> 0 | F76: 2 | G76: 受注No． | H76: =IF(下越1!BV45=0,"",下越1!BV45) ->  | I76: =IF(下越1!CA45=0,"",下越1!CA45) ->  | J76: 1
A77: ②明細コード | B77: 下越地区1 | C77: 日報 | D77: 38 | E77: =下越1!BU46 -> 豊栄 | F77: 2 | G77: 受注No． | H77: =IF(下越1!BV46=0,"",下越1!BV46) -> 20179 | I77: =IF(下越1!CA46=0,"",下越1!CA46) ->  | J77: 1
A78: ②明細コード | B78: 下越地区1 | C78: 日報 | D78: 39 | E78: =下越1!#REF! ->  | F78: 2 | G78: 受注No． | H78: =IF(下越1!#REF!=0,"",下越1!#REF!) ->  | I78: =IF(下越1!#REF!=0,"",下越1!#REF!) ->  | J78: 1
A79: ②明細コード | B79: 下越地区1 | C79: 日報 | D79: 40 | E79: =下越1!BU47 -> 木崎 | F79: 2 | G79: 受注No． | H79: =IF(下越1!BV47=0,"",下越1!BV47) -> 20146 | I79: =IF(下越1!CA47=0,"",下越1!CA47) ->  | J79: 1
A80: ②明細コード | B80: 下越地区２ | C80: 日報 | D80: 1 | E80: =下越２!BU9 -> 新発田西 | F80: 2 | G80: 受注No． | H80: =IF(下越２!BV9=0,"",下越２!BV9) -> 20148 | I80: =IF(下越２!CA9=0,"",下越２!CA9) ->  | J80: 1
A81: ②明細コード | B81: 下越地区２ | C81: 日報 | D81: 2 | E81: =下越２!BU10 -> 新発田東 | F81: 2 | G81: 受注No． | H81: =IF(下越２!BV10=0,"",下越２!BV10) -> 20149 | I81: =IF(下越２!CA10=0,"",下越２!CA10) ->  | J81: 1
A82: ②明細コード | B82: 下越地区２ | C82: 日報 | D82: 3 | E82: =下越２!BU11 -> 月岡 | F82: 2 | G82: 受注No． | H82: =IF(下越２!BV11=0,"",下越２!BV11) -> 20153 | I82: =IF(下越２!CA11=0,"",下越２!CA11) ->  | J82: 1
A83: ②明細コード | B83: 下越地区２ | C83: 日報 | D83: 4 | E83: =下越２!#REF! ->  | F83: 2 | G83: 受注No． | H83: =IF(下越２!#REF!=0,"",下越２!#REF!) ->  | I83: =IF(下越２!#REF!=0,"",下越２!#REF!) ->  | J83: 1
A84: ②明細コード | B84: 下越地区２ | C84: 日報 | D84: 5 | E84: =下越２!BU12 -> 0 | F84: 2 | G84: 受注No． | H84: =IF(下越２!BV12=0,"",下越２!BV12) ->  | I84: =IF(下越２!CA12=0,"",下越２!CA12) ->  | J84: 1
A85: ②明細コード | B85: 下越地区２ | C85: 日報 | D85: 6 | E85: =下越２!BU13 -> 中条東 | F85: 2 | G85: 受注No． | H85: =IF(下越２!BV13=0,"",下越２!BV13) -> 20154 | I85: =IF(下越２!CA13=0,"",下越２!CA13) ->  | J85: 1
A86: ②明細コード | B86: 下越地区２ | C86: 日報 | D86: 7 | E86: =下越２!BU14 -> 西中条 | F86: 2 | G86: 受注No． | H86: =IF(下越２!BV14=0,"",下越２!BV14) -> 20155 | I86: =IF(下越２!CA14=0,"",下越２!CA14) ->  | J86: 1
A87: ②明細コード | B87: 下越地区２ | C87: 日報 | D87: 8 | E87: =下越２!BU15 -> 黒川 | F87: 2 | G87: 受注No． | H87: =IF(下越２!BV15=0,"",下越２!BV15) -> 20157 | I87: =IF(下越２!CA15=0,"",下越２!CA15) ->  | J87: 1
A88: ②明細コード | B88: 下越地区２ | C88: 日報 | D88: 9 | E88: =下越２!BU16 -> 水原 | F88: 2 | G88: 受注No． | H88: =IF(下越２!BV16=0,"",下越２!BV16) -> 20158 | I88: =IF(下越２!CA16=0,"",下越２!CA16) ->  | J88: 1
A89: ②明細コード | B89: 下越地区２ | C89: 日報 | D89: 10 | E89: =下越２!BU17 -> 保田 | F89: 2 | G89: 受注No． | H89: =IF(下越２!BV17=0,"",下越２!BV17) -> 20161 | I89: =IF(下越２!CA17=0,"",下越２!CA17) ->  | J89: 1
A90: ②明細コード | B90: 下越地区２ | C90: 日報 | D90: 11 | E90: =下越２!BU18 -> 0 | F90: 2 | G90: 受注No． | H90: =IF(下越２!BV18=0,"",下越２!BV18) ->  | I90: =IF(下越２!CA18=0,"",下越２!CA18) ->  | J90: 1
A91: ②明細コード | B91: 下越地区２ | C91: 日報 | D91: 12 | E91: =下越２!BU19 -> 村上 | F91: 2 | G91: 受注No． | H91: =IF(下越２!BV19=0,"",下越２!BV19) -> 20162 | I91: =IF(下越２!CA19=0,"",下越２!CA19) ->  | J91: 1
A92: ②明細コード | B92: 下越地区２ | C92: 日報 | D92: 13 | E92: =下越２!BU20 -> 岩船 | F92: 2 | G92: 受注No． | H92: =IF(下越２!BV20=0,"",下越２!BV20) -> 20163 | I92: =IF(下越２!CA20=0,"",下越２!CA20) ->  | J92: 1
A93: ②明細コード | B93: 下越地区２ | C93: 日報 | D93: 14 | E93: =下越２!BU21 -> 越後早川 | F93: 2 | G93: 受注No． | H93: =IF(下越２!BV21=0,"",下越２!BV21) -> 20164 | I93: =IF(下越２!CA21=0,"",下越２!CA21) ->  | J93: 1
A94: ②明細コード | B94: 下越地区２ | C94: 日報 | D94: 15 | E94: =下越２!BU22 -> 0 | F94: 2 | G94: 受注No． | H94: =IF(下越２!BV22=0,"",下越２!BV22) ->  | I94: =IF(下越２!CA22=0,"",下越２!CA22) ->  | J94: 1
A95: ②明細コード | B95: 下越地区２ | C95: 日報 | D95: 16 | E95: =下越２!BU23 -> 坂町 | F95: 2 | G95: 受注No． | H95: =IF(下越２!BV23=0,"",下越２!BV23) -> 20165 | I95: =IF(下越２!CA23=0,"",下越２!CA23) ->  | J95: 1
A96: ②明細コード | B96: 下越地区２ | C96: 日報 | D96: 17 | E96: =下越２!#REF! ->  | F96: 2 | G96: 受注No． | H96: =IF(下越２!#REF!=0,"",下越２!#REF!) ->  | I96: =IF(下越２!#REF!=0,"",下越２!#REF!) ->  | J96: 1
A97: ②明細コード | B97: 下越地区２ | C97: 日報 | D97: =D96+1 -> 18 | E97: =下越２!BU24 -> 関川 | F97: 2 | G97: 受注No． | H97: =IF(下越２!BV24=0,"",下越２!BV24) -> 20167 | I97: =IF(下越２!CA24=0,"",下越２!CA24) ->  | J97: 1
A98: ②明細コード | B98: 下越地区２ | C98: 日報 | D98: 19 | E98: =下越２!#REF! ->  | F98: 2 | G98: 受注No． | H98: =IF(下越２!#REF!=0,"",下越２!#REF!) ->  | I98: =IF(下越２!#REF!=0,"",下越２!#REF!) ->  | J98: 1
A99: ②明細コード | B99: 下越地区２ | C99: 日報 | D99: 20 | E99: =下越２!BU25 -> 府屋 | F99: 2 | G99: 受注No． | H99: =IF(下越２!BV25=0,"",下越２!BV25) -> 20170 | I99: =IF(下越２!CA25=0,"",下越２!CA25) ->  | J99: 1
A100: ②明細コード | B100: 下越地区２ | C100: 日報 | D100: 21 | E100: =下越２!BU26 -> 黒川俣 | F100: 2 | G100: 受注No． | H100: =IF(下越２!BV26=0,"",下越２!BV26) -> 20172 | I100: =IF(下越２!CA26=0,"",下越２!CA26) ->  | J100: 1
A101: ②明細コード | B101: 下越地区２ | C101: 日報 | D101: 22 | E101: =下越２!BU27 -> 0 | F101: 2 | G101: 受注No． | H101: =IF(下越２!BV27=0,"",下越２!BV27) ->  | I101: =IF(下越２!CA27=0,"",下越２!CA27) ->  | J101: 1
A102: ②明細コード | B102: 下越地区２ | C102: 日報 | D102: 23 | E102: =下越２!BU28 -> 津川 | F102: 2 | G102: 受注No． | H102: =IF(下越２!BV28=0,"",下越２!BV28) -> 20173 | I102: =IF(下越２!CA28=0,"",下越２!CA28) ->  | J102: 1
A103: ②明細コード | B103: 下越地区２ | C103: 日報 | D103: 24 | E103: =下越２!BU29 -> 豊実 | F103: 2 | G103: 受注No． | H103: =IF(下越２!BV29=0,"",下越２!BV29) -> 20174 | I103: =IF(下越２!CA29=0,"",下越２!CA29) ->  | J103: 1
A104: ②明細コード | B104: 下越地区２ | C104: 日報 | D104: 25 | E104: =下越２!BU30 -> 日出谷 | F104: 2 | G104: 受注No． | H104: =IF(下越２!BV30=0,"",下越２!BV30) -> 20175 | I104: =IF(下越２!CA30=0,"",下越２!CA30) ->  | J104: 1
A105: ②明細コード | B105: 下越地区２ | C105: 日報 | D105: 26 | E105: =下越２!BU31 -> 鹿瀬 | F105: 2 | G105: 受注No． | H105: =IF(下越２!BV31=0,"",下越２!BV31) -> 20176 | I105: =IF(下越２!CA31=0,"",下越２!CA31) ->  | J105: 1
A106: ②明細コード | B106: 下越地区２ | C106: 日報 | D106: 27 | E106: =下越２!BU32 -> 白崎 | F106: 2 | G106: 受注No． | H106: =IF(下越２!BV32=0,"",下越２!BV32) -> 20177 | I106: =IF(下越２!CA32=0,"",下越２!CA32) ->  | J106: 1
A107: ②明細コード | B107: 下越地区２ | C107: 日報 | D107: 28 | E107: =下越２!BU34 -> 保田・五十島 | F107: 2 | G107: 受注No． | H107: =IF(下越２!BV34=0,"",下越２!BV34) -> 20182 | I107: =IF(下越２!CA34=0,"",下越２!CA34) ->  | J107: 1
A108: ②明細コード | B108: 下越地区２ | C108: 日報 | D108: 29 | E108: =下越２!BU35 -> 0 | F108: 2 | G108: 受注No． | H108: =IF(下越２!BV35=0,"",下越２!BV35) ->  | I108: =IF(下越２!CA35=0,"",下越２!CA35) ->  | J108: 1
A109: ②明細コード | B109: 下越地区２ | C109: 日報 | D109: 30 | E109: =下越２!BU36 -> 小国 | F109: 2 | G109: 受注No． | H109: =IF(下越２!BV36=0,"",下越２!BV36) -> 20201 | I109: =IF(下越２!CA36=0,"",下越２!CA36) ->  | J109: 1
A110: ②明細コード | B110: 下越地区２ | C110: 日報 | D110: 31 | E110: =下越２!BU37 -> 0 | F110: 2 | G110: 受注No． | H110: =IF(下越２!BV37=0,"",下越２!BV37) ->  | I110: =IF(下越２!CA37=0,"",下越２!CA37) ->  | J110: 1
A111: ②明細コード | B111: 下越地区２ | C111: 日報 | D111: 32 | E111: =下越２!BU38 -> 両津 | F111: 2 | G111: 受注No． | H111: =IF(下越２!BV38=0,"",下越２!BV38) -> 30101 | I111: =IF(下越２!CA38=0,"",下越２!CA38) ->  | J111: 1
A112: ②明細コード | B112: 下越地区２ | C112: 日報 | D112: 33 | E112: =下越２!BU39 -> 吉井 | F112: 2 | G112: 受注No． | H112: =IF(下越２!BV39=0,"",下越２!BV39) -> 30105 | I112: =IF(下越２!CA39=0,"",下越２!CA39) ->  | J112: 1
A113: ②明細コード | B113: 下越地区２ | C113: 日報 | D113: 34 | E113: =下越２!#REF! ->  | F113: 2 | G113: 受注No． | H113: =IF(下越２!#REF!=0,"",下越２!#REF!) ->  | I113: =IF(下越２!#REF!=0,"",下越２!#REF!) ->  | J113: 1
A114: ②明細コード | B114: 下越地区２ | C114: 日報 | D114: 35 | E114: =下越２!BU40 -> 0 | F114: 2 | G114: 受注No． | H114: =IF(下越２!BV40=0,"",下越２!BV40) ->  | I114: =IF(下越２!CA40=0,"",下越２!CA40) ->  | J114: 1
A115: ②明細コード | B115: 下越地区２ | C115: 日報 | D115: 36 | E115: =下越２!BU41 -> 真野 | F115: 2 | G115: 受注No． | H115: =IF(下越２!BV41=0,"",下越２!BV41) -> 30106 | I115: =IF(下越２!CA41=0,"",下越２!CA41) ->  | J115: 1
A116: ②明細コード | B116: 下越地区２ | C116: 日報 | D116: 37 | E116: =下越２!BU42 -> 新穂 | F116: 2 | G116: 受注No． | H116: =IF(下越２!BV42=0,"",下越２!BV42) -> 30108 | I116: =IF(下越２!CA42=0,"",下越２!CA42) ->  | J116: 1
A117: ②明細コード | B117: 下越地区２ | C117: 日報 | D117: 38 | E117: =下越２!BU43 -> 畑野 | F117: 2 | G117: 受注No． | H117: =IF(下越２!BV43=0,"",下越２!BV43) -> 30111 | I117: =IF(下越２!CA43=0,"",下越２!CA43) ->  | J117: 1
A118: ②明細コード | B118: 下越地区２ | C118: 日報 | D118: 39 | E118: =下越２!BU44 -> 佐和田 | F118: 2 | G118: 受注No． | H118: =IF(下越２!BV44=0,"",下越２!BV44) -> 30114 | I118: =IF(下越２!CA44=0,"",下越２!CA44) ->  | J118: 1
A119: ②明細コード | B119: 下越地区２ | C119: 日報 | D119: 40 | E119: =下越２!BU45 -> 相川 | F119: 2 | G119: 受注No． | H119: =IF(下越２!BV45=0,"",下越２!BV45) -> 30110 | I119: =IF(下越２!CA45=0,"",下越２!CA45) ->  | J119: 1
A120: ②明細コード | B120: 下越地区２ | C120: 日報 | D120: 41 | E120: =下越２!BU46 -> 金井 | F120: 2 | G120: 受注No． | H120: =IF(下越２!BV46=0,"",下越２!BV46) -> 30121 | I120: =IF(下越２!CA46=0,"",下越２!CA46) ->  | J120: 1
A121: ②明細コード | B121: 下越地区２ | C121: 日報 | D121: 42 | E121: =下越２!BU47 -> 羽茂 | F121: 2 | G121: 受注No． | H121: =IF(下越２!BV47=0,"",下越２!BV47) -> 30122 | I121: =IF(下越２!CA47=0,"",下越２!CA47) ->  | J121: 1
A122: ②明細コード | B122: 下越地区２ | C122: 日報 | D122: 43 | E122: =下越２!BU48 -> 小木 | F122: 2 | G122: 受注No． | H122: =IF(下越２!BV48=0,"",下越２!BV48) -> 30124 | I122: =IF(下越２!CA48=0,"",下越２!CA48) ->  | J122: 1
A123: ②明細コード | B123: 下越地区２ | C123: 日報 | D123: 44 | E123: =下越２!BU49 -> 赤泊 | F123: 2 | G123: 受注No． | H123: =IF(下越２!BV49=0,"",下越２!BV49) -> 30127 | I123: =IF(下越２!CA49=0,"",下越２!CA49) ->  | J123: 1
A124: ②明細コード | B124: 下越地区２ | C124: 日報 | D124: 45 | E124: =下越２!BU50 -> 多田 | F124: 2 | G124: 受注No． | H124: =IF(下越２!BV50=0,"",下越２!BV50) -> 30130 | I124: =IF(下越２!CA50=0,"",下越２!CA50) ->  | J124: 1
A125: ②明細コード | B125: 中越地区 | C125: 日報 | D125: 1 | E125: =中越1!#REF! ->  | F125: 2 | G125: 受注No． | H125: =IF(中越1!#REF!=0,"",中越1!#REF!) ->  | I125: =IF(中越1!#REF!=0,"",中越1!#REF!) ->  | J125: 1
A126: ②明細コード | B126: 中越地区 | C126: 日報 | D126: =D125+1 -> 2 | E126: =中越1!BZ9 -> 長岡中央 | F126: 2 | G126: 受注No． | H126: =IF(中越1!CA9=0,"",中越1!CA9) -> 40102 | I126: =IF(中越1!CF9=0,"",中越1!CF9) ->  | J126: 1
A127: ②明細コード | B127: 中越地区 | C127: 日報 | D127: 3 | E127: =中越1!BZ10 -> 長岡南 | F127: 2 | G127: 受注No． | H127: =IF(中越1!CA10=0,"",中越1!CA10) -> 40300 | I127: =IF(中越1!CF10=0,"",中越1!CF10) ->  | J127: 1
A128: ②明細コード | B128: 中越地区 | C128: 日報 | D128: 4 | E128: =中越1!BZ11 -> 長岡東 | F128: 2 | G128: 受注No． | H128: =IF(中越1!CA11=0,"",中越1!CA11) -> 40104 | I128: =IF(中越1!CF11=0,"",中越1!CF11) ->  | J128: 1
A129: ②明細コード | B129: 中越地区 | C129: 日報 | D129: 5 | E129: =中越1!BZ12 -> 長岡新保 | F129: 2 | G129: 受注No． | H129: =IF(中越1!CA12=0,"",中越1!CA12) -> 40105 | I129: =IF(中越1!CF12=0,"",中越1!CF12) ->  | J129: 1
A130: ②明細コード | B130: 中越地区 | C130: 日報 | D130: 6 | E130: =中越1!BZ13 -> 長岡悠久 | F130: 2 | G130: 受注No． | H130: =IF(中越1!CA13=0,"",中越1!CA13) -> 40106 | I130: =IF(中越1!CF13=0,"",中越1!CF13) ->  | J130: 1
A131: ②明細コード | B131: 中越地区 | C131: 日報 | D131: 7 | E131: =中越1!BZ14 -> 西長岡 | F131: 2 | G131: 受注No． | H131: =IF(中越1!CA14=0,"",中越1!CA14) -> 40111 | I131: =IF(中越1!CF14=0,"",中越1!CF14) ->  | J131: 1
A132: ②明細コード | B132: 中越地区 | C132: 日報 | D132: 8 | E132: =中越1!BZ15 -> 関原 | F132: 2 | G132: 受注No． | H132: =IF(中越1!CA15=0,"",中越1!CA15) -> 40113 | I132: =IF(中越1!CF15=0,"",中越1!CF15) ->  | J132: 1
A133: ②明細コード | B133: 中越地区 | C133: 日報 | D133: 9 | E133: =中越1!BZ16 -> 王寺川 | F133: 2 | G133: 受注No． | H133: =IF(中越1!CA16=0,"",中越1!CA16) -> 40114 | I133: =IF(中越1!CF16=0,"",中越1!CF16) ->  | J133: 1
A134: ②明細コード | B134: 中越地区 | C134: 日報 | D134: 10 | E134: =中越1!BZ17 -> 長岡江陽 | F134: 2 | G134: 受注No． | H134: =IF(中越1!CA17=0,"",中越1!CA17) -> 40115 | I134: =IF(中越1!CF17=0,"",中越1!CF17) ->  | J134: 1
A135: ②明細コード | B135: 中越地区 | C135: 日報 | D135: 11 | E135: =中越1!BZ18 -> 黒条 | F135: 2 | G135: 受注No． | H135: =IF(中越1!CA18=0,"",中越1!CA18) -> 40116 | I135: =IF(中越1!CF18=0,"",中越1!CF18) ->  | J135: 1
A136: ②明細コード | B136: 中越地区 | C136: 日報 | D136: 12 | E136: =中越1!BZ19 -> 新組 | F136: 2 | G136: 受注No． | H136: =IF(中越1!CA19=0,"",中越1!CA19) -> 40117 | I136: =IF(中越1!CF19=0,"",中越1!CF19) ->  | J136: 1
A137: ②明細コード | B137: 中越地区 | C137: 日報 | D137: 13 | E137: =中越1!BZ20 -> 長岡宮内 | F137: 2 | G137: 受注No． | H137: =IF(中越1!CA20=0,"",中越1!CA20) -> 40121 | I137: =IF(中越1!CF20=0,"",中越1!CF20) ->  | J137: 1
A138: ②明細コード | B138: 中越地区 | C138: 日報 | D138: 14 | E138: =中越1!BZ21 -> 濁沢 | F138: 2 | G138: 受注No． | H138: =IF(中越1!CA21=0,"",中越1!CA21) -> 40124 | I138: =IF(中越1!CF21=0,"",中越1!CF21) ->  | J138: 1
A139: ②明細コード | B139: 中越地区 | C139: 日報 | D139: 15 | E139: =中越1!BZ22 -> 岡南 | F139: 2 | G139: 受注No． | H139: =IF(中越1!CA22=0,"",中越1!CA22) -> 40125 | I139: =IF(中越1!CF22=0,"",中越1!CF22) ->  | J139: 1
A140: ②明細コード | B140: 中越地区 | C140: 日報 | D140: 16 | E140: =中越1!BZ23 -> 六日市 | F140: 2 | G140: 受注No． | H140: =IF(中越1!CA23=0,"",中越1!CA23) -> 40126 | I140: =IF(中越1!CF23=0,"",中越1!CF23) ->  | J140: 1
A141: ②明細コード | B141: 中越地区 | C141: 日報 | D141: 17 | E141: =中越1!BZ24 -> 0 | F141: 2 | G141: 受注No． | H141: =IF(中越1!CA24=0,"",中越1!CA24) ->  | I141: =IF(中越1!CF24=0,"",中越1!CF24) ->  | J141: 1
A142: ②明細コード | B142: 中越地区 | C142: 日報 | D142: 18 | E142: =中越1!BZ25 -> 栃尾 | F142: 2 | G142: 受注No． | H142: =IF(中越1!CA25=0,"",中越1!CA25) -> 40127 | I142: =IF(中越1!CF25=0,"",中越1!CF25) ->  | J142: 1
A143: ②明細コード | B143: 中越地区 | C143: 日報 | D143: 19 | E143: =中越1!BZ26 -> 0 | F143: 2 | G143: 受注No． | H143: =IF(中越1!CA26=0,"",中越1!CA26) ->  | I143: =IF(中越1!CF26=0,"",中越1!CF26) ->  | J143: 1
A144: ②明細コード | B144: 中越地区 | C144: 日報 | D144: 20 | E144: =中越1!BZ27 -> 見附南 | F144: 2 | G144: 受注No． | H144: =IF(中越1!CA27=0,"",中越1!CA27) -> 40130 | I144: =IF(中越1!CF27=0,"",中越1!CF27) ->  | J144: 1
A145: ②明細コード | B145: 中越地区 | C145: 日報 | D145: 21 | E145: =中越1!BZ28 -> 見附北 | F145: 2 | G145: 受注No． | H145: =IF(中越1!CA28=0,"",中越1!CA28) -> 40131 | I145: =IF(中越1!CF28=0,"",中越1!CF28) ->  | J145: 1
A146: ②明細コード | B146: 中越地区 | C146: 日報 | D146: 22 | E146: =中越1!BZ29 -> 今町 | F146: 2 | G146: 受注No． | H146: =IF(中越1!CA29=0,"",中越1!CA29) -> 40135 | I146: =IF(中越1!CF29=0,"",中越1!CF29) ->  | J146: 1
A147: ②明細コード | B147: 中越地区 | C147: 日報 | D147: 23 | E147: =中越1!BZ30 -> 0 | F147: 2 | G147: 受注No． | H147: =IF(中越1!CA30=0,"",中越1!CA30) ->  | I147: =IF(中越1!CF30=0,"",中越1!CF30) ->  | J147: 1
A148: ②明細コード | B148: 中越地区 | C148: 日報 | D148: 24 | E148: =中越1!BZ31 -> 越路 | F148: 2 | G148: 受注No． | H148: =IF(中越1!CA31=0,"",中越1!CA31) -> 40139 | I148: =IF(中越1!CF31=0,"",中越1!CF31) ->  | J148: 1
A149: ②明細コード | B149: 中越地区 | C149: 日報 | D149: 25 | E149: =中越1!BZ32 -> 塚山 | F149: 2 | G149: 受注No． | H149: =IF(中越1!CA32=0,"",中越1!CA32) -> 40141 | I149: =IF(中越1!CF32=0,"",中越1!CF32) ->  | J149: 1
A150: ②明細コード | B150: 中越地区 | C150: 日報 | D150: 26 | E150: =中越1!#REF! ->  | F150: 2 | G150: 受注No． | H150: =IF(中越1!#REF!=0,"",中越1!#REF!) ->  | I150: =IF(中越1!#REF!=0,"",中越1!#REF!) ->  | J150: 1
A151: ②明細コード | B151: 中越地区 | C151: 日報 | D151: 27 | E151: =中越1!#REF! ->  | F151: 2 | G151: 受注No． | H151: =IF(中越1!#REF!=0,"",中越1!#REF!) ->  | I151: =IF(中越1!#REF!=0,"",中越1!#REF!) ->  | J151: 1
A152: ②明細コード | B152: 中越地区 | C152: 日報 | D152: 28 | E152: =中越1!BZ33 -> 与板 | F152: 2 | G152: 受注No． | H152: =IF(中越1!CA33=0,"",中越1!CA33) -> 40144 | I152: =IF(中越1!CF33=0,"",中越1!CF33) ->  | J152: 1
A153: ②明細コード | B153: 中越地区 | C153: 日報 | D153: 29 | E153: =中越1!BZ34 -> 大河津 | F153: 2 | G153: 受注No． | H153: =IF(中越1!CA34=0,"",中越1!CA34) -> 40145 | I153: =IF(中越1!CF34=0,"",中越1!CF34) ->  | J153: 1
A154: ②明細コード | B154: 中越地区 | C154: 日報 | D154: 30 | E154: =中越1!BZ35 -> 寺泊 | F154: 2 | G154: 受注No． | H154: =IF(中越1!CA35=0,"",中越1!CA35) -> 40146 | I154: =IF(中越1!CF35=0,"",中越1!CF35) ->  | J154: 1
A155: ②明細コード | B155: 中越地区 | C155: 日報 | D155: 31 | E155: =中越1!BZ36 -> 和島 | F155: 2 | G155: 受注No． | H155: =IF(中越1!CA36=0,"",中越1!CA36) -> 40147 | I155: =IF(中越1!CF36=0,"",中越1!CF36) ->  | J155: 1
A156: ②明細コード | B156: 中越地区 | C156: 日報 | D156: 32 | E156: =中越1!BZ37 -> 西越 | F156: 2 | G156: 受注No． | H156: =IF(中越1!CA37=0,"",中越1!CA37) -> 40148 | I156: =IF(中越1!CF37=0,"",中越1!CF37) ->  | J156: 1
A157: ②明細コード | B157: 中越地区 | C157: 日報 | D157: 33 | E157: =中越1!#REF! ->  | F157: 2 | G157: 受注No． | H157: =IF(中越1!#REF!=0,"",中越1!#REF!) ->  | I157: =IF(中越1!#REF!=0,"",中越1!#REF!) ->  | J157: 1
A158: ②明細コード | B158: 中越地区２ | C158: 日報 | D158: 1 | E158: =中越２!BU9 -> 小千谷中央 | F158: 2 | G158: 受注No． | H158: =IF(中越２!BV9=0,"",中越２!BV9) -> 40151 | I158: =IF(中越２!CA9=0,"",中越２!CA9) ->  | J158: 1
A159: ②明細コード | B159: 中越地区２ | C159: 日報 | D159: 2 | E159: =中越２!BU10 -> 小千谷東 | F159: 2 | G159: 受注No． | H159: =IF(中越２!BV10=0,"",中越２!BV10) -> 40152 | I159: =IF(中越２!CA10=0,"",中越２!CA10) ->  | J159: 1
A160: ②明細コード | B160: 中越地区２ | C160: 日報 | D160: 3 | E160: =中越２!BU11 -> 片貝 | F160: 2 | G160: 受注No． | H160: =IF(中越２!BV11=0,"",中越２!BV11) -> 40154 | I160: =IF(中越２!CA11=0,"",中越２!CA11) ->  | J160: 1
A161: ②明細コード | B161: 中越地区２ | C161: 日報 | D161: 4 | E161: =中越２!BU12 -> 岩沢 | F161: 2 | G161: 受注No． | H161: =IF(中越２!BV12=0,"",中越２!BV12) -> 40155 | I161: =IF(中越２!CA12=0,"",中越２!CA12) ->  | J161: 1
A162: ②明細コード | B162: 中越地区２ | C162: 日報 | D162: 5 | E162: =中越２!BU13 -> 0 | F162: 2 | G162: 受注No． | H162: =IF(中越２!BV13=0,"",中越２!BV13) ->  | I162: =IF(中越２!CA13=0,"",中越２!CA13) ->  | J162: 1
A163: ②明細コード | B163: 中越地区２ | C163: 日報 | D163: 6 | E163: =中越２!BU14 -> 十日町西部 | F163: 2 | G163: 受注No． | H163: =IF(中越２!BV14=0,"",中越２!BV14) -> 40156 | I163: =IF(中越２!CA14=0,"",中越２!CA14) ->  | J163: 1
A164: ②明細コード | B164: 中越地区２ | C164: 日報 | D164: 7 | E164: =中越２!BU15 -> 十日町東部 | F164: 2 | G164: 受注No． | H164: =IF(中越２!BV15=0,"",中越２!BV15) -> 40157 | I164: =IF(中越２!CA15=0,"",中越２!CA15) ->  | J164: 1
A165: ②明細コード | B165: 中越地区２ | C165: 日報 | D165: 8 | E165: =中越２!BU16 -> 下条 | F165: 2 | G165: 受注No． | H165: =IF(中越２!BV16=0,"",中越２!BV16) -> 40162 | I165: =IF(中越２!CA16=0,"",中越２!CA16) ->  | J165: 1
A166: ②明細コード | B166: 中越地区２ | C166: 日報 | D166: 9 | E166: =中越２!BU17 -> 魚沼中条 | F166: 2 | G166: 受注No． | H166: =IF(中越２!BV17=0,"",中越２!BV17) -> 40163 | I166: =IF(中越２!CA17=0,"",中越２!CA17) ->  | J166: 1
A167: ②明細コード | B167: 中越地区２ | C167: 日報 | D167: 10 | E167: =中越２!BU18 -> 水沢 | F167: 2 | G167: 受注No． | H167: =IF(中越２!BV18=0,"",中越２!BV18) -> 40164 | I167: =IF(中越２!CA18=0,"",中越２!CA18) ->  | J167: 1
A168: ②明細コード | B168: 中越地区２ | C168: 日報 | D168: 11 | E168: =中越２!BU19 -> 伊達 | F168: 2 | G168: 受注No． | H168: =IF(中越２!BV19=0,"",中越２!BV19) -> 40165 | I168: =IF(中越２!CA19=0,"",中越２!CA19) ->  | J168: 1
A169: ②明細コード | B169: 中越地区２ | C169: 日報 | D169: 12 | E169: =中越２!BU20 -> 0 | F169: 2 | G169: 受注No． | H169: =IF(中越２!BV20=0,"",中越２!BV20) ->  | I169: =IF(中越２!CA20=0,"",中越２!CA20) ->  | J169: 1
A170: ②明細コード | B170: 中越地区２ | C170: 日報 | D170: 13 | E170: =中越２!BU21 -> 川口 | F170: 2 | G170: 受注No． | H170: =IF(中越２!BV21=0,"",中越２!BV21) -> 40166 | I170: =IF(中越２!CA21=0,"",中越２!CA21) ->  | J170: 1
A171: ②明細コード | B171: 中越地区２ | C171: 日報 | D171: 14 | E171: =中越２!BU22 -> 堀之内 | F171: 2 | G171: 受注No． | H171: =IF(中越２!BV22=0,"",中越２!BV22) -> 40167 | I171: =IF(中越２!CA22=0,"",中越２!CA22) ->  | J171: 1
A172: ②明細コード | B172: 中越地区２ | C172: 日報 | D172: 15 | E172: =中越２!BU23 -> 小出 | F172: 2 | G172: 受注No． | H172: =IF(中越２!BV23=0,"",中越２!BV23) -> 40168 | I172: =IF(中越２!CA23=0,"",中越２!CA23) ->  | J172: 1
A173: ②明細コード | B173: 中越地区２ | C173: 日報 | D173: 16 | E173: =中越２!BU24 -> 魚沼北 | F173: 2 | G173: 受注No． | H173: =IF(中越２!BV24=0,"",中越２!BV24) -> 40172 | I173: =IF(中越２!CA24=0,"",中越２!CA24) ->  | J173: 1
A174: ②明細コード | B174: 中越地区２ | C174: 日報 | D174: 17 | E174: =中越２!BU25 -> 0 | F174: 2 | G174: 受注No． | H174: =IF(中越２!BV25=0,"",中越２!BV25) ->  | I174: =IF(中越２!CA25=0,"",中越２!CA25) ->  | J174: 1
A175: ②明細コード | B175: 中越地区２ | C175: 日報 | D175: 18 | E175: =中越２!BU26 -> 浦佐 | F175: 2 | G175: 受注No． | H175: =IF(中越２!BV26=0,"",中越２!BV26) -> 40176 | I175: =IF(中越２!CA26=0,"",中越２!CA26) ->  | J175: 1
A176: ②明細コード | B176: 中越地区２ | C176: 日報 | D176: 19 | E176: =中越２!BU27 -> 大崎 | F176: 2 | G176: 受注No． | H176: =IF(中越２!BV27=0,"",中越２!BV27) -> 40178 | I176: =IF(中越２!CA27=0,"",中越２!CA27) ->  | J176: 1
A177: ②明細コード | B177: 中越地区２ | C177: 日報 | D177: 20 | E177: =中越２!BU28 -> 五日町 | F177: 2 | G177: 受注No． | H177: =IF(中越２!BV28=0,"",中越２!BV28) -> 40179 | I177: =IF(中越２!CA28=0,"",中越２!CA28) ->  | J177: 1
A178: ②明細コード | B178: 中越地区２ | C178: 日報 | D178: 21 | E178: =中越２!BU29 -> 城内 | F178: 2 | G178: 受注No． | H178: =IF(中越２!BV29=0,"",中越２!BV29) -> 40180 | I178: =IF(中越２!CA29=0,"",中越２!CA29) ->  | J178: 1
A179: ②明細コード | B179: 中越地区２ | C179: 日報 | D179: 22 | E179: =中越２!BU30 -> 六日町 | F179: 2 | G179: 受注No． | H179: =IF(中越２!BV30=0,"",中越２!BV30) -> 40181 | I179: =IF(中越２!CA30=0,"",中越２!CA30) ->  | J179: 1
A180: ②明細コード | B180: 中越地区２ | C180: 日報 | D180: =D179+1 -> 23 | E180: =中越２!BU31 -> 塩沢 | F180: 2 | G180: 受注No． | H180: =IF(中越２!BV31=0,"",中越２!BV31) -> 40184 | I180: =IF(中越２!CA31=0,"",中越２!CA31) ->  | J180: 1
A181: ②明細コード | B181: 中越地区２ | C181: 日報 | D181: 24 | E181: =中越２!BU32 -> 上田 | F181: 2 | G181: 受注No． | H181: =IF(中越２!BV32=0,"",中越２!BV32) -> 40186 | I181: =IF(中越２!CA32=0,"",中越２!CA32) ->  | J181: 1
A182: ②明細コード | B182: 中越地区２ | C182: 日報 | D182: 25 | E182: =中越２!#REF! ->  | F182: 2 | G182: 受注No． | H182: =IF(中越２!#REF!=0,"",中越２!#REF!) ->  | I182: =IF(中越２!#REF!=0,"",中越２!#REF!) ->  | J182: 1
A183: ②明細コード | B183: 中越地区２ | C183: 日報 | D183: 26 | E183: =中越２!BU33 -> 湯沢 | F183: 2 | G183: 受注No． | H183: =IF(中越２!BV33=0,"",中越２!BV33) -> 40189 | I183: =IF(中越２!CA33=0,"",中越２!CA33) ->  | J183: 1
A184: ②明細コード | B184: 中越地区２ | C184: 日報 | D184: 27 | E184: =中越２!BU34 -> 0 | F184: 2 | G184: 受注No． | H184: =IF(中越２!BV34=0,"",中越２!BV34) ->  | I184: =IF(中越２!CA34=0,"",中越２!CA34) ->  | J184: 1
A185: ②明細コード | B185: 中越地区２ | C185: 日報 | D185: 28 | E185: =中越２!BU35 -> 十日町川西 | F185: 2 | G185: 受注No． | H185: =IF(中越２!BV35=0,"",中越２!BV35) -> 40192 | I185: =IF(中越２!CA35=0,"",中越２!CA35) ->  | J185: 1
A186: ②明細コード | B186: 中越地区２ | C186: 日報 | D186: 29 | E186: =中越２!BU36 -> 仙田 | F186: 2 | G186: 受注No． | H186: =IF(中越２!BV36=0,"",中越２!BV36) -> 40193 | I186: =IF(中越２!CA36=0,"",中越２!CA36) ->  | J186: 1
A187: ②明細コード | B187: 中越地区２ | C187: 日報 | D187: 30 | E187: =中越２!BU37 -> 田沢 | F187: 2 | G187: 受注No． | H187: =IF(中越２!BV37=0,"",中越２!BV37) -> 40194 | I187: =IF(中越２!CA37=0,"",中越２!CA37) ->  | J187: 1
A188: ②明細コード | B188: 中越地区２ | C188: 日報 | D188: 31 | E188: =中越２!#REF! ->  | F188: 2 | G188: 受注No． | H188: =IF(中越２!#REF!=0,"",中越２!#REF!) ->  | I188: =IF(中越２!#REF!=0,"",中越２!#REF!) ->  | J188: 1
A189: ②明細コード | B189: 中越地区２ | C189: 日報 | D189: 32 | E189: =中越２!BU38 -> 津南 | F189: 2 | G189: 受注No． | H189: =IF(中越２!BV38=0,"",中越２!BV38) -> 340197 | I189: =IF(中越２!CA38=0,"",中越２!CA38) ->  | J189: 1
A190: ②明細コード | B190: 中越地区２ | C190: 日報 | D190: 33 | E190: =中越２!BU39 -> 上郷 | F190: 2 | G190: 受注No． | H190: =IF(中越２!BV39=0,"",中越２!BV39) -> 40199 | I190: =IF(中越２!CA39=0,"",中越２!CA39) ->  | J190: 1
A191: ②明細コード | B191: 中越地区２ | C191: 日報 | D191: 34 | E191: =中越２!BU40 -> 森宮野原 | F191: 2 | G191: 受注No． | H191: =IF(中越２!BV40=0,"",中越２!BV40) -> 40200 | I191: =IF(中越２!CA40=0,"",中越２!CA40) ->  | J191: 1
A192: ②明細コード | B192: 上越 | C192: 日報 | D192: 1 | E192: =上越1!BU9 -> 柏崎中央 | F192: 2 | G192: 受注No． | H192: =IF(上越1!BV9=0,"",上越1!BV9) -> 40229 | I192: =IF(上越1!CA9=0,"",上越1!CA9) ->  | J192: 1
A193: ②明細コード | B193: 上越 | C193: 日報 | D193: =D192+1 -> 2 | E193: =上越1!BU10 -> 柏崎 | F193: 2 | G193: 受注No． | H193: =IF(上越1!BV10=0,"",上越1!BV10) -> 40202 | I193: =IF(上越1!CA10=0,"",上越1!CA10) ->  | J193: 1
A194: ②明細コード | B194: 上越 | C194: 日報 | D194: 3 | E194: =上越1!BU11 -> 柏崎南 | F194: 2 | G194: 受注No． | H194: =IF(上越1!BV11=0,"",上越1!BV11) -> 40203 | I194: =IF(上越1!CA11=0,"",上越1!CA11) ->  | J194: 1
A195: ②明細コード | B195: 上越 | C195: 日報 | D195: 4 | E195: =上越1!BU12 -> 0 | F195: 2 | G195: 受注No． | H195: =IF(上越1!BV12=0,"",上越1!BV12) ->  | I195: =IF(上越1!CA12=0,"",上越1!CA12) ->  | J195: 1
A196: ②明細コード | B196: 上越 | C196: 日報 | D196: 5 | E196: =上越1!#REF! ->  | F196: 2 | G196: 受注No． | H196: =IF(上越1!#REF!=0,"",上越1!#REF!) ->  | I196: =IF(上越1!#REF!=0,"",上越1!#REF!) ->  | J196: 1
A197: ②明細コード | B197: 上越 | C197: 日報 | D197: 6 | E197: =上越1!BU13 -> 安田 | F197: 2 | G197: 受注No． | H197: =IF(上越1!BV13=0,"",上越1!BV13) -> 40211 | I197: =IF(上越1!CA13=0,"",上越1!CA13) ->  | J197: 1
A198: ②明細コード | B198: 上越 | C198: 日報 | D198: 7 | E198: =上越1!BU14 -> 北条 | F198: 2 | G198: 受注No． | H198: =IF(上越1!BV14=0,"",上越1!BV14) -> 40212 | I198: =IF(上越1!CA14=0,"",上越1!CA14) ->  | J198: 1
A199: ②明細コード | B199: 上越 | C199: 日報 | D199: 8 | E199: =上越1!BU15 -> 広田 | F199: 2 | G199: 受注No． | H199: =IF(上越1!BV15=0,"",上越1!BV15) -> 40213 | I199: =IF(上越1!CA15=0,"",上越1!CA15) ->  | J199: 1
A200: ②明細コード | B200: 上越 | C200: 日報 | D200: 9 | E200: =上越1!BU16 -> 米山 | F200: 2 | G200: 受注No． | H200: =IF(上越1!BV16=0,"",上越1!BV16) -> 40228 | I200: =IF(上越1!CA16=0,"",上越1!CA16) ->  | J200: 1
... 51 more rows

Sheet 折込指示 (hidden)
B2: 折込指示 | D2: サイズ | E2: コード | G2: ガタチラ掲載 | I2: 曜日 | K2: assh実施日 | M2: assh曜日
B3: スポンサー中心に入れ | D3: Ｂ1 | E3: 01 | G3: 有 | I3: 月 | K3: --年 --月 --日 （--曜） | M3: 第2木曜
B4: スポンサー寄りに入れ | D4: Ｂ2 | E4: 02 | G4: 無 | I4: 火 | K4: 202103112 | M4: 第4木曜
B5: 住宅地中心に入れ | D5: Ｂ3 | E5: 03 | I5: 水 | K5: 202103254
B6: 会場中心に入れ | D6: Ｂ4 | E6: 04 | I6: 木 | K6: 202104082
B7: 会場寄りに入れ | D7: Ｂ5 | E7: 05 | I7: 金 | K7: 202104224
D8: Ｂ3厚 | E8: 13 | I8: 土 | K8: 202105132
D9: Ｂ4厚 | E9: 14 | I9: 日 | K9: 202105274
D10: Ｂ5厚 | E10: 15 | K10: 202106102
D11: 長Ｂ3 | E11: 22 | K11: 202106244
D12: Ｂ3＋Ｂ4 | E12: 23
D13: Ｂ3*2 | E13: 24
D14: Ｂ3*3 | E14: 25
D15: Ｂ1連合 | E15: 41
D16: Ｂ2連合 | E16: 42
D17: Ｂ3連合 | E17: 43
D18: Ｂ4連合 | E18: 44
D19: Ａ4証紙 | E19: 54
D20: 特 | E20: 90
D21: -
D22: A4（Ｂ4） | E22: 04
D23: A3（Ｂ3） | E23: 03

Sheet ＭＡＰ反映 (hidden)
A1: Seq-No | B1: 銘柄 | C1: コード | D1: 販売店コード | E1: 販売店名 | F1: 基本部数 | G1: 依頼部数 | H1: 割合 | I1: 区域指定 | J1: フラグ | K1: 地区コード | L1: 地区名 | M1: 面積占有率
B2: 日報 | C2: 401NN000000101001 | D2: 0101001 | E2: 万代 | F2: 4600
B3: 日報 | C3: 401NN000000101002 | D3: 0101002 | E3: 駅南 | F3: 5330
B4: 日報 | C4: 401NN000000101003 | D4: 0101003 | E4: 木戸 | F4: 5730
B5: 日報 | C5: 401NN000000101005 | D5: 0101005 | E5: 石山東 | F5: 6530
B6: 日報 | C6: 401NN000000101006 | D6: 0101006 | E6: 山ノ下 | F6: 4830
B7: 日報 | C7: 401NN000000101007 | D7: 0101007 | E7: 物見山 | F7: 4230
B8: 日報 | C8: 401NN000000101008 | D8: 0101008 | E8: とやの | F8: 3500
B9: 日報 | C9: 401NN000000101009 | D9: 0101009 | E9: 上所 | F9: 1660
B10: 日報 | C10: 401NN000000101010 | D10: 0101010 | E10: 県庁前 | F10: 3600
B11: 日報 | C11: 401NN000000101011 | D11: 0101011 | E11: 女池 | F11: 2630
B12: 日報 | C12: 401NN000000101012 | D12: 0101012 | E12: 愛宕 | F12: 4800
B13: 日報 | C13: 401NN000000101013 | D13: 0101013 | E13: 河渡 | F13: 5250
B14: 日報 | C14: 401NN000000101014 | D14: 0101014 | E14: 牡丹山 | F14: 2150
B15: 日報 | C15: 401NN000000101015 | D15: 0101015 | E15: 大形 | F15: 4190
B16: 日報 | C16: 401NN000000101016 | D16: 0101016 | E16: アガノ | F16: 7150
B17: 日報 | C17: 401NN000000101017 | D17: 0101017 | E17: 新潟南 | F17: 3470
B18: 日報 | C18: 401NN000000101018 | D18: 0101018 | E18: 姥ケ山 | F18: 3000
B19: 日報 | C19: 401NN000000101019 | D19: 0101019 | E19: 山二ツ | F19: 3000
B20: 日報 | C20: 401NN000000101021 | D20: 0101021 | E20: 亀田西 | F20: 2950
B21: 日報 | C21: 401NN000000101022 | D21: 0101022 | E21: 亀田 | F21: 4430
B22: 日報 | C22: 401NN000000101023 | D22: 0101023 | E22: 横越 | F22: 2520
B23: 日報 | C23: 401NN000000101024 | D23: 0101024 | E23: 有明 | F23: 6800
B24: 日報 | C24: 401NN000000101026 | D24: 0101026 | E24: 小針 | F24: 7500
B25: 日報 | C25: 401NN000000101027 | D25: 0101027 | E25: 中通 | F25: 3300
B26: 日報 | C26: 401NN000000101029 | D26: 0101029 | E26: 本町 | F26: 3000
B27: 日報 | C27: 401NN000000101030 | D27: 0101030 | E27: 中央 | F27: 3400
B28: 日報 | C28: 401NN000000101031 | D28: 0101031 | E28: 真砂 | F28: 2250
B29: 日報 | C29: 401NN000000101032 | D29: 0101032 | E29: 寺尾 | F29: 6450
B30: 日報 | C30: 401NN000000101033 | D30: 0101033 | E30: 新大前 | F30: 3040
B31: 日報 | C31: 401NN000000101034 | D31: 0101034 | E31: 内野 | F31: 3220
B32: 日報 | C32: 401NN000000101035 | D32: 0101035 | E32: 西内野 | F32: 2570
B33: 日報 | C33: 401NN000000101036 | D33: 0101036 | E33: 上坂井 | F33: 2620
B34: 日報 | C34: 401NN000000101037 | D34: 0101037 | E34: 小新 | F34: 2900
B35: 日報 | C35: 401NN000000101038 | D35: 0101038 | E35: 寺地 | F35: 1870
B36: 日報 | C36: 401NN000000101039 | D36: 0101039 | E36: 黒埼 | F36: 3540
B37: 日報 | C37: 401NN000000101040 | D37: 0101040 | E37: 黒埼南 | F37: 3550
B38: ア | C38: 101NN000000103006 | D38: 0103006 | E38: 新潟西 | F38: 3130
B39: ア | C39: 101NN000000103007 | D39: 0103007 | E39: 内野 | F39: 1240
B40: ヨサ日 | C40: 103NN000000103014 | D40: 0103014 | E40: 本町 | F40: 1150
B41: ヨサ日 | C41: 103NN000000103015 | D41: 0103015 | E41: 中央 | F41: 2400
B42: ヨサ日 | C42: 103NN000000103016 | D42: 0103016 | E42: 小針 | F42: 1720
B43: ヨサ日 | C43: 103NN000000103017 | D43: 0103017 | E43: 寺尾 | F43: 1450
B44: ヨサ日 | C44: 103NN000000103018 | D44: 0103018 | E44: 内野 | F44: 1850
B45: ヨサ日 | C45: 103NN000000103019 | D45: 0103019 | E45: 小新黒埼 | F45: 1100
B46: ヨサ日 | C46: 103NN000000103020 | D46: 0103020 | E46: 黒埼南 | F46: 450
B47: ヨサ日 | C47: 103NN000000103021 | D47: 0103021 | E47: 万代 | F47: 2200
B48: ヨサ日 | C48: 103NN000000103022 | D48: 0103022 | E48: 県庁前 | F48: 3800
B49: ヨサ日 | C49: 103NN000000103023 | D49: 0103023 | E49: 駅南東 | F49: 2100
B50: ヨサ日 | C50: 103NN000000103024 | D50: 0103024 | E50: 山木戸 | F50: 1780
B51: ヨサ日 | C51: 103NN000000103025 | D51: 0103025 | E51: 山ノ下 | F51: 1930
B52: ヨサ日 | C52: 103NN000000103026 | D52: 0103026 | E52: 松浜 | F52: 500
B53: ヨサ日 | C53: 103NN000000103028 | D53: 0103028 | E53: 亀田 | F53: 2500
B54: 合 | C54: 401NN000000201001 | D54: 0201001 | E54: 分水 | F54: 4050
B55: 新アマヨ日 | C55: 401NN000000201002 | D55: 0201002 | E55: 吉田 | F55: 5150
B56: サ | C56: 105NN000000201003 | D56: 0201003 | E56: 吉田 | F56: 300
B57: 合 | C57: 401NN000000201004 | D57: 0201004 | E57: 粟生津 | F57: 1000
B58: 朝刊+ク | C58: 401NN000000201005 | D58: 0201005 | E58: 巻 | F58: 6730
B59: アサ | C59: 101NN000000201006 | D59: 0201006 | E59: 巻 | F59: 750
B60: ヨ | C60: 103NN000000201007 | D60: 0201007 | E60: 巻 | F60: 810
B61: 朝刊+ク | C61: 401NN000000201008 | D61: 0201008 | E61: 岩室 | F61: 730
B62: 朝刊+ク | C62: 401NN000000201009 | D62: 0201009 | E62: 西川 | F62: 4500
B63: 合 | C63: 401NN000000201010 | D63: 0201010 | E63: 中之口 | F63: 1180
B64: 合 | C64: 401NN000000201011 | D64: 0201011 | E64: 弥彦 | F64: 2300
B65: 合 | C65: 401NN000000202001 | D65: 0202001 | E65: 小須戸 | F65: 3620
B66: 朝刊+ク | C66: 401NN000000202002 | D66: 0202002 | E66: 矢代田 | F66: 900
B67: 新マヨ日 | C67: 401NN000000202003 | D67: 0202003 | E67: 村松 | F67: 4500
B68: アサ | C68: 101NN000000202004 | D68: 0202004 | E68: 村松 | F68: 590
B69: 朝刊+ク | C69: 401NN000000203001 | D69: 0203001 | E69: 新津 | F69: 16500
B70: 新マヨ日 | C70: 401NN000000204001 | D70: 0204001 | E70: 五泉 | F70: 8600
B71: アサ | C71: 101NN000000204002 | D71: 0204002 | E71: 五泉 | F71: 750
B72: 合 | C72: 401NN000000204003 | D72: 0204003 | E72: 馬下 | F72: 450
B73: 朝刊+ク | C73: 401NN000000205001 | D73: 0205001 | E73: 白根 | F73: 3550
B74: ヨサ | C74: 103NN000000205002 | D74: 0205002 | E74: 白根 | F74: 1140
B75: 朝刊+ク | C75: 401NN000000205003 | D75: 0205003 | E75: 月潟 | F75: 1840
B76: 朝刊+ク | C76: 401NN000000205004 | D76: 0205004 | E76: 新飯田 | F76: 1030
B77: 新アマサ日 | C77: 401NN000000206001 | D77: 0206001 | E77: 三条北 | F77: 7400
B78: 新アマサ日 | C78: 401NN000000206002 | D78: 0206002 | E78: 三条南 | F78: 2560
B79: 新アマサ日 | C79: 401NN000000206003 | D79: 0206003 | E79: 三条西 | F79: 3300
B80: ヨ | C80: 103NN000000206006 | D80: 0206006 | E80: 三条 | F80: 6000
B81: 朝刊+ク | C81: 401NN000000207001 | D81: 0207001 | E81: 燕 | F81: 7060
B82: 新アマサ日 | C82: 401NN000000207002 | D82: 0207002 | E82: 燕南 | F82: 1400
B83: ヨ | C83: 103NN000000207005 | D83: 0207005 | E83: 燕 | F83: 3160
B84: 朝刊+ク | C84: 401NN000000208001 | D84: 0208001 | E84: 加茂 | F84: 9200
B85: ヨ | C85: 103NN000000208003 | D85: 0208003 | E85: 加茂 | F85: 1900
B86: 合 | C86: 401NN000000209001 | D86: 0209001 | E86: 下田 | F86: 2310
B87: 合 | C87: 401NN000000209002 | D87: 0209002 | E87: 栄山嵜 | F87: 1330
B88: 合 | C88: 401NN000000209003 | D88: 0209003 | E88: 栄吉田 | F88: 330
B89: 合 | C89: 401NN000000209005 | D89: 0209005 | E89: 帯織 | F89: 390
B90: 朝刊+ク | C90: 401NN000000210001 | D90: 0210001 | E90: 豊栄北 | F90: 3150
B91: 朝刊+ク | C91: 401NN000000210002 | D91: 0210002 | E91: 豊栄南※ | F91: 2800
B92: ヨサ日 | C92: 103NN000000210002 | D92: 0210002 | E92: 豊栄 | F92: 1050
B93: 朝刊+ク | C93: 401NN000000210003 | D93: 0210003 | E93: 木崎 | F93: 2550
B94: 朝刊+ク | C94: 401NN000000211002 | D94: 0211002 | E94: 新発田西 | F94: 10650
B95: 朝刊+ク | C95: 401NN000000211003 | D95: 0211003 | E95: 新発田東 | F95: 10250
B96: ア | C96: 101NN000000211004 | D96: 0211004 | E96: 新発田 | F96: 1850
B97: ヨサ | C97: 103NN000000211005 | D97: 0211005 | E97: 新発田 | F97: 4200
B98: 合 | C98: 401NN000000211006 | D98: 0211006 | E98: 月岡 | F98: 2250
B99: 新アマ日 | C99: 401NN000000212001 | D99: 0212001 | E99: 中条東 | F99: 2120
B100: 新アマ日 | C100: 401NN000000212002 | D100: 0212002 | E100: 西中条 | F100: 1600
B101: ヨ | C101: 103NN000000212003 | D101: 0212003 | E101: 中条 | F101: 1150
B102: 合 | C102: 401NN000000212004 | D102: 0212004 | E102: 黒川 | F102: 2590
B103: 朝刊+ク | C103: 401NN000000212005 | D103: 0212005 | E103: 水原※ | F103: 6350
B104: ヨサ | C104: 103NN000000212006 | D104: 0212006 | E104: 水原 | F104: 1290
B105: 合 | C105: 401NN000000212007 | D105: 0212007 | E105: 保田 | F105: 2710
B106: 合 | C106: 401NN000000213001 | D106: 0213001 | E106: 村上 | F106: 8450
B107: 合 | C107: 401NN000000213002 | D107: 0213002 | E107: 岩船 | F107: 1800
B108: 合 | C108: 401NN000000213003 | D108: 0213003 | E108: 越後早川 | F108: 350
B109: 合 | C109: 401NN000000214001 | D109: 0214001 | E109: 坂町 | F109: 2500
B110: 合 | C110: 401NN000000214002 | D110: 0214002 | E110: 平林 | F110: 1100
B111: 合 | C111: 401NN000000214003 | D111: 0214003 | E111: 関川 | F111: 1400
B112: 合 | C112: 401NN000000214004 | D112: 0214004 | E112: 寒川桑川 | F112: 270
B113: 合 | C113: 401NN000000214005 | D113: 0214005 | E113: 府屋 | F113: 790
B114: 合 | C114: 401NN000000214006 | D114: 0214006 | E114: 黒川俣 | F114: 280
B115: 合 | C115: 401NN000000215001 | D115: 0215001 | E115: 津川 | F115: 1880
B116: 合 | C116: 401NN000000215002 | D116: 0215002 | E116: 豊実 | F116: 80
B117: 合 | C117: 401NN000000215003 | D117: 0215003 | E117: 日出谷 | F117: 230
